Workbook

Sheet Bogføring
C3: 12310 | D3: Bankbeholdning | E3: =SUMIFS(Bogføring!$H:$H,Bogføring!$B:$B,">="&T!$C$4,Bogføring!$B:$B,"<="&T!$C$5,Bogføring!$G:$G,C3)-SUMIFS(Bogføring!$I:$I,Bogføring!$B:$B,">="&T!$C$4,Bogføring!$B:$B,"<="&T!$C$5,Bogføring!$G:$G,C3) -> 21291.5
C4: 12320 | D4: Kassebeholdning | E4: =SUMIFS(Bogføring!$H:$H,Bogføring!$B:$B,">="&T!$C$4,Bogføring!$B:$B,"<="&T!$C$5,Bogføring!$G:$G,C4)-SUMIFS(Bogføring!$I:$I,Bogføring!$B:$B,">="&T!$C$4,Bogføring!$B:$B,"<="&T!$C$5,Bogføring!$G:$G,C4) -> 4736 | K4: =T!C7&" / Bjarne Hansen" -> version 1.00.009.047 / Bjarne Hansen
B5: Dato | C5: Bilag | D5: Tekst | E5: Medl. Nr. | F5: Årstal | G5: Konto | H5: Debet | I5: Kredit | J5: =IF(SUM(I:I)-SUM(H:H)=0,"Kontobeskrivelse","Difference: "&SUM(I:I)-SUM(H:H)) -> Kontobeskrivelse | K5: Kommentarer
A6: =IF(B6>=T!C$4,IF(B6<=T!C$5,Bogføring!G6,""),"") ->  | B6: 2021-01-01 | D6: Åbningsbalance, Overført Saldi | G6: 12310 | H6: 63030.82 | J6: =IF(G6="","",IF(ISERROR(VLOOKUP(G6,Kontoplan!A:D,2,0)),"Konto findes ikke!",VLOOKUP(G6,Kontoplan!A:D,2,0))) -> Bank konto
A7: =IF(B7>=T!C$4,IF(B7<=T!C$5,Bogføring!G7,""),"") ->  | B7: 2021-01-01 | D7: Åbningsbalance, Overført Saldi | G7: 12320 | H7: 2118 | J7: =IF(G7="","",IF(ISERROR(VLOOKUP(G7,Kontoplan!A:D,2,0)),"Konto findes ikke!",VLOOKUP(G7,Kontoplan!A:D,2,0))) -> Kasse
A8: =IF(B8>=T!C$4,IF(B8<=T!C$5,Bogføring!G8,""),"") ->  | B8: 2021-01-01 | D8: Åbningsbalance, Overført Saldi | G8: 12330 | I8: 65148.82 | J8: =IF(G8="","",IF(ISERROR(VLOOKUP(G8,Kontoplan!A:D,2,0)),"Konto findes ikke!",VLOOKUP(G8,Kontoplan!A:D,2,0))) -> Egenkapital
A9: =IF(B9>=T!C$4,IF(B9<=T!C$5,Bogføring!G9,""),"") ->  | B9: 2021-01-04 | C9: 1 | G9: 12310 | I9: 377.75 | J9: =IF(G9="","",IF(ISERROR(VLOOKUP(G9,Kontoplan!A:D,2,0)),"Konto findes ikke!",VLOOKUP(G9,Kontoplan!A:D,2,0))) -> Bank konto
A10: =IF(B10>=T!C$4,IF(B10<=T!C$5,Bogføring!G10,""),"") ->  | B10: 2021-01-04 | C10: 1 | G10: 2060 | H10: 377.75 | J10: =IF(G10="","",IF(ISERROR(VLOOKUP(G10,Kontoplan!A:D,2,0)),"Konto findes ikke!",VLOOKUP(G10,Kontoplan!A:D,2,0))) -> Internet, mobiltelefon, Forsik.
A11: =IF(B11>=T!C$4,IF(B11<=T!C$5,Bogføring!G11,""),"") ->  | B11: 2021-01-04 | C11: 2 | G11: 12310 | I11: 165.23 | J11: =IF(G11="","",IF(ISERROR(VLOOKUP(G11,Kontoplan!A:D,2,0)),"Konto findes ikke!",VLOOKUP(G11,Kontoplan!A:D,2,0))) -> Bank konto
A12: =IF(B12>=T!C$4,IF(B12<=T!C$5,Bogføring!G12,""),"") ->  | B12: 2021-01-04 | C12: 2 | G12: 2000 | H12: 165.23 | J12: =IF(G12="","",IF(ISERROR(VLOOKUP(G12,Kontoplan!A:D,2,0)),"Konto findes ikke!",VLOOKUP(G12,Kontoplan!A:D,2,0))) -> Bankgebyr
A13: =IF(B13>=T!C$4,IF(B13<=T!C$5,Bogføring!G13,""),"") ->  | B13: 2021-01-05 | C13: 3 | G13: 12310 | H13: 72498 | J13: =IF(G13="","",IF(ISERROR(VLOOKUP(G13,Kontoplan!A:D,2,0)),"Konto findes ikke!",VLOOKUP(G13,Kontoplan!A:D,2,0))) -> Bank konto
A14: =IF(B14>=T!C$4,IF(B14<=T!C$5,Bogføring!G14,""),"") ->  | B14: 2021-01-05 | C14: 3 | G14: 1020 | I14: 72498 | J14: =IF(G14="","",IF(ISERROR(VLOOKUP(G14,Kontoplan!A:D,2,0)),"Konto findes ikke!",VLOOKUP(G14,Kontoplan!A:D,2,0))) -> Tilskud fra BRK/ drifttilskud
A15: =IF(B15>=T!C$4,IF(B15<=T!C$5,Bogføring!G15,""),"") ->  | B15: 2021-01-05 | C15: 4 | G15: 12310 | I15: 2256.25 | J15: =IF(G15="","",IF(ISERROR(VLOOKUP(G15,Kontoplan!A:D,2,0)),"Konto findes ikke!",VLOOKUP(G15,Kontoplan!A:D,2,0))) -> Bank konto
A16: =IF(B16>=T!C$4,IF(B16<=T!C$5,Bogføring!G16,""),"") ->  | B16: 2021-01-05 | C16: 4 | G16: 2030 | H16: 2256.25 | J16: =IF(G16="","",IF(ISERROR(VLOOKUP(G16,Kontoplan!A:D,2,0)),"Konto findes ikke!",VLOOKUP(G16,Kontoplan!A:D,2,0))) -> Bygnings vedligehold
A17: =IF(B17>=T!C$4,IF(B17<=T!C$5,Bogføring!G17,""),"") ->  | B17: 2021-01-05 | C17: 5 | G17: 12310 | I17: 1205 | J17: =IF(G17="","",IF(ISERROR(VLOOKUP(G17,Kontoplan!A:D,2,0)),"Konto findes ikke!",VLOOKUP(G17,Kontoplan!A:D,2,0))) -> Bank konto
A18: =IF(B18>=T!C$4,IF(B18<=T!C$5,Bogføring!G18,""),"") ->  | B18: 2021-01-05 | C18: 5 | G18: 2030 | H18: 1205 | J18: =IF(G18="","",IF(ISERROR(VLOOKUP(G18,Kontoplan!A:D,2,0)),"Konto findes ikke!",VLOOKUP(G18,Kontoplan!A:D,2,0))) -> Bygnings vedligehold
A19: =IF(B19>=T!C$4,IF(B19<=T!C$5,Bogføring!G19,""),"") ->  | B19: 2021-01-08 | C19: 6 | G19: 12310 | I19: 943.31 | J19: =IF(G19="","",IF(ISERROR(VLOOKUP(G19,Kontoplan!A:D,2,0)),"Konto findes ikke!",VLOOKUP(G19,Kontoplan!A:D,2,0))) -> Bank konto
A20: =IF(B20>=T!C$4,IF(B20<=T!C$5,Bogføring!G20,""),"") ->  | B20: 2021-01-08 | C20: 6 | G20: 2165 | H20: 943.31 | J20: =IF(G20="","",IF(ISERROR(VLOOKUP(G20,Kontoplan!A:D,2,0)),"Konto findes ikke!",VLOOKUP(G20,Kontoplan!A:D,2,0))) -> G4S tyverialarm
A21: =IF(B21>=T!C$4,IF(B21<=T!C$5,Bogføring!G21,""),"") ->  | B21: 2021-01-08 | C21: 7 | G21: 12310 | I21: 109.68 | J21: =IF(G21="","",IF(ISERROR(VLOOKUP(G21,Kontoplan!A:D,2,0)),"Konto findes ikke!",VLOOKUP(G21,Kontoplan!A:D,2,0))) -> Bank konto
A22: =IF(B22>=T!C$4,IF(B22<=T!C$5,Bogføring!G22,""),"") ->  | B22: 2021-01-08 | C22: 7 | G22: 2110 | H22: 109.68 | J22: =IF(G22="","",IF(ISERROR(VLOOKUP(G22,Kontoplan!A:D,2,0)),"Konto findes ikke!",VLOOKUP(G22,Kontoplan!A:D,2,0))) -> Kontorhold - Porto - IT
A23: =IF(B23>=T!C$4,IF(B23<=T!C$5,Bogføring!G23,""),"") ->  | B23: 2021-01-19 | C23: 8 | G23: 12310 | H23: 5469.35 | J23: =IF(G23="","",IF(ISERROR(VLOOKUP(G23,Kontoplan!A:D,2,0)),"Konto findes ikke!",VLOOKUP(G23,Kontoplan!A:D,2,0))) -> Bank konto
A24: =IF(B24>=T!C$4,IF(B24<=T!C$5,Bogføring!G24,""),"") ->  | B24: 2021-01-19 | C24: 8 | G24: 1115 | I24: 5469.35 | J24: =IF(G24="","",IF(ISERROR(VLOOKUP(G24,Kontoplan!A:D,2,0)),"Konto findes ikke!",VLOOKUP(G24,Kontoplan!A:D,2,0))) -> Løn Retur fra visma
A25: =IF(B25>=T!C$4,IF(B25<=T!C$5,Bogføring!G25,""),"") ->  | B25: 2021-01-20 | C25: 9 | G25: 12310 | I25: 1832.75 | J25: =IF(G25="","",IF(ISERROR(VLOOKUP(G25,Kontoplan!A:D,2,0)),"Konto findes ikke!",VLOOKUP(G25,Kontoplan!A:D,2,0))) -> Bank konto
A26: =IF(B26>=T!C$4,IF(B26<=T!C$5,Bogføring!G26,""),"") ->  | B26: 2021-01-20 | C26: 9 | G26: 3120 | H26: 1832.75 | J26: =IF(G26="","",IF(ISERROR(VLOOKUP(G26,Kontoplan!A:D,2,0)),"Konto findes ikke!",VLOOKUP(G26,Kontoplan!A:D,2,0))) -> ATP
A27: =IF(B27>=T!C$4,IF(B27<=T!C$5,Bogføring!G27,""),"") ->  | B27: 2021-01-25 | C27: 10 | G27: 12310 | I27: 3170 | J27: =IF(G27="","",IF(ISERROR(VLOOKUP(G27,Kontoplan!A:D,2,0)),"Konto findes ikke!",VLOOKUP(G27,Kontoplan!A:D,2,0))) -> Bank konto
A28: =IF(B28>=T!C$4,IF(B28<=T!C$5,Bogføring!G28,""),"") ->  | B28: 2021-01-25 | C28: 10 | G28: 2190 | H28: 3170 | J28: =IF(G28="","",IF(ISERROR(VLOOKUP(G28,Kontoplan!A:D,2,0)),"Konto findes ikke!",VLOOKUP(G28,Kontoplan!A:D,2,0))) -> Diverse Udgifter
A29: =IF(B29>=T!C$4,IF(B29<=T!C$5,Bogføring!G29,""),"") ->  | B29: 2021-01-29 | C29: 11 | G29: 12310 | I29: 4477 | J29: =IF(G29="","",IF(ISERROR(VLOOKUP(G29,Kontoplan!A:D,2,0)),"Konto findes ikke!",VLOOKUP(G29,Kontoplan!A:D,2,0))) -> Bank konto
A30: =IF(B30>=T!C$4,IF(B30<=T!C$5,Bogføring!G30,""),"") ->  | B30: 2021-01-29 | C30: 11 | G30: 3110 | H30: 4477 | J30: =IF(G30="","",IF(ISERROR(VLOOKUP(G30,Kontoplan!A:D,2,0)),"Konto findes ikke!",VLOOKUP(G30,Kontoplan!A:D,2,0))) -> Lønninger incl ATP -AM | K30: skulle være trukket på skyldig skat
A31: =IF(B31>=T!C$4,IF(B31<=T!C$5,Bogføring!G31,""),"") ->  | B31: 2021-01-29 | C31: 12 | G31: 12310 | I31: 1.5 | J31: =IF(G31="","",IF(ISERROR(VLOOKUP(G31,Kontoplan!A:D,2,0)),"Konto findes ikke!",VLOOKUP(G31,Kontoplan!A:D,2,0))) -> Bank konto
A32: =IF(B32>=T!C$4,IF(B32<=T!C$5,Bogføring!G32,""),"") ->  | B32: 2021-01-29 | C32: 12 | G32: 2000 | H32: 1.5 | J32: =IF(G32="","",IF(ISERROR(VLOOKUP(G32,Kontoplan!A:D,2,0)),"Konto findes ikke!",VLOOKUP(G32,Kontoplan!A:D,2,0))) -> Bankgebyr
A33: =IF(B33>=T!C$4,IF(B33<=T!C$5,Bogføring!G33,""),"") ->  | B33: 2021-02-01 | C33: 13 | G33: 12310 | I33: 192.5 | J33: =IF(G33="","",IF(ISERROR(VLOOKUP(G33,Kontoplan!A:D,2,0)),"Konto findes ikke!",VLOOKUP(G33,Kontoplan!A:D,2,0))) -> Bank konto
A34: =IF(B34>=T!C$4,IF(B34<=T!C$5,Bogføring!G34,""),"") ->  | B34: 2021-02-01 | C34: 13 | G34: 2010 | H34: 192.5 | J34: =IF(G34="","",IF(ISERROR(VLOOKUP(G34,Kontoplan!A:D,2,0)),"Konto findes ikke!",VLOOKUP(G34,Kontoplan!A:D,2,0))) -> Danløn
A35: =IF(B35>=T!C$4,IF(B35<=T!C$5,Bogføring!G35,""),"") ->  | B35: 2021-02-01 | C35: 14 | G35: 12310 | I35: 3316.9 | J35: =IF(G35="","",IF(ISERROR(VLOOKUP(G35,Kontoplan!A:D,2,0)),"Konto findes ikke!",VLOOKUP(G35,Kontoplan!A:D,2,0))) -> Bank konto
A36: =IF(B36>=T!C$4,IF(B36<=T!C$5,Bogføring!G36,""),"") ->  | B36: 2021-02-01 | C36: 14 | G36: 2040 | H36: 3316.9 | J36: =IF(G36="","",IF(ISERROR(VLOOKUP(G36,Kontoplan!A:D,2,0)),"Konto findes ikke!",VLOOKUP(G36,Kontoplan!A:D,2,0))) -> El, Vand og Varme
A37: =IF(B37>=T!C$4,IF(B37<=T!C$5,Bogføring!G37,""),"") ->  | B37: 2021-02-01 | C37: 15 | G37: 12310 | I37: 2064.17 | J37: =IF(G37="","",IF(ISERROR(VLOOKUP(G37,Kontoplan!A:D,2,0)),"Konto findes ikke!",VLOOKUP(G37,Kontoplan!A:D,2,0))) -> Bank konto
A38: =IF(B38>=T!C$4,IF(B38<=T!C$5,Bogføring!G38,""),"") ->  | B38: 2021-02-01 | C38: 15 | G38: 2040 | H38: 2064.17 | J38: =IF(G38="","",IF(ISERROR(VLOOKUP(G38,Kontoplan!A:D,2,0)),"Konto findes ikke!",VLOOKUP(G38,Kontoplan!A:D,2,0))) -> El, Vand og Varme
A39: =IF(B39>=T!C$4,IF(B39<=T!C$5,Bogføring!G39,""),"") ->  | B39: 2021-02-01 | C39: 16 | G39: 12310 | I39: 377.75 | J39: =IF(G39="","",IF(ISERROR(VLOOKUP(G39,Kontoplan!A:D,2,0)),"Konto findes ikke!",VLOOKUP(G39,Kontoplan!A:D,2,0))) -> Bank konto
A40: =IF(B40>=T!C$4,IF(B40<=T!C$5,Bogføring!G40,""),"") ->  | B40: 2021-02-01 | C40: 16 | G40: 2060 | H40: 377.75 | J40: =IF(G40="","",IF(ISERROR(VLOOKUP(G40,Kontoplan!A:D,2,0)),"Konto findes ikke!",VLOOKUP(G40,Kontoplan!A:D,2,0))) -> Internet, mobiltelefon, Forsik.
A41: =IF(B41>=T!C$4,IF(B41<=T!C$5,Bogføring!G41,""),"") ->  | B41: 2021-02-08 | C41: 17 | G41: 12310 | I41: 6000 | J41: =IF(G41="","",IF(ISERROR(VLOOKUP(G41,Kontoplan!A:D,2,0)),"Konto findes ikke!",VLOOKUP(G41,Kontoplan!A:D,2,0))) -> Bank konto
A42: =IF(B42>=T!C$4,IF(B42<=T!C$5,Bogføring!G42,""),"") ->  | B42: 2021-02-08 | C42: 17 | G42: 2030 | H42: 6000 | J42: =IF(G42="","",IF(ISERROR(VLOOKUP(G42,Kontoplan!A:D,2,0)),"Konto findes ikke!",VLOOKUP(G42,Kontoplan!A:D,2,0))) -> Bygnings vedligehold
A43: =IF(B43>=T!C$4,IF(B43<=T!C$5,Bogføring!G43,""),"") ->  | B43: 2021-02-08 | C43: 18 | G43: 12310 | I43: 284 | J43: =IF(G43="","",IF(ISERROR(VLOOKUP(G43,Kontoplan!A:D,2,0)),"Konto findes ikke!",VLOOKUP(G43,Kontoplan!A:D,2,0))) -> Bank konto
A44: =IF(B44>=T!C$4,IF(B44<=T!C$5,Bogføring!G44,""),"") ->  | B44: 2021-02-08 | C44: 18 | G44: 3110 | H44: 284 | J44: =IF(G44="","",IF(ISERROR(VLOOKUP(G44,Kontoplan!A:D,2,0)),"Konto findes ikke!",VLOOKUP(G44,Kontoplan!A:D,2,0))) -> Lønninger incl ATP -AM
A45: =IF(B45>=T!C$4,IF(B45<=T!C$5,Bogføring!G45,""),"") ->  | B45: 2021-02-24 | C45: 19 | G45: 12310 | I45: 947.14 | J45: =IF(G45="","",IF(ISERROR(VLOOKUP(G45,Kontoplan!A:D,2,0)),"Konto findes ikke!",VLOOKUP(G45,Kontoplan!A:D,2,0))) -> Bank konto
A46: =IF(B46>=T!C$4,IF(B46<=T!C$5,Bogføring!G46,""),"") ->  | B46: 2021-02-24 | C46: 19 | G46: 2120 | H46: 947.14 | J46: =IF(G46="","",IF(ISERROR(VLOOKUP(G46,Kontoplan!A:D,2,0)),"Konto findes ikke!",VLOOKUP(G46,Kontoplan!A:D,2,0))) -> Hjemmeside
A47: =IF(B47>=T!C$4,IF(B47<=T!C$5,Bogføring!G47,""),"") ->  | B47: 2021-03-01 | C47: 20 | G47: 12310 | I47: 1 | J47: =IF(G47="","",IF(ISERROR(VLOOKUP(G47,Kontoplan!A:D,2,0)),"Konto findes ikke!",VLOOKUP(G47,Kontoplan!A:D,2,0))) -> Bank konto
A48: =IF(B48>=T!C$4,IF(B48<=T!C$5,Bogføring!G48,""),"") ->  | B48: 2021-03-01 | C48: 20 | G48: 2000 | H48: 1 | J48: =IF(G48="","",IF(ISERROR(VLOOKUP(G48,Kontoplan!A:D,2,0)),"Konto findes ikke!",VLOOKUP(G48,Kontoplan!A:D,2,0))) -> Bankgebyr
A49: =IF(B49>=T!C$4,IF(B49<=T!C$5,Bogføring!G49,""),"") ->  | B49: 2021-03-01 | C49: 21 | G49: 12310 | I49: 456.05 | J49: =IF(G49="","",IF(ISERROR(VLOOKUP(G49,Kontoplan!A:D,2,0)),"Konto findes ikke!",VLOOKUP(G49,Kontoplan!A:D,2,0))) -> Bank konto
A50: =IF(B50>=T!C$4,IF(B50<=T!C$5,Bogføring!G50,""),"") ->  | B50: 2021-03-01 | C50: 21 | G50: 2060 | H50: 456.05 | J50: =IF(G50="","",IF(ISERROR(VLOOKUP(G50,Kontoplan!A:D,2,0)),"Konto findes ikke!",VLOOKUP(G50,Kontoplan!A:D,2,0))) -> Internet, mobiltelefon, Forsik.
A51: =IF(B51>=T!C$4,IF(B51<=T!C$5,Bogføring!G51,""),"") ->  | B51: 2021-03-01 | C51: 22 | G51: 12310 | I51: 192.5 | J51: =IF(G51="","",IF(ISERROR(VLOOKUP(G51,Kontoplan!A:D,2,0)),"Konto findes ikke!",VLOOKUP(G51,Kontoplan!A:D,2,0))) -> Bank konto
A52: =IF(B52>=T!C$4,IF(B52<=T!C$5,Bogføring!G52,""),"") ->  | B52: 2021-03-01 | C52: 22 | G52: 2010 | H52: 192.5 | J52: =IF(G52="","",IF(ISERROR(VLOOKUP(G52,Kontoplan!A:D,2,0)),"Konto findes ikke!",VLOOKUP(G52,Kontoplan!A:D,2,0))) -> Danløn
A53: =IF(B53>=T!C$4,IF(B53<=T!C$5,Bogføring!G53,""),"") ->  | B53: 2021-03-03 | C53: 23 | G53: 12310 | I53: 104.39 | J53: =IF(G53="","",IF(ISERROR(VLOOKUP(G53,Kontoplan!A:D,2,0)),"Konto findes ikke!",VLOOKUP(G53,Kontoplan!A:D,2,0))) -> Bank konto
A54: =IF(B54>=T!C$4,IF(B54<=T!C$5,Bogføring!G54,""),"") ->  | B54: 2021-03-03 | C54: 23 | G54: 2110 | H54: 104.39 | J54: =IF(G54="","",IF(ISERROR(VLOOKUP(G54,Kontoplan!A:D,2,0)),"Konto findes ikke!",VLOOKUP(G54,Kontoplan!A:D,2,0))) -> Kontorhold - Porto - IT
A55: =IF(B55>=T!C$4,IF(B55<=T!C$5,Bogføring!G55,""),"") ->  | B55: 2021-03-05 | C55: 24 | G55: 12310 | I55: 7316.64 | J55: =IF(G55="","",IF(ISERROR(VLOOKUP(G55,Kontoplan!A:D,2,0)),"Konto findes ikke!",VLOOKUP(G55,Kontoplan!A:D,2,0))) -> Bank konto
A56: =IF(B56>=T!C$4,IF(B56<=T!C$5,Bogføring!G56,""),"") ->  | B56: 2021-03-05 | C56: 24 | G56: 2060 | H56: 7316.64 | J56: =IF(G56="","",IF(ISERROR(VLOOKUP(G56,Kontoplan!A:D,2,0)),"Konto findes ikke!",VLOOKUP(G56,Kontoplan!A:D,2,0))) -> Internet, mobiltelefon, Forsik.
A57: =IF(B57>=T!C$4,IF(B57<=T!C$5,Bogføring!G57,""),"") ->  | B57: 2021-03-08 | C57: 25 | G57: 12310 | I57: 12500 | J57: =IF(G57="","",IF(ISERROR(VLOOKUP(G57,Kontoplan!A:D,2,0)),"Konto findes ikke!",VLOOKUP(G57,Kontoplan!A:D,2,0))) -> Bank konto
A58: =IF(B58>=T!C$4,IF(B58<=T!C$5,Bogføring!G58,""),"") ->  | B58: 2021-03-08 | C58: 25 | G58: 2020 | H58: 12500 | J58: =IF(G58="","",IF(ISERROR(VLOOKUP(G58,Kontoplan!A:D,2,0)),"Konto findes ikke!",VLOOKUP(G58,Kontoplan!A:D,2,0))) -> Revision
A59: =IF(B59>=T!C$4,IF(B59<=T!C$5,Bogføring!G59,""),"") ->  | B59: 2021-03-10 | C59: 26 | G59: 12310 | I59: 514.25 | J59: =IF(G59="","",IF(ISERROR(VLOOKUP(G59,Kontoplan!A:D,2,0)),"Konto findes ikke!",VLOOKUP(G59,Kontoplan!A:D,2,0))) -> Bank konto
A60: =IF(B60>=T!C$4,IF(B60<=T!C$5,Bogføring!G60,""),"") ->  | B60: 2021-03-10 | C60: 26 | G60: 2040 | H60: 514.25 | J60: =IF(G60="","",IF(ISERROR(VLOOKUP(G60,Kontoplan!A:D,2,0)),"Konto findes ikke!",VLOOKUP(G60,Kontoplan!A:D,2,0))) -> El, Vand og Varme
A61: =IF(B61>=T!C$4,IF(B61<=T!C$5,Bogføring!G61,""),"") ->  | B61: 2021-03-11 | C61: 27 | G61: 12310 | I61: 550 | J61: =IF(G61="","",IF(ISERROR(VLOOKUP(G61,Kontoplan!A:D,2,0)),"Konto findes ikke!",VLOOKUP(G61,Kontoplan!A:D,2,0))) -> Bank konto
A62: =IF(B62>=T!C$4,IF(B62<=T!C$5,Bogføring!G62,""),"") ->  | B62: 2021-03-11 | C62: 27 | G62: 2090 | H62: 550 | J62: =IF(G62="","",IF(ISERROR(VLOOKUP(G62,Kontoplan!A:D,2,0)),"Konto findes ikke!",VLOOKUP(G62,Kontoplan!A:D,2,0))) -> Kontingent til andre Foreninger
A63: =IF(B63>=T!C$4,IF(B63<=T!C$5,Bogføring!G63,""),"") ->  | B63: 2021-03-12 | C63: 28 | G63: 12310 | H63: 10000 | J63: =IF(G63="","",IF(ISERROR(VLOOKUP(G63,Kontoplan!A:D,2,0)),"Konto findes ikke!",VLOOKUP(G63,Kontoplan!A:D,2,0))) -> Bank konto
A64: =IF(B64>=T!C$4,IF(B64<=T!C$5,Bogføring!G64,""),"") ->  | B64: 2021-03-12 | C64: 28 | G64: 1040 | I64: 10000 | J64: =IF(G64="","",IF(ISERROR(VLOOKUP(G64,Kontoplan!A:D,2,0)),"Konto findes ikke!",VLOOKUP(G64,Kontoplan!A:D,2,0))) -> Fonde/Gaver
A65: =IF(B65>=T!C$4,IF(B65<=T!C$5,Bogføring!G65,""),"") ->  | B65: 2021-03-12 | C65: 29 | G65: 12310 | I65: 16000 | J65: =IF(G65="","",IF(ISERROR(VLOOKUP(G65,Kontoplan!A:D,2,0)),"Konto findes ikke!",VLOOKUP(G65,Kontoplan!A:D,2,0))) -> Bank konto
A66: =IF(B66>=T!C$4,IF(B66<=T!C$5,Bogføring!G66,""),"") ->  | B66: 2021-03-12 | C66: 29 | G66: 2030 | H66: 16000 | J66: =IF(G66="","",IF(ISERROR(VLOOKUP(G66,Kontoplan!A:D,2,0)),"Konto findes ikke!",VLOOKUP(G66,Kontoplan!A:D,2,0))) -> Bygnings vedligehold
A67: =IF(B67>=T!C$4,IF(B67<=T!C$5,Bogføring!G67,""),"") ->  | B67: 2021-03-12 | C67: 30 | G67: 12310 | I67: 8125 | J67: =IF(G67="","",IF(ISERROR(VLOOKUP(G67,Kontoplan!A:D,2,0)),"Konto findes ikke!",VLOOKUP(G67,Kontoplan!A:D,2,0))) -> Bank konto
A68: =IF(B68>=T!C$4,IF(B68<=T!C$5,Bogføring!G68,""),"") ->  | B68: 2021-03-12 | C68: 30 | G68: 2030 | H68: 8125 | J68: =IF(G68="","",IF(ISERROR(VLOOKUP(G68,Kontoplan!A:D,2,0)),"Konto findes ikke!",VLOOKUP(G68,Kontoplan!A:D,2,0))) -> Bygnings vedligehold
A69: =IF(B69>=T!C$4,IF(B69<=T!C$5,Bogføring!G69,""),"") ->  | B69: 2021-03-16 | C69: 31 | G69: 12310 | H69: 84 | J69: =IF(G69="","",IF(ISERROR(VLOOKUP(G69,Kontoplan!A:D,2,0)),"Konto findes ikke!",VLOOKUP(G69,Kontoplan!A:D,2,0))) -> Bank konto
A70: =IF(B70>=T!C$4,IF(B70<=T!C$5,Bogføring!G70,""),"") ->  | B70: 2021-03-16 | C70: 31 | G70: 1080 | I70: 84 | J70: =IF(G70="","",IF(ISERROR(VLOOKUP(G70,Kontoplan!A:D,2,0)),"Konto findes ikke!",VLOOKUP(G70,Kontoplan!A:D,2,0))) -> Flaskepant retur
A71: =IF(B71>=T!C$4,IF(B71<=T!C$5,Bogføring!G71,""),"") ->  | B71: 2021-03-23 | C71: 32 | G71: 12310 | H71: 250 | J71: =IF(G71="","",IF(ISERROR(VLOOKUP(G71,Kontoplan!A:D,2,0)),"Konto findes ikke!",VLOOKUP(G71,Kontoplan!A:D,2,0))) -> Bank konto
A72: =IF(B72>=T!C$4,IF(B72<=T!C$5,Bogføring!G72,""),"") ->  | B72: 2021-03-23 | C72: 32 | G72: 1125 | I72: 250 | J72: =IF(G72="","",IF(ISERROR(VLOOKUP(G72,Kontoplan!A:D,2,0)),"Konto findes ikke!",VLOOKUP(G72,Kontoplan!A:D,2,0))) -> Salg af inventar
A73: =IF(B73>=T!C$4,IF(B73<=T!C$5,Bogføring!G73,""),"") ->  | B73: 2021-03-27 | C73: 33 | G73: 12310 | I73: 289 | J73: =IF(G73="","",IF(ISERROR(VLOOKUP(G73,Kontoplan!A:D,2,0)),"Konto findes ikke!",VLOOKUP(G73,Kontoplan!A:D,2,0))) -> Bank konto
A74: =IF(B74>=T!C$4,IF(B74<=T!C$5,Bogføring!G74,""),"") ->  | B74: 2021-03-27 | C74: 33 | G74: 2100 | H74: 289 | J74: =IF(G74="","",IF(ISERROR(VLOOKUP(G74,Kontoplan!A:D,2,0)),"Konto findes ikke!",VLOOKUP(G74,Kontoplan!A:D,2,0))) -> Forplejning til møder/Rejser
A75: =IF(B75>=T!C$4,IF(B75<=T!C$5,Bogføring!G75,""),"") ->  | B75: 2021-03-31 | C75: 34 | G75: 12310 | H75: 3350 | J75: =IF(G75="","",IF(ISERROR(VLOOKUP(G75,Kontoplan!A:D,2,0)),"Konto findes ikke!",VLOOKUP(G75,Kontoplan!A:D,2,0))) -> Bank konto
A76: =IF(B76>=T!C$4,IF(B76<=T!C$5,Bogføring!G76,""),"") ->  | B76: 2021-03-31 | C76: 34 | G76: 1125 | I76: 3350 | J76: =IF(G76="","",IF(ISERROR(VLOOKUP(G76,Kontoplan!A:D,2,0)),"Konto findes ikke!",VLOOKUP(G76,Kontoplan!A:D,2,0))) -> Salg af inventar
A77: =IF(B77>=T!C$4,IF(B77<=T!C$5,Bogføring!G77,""),"") ->  | B77: 2021-03-31 | C77: 35 | G77: 12310 | I77: 4477 | J77: =IF(G77="","",IF(ISERROR(VLOOKUP(G77,Kontoplan!A:D,2,0)),"Konto findes ikke!",VLOOKUP(G77,Kontoplan!A:D,2,0))) -> Bank konto
A78: =IF(B78>=T!C$4,IF(B78<=T!C$5,Bogføring!G78,""),"") ->  | B78: 2021-03-31 | C78: 35 | G78: 3110 | H78: 4477 | J78: =IF(G78="","",IF(ISERROR(VLOOKUP(G78,Kontoplan!A:D,2,0)),"Konto findes ikke!",VLOOKUP(G78,Kontoplan!A:D,2,0))) -> Lønninger incl ATP -AM
A79: =IF(B79>=T!C$4,IF(B79<=T!C$5,Bogføring!G79,""),"") ->  | B79: 2021-03-31 | C79: 36 | G79: 12310 | I79: 106 | J79: =IF(G79="","",IF(ISERROR(VLOOKUP(G79,Kontoplan!A:D,2,0)),"Konto findes ikke!",VLOOKUP(G79,Kontoplan!A:D,2,0))) -> Bank konto
A80: =IF(B80>=T!C$4,IF(B80<=T!C$5,Bogføring!G80,""),"") ->  | B80: 2021-03-31 | C80: 36 | G80: 2000 | H80: 106 | J80: =IF(G80="","",IF(ISERROR(VLOOKUP(G80,Kontoplan!A:D,2,0)),"Konto findes ikke!",VLOOKUP(G80,Kontoplan!A:D,2,0))) -> Bankgebyr
A81: =IF(B81>=T!C$4,IF(B81<=T!C$5,Bogføring!G81,""),"") ->  | B81: 2021-04-06 | C81: 37 | G81: 12310 | I81: 414 | J81: =IF(G81="","",IF(ISERROR(VLOOKUP(G81,Kontoplan!A:D,2,0)),"Konto findes ikke!",VLOOKUP(G81,Kontoplan!A:D,2,0))) -> Bank konto
A82: =IF(B82>=T!C$4,IF(B82<=T!C$5,Bogføring!G82,""),"") ->  | B82: 2021-04-06 | C82: 37 | G82: 2060 | H82: 414 | J82: =IF(G82="","",IF(ISERROR(VLOOKUP(G82,Kontoplan!A:D,2,0)),"Konto findes ikke!",VLOOKUP(G82,Kontoplan!A:D,2,0))) -> Internet, mobiltelefon, Forsik.
A83: =IF(B83>=T!C$4,IF(B83<=T!C$5,Bogføring!G83,""),"") ->  | B83: 2021-04-06 | C83: 38 | G83: 12310 | I83: 7907.79 | J83: =IF(G83="","",IF(ISERROR(VLOOKUP(G83,Kontoplan!A:D,2,0)),"Konto findes ikke!",VLOOKUP(G83,Kontoplan!A:D,2,0))) -> Bank konto
A84: =IF(B84>=T!C$4,IF(B84<=T!C$5,Bogføring!G84,""),"") ->  | B84: 2021-04-06 | C84: 38 | G84: 2165 | H84: 7907.79 | J84: =IF(G84="","",IF(ISERROR(VLOOKUP(G84,Kontoplan!A:D,2,0)),"Konto findes ikke!",VLOOKUP(G84,Kontoplan!A:D,2,0))) -> G4S tyverialarm
A85: =IF(B85>=T!C$4,IF(B85<=T!C$5,Bogføring!G85,""),"") ->  | B85: 2021-04-06 | C85: 39 | G85: 12310 | I85: 192.5 | J85: =IF(G85="","",IF(ISERROR(VLOOKUP(G85,Kontoplan!A:D,2,0)),"Konto findes ikke!",VLOOKUP(G85,Kontoplan!A:D,2,0))) -> Bank konto
A86: =IF(B86>=T!C$4,IF(B86<=T!C$5,Bogføring!G86,""),"") ->  | B86: 2021-04-06 | C86: 39 | G86: 2010 | H86: 192.5 | J86: =IF(G86="","",IF(ISERROR(VLOOKUP(G86,Kontoplan!A:D,2,0)),"Konto findes ikke!",VLOOKUP(G86,Kontoplan!A:D,2,0))) -> Danløn
A87: =IF(B87>=T!C$4,IF(B87<=T!C$5,Bogføring!G87,""),"") ->  | B87: 2021-04-07 | C87: 40 | G87: 12310 | H87: 7907.79 | J87: =IF(G87="","",IF(ISERROR(VLOOKUP(G87,Kontoplan!A:D,2,0)),"Konto findes ikke!",VLOOKUP(G87,Kontoplan!A:D,2,0))) -> Bank konto
A88: =IF(B88>=T!C$4,IF(B88<=T!C$5,Bogføring!G88,""),"") ->  | B88: 2021-04-07 | C88: 40 | G88: 2165 | I88: 7907.79 | J88: =IF(G88="","",IF(ISERROR(VLOOKUP(G88,Kontoplan!A:D,2,0)),"Konto findes ikke!",VLOOKUP(G88,Kontoplan!A:D,2,0))) -> G4S tyverialarm
A89: =IF(B89>=T!C$4,IF(B89<=T!C$5,Bogføring!G89,""),"") ->  | B89: 2021-04-08 | C89: 41 | G89: 12310 | I89: 1337.06 | J89: =IF(G89="","",IF(ISERROR(VLOOKUP(G89,Kontoplan!A:D,2,0)),"Konto findes ikke!",VLOOKUP(G89,Kontoplan!A:D,2,0))) -> Bank konto
A90: =IF(B90>=T!C$4,IF(B90<=T!C$5,Bogføring!G90,""),"") ->  | B90: 2021-04-08 | C90: 41 | G90: 2165 | H90: 1337.06 | J90: =IF(G90="","",IF(ISERROR(VLOOKUP(G90,Kontoplan!A:D,2,0)),"Konto findes ikke!",VLOOKUP(G90,Kontoplan!A:D,2,0))) -> G4S tyverialarm
A91: =IF(B91>=T!C$4,IF(B91<=T!C$5,Bogføring!G91,""),"") ->  | B91: 2021-04-08 | C91: 42 | G91: 12310 | I91: 105.05 | J91: =IF(G91="","",IF(ISERROR(VLOOKUP(G91,Kontoplan!A:D,2,0)),"Konto findes ikke!",VLOOKUP(G91,Kontoplan!A:D,2,0))) -> Bank konto
A92: =IF(B92>=T!C$4,IF(B92<=T!C$5,Bogføring!G92,""),"") ->  | B92: 2021-04-08 | C92: 42 | G92: 2100 | H92: 105.05 | J92: =IF(G92="","",IF(ISERROR(VLOOKUP(G92,Kontoplan!A:D,2,0)),"Konto findes ikke!",VLOOKUP(G92,Kontoplan!A:D,2,0))) -> Forplejning til møder/Rejser
A93: =IF(B93>=T!C$4,IF(B93<=T!C$5,Bogføring!G93,""),"") ->  | B93: 2021-04-08 | C93: 43 | G93: 12310 | I93: 477.75 | J93: =IF(G93="","",IF(ISERROR(VLOOKUP(G93,Kontoplan!A:D,2,0)),"Konto findes ikke!",VLOOKUP(G93,Kontoplan!A:D,2,0))) -> Bank konto
A94: =IF(B94>=T!C$4,IF(B94<=T!C$5,Bogføring!G94,""),"") ->  | B94: 2021-04-08 | C94: 43 | G94: 2035 | H94: 477.75 | J94: =IF(G94="","",IF(ISERROR(VLOOKUP(G94,Kontoplan!A:D,2,0)),"Konto findes ikke!",VLOOKUP(G94,Kontoplan!A:D,2,0))) -> Grønne områder
A95: =IF(B95>=T!C$4,IF(B95<=T!C$5,Bogføring!G95,""),"") ->  | B95: 2021-04-12 | C95: 44 | G95: 12310 | I95: 73.13 | J95: =IF(G95="","",IF(ISERROR(VLOOKUP(G95,Kontoplan!A:D,2,0)),"Konto findes ikke!",VLOOKUP(G95,Kontoplan!A:D,2,0))) -> Bank konto
A96: =IF(B96>=T!C$4,IF(B96<=T!C$5,Bogføring!G96,""),"") ->  | B96: 2021-04-12 | C96: 44 | G96: 2190 | H96: 73.13 | J96: =IF(G96="","",IF(ISERROR(VLOOKUP(G96,Kontoplan!A:D,2,0)),"Konto findes ikke!",VLOOKUP(G96,Kontoplan!A:D,2,0))) -> Diverse Udgifter
A97: =IF(B97>=T!C$4,IF(B97<=T!C$5,Bogføring!G97,""),"") ->  | B97: 2021-04-14 | C97: 45 | G97: 12310 | H97: 30000 | J97: =IF(G97="","",IF(ISERROR(VLOOKUP(G97,Kontoplan!A:D,2,0)),"Konto findes ikke!",VLOOKUP(G97,Kontoplan!A:D,2,0))) -> Bank konto
A98: =IF(B98>=T!C$4,IF(B98<=T!C$5,Bogføring!G98,""),"") ->  | B98: 2021-04-14 | C98: 45 | G98: 1025 | I98: 30000 | J98: =IF(G98="","",IF(ISERROR(VLOOKUP(G98,Kontoplan!A:D,2,0)),"Konto findes ikke!",VLOOKUP(G98,Kontoplan!A:D,2,0))) -> Tilskud fra BRK
A99: =IF(B99>=T!C$4,IF(B99<=T!C$5,Bogføring!G99,""),"") ->  | B99: 2021-04-14 | C99: 46 | G99: 12310 | I99: 194.39 | J99: =IF(G99="","",IF(ISERROR(VLOOKUP(G99,Kontoplan!A:D,2,0)),"Konto findes ikke!",VLOOKUP(G99,Kontoplan!A:D,2,0))) -> Bank konto
A100: =IF(B100>=T!C$4,IF(B100<=T!C$5,Bogføring!G100,""),"") ->  | B100: 2021-04-14 | C100: 46 | G100: 3110 | H100: 194.39 | J100: =IF(G100="","",IF(ISERROR(VLOOKUP(G100,Kontoplan!A:D,2,0)),"Konto findes ikke!",VLOOKUP(G100,Kontoplan!A:D,2,0))) -> Lønninger incl ATP -AM
A101: =IF(B101>=T!C$4,IF(B101<=T!C$5,Bogføring!G101,""),"") ->  | B101: 2021-04-15 | C101: 47 | G101: 12310 | H101: 400 | J101: =IF(G101="","",IF(ISERROR(VLOOKUP(G101,Kontoplan!A:D,2,0)),"Konto findes ikke!",VLOOKUP(G101,Kontoplan!A:D,2,0))) -> Bank konto
A102: =IF(B102>=T!C$4,IF(B102<=T!C$5,Bogføring!G102,""),"") ->  | B102: 2021-04-15 | C102: 47 | G102: 1125 | I102: 400 | J102: =IF(G102="","",IF(ISERROR(VLOOKUP(G102,Kontoplan!A:D,2,0)),"Konto findes ikke!",VLOOKUP(G102,Kontoplan!A:D,2,0))) -> Salg af inventar
A103: =IF(B103>=T!C$4,IF(B103<=T!C$5,Bogføring!G103,""),"") ->  | B103: 2021-04-22 | C103: 48 | G103: 12310 | I103: 464.69 | J103: =IF(G103="","",IF(ISERROR(VLOOKUP(G103,Kontoplan!A:D,2,0)),"Konto findes ikke!",VLOOKUP(G103,Kontoplan!A:D,2,0))) -> Bank konto
A104: =IF(B104>=T!C$4,IF(B104<=T!C$5,Bogføring!G104,""),"") ->  | B104: 2021-04-22 | C104: 48 | G104: 2165 | H104: 464.69 | J104: =IF(G104="","",IF(ISERROR(VLOOKUP(G104,Kontoplan!A:D,2,0)),"Konto findes ikke!",VLOOKUP(G104,Kontoplan!A:D,2,0))) -> G4S tyverialarm
A105: =IF(B105>=T!C$4,IF(B105<=T!C$5,Bogføring!G105,""),"") ->  | B105: 2021-04-22 | C105: 49 | G105: 12310 | I105: 1337.06 | J105: =IF(G105="","",IF(ISERROR(VLOOKUP(G105,Kontoplan!A:D,2,0)),"Konto findes ikke!",VLOOKUP(G105,Kontoplan!A:D,2,0))) -> Bank konto
A106: =IF(B106>=T!C$4,IF(B106<=T!C$5,Bogføring!G106,""),"") ->  | B106: 2021-04-22 | C106: 49 | G106: 2165 | H106: 1337.06 | J106: =IF(G106="","",IF(ISERROR(VLOOKUP(G106,Kontoplan!A:D,2,0)),"Konto findes ikke!",VLOOKUP(G106,Kontoplan!A:D,2,0))) -> G4S tyverialarm
A107: =IF(B107>=T!C$4,IF(B107<=T!C$5,Bogføring!G107,""),"") ->  | B107: 2021-04-24 | C107: 50 | G107: 12310 | I107: 65 | J107: =IF(G107="","",IF(ISERROR(VLOOKUP(G107,Kontoplan!A:D,2,0)),"Konto findes ikke!",VLOOKUP(G107,Kontoplan!A:D,2,0))) -> Bank konto
A108: =IF(B108>=T!C$4,IF(B108<=T!C$5,Bogføring!G108,""),"") ->  | B108: 2021-04-24 | C108: 50 | G108: 2100 | H108: 65 | J108: =IF(G108="","",IF(ISERROR(VLOOKUP(G108,Kontoplan!A:D,2,0)),"Konto findes ikke!",VLOOKUP(G108,Kontoplan!A:D,2,0))) -> Forplejning til møder/Rejser
A109: =IF(B109>=T!C$4,IF(B109<=T!C$5,Bogføring!G109,""),"") ->  | B109: 2021-04-29 | C109: 51 | G109: 12310 | I109: 7000 | J109: =IF(G109="","",IF(ISERROR(VLOOKUP(G109,Kontoplan!A:D,2,0)),"Konto findes ikke!",VLOOKUP(G109,Kontoplan!A:D,2,0))) -> Bank konto
A110: =IF(B110>=T!C$4,IF(B110<=T!C$5,Bogføring!G110,""),"") ->  | B110: 2021-04-29 | C110: 51 | G110: 3110 | H110: 7000 | J110: =IF(G110="","",IF(ISERROR(VLOOKUP(G110,Kontoplan!A:D,2,0)),"Konto findes ikke!",VLOOKUP(G110,Kontoplan!A:D,2,0))) -> Lønninger incl ATP -AM
A111: =IF(B111>=T!C$4,IF(B111<=T!C$5,Bogføring!G111,""),"") ->  | B111: 2021-04-29 | C111: 52 | G111: 12310 | I111: 71 | J111: =IF(G111="","",IF(ISERROR(VLOOKUP(G111,Kontoplan!A:D,2,0)),"Konto findes ikke!",VLOOKUP(G111,Kontoplan!A:D,2,0))) -> Bank konto
A112: =IF(B112>=T!C$4,IF(B112<=T!C$5,Bogføring!G112,""),"") ->  | B112: 2021-04-29 | C112: 52 | G112: 2190 | H112: 71 | J112: =IF(G112="","",IF(ISERROR(VLOOKUP(G112,Kontoplan!A:D,2,0)),"Konto findes ikke!",VLOOKUP(G112,Kontoplan!A:D,2,0))) -> Diverse Udgifter
A113: =IF(B113>=T!C$4,IF(B113<=T!C$5,Bogføring!G113,""),"") ->  | B113: 2021-05-01 | C113: 53 | G113: 12310 | I113: 1 | J113: =IF(G113="","",IF(ISERROR(VLOOKUP(G113,Kontoplan!A:D,2,0)),"Konto findes ikke!",VLOOKUP(G113,Kontoplan!A:D,2,0))) -> Bank konto
A114: =IF(B114>=T!C$4,IF(B114<=T!C$5,Bogføring!G114,""),"") ->  | B114: 2021-05-01 | C114: 53 | G114: 2000 | H114: 1 | J114: =IF(G114="","",IF(ISERROR(VLOOKUP(G114,Kontoplan!A:D,2,0)),"Konto findes ikke!",VLOOKUP(G114,Kontoplan!A:D,2,0))) -> Bankgebyr
A115: =IF(B115>=T!C$4,IF(B115<=T!C$5,Bogføring!G115,""),"") ->  | B115: 2021-05-03 | C115: 54 | G115: 12310 | I115: 15121.69 | J115: =IF(G115="","",IF(ISERROR(VLOOKUP(G115,Kontoplan!A:D,2,0)),"Konto findes ikke!",VLOOKUP(G115,Kontoplan!A:D,2,0))) -> Bank konto
A116: =IF(B116>=T!C$4,IF(B116<=T!C$5,Bogføring!G116,""),"") ->  | B116: 2021-05-03 | C116: 54 | G116: 2040 | H116: 15121.69 | J116: =IF(G116="","",IF(ISERROR(VLOOKUP(G116,Kontoplan!A:D,2,0)),"Konto findes ikke!",VLOOKUP(G116,Kontoplan!A:D,2,0))) -> El, Vand og Varme
A117: =IF(B117>=T!C$4,IF(B117<=T!C$5,Bogføring!G117,""),"") ->  | B117: 2021-05-03 | C117: 55 | G117: 12310 | I117: 3449.73 | J117: =IF(G117="","",IF(ISERROR(VLOOKUP(G117,Kontoplan!A:D,2,0)),"Konto findes ikke!",VLOOKUP(G117,Kontoplan!A:D,2,0))) -> Bank konto
A118: =IF(B118>=T!C$4,IF(B118<=T!C$5,Bogføring!G118,""),"") ->  | B118: 2021-05-03 | C118: 55 | G118: 2040 | H118: 3449.73 | J118: =IF(G118="","",IF(ISERROR(VLOOKUP(G118,Kontoplan!A:D,2,0)),"Konto findes ikke!",VLOOKUP(G118,Kontoplan!A:D,2,0))) -> El, Vand og Varme
A119: =IF(B119>=T!C$4,IF(B119<=T!C$5,Bogføring!G119,""),"") ->  | B119: 2021-05-03 | C119: 56 | G119: 12310 | I119: 414 | J119: =IF(G119="","",IF(ISERROR(VLOOKUP(G119,Kontoplan!A:D,2,0)),"Konto findes ikke!",VLOOKUP(G119,Kontoplan!A:D,2,0))) -> Bank konto
A120: =IF(B120>=T!C$4,IF(B120<=T!C$5,Bogføring!G120,""),"") ->  | B120: 2021-05-03 | C120: 56 | G120: 2060 | H120: 414 | J120: =IF(G120="","",IF(ISERROR(VLOOKUP(G120,Kontoplan!A:D,2,0)),"Konto findes ikke!",VLOOKUP(G120,Kontoplan!A:D,2,0))) -> Internet, mobiltelefon, Forsik.
A121: =IF(B121>=T!C$4,IF(B121<=T!C$5,Bogføring!G121,""),"") ->  | B121: 2021-05-03 | C121: 57 | G121: 12310 | I121: 345 | J121: =IF(G121="","",IF(ISERROR(VLOOKUP(G121,Kontoplan!A:D,2,0)),"Konto findes ikke!",VLOOKUP(G121,Kontoplan!A:D,2,0))) -> Bank konto
A122: =IF(B122>=T!C$4,IF(B122<=T!C$5,Bogføring!G122,""),"") ->  | B122: 2021-05-03 | C122: 57 | G122: 2065 | H122: 345 | J122: =IF(G122="","",IF(ISERROR(VLOOKUP(G122,Kontoplan!A:D,2,0)),"Konto findes ikke!",VLOOKUP(G122,Kontoplan!A:D,2,0))) -> Udstilling
A123: =IF(B123>=T!C$4,IF(B123<=T!C$5,Bogføring!G123,""),"") ->  | B123: 2021-05-03 | C123: 58 | G123: 12310 | I123: 192.5 | J123: =IF(G123="","",IF(ISERROR(VLOOKUP(G123,Kontoplan!A:D,2,0)),"Konto findes ikke!",VLOOKUP(G123,Kontoplan!A:D,2,0))) -> Bank konto
A124: =IF(B124>=T!C$4,IF(B124<=T!C$5,Bogføring!G124,""),"") ->  | B124: 2021-05-03 | C124: 58 | G124: 2010 | H124: 192.5 | J124: =IF(G124="","",IF(ISERROR(VLOOKUP(G124,Kontoplan!A:D,2,0)),"Konto findes ikke!",VLOOKUP(G124,Kontoplan!A:D,2,0))) -> Danløn
A125: =IF(B125>=T!C$4,IF(B125<=T!C$5,Bogføring!G125,""),"") ->  | B125: 2021-05-07 | C125: 59 | G125: 12310 | I125: 739.05 | J125: =IF(G125="","",IF(ISERROR(VLOOKUP(G125,Kontoplan!A:D,2,0)),"Konto findes ikke!",VLOOKUP(G125,Kontoplan!A:D,2,0))) -> Bank konto
A126: =IF(B126>=T!C$4,IF(B126<=T!C$5,Bogføring!G126,""),"") ->  | B126: 2021-05-07 | C126: 59 | G126: 2065 | H126: 739.05 | J126: =IF(G126="","",IF(ISERROR(VLOOKUP(G126,Kontoplan!A:D,2,0)),"Konto findes ikke!",VLOOKUP(G126,Kontoplan!A:D,2,0))) -> Udstilling
A127: =IF(B127>=T!C$4,IF(B127<=T!C$5,Bogføring!G127,""),"") ->  | B127: 2021-05-08 | C127: 60 | G127: 12310 | I127: 2349.26 | J127: =IF(G127="","",IF(ISERROR(VLOOKUP(G127,Kontoplan!A:D,2,0)),"Konto findes ikke!",VLOOKUP(G127,Kontoplan!A:D,2,0))) -> Bank konto
A128: =IF(B128>=T!C$4,IF(B128<=T!C$5,Bogføring!G128,""),"") ->  | B128: 2021-05-08 | C128: 60 | G128: 2037 | H128: 2349.26 | J128: =IF(G128="","",IF(ISERROR(VLOOKUP(G128,Kontoplan!A:D,2,0)),"Konto findes ikke!",VLOOKUP(G128,Kontoplan!A:D,2,0))) -> Rengørringsartikler
A129: =IF(B129>=T!C$4,IF(B129<=T!C$5,Bogføring!G129,""),"") ->  | B129: 2021-05-08 | C129: 61 | G129: 12310 | I129: 150 | J129: =IF(G129="","",IF(ISERROR(VLOOKUP(G129,Kontoplan!A:D,2,0)),"Konto findes ikke!",VLOOKUP(G129,Kontoplan!A:D,2,0))) -> Bank konto
A130: =IF(B130>=T!C$4,IF(B130<=T!C$5,Bogføring!G130,""),"") ->  | B130: 2021-05-08 | C130: 61 | G130: 2200 | H130: 150 | J130: =IF(G130="","",IF(ISERROR(VLOOKUP(G130,Kontoplan!A:D,2,0)),"Konto findes ikke!",VLOOKUP(G130,Kontoplan!A:D,2,0))) -> Kontingenter overført til KVB
A131: =IF(B131>=T!C$4,IF(B131<=T!C$5,Bogføring!G131,""),"") ->  | B131: 2021-05-11 | C131: 62 | G131: 12310 | H131: 1294.24 | J131: =IF(G131="","",IF(ISERROR(VLOOKUP(G131,Kontoplan!A:D,2,0)),"Konto findes ikke!",VLOOKUP(G131,Kontoplan!A:D,2,0))) -> Bank konto
A132: =IF(B132>=T!C$4,IF(B132<=T!C$5,Bogføring!G132,""),"") ->  | B132: 2021-05-11 | C132: 62 | G132: 1000 | I132: 1294.24 | J132: =IF(G132="","",IF(ISERROR(VLOOKUP(G132,Kontoplan!A:D,2,0)),"Konto findes ikke!",VLOOKUP(G132,Kontoplan!A:D,2,0))) -> Entre
A133: =IF(B133>=T!C$4,IF(B133<=T!C$5,Bogføring!G133,""),"") ->  | B133: 2021-05-12 | C133: 63 | G133: 12310 | I133: 1667.5 | J133: =IF(G133="","",IF(ISERROR(VLOOKUP(G133,Kontoplan!A:D,2,0)),"Konto findes ikke!",VLOOKUP(G133,Kontoplan!A:D,2,0))) -> Bank konto
A134: =IF(B134>=T!C$4,IF(B134<=T!C$5,Bogføring!G134,""),"") ->  | B134: 2021-05-12 | C134: 63 | G134: 2065 | H134: 1667.5 | J134: =IF(G134="","",IF(ISERROR(VLOOKUP(G134,Kontoplan!A:D,2,0)),"Konto findes ikke!",VLOOKUP(G134,Kontoplan!A:D,2,0))) -> Udstilling
A135: =IF(B135>=T!C$4,IF(B135<=T!C$5,Bogføring!G135,""),"") ->  | B135: 2021-05-14 | C135: 64 | G135: 12310 | I135: 100 | J135: =IF(G135="","",IF(ISERROR(VLOOKUP(G135,Kontoplan!A:D,2,0)),"Konto findes ikke!",VLOOKUP(G135,Kontoplan!A:D,2,0))) -> Bank konto
A136: =IF(B136>=T!C$4,IF(B136<=T!C$5,Bogføring!G136,""),"") ->  | B136: 2021-05-14 | C136: 64 | G136: 2065 | H136: 100 | J136: =IF(G136="","",IF(ISERROR(VLOOKUP(G136,Kontoplan!A:D,2,0)),"Konto findes ikke!",VLOOKUP(G136,Kontoplan!A:D,2,0))) -> Udstilling
A137: =IF(B137>=T!C$4,IF(B137<=T!C$5,Bogføring!G137,""),"") ->  | B137: 2021-05-14 | C137: 65 | G137: 12310 | I137: 150 | J137: =IF(G137="","",IF(ISERROR(VLOOKUP(G137,Kontoplan!A:D,2,0)),"Konto findes ikke!",VLOOKUP(G137,Kontoplan!A:D,2,0))) -> Bank konto
A138: =IF(B138>=T!C$4,IF(B138<=T!C$5,Bogføring!G138,""),"") ->  | B138: 2021-05-14 | C138: 65 | G138: 2200 | H138: 150 | J138: =IF(G138="","",IF(ISERROR(VLOOKUP(G138,Kontoplan!A:D,2,0)),"Konto findes ikke!",VLOOKUP(G138,Kontoplan!A:D,2,0))) -> Kontingenter overført til KVB
A139: =IF(B139>=T!C$4,IF(B139<=T!C$5,Bogføring!G139,""),"") ->  | B139: 2021-05-14 | C139: 66 | G139: 12310 | I139: 150 | J139: =IF(G139="","",IF(ISERROR(VLOOKUP(G139,Kontoplan!A:D,2,0)),"Konto findes ikke!",VLOOKUP(G139,Kontoplan!A:D,2,0))) -> Bank konto
A140: =IF(B140>=T!C$4,IF(B140<=T!C$5,Bogføring!G140,""),"") ->  | B140: 2021-05-14 | C140: 66 | G140: 2200 | H140: 150 | J140: =IF(G140="","",IF(ISERROR(VLOOKUP(G140,Kontoplan!A:D,2,0)),"Konto findes ikke!",VLOOKUP(G140,Kontoplan!A:D,2,0))) -> Kontingenter overført til KVB
A141: =IF(B141>=T!C$4,IF(B141<=T!C$5,Bogføring!G141,""),"") ->  | B141: 2021-05-14 | C141: 67 | G141: 12310 | I141: 150 | J141: =IF(G141="","",IF(ISERROR(VLOOKUP(G141,Kontoplan!A:D,2,0)),"Konto findes ikke!",VLOOKUP(G141,Kontoplan!A:D,2,0))) -> Bank konto
A142: =IF(B142>=T!C$4,IF(B142<=T!C$5,Bogføring!G142,""),"") ->  | B142: 2021-05-14 | C142: 67 | G142: 2200 | H142: 150 | J142: =IF(G142="","",IF(ISERROR(VLOOKUP(G142,Kontoplan!A:D,2,0)),"Konto findes ikke!",VLOOKUP(G142,Kontoplan!A:D,2,0))) -> Kontingenter overført til KVB
A143: =IF(B143>=T!C$4,IF(B143<=T!C$5,Bogføring!G143,""),"") ->  | B143: 2021-05-18 | C143: 68 | G143: 12310 | H143: 3142.44 | J143: =IF(G143="","",IF(ISERROR(VLOOKUP(G143,Kontoplan!A:D,2,0)),"Konto findes ikke!",VLOOKUP(G143,Kontoplan!A:D,2,0))) -> Bank konto
A144: =IF(B144>=T!C$4,IF(B144<=T!C$5,Bogføring!G144,""),"") ->  | B144: 2021-05-18 | C144: 68 | G144: 1000 | I144: 3142.44 | J144: =IF(G144="","",IF(ISERROR(VLOOKUP(G144,Kontoplan!A:D,2,0)),"Konto findes ikke!",VLOOKUP(G144,Kontoplan!A:D,2,0))) -> Entre
A145: =IF(B145>=T!C$4,IF(B145<=T!C$5,Bogføring!G145,""),"") ->  | B145: 2021-05-21 | C145: 69 | G145: 12310 | I145: 60 | J145: =IF(G145="","",IF(ISERROR(VLOOKUP(G145,Kontoplan!A:D,2,0)),"Konto findes ikke!",VLOOKUP(G145,Kontoplan!A:D,2,0))) -> Bank konto
A146: =IF(B146>=T!C$4,IF(B146<=T!C$5,Bogføring!G146,""),"") ->  | B146: 2021-05-21 | C146: 69 | G146: 2065 | H146: 60 | J146: =IF(G146="","",IF(ISERROR(VLOOKUP(G146,Kontoplan!A:D,2,0)),"Konto findes ikke!",VLOOKUP(G146,Kontoplan!A:D,2,0))) -> Udstilling
A147: =IF(B147>=T!C$4,IF(B147<=T!C$5,Bogføring!G147,""),"") ->  | B147: 2021-05-21 | C147: 70 | G147: 12310 | I147: 1899 | J147: =IF(G147="","",IF(ISERROR(VLOOKUP(G147,Kontoplan!A:D,2,0)),"Konto findes ikke!",VLOOKUP(G147,Kontoplan!A:D,2,0))) -> Bank konto
A148: =IF(B148>=T!C$4,IF(B148<=T!C$5,Bogføring!G148,""),"") ->  | B148: 2021-05-21 | C148: 70 | G148: 2035 | H148: 1899 | J148: =IF(G148="","",IF(ISERROR(VLOOKUP(G148,Kontoplan!A:D,2,0)),"Konto findes ikke!",VLOOKUP(G148,Kontoplan!A:D,2,0))) -> Grønne områder
A149: =IF(B149>=T!C$4,IF(B149<=T!C$5,Bogføring!G149,""),"") ->  | B149: 2021-05-21 | C149: 71 | G149: 12310 | I149: 1899 | J149: =IF(G149="","",IF(ISERROR(VLOOKUP(G149,Kontoplan!A:D,2,0)),"Konto findes ikke!",VLOOKUP(G149,Kontoplan!A:D,2,0))) -> Bank konto
A150: =IF(B150>=T!C$4,IF(B150<=T!C$5,Bogføring!G150,""),"") ->  | B150: 2021-05-21 | C150: 71 | G150: 2035 | H150: 1899 | J150: =IF(G150="","",IF(ISERROR(VLOOKUP(G150,Kontoplan!A:D,2,0)),"Konto findes ikke!",VLOOKUP(G150,Kontoplan!A:D,2,0))) -> Grønne områder
A151: =IF(B151>=T!C$4,IF(B151<=T!C$5,Bogføring!G151,""),"") ->  | B151: 2021-05-21 | C151: 72 | G151: 12310 | I151: 150 | J151: =IF(G151="","",IF(ISERROR(VLOOKUP(G151,Kontoplan!A:D,2,0)),"Konto findes ikke!",VLOOKUP(G151,Kontoplan!A:D,2,0))) -> Bank konto
A152: =IF(B152>=T!C$4,IF(B152<=T!C$5,Bogføring!G152,""),"") ->  | B152: 2021-05-21 | C152: 72 | G152: 2200 | H152: 150 | J152: =IF(G152="","",IF(ISERROR(VLOOKUP(G152,Kontoplan!A:D,2,0)),"Konto findes ikke!",VLOOKUP(G152,Kontoplan!A:D,2,0))) -> Kontingenter overført til KVB
A153: =IF(B153>=T!C$4,IF(B153<=T!C$5,Bogføring!G153,""),"") ->  | B153: 2021-05-26 | C153: 73 | G153: 12310 | H153: 1843.27 | J153: =IF(G153="","",IF(ISERROR(VLOOKUP(G153,Kontoplan!A:D,2,0)),"Konto findes ikke!",VLOOKUP(G153,Kontoplan!A:D,2,0))) -> Bank konto
A154: =IF(B154>=T!C$4,IF(B154<=T!C$5,Bogføring!G154,""),"") ->  | B154: 2021-05-26 | C154: 73 | G154: 1000 | I154: 1843.27 | J154: =IF(G154="","",IF(ISERROR(VLOOKUP(G154,Kontoplan!A:D,2,0)),"Konto findes ikke!",VLOOKUP(G154,Kontoplan!A:D,2,0))) -> Entre
A155: =IF(B155>=T!C$4,IF(B155<=T!C$5,Bogføring!G155,""),"") ->  | B155: 2021-05-26 | C155: 74 | G155: 12310 | H155: 3000 | J155: =IF(G155="","",IF(ISERROR(VLOOKUP(G155,Kontoplan!A:D,2,0)),"Konto findes ikke!",VLOOKUP(G155,Kontoplan!A:D,2,0))) -> Bank konto
A156: =IF(B156>=T!C$4,IF(B156<=T!C$5,Bogføring!G156,""),"") ->  | B156: 2021-05-26 | C156: 74 | G156: 1130 | I156: 3000 | J156: =IF(G156="","",IF(ISERROR(VLOOKUP(G156,Kontoplan!A:D,2,0)),"Konto findes ikke!",VLOOKUP(G156,Kontoplan!A:D,2,0))) -> Diverse Indtægter
A157: =IF(B157>=T!C$4,IF(B157<=T!C$5,Bogføring!G157,""),"") ->  | B157: 2021-05-26 | C157: 75 | G157: 12310 | I157: 3000 | J157: =IF(G157="","",IF(ISERROR(VLOOKUP(G157,Kontoplan!A:D,2,0)),"Konto findes ikke!",VLOOKUP(G157,Kontoplan!A:D,2,0))) -> Bank konto
A158: =IF(B158>=T!C$4,IF(B158<=T!C$5,Bogføring!G158,""),"") ->  | B158: 2021-05-26 | C158: 75 | G158: 2065 | H158: 3000 | J158: =IF(G158="","",IF(ISERROR(VLOOKUP(G158,Kontoplan!A:D,2,0)),"Konto findes ikke!",VLOOKUP(G158,Kontoplan!A:D,2,0))) -> Udstilling
A159: =IF(B159>=T!C$4,IF(B159<=T!C$5,Bogføring!G159,""),"") ->  | B159: 2021-05-27 | C159: 76 | G159: 12310 | I159: 300 | J159: =IF(G159="","",IF(ISERROR(VLOOKUP(G159,Kontoplan!A:D,2,0)),"Konto findes ikke!",VLOOKUP(G159,Kontoplan!A:D,2,0))) -> Bank konto
A160: =IF(B160>=T!C$4,IF(B160<=T!C$5,Bogføring!G160,""),"") ->  | B160: 2021-05-27 | C160: 76 | G160: 3100 | H160: 300 | J160: =IF(G160="","",IF(ISERROR(VLOOKUP(G160,Kontoplan!A:D,2,0)),"Konto findes ikke!",VLOOKUP(G160,Kontoplan!A:D,2,0))) -> Lønomkostninger
A161: =IF(B161>=T!C$4,IF(B161<=T!C$5,Bogføring!G161,""),"") ->  | B161: 2021-05-26 | C161: 77 | G161: 12310 | I161: 799 | J161: =IF(G161="","",IF(ISERROR(VLOOKUP(G161,Kontoplan!A:D,2,0)),"Konto findes ikke!",VLOOKUP(G161,Kontoplan!A:D,2,0))) -> Bank konto
A162: =IF(B162>=T!C$4,IF(B162<=T!C$5,Bogføring!G162,""),"") ->  | B162: 2021-05-26 | C162: 77 | G162: 2060 | H162: 799 | J162: =IF(G162="","",IF(ISERROR(VLOOKUP(G162,Kontoplan!A:D,2,0)),"Konto findes ikke!",VLOOKUP(G162,Kontoplan!A:D,2,0))) -> Internet, mobiltelefon, Forsik.
A163: =IF(B163>=T!C$4,IF(B163<=T!C$5,Bogføring!G163,""),"") ->  | B163: 2021-05-28 | C163: 78 | G163: 12310 | I163: 107.18 | J163: =IF(G163="","",IF(ISERROR(VLOOKUP(G163,Kontoplan!A:D,2,0)),"Konto findes ikke!",VLOOKUP(G163,Kontoplan!A:D,2,0))) -> Bank konto
A164: =IF(B164>=T!C$4,IF(B164<=T!C$5,Bogføring!G164,""),"") ->  | B164: 2021-05-28 | C164: 78 | G164: 2100 | H164: 107.18 | J164: =IF(G164="","",IF(ISERROR(VLOOKUP(G164,Kontoplan!A:D,2,0)),"Konto findes ikke!",VLOOKUP(G164,Kontoplan!A:D,2,0))) -> Forplejning til møder/Rejser
A165: =IF(B165>=T!C$4,IF(B165<=T!C$5,Bogføring!G165,""),"") ->  | B165: 2021-05-31 | C165: 79 | G165: 12310 | I165: 4436 | J165: =IF(G165="","",IF(ISERROR(VLOOKUP(G165,Kontoplan!A:D,2,0)),"Konto findes ikke!",VLOOKUP(G165,Kontoplan!A:D,2,0))) -> Bank konto
A166: =IF(B166>=T!C$4,IF(B166<=T!C$5,Bogføring!G166,""),"") ->  | B166: 2021-05-31 | C166: 79 | G166: 3100 | H166: 4436 | J166: =IF(G166="","",IF(ISERROR(VLOOKUP(G166,Kontoplan!A:D,2,0)),"Konto findes ikke!",VLOOKUP(G166,Kontoplan!A:D,2,0))) -> Lønomkostninger
A167: =IF(B167>=T!C$4,IF(B167<=T!C$5,Bogføring!G167,""),"") ->  | B167: 2021-05-31 | C167: 80 | G167: 12310 | I167: 370 | J167: =IF(G167="","",IF(ISERROR(VLOOKUP(G167,Kontoplan!A:D,2,0)),"Konto findes ikke!",VLOOKUP(G167,Kontoplan!A:D,2,0))) -> Bank konto
A168: =IF(B168>=T!C$4,IF(B168<=T!C$5,Bogføring!G168,""),"") ->  | B168: 2021-05-31 | C168: 80 | G168: 2035 | H168: 370 | J168: =IF(G168="","",IF(ISERROR(VLOOKUP(G168,Kontoplan!A:D,2,0)),"Konto findes ikke!",VLOOKUP(G168,Kontoplan!A:D,2,0))) -> Grønne områder
A169: =IF(B169>=T!C$4,IF(B169<=T!C$5,Bogføring!G169,""),"") ->  | B169: 2021-05-31 | C169: 81 | G169: 12310 | I169: 1733 | J169: =IF(G169="","",IF(ISERROR(VLOOKUP(G169,Kontoplan!A:D,2,0)),"Konto findes ikke!",VLOOKUP(G169,Kontoplan!A:D,2,0))) -> Bank konto
A170: =IF(B170>=T!C$4,IF(B170<=T!C$5,Bogføring!G170,""),"") ->  | B170: 2021-05-31 | C170: 81 | G170: 2110 | H170: 44 | J170: =IF(G170="","",IF(ISERROR(VLOOKUP(G170,Kontoplan!A:D,2,0)),"Konto findes ikke!",VLOOKUP(G170,Kontoplan!A:D,2,0))) -> Kontorhold - Porto - IT
A171: =IF(B171>=T!C$4,IF(B171<=T!C$5,Bogføring!G171,""),"") ->  | B171: 2021-05-31 | C171: 81 | G171: 2035 | H171: 1689 | J171: =IF(G171="","",IF(ISERROR(VLOOKUP(G171,Kontoplan!A:D,2,0)),"Konto findes ikke!",VLOOKUP(G171,Kontoplan!A:D,2,0))) -> Grønne områder
A172: =IF(B172>=T!C$4,IF(B172<=T!C$5,Bogføring!G172,""),"") ->  | B172: 2021-05-31 | C172: 82 | G172: 12310 | I172: 45 | J172: =IF(G172="","",IF(ISERROR(VLOOKUP(G172,Kontoplan!A:D,2,0)),"Konto findes ikke!",VLOOKUP(G172,Kontoplan!A:D,2,0))) -> Bank konto
A173: =IF(B173>=T!C$4,IF(B173<=T!C$5,Bogføring!G173,""),"") ->  | B173: 2021-05-31 | C173: 82 | G173: 2065 | H173: 45 | J173: =IF(G173="","",IF(ISERROR(VLOOKUP(G173,Kontoplan!A:D,2,0)),"Konto findes ikke!",VLOOKUP(G173,Kontoplan!A:D,2,0))) -> Udstilling
A174: =IF(B174>=T!C$4,IF(B174<=T!C$5,Bogføring!G174,""),"") ->  | B174: 2021-06-01 | C174: 83 | G174: 12310 | I174: 1 | J174: =IF(G174="","",IF(ISERROR(VLOOKUP(G174,Kontoplan!A:D,2,0)),"Konto findes ikke!",VLOOKUP(G174,Kontoplan!A:D,2,0))) -> Bank konto
A175: =IF(B175>=T!C$4,IF(B175<=T!C$5,Bogføring!G175,""),"") ->  | B175: 2021-06-01 | C175: 83 | G175: 2000 | H175: 1 | J175: =IF(G175="","",IF(ISERROR(VLOOKUP(G175,Kontoplan!A:D,2,0)),"Konto findes ikke!",VLOOKUP(G175,Kontoplan!A:D,2,0))) -> Bankgebyr
A176: =IF(B176>=T!C$4,IF(B176<=T!C$5,Bogføring!G176,""),"") ->  | B176: 2021-06-01 | C176: 84 | G176: 12310 | H176: 1745.27 | J176: =IF(G176="","",IF(ISERROR(VLOOKUP(G176,Kontoplan!A:D,2,0)),"Konto findes ikke!",VLOOKUP(G176,Kontoplan!A:D,2,0))) -> Bank konto
A177: =IF(B177>=T!C$4,IF(B177<=T!C$5,Bogføring!G177,""),"") ->  | B177: 2021-06-01 | C177: 84 | G177: 1000 | I177: 1745.27 | J177: =IF(G177="","",IF(ISERROR(VLOOKUP(G177,Kontoplan!A:D,2,0)),"Konto findes ikke!",VLOOKUP(G177,Kontoplan!A:D,2,0))) -> Entre
A178: =IF(B178>=T!C$4,IF(B178<=T!C$5,Bogføring!G178,""),"") ->  | B178: 2021-06-01 | C178: 85 | G178: 12310 | I178: 414 | J178: =IF(G178="","",IF(ISERROR(VLOOKUP(G178,Kontoplan!A:D,2,0)),"Konto findes ikke!",VLOOKUP(G178,Kontoplan!A:D,2,0))) -> Bank konto
A179: =IF(B179>=T!C$4,IF(B179<=T!C$5,Bogføring!G179,""),"") ->  | B179: 2021-06-01 | C179: 85 | G179: 2060 | H179: 414 | J179: =IF(G179="","",IF(ISERROR(VLOOKUP(G179,Kontoplan!A:D,2,0)),"Konto findes ikke!",VLOOKUP(G179,Kontoplan!A:D,2,0))) -> Internet, mobiltelefon, Forsik.
A180: =IF(B180>=T!C$4,IF(B180<=T!C$5,Bogføring!G180,""),"") ->  | B180: 2021-06-01 | C180: 86 | G180: 12310 | I180: 192.5 | J180: =IF(G180="","",IF(ISERROR(VLOOKUP(G180,Kontoplan!A:D,2,0)),"Konto findes ikke!",VLOOKUP(G180,Kontoplan!A:D,2,0))) -> Bank konto
A181: =IF(B181>=T!C$4,IF(B181<=T!C$5,Bogføring!G181,""),"") ->  | B181: 2021-06-01 | C181: 86 | G181: 2010 | H181: 192.5 | J181: =IF(G181="","",IF(ISERROR(VLOOKUP(G181,Kontoplan!A:D,2,0)),"Konto findes ikke!",VLOOKUP(G181,Kontoplan!A:D,2,0))) -> Danløn
A182: =IF(B182>=T!C$4,IF(B182<=T!C$5,Bogføring!G182,""),"") ->  | B182: 2021-06-02 | C182: 87 | G182: 12310 | H182: 550 | J182: =IF(G182="","",IF(ISERROR(VLOOKUP(G182,Kontoplan!A:D,2,0)),"Konto findes ikke!",VLOOKUP(G182,Kontoplan!A:D,2,0))) -> Bank konto
A183: =IF(B183>=T!C$4,IF(B183<=T!C$5,Bogføring!G183,""),"") ->  | B183: 2021-06-02 | C183: 87 | G183: 1125 | I183: 550 | J183: =IF(G183="","",IF(ISERROR(VLOOKUP(G183,Kontoplan!A:D,2,0)),"Konto findes ikke!",VLOOKUP(G183,Kontoplan!A:D,2,0))) -> Salg af inventar
A184: =IF(B184>=T!C$4,IF(B184<=T!C$5,Bogføring!G184,""),"") ->  | B184: 2021-06-02 | C184: 88 | G184: 12310 | I184: 7000 | J184: =IF(G184="","",IF(ISERROR(VLOOKUP(G184,Kontoplan!A:D,2,0)),"Konto findes ikke!",VLOOKUP(G184,Kontoplan!A:D,2,0))) -> Bank konto
A185: =IF(B185>=T!C$4,IF(B185<=T!C$5,Bogføring!G185,""),"") ->  | B185: 2021-06-02 | C185: 88 | G185: 3110 | H185: 7000 | J185: =IF(G185="","",IF(ISERROR(VLOOKUP(G185,Kontoplan!A:D,2,0)),"Konto findes ikke!",VLOOKUP(G185,Kontoplan!A:D,2,0))) -> Lønninger incl ATP -AM
A186: =IF(B186>=T!C$4,IF(B186<=T!C$5,Bogføring!G186,""),"") ->  | B186: 2021-06-04 | C186: 89 | G186: 12310 | I186: 1347.78 | J186: =IF(G186="","",IF(ISERROR(VLOOKUP(G186,Kontoplan!A:D,2,0)),"Konto findes ikke!",VLOOKUP(G186,Kontoplan!A:D,2,0))) -> Bank konto
A187: =IF(B187>=T!C$4,IF(B187<=T!C$5,Bogføring!G187,""),"") ->  | B187: 2021-06-04 | C187: 89 | G187: 2110 | H187: 1347.78 | J187: =IF(G187="","",IF(ISERROR(VLOOKUP(G187,Kontoplan!A:D,2,0)),"Konto findes ikke!",VLOOKUP(G187,Kontoplan!A:D,2,0))) -> Kontorhold - Porto - IT
A188: =IF(B188>=T!C$4,IF(B188<=T!C$5,Bogføring!G188,""),"") ->  | B188: 2021-06-04 | C188: 90 | G188: 12310 | I188: 374 | J188: =IF(G188="","",IF(ISERROR(VLOOKUP(G188,Kontoplan!A:D,2,0)),"Konto findes ikke!",VLOOKUP(G188,Kontoplan!A:D,2,0))) -> Bank konto
A189: =IF(B189>=T!C$4,IF(B189<=T!C$5,Bogføring!G189,""),"") ->  | B189: 2021-06-04 | C189: 90 | G189: 2065 | H189: 374 | J189: =IF(G189="","",IF(ISERROR(VLOOKUP(G189,Kontoplan!A:D,2,0)),"Konto findes ikke!",VLOOKUP(G189,Kontoplan!A:D,2,0))) -> Udstilling
A190: =IF(B190>=T!C$4,IF(B190<=T!C$5,Bogføring!G190,""),"") ->  | B190: 2021-06-08 | C190: 91 | G190: 12310 | H190: 2323.73 | J190: =IF(G190="","",IF(ISERROR(VLOOKUP(G190,Kontoplan!A:D,2,0)),"Konto findes ikke!",VLOOKUP(G190,Kontoplan!A:D,2,0))) -> Bank konto
A191: =IF(B191>=T!C$4,IF(B191<=T!C$5,Bogføring!G191,""),"") ->  | B191: 2021-06-08 | C191: 91 | G191: 1000 | I191: 2323.73 | J191: =IF(G191="","",IF(ISERROR(VLOOKUP(G191,Kontoplan!A:D,2,0)),"Konto findes ikke!",VLOOKUP(G191,Kontoplan!A:D,2,0))) -> Entre
A192: =IF(B192>=T!C$4,IF(B192<=T!C$5,Bogføring!G192,""),"") ->  | B192: 2021-06-08 | C192: 92 | G192: 12310 | H192: 1200 | J192: =IF(G192="","",IF(ISERROR(VLOOKUP(G192,Kontoplan!A:D,2,0)),"Konto findes ikke!",VLOOKUP(G192,Kontoplan!A:D,2,0))) -> Bank konto
A193: =IF(B193>=T!C$4,IF(B193<=T!C$5,Bogføring!G193,""),"") ->  | B193: 2021-06-08 | C193: 92 | G193: 1000 | I193: 1200 | J193: =IF(G193="","",IF(ISERROR(VLOOKUP(G193,Kontoplan!A:D,2,0)),"Konto findes ikke!",VLOOKUP(G193,Kontoplan!A:D,2,0))) -> Entre
A194: =IF(B194>=T!C$4,IF(B194<=T!C$5,Bogføring!G194,""),"") ->  | B194: 2021-06-09 | C194: 93 | G194: 12310 | H194: 1300 | J194: =IF(G194="","",IF(ISERROR(VLOOKUP(G194,Kontoplan!A:D,2,0)),"Konto findes ikke!",VLOOKUP(G194,Kontoplan!A:D,2,0))) -> Bank konto
A195: =IF(B195>=T!C$4,IF(B195<=T!C$5,Bogføring!G195,""),"") ->  | B195: 2021-06-09 | C195: 93 | G195: 1130 | I195: 1300 | J195: =IF(G195="","",IF(ISERROR(VLOOKUP(G195,Kontoplan!A:D,2,0)),"Konto findes ikke!",VLOOKUP(G195,Kontoplan!A:D,2,0))) -> Diverse Indtægter
A196: =IF(B196>=T!C$4,IF(B196<=T!C$5,Bogføring!G196,""),"") ->  | B196: 2021-06-09 | C196: 94 | G196: 12310 | H196: 294 | J196: =IF(G196="","",IF(ISERROR(VLOOKUP(G196,Kontoplan!A:D,2,0)),"Konto findes ikke!",VLOOKUP(G196,Kontoplan!A:D,2,0))) -> Bank konto
A197: =IF(B197>=T!C$4,IF(B197<=T!C$5,Bogføring!G197,""),"") ->  | B197: 2021-06-09 | C197: 94 | G197: 1130 | I197: 294 | J197: =IF(G197="","",IF(ISERROR(VLOOKUP(G197,Kontoplan!A:D,2,0)),"Konto findes ikke!",VLOOKUP(G197,Kontoplan!A:D,2,0))) -> Diverse Indtægter
A198: =IF(B198>=T!C$4,IF(B198<=T!C$5,Bogføring!G198,""),"") ->  | B198: 2021-06-09 | C198: 95 | G198: 12310 | I198: 208.78 | J198: =IF(G198="","",IF(ISERROR(VLOOKUP(G198,Kontoplan!A:D,2,0)),"Konto findes ikke!",VLOOKUP(G198,Kontoplan!A:D,2,0))) -> Bank konto
A199: =IF(B199>=T!C$4,IF(B199<=T!C$5,Bogføring!G199,""),"") ->  | B199: 2021-06-09 | C199: 95 | G199: 2110 | H199: 208.78 | J199: =IF(G199="","",IF(ISERROR(VLOOKUP(G199,Kontoplan!A:D,2,0)),"Konto findes ikke!",VLOOKUP(G199,Kontoplan!A:D,2,0))) -> Kontorhold - Porto - IT
A200: =IF(B200>=T!C$4,IF(B200<=T!C$5,Bogføring!G200,""),"") ->  | B200: 2021-06-10 | C200: 96 | G200: 12310 | I200: 601.1 | J200: =IF(G200="","",IF(ISERROR(VLOOKUP(G200,Kontoplan!A:D,2,0)),"Konto findes ikke!",VLOOKUP(G200,Kontoplan!A:D,2,0))) -> Bank konto
A201: =IF(B201>=T!C$4,IF(B201<=T!C$5,Bogføring!G201,""),"") ->  | B201: 2021-06-10 | C201: 96 | G201: 2040 | H201: 601.1 | J201: =IF(G201="","",IF(ISERROR(VLOOKUP(G201,Kontoplan!A:D,2,0)),"Konto findes ikke!",VLOOKUP(G201,Kontoplan!A:D,2,0))) -> El, Vand og Varme
A202: =IF(B202>=T!C$4,IF(B202<=T!C$5,Bogføring!G202,""),"") ->  | B202: 2021-06-15 | C202: 97 | G202: 12310 | H202: 1359.19 | J202: =IF(G202="","",IF(ISERROR(VLOOKUP(G202,Kontoplan!A:D,2,0)),"Konto findes ikke!",VLOOKUP(G202,Kontoplan!A:D,2,0))) -> Bank konto
... 760 more rows

Sheet Kontoplan (hidden)
A1: Konto | B1: Kontobeskrivelse | C1: Saldo | D1: Kommentarer | E1: Fra | F1: Til
A2: 1000 | B2: Entre | C2: =SUMIFS(Bogføring!$I:$I,Bogføring!$B:$B,">="&T!$C$4,Bogføring!$B:$B,"<="&T!$C$5,Bogføring!$G:$G,A2)-SUMIFS(Bogføring!$H:$H,Bogføring!$B:$B,">="&T!$C$4,Bogføring!$B:$B,"<="&T!$C$5,Bogføring!$G:$G,A2) -> 8740 | H2: 1000 | J2: Entre
A3: 1010 | B3: Kiosk salg | C3: =SUMIFS(Bogføring!$I:$I,Bogføring!$B:$B,">="&T!$C$4,Bogføring!$B:$B,"<="&T!$C$5,Bogføring!$G:$G,A3)-SUMIFS(Bogføring!$H:$H,Bogføring!$B:$B,">="&T!$C$4,Bogføring!$B:$B,"<="&T!$C$5,Bogføring!$G:$G,A3) -> 75 | H3: 1010 | J3: Voksne
A4: 1020 | B4: Tilskud fra BRK/ drifttilskud | C4: =SUMIFS(Bogføring!$I:$I,Bogføring!$B:$B,">="&T!$C$4,Bogføring!$B:$B,"<="&T!$C$5,Bogføring!$G:$G,A4)-SUMIFS(Bogføring!$H:$H,Bogføring!$B:$B,">="&T!$C$4,Bogføring!$B:$B,"<="&T!$C$5,Bogføring!$G:$G,A4) -> 74021 | H4: 1020 | J4: Pensionister
A5: 1025 | B5: Tilskud fra BRK | C5: =SUMIFS(Bogføring!$I:$I,Bogføring!$B:$B,">="&T!$C$4,Bogføring!$B:$B,"<="&T!$C$5,Bogføring!$G:$G,A5)-SUMIFS(Bogføring!$H:$H,Bogføring!$B:$B,">="&T!$C$4,Bogføring!$B:$B,"<="&T!$C$5,Bogføring!$G:$G,A5) -> 15000 | H5: 1030 | J5: Børn 6-16
A6: 1030 | B6: Tilskud fra KVB | C6: =SUMIFS(Bogføring!$I:$I,Bogføring!$B:$B,">="&T!$C$4,Bogføring!$B:$B,"<="&T!$C$5,Bogføring!$G:$G,A6)-SUMIFS(Bogføring!$H:$H,Bogføring!$B:$B,">="&T!$C$4,Bogføring!$B:$B,"<="&T!$C$5,Bogføring!$G:$G,A6) -> 20000 | H6: 1040 | J6: Soldater/veteraner
A7: 1040 | B7: Fonde/Gaver | C7: =SUMIFS(Bogføring!$I:$I,Bogføring!$B:$B,">="&T!$C$4,Bogføring!$B:$B,"<="&T!$C$5,Bogføring!$G:$G,A7)-SUMIFS(Bogføring!$H:$H,Bogføring!$B:$B,">="&T!$C$4,Bogføring!$B:$B,"<="&T!$C$5,Bogføring!$G:$G,A7) -> 0 | H7: 1050 | J7: Skoler
A8: 1050 | B8: Aktiviteter | C8: =SUMIFS(Bogføring!$I:$I,Bogføring!$B:$B,">="&T!$C$4,Bogføring!$B:$B,"<="&T!$C$5,Bogføring!$G:$G,A8)-SUMIFS(Bogføring!$H:$H,Bogføring!$B:$B,">="&T!$C$4,Bogføring!$B:$B,"<="&T!$C$5,Bogføring!$G:$G,A8) -> 0 | H8: 1060 | J8: Grupper
A9: 1060 | B9: Bog salg | C9: =SUMIFS(Bogføring!$I:$I,Bogføring!$B:$B,">="&T!$C$4,Bogføring!$B:$B,"<="&T!$C$5,Bogføring!$G:$G,A9)-SUMIFS(Bogføring!$H:$H,Bogføring!$B:$B,">="&T!$C$4,Bogføring!$B:$B,"<="&T!$C$5,Bogføring!$G:$G,A9) -> 0 | H9: 1070 | J9: Guide
A10: 1070 | B10: Pengegaver | C10: =SUMIFS(Bogføring!$I:$I,Bogføring!$B:$B,">="&T!$C$4,Bogføring!$B:$B,"<="&T!$C$5,Bogføring!$G:$G,A10)-SUMIFS(Bogføring!$H:$H,Bogføring!$B:$B,">="&T!$C$4,Bogføring!$B:$B,"<="&T!$C$5,Bogføring!$G:$G,A10) -> 0 | H10: 1080 | J10: Tilskud fra BRK/ drifttilskud
A11: 1080 | B11: Flaskepant retur | C11: =SUMIFS(Bogføring!$I:$I,Bogføring!$B:$B,">="&T!$C$4,Bogføring!$B:$B,"<="&T!$C$5,Bogføring!$G:$G,A11)-SUMIFS(Bogføring!$H:$H,Bogføring!$B:$B,">="&T!$C$4,Bogføring!$B:$B,"<="&T!$C$5,Bogføring!$G:$G,A11) -> 0 | H11: 1090 | J11: Tilskud fra BRK
A12: 1090 | B12: Kassedifferance | C12: =SUMIFS(Bogføring!$I:$I,Bogføring!$B:$B,">="&T!$C$4,Bogføring!$B:$B,"<="&T!$C$5,Bogføring!$G:$G,A12)-SUMIFS(Bogføring!$H:$H,Bogføring!$B:$B,">="&T!$C$4,Bogføring!$B:$B,"<="&T!$C$5,Bogføring!$G:$G,A12) -> 0 | H12: 1100 | J12: Tilskud fra KVB
A13: 1100 | C13: =SUMIFS(Bogføring!$I:$I,Bogføring!$B:$B,">="&T!$C$4,Bogføring!$B:$B,"<="&T!$C$5,Bogføring!$G:$G,A13)-SUMIFS(Bogføring!$H:$H,Bogføring!$B:$B,">="&T!$C$4,Bogføring!$B:$B,"<="&T!$C$5,Bogføring!$G:$G,A13) -> 0 | H13: 1110 | J13: Fonde/Gaver
A14: 1110 | B14: A-skat Retur | C14: =SUMIFS(Bogføring!$I:$I,Bogføring!$B:$B,">="&T!$C$4,Bogføring!$B:$B,"<="&T!$C$5,Bogføring!$G:$G,A14)-SUMIFS(Bogføring!$H:$H,Bogføring!$B:$B,">="&T!$C$4,Bogføring!$B:$B,"<="&T!$C$5,Bogføring!$G:$G,A14) -> 2.9 | H14: 1120 | J14: Pengegaver
A15: 1115 | B15: Løn Retur fra visma | C15: =SUMIFS(Bogføring!$I:$I,Bogføring!$B:$B,">="&T!$C$4,Bogføring!$B:$B,"<="&T!$C$5,Bogføring!$G:$G,A15)-SUMIFS(Bogføring!$H:$H,Bogføring!$B:$B,">="&T!$C$4,Bogføring!$B:$B,"<="&T!$C$5,Bogføring!$G:$G,A15) -> 0 | H15: 1130 | J15: Flaskepant retur
A16: 1120 | B16: Lønsum retur | C16: =SUMIFS(Bogføring!$I:$I,Bogføring!$B:$B,">="&T!$C$4,Bogføring!$B:$B,"<="&T!$C$5,Bogføring!$G:$G,A16)-SUMIFS(Bogføring!$H:$H,Bogføring!$B:$B,">="&T!$C$4,Bogføring!$B:$B,"<="&T!$C$5,Bogføring!$G:$G,A16) -> 11493.46 | H16: 1140 | J16: Kassedifferance
A17: 1125 | B17: Salg af inventar | C17: =SUMIFS(Bogføring!$I:$I,Bogføring!$B:$B,">="&T!$C$4,Bogføring!$B:$B,"<="&T!$C$5,Bogføring!$G:$G,A17)-SUMIFS(Bogføring!$H:$H,Bogføring!$B:$B,">="&T!$C$4,Bogføring!$B:$B,"<="&T!$C$5,Bogføring!$G:$G,A17) -> 0 | H17: 1150 | J17: A-skat Retur
A18: 1130 | B18: Diverse Indtægter | C18: =SUMIFS(Bogføring!$I:$I,Bogføring!$B:$B,">="&T!$C$4,Bogføring!$B:$B,"<="&T!$C$5,Bogføring!$G:$G,A18)-SUMIFS(Bogføring!$H:$H,Bogføring!$B:$B,">="&T!$C$4,Bogføring!$B:$B,"<="&T!$C$5,Bogføring!$G:$G,A18) -> 532.1 | H18: 1160 | J18: Løn Retur fra visma
A19: 1200 | H19: 1170 | J19: Lønsum retur
A20: 1210 | B20: Bælter | C20: =SUMIFS(Bogføring!$I:$I,Bogføring!$B:$B,">="&T!$C$4,Bogføring!$B:$B,"<="&T!$C$5,Bogføring!$G:$G,A20)-SUMIFS(Bogføring!$H:$H,Bogføring!$B:$B,">="&T!$C$4,Bogføring!$B:$B,"<="&T!$C$5,Bogføring!$G:$G,A20) -> 0 | H20: 1180 | J20: Salg af inventar
A21: 1220 | B21: Bog salg | C21: =SUMIFS(Bogføring!$I:$I,Bogføring!$B:$B,">="&T!$C$4,Bogføring!$B:$B,"<="&T!$C$5,Bogføring!$G:$G,A21)-SUMIFS(Bogføring!$H:$H,Bogføring!$B:$B,">="&T!$C$4,Bogføring!$B:$B,"<="&T!$C$5,Bogføring!$G:$G,A21) -> 0 | H21: 1190 | J21: Diverse Indtægter
A22: 1230 | B22: Færdige Tinsoldater | C22: =SUMIFS(Bogføring!$I:$I,Bogføring!$B:$B,">="&T!$C$4,Bogføring!$B:$B,"<="&T!$C$5,Bogføring!$G:$G,A22)-SUMIFS(Bogføring!$H:$H,Bogføring!$B:$B,">="&T!$C$4,Bogføring!$B:$B,"<="&T!$C$5,Bogføring!$G:$G,A22) -> 0 | H22: 1200 | J22: Kiosksalg
A23: 1240 | B23: Landkort | C23: =SUMIFS(Bogføring!$I:$I,Bogføring!$B:$B,">="&T!$C$4,Bogføring!$B:$B,"<="&T!$C$5,Bogføring!$G:$G,A23)-SUMIFS(Bogføring!$H:$H,Bogføring!$B:$B,">="&T!$C$4,Bogføring!$B:$B,"<="&T!$C$5,Bogføring!$G:$G,A23) -> 0 | H23: 1210 | J23: Bælter
A24: 1250 | B24: Oplukker | C24: =SUMIFS(Bogføring!$I:$I,Bogføring!$B:$B,">="&T!$C$4,Bogføring!$B:$B,"<="&T!$C$5,Bogføring!$G:$G,A24)-SUMIFS(Bogføring!$H:$H,Bogføring!$B:$B,">="&T!$C$4,Bogføring!$B:$B,"<="&T!$C$5,Bogføring!$G:$G,A24) -> 0 | H24: 1220 | J24: Bogsalg
A25: 1260 | B25: Køleskabsmagneter | C25: =SUMIFS(Bogføring!$I:$I,Bogføring!$B:$B,">="&T!$C$4,Bogføring!$B:$B,"<="&T!$C$5,Bogføring!$G:$G,A25)-SUMIFS(Bogføring!$H:$H,Bogføring!$B:$B,">="&T!$C$4,Bogføring!$B:$B,"<="&T!$C$5,Bogføring!$G:$G,A25) -> 0 | H25: 1230 | J25: Færdige tinsoldater
A26: 1270 | B26: Postkort 3 stk. | C26: =SUMIFS(Bogføring!$I:$I,Bogføring!$B:$B,">="&T!$C$4,Bogføring!$B:$B,"<="&T!$C$5,Bogføring!$G:$G,A26)-SUMIFS(Bogføring!$H:$H,Bogføring!$B:$B,">="&T!$C$4,Bogføring!$B:$B,"<="&T!$C$5,Bogføring!$G:$G,A26) -> 0 | H26: 1240 | J26: Landkort og Plakater
A27: 1280 | B27: Postkort | C27: =SUMIFS(Bogføring!$I:$I,Bogføring!$B:$B,">="&T!$C$4,Bogføring!$B:$B,"<="&T!$C$5,Bogføring!$G:$G,A27)-SUMIFS(Bogføring!$H:$H,Bogføring!$B:$B,">="&T!$C$4,Bogføring!$B:$B,"<="&T!$C$5,Bogføring!$G:$G,A27) -> 0 | H27: 1250 | J27: Oplukker
A28: 1290 | B28: Sodavand | C28: =SUMIFS(Bogføring!$I:$I,Bogføring!$B:$B,">="&T!$C$4,Bogføring!$B:$B,"<="&T!$C$5,Bogføring!$G:$G,A28)-SUMIFS(Bogføring!$H:$H,Bogføring!$B:$B,">="&T!$C$4,Bogføring!$B:$B,"<="&T!$C$5,Bogføring!$G:$G,A28) -> 0 | H28: 1260 | J28: Køleskabsmagneter
H29: 1270 | J29: Postkort 3 stk.
H30: 1280 | J30: Postkort 3 stk.
H31: 1290 | J31: Sodavand
A32: 1300 | B32: Kage | C32: =SUMIFS(Bogføring!$I:$I,Bogføring!$B:$B,">="&T!$C$4,Bogføring!$B:$B,"<="&T!$C$5,Bogføring!$G:$G,A32)-SUMIFS(Bogføring!$H:$H,Bogføring!$B:$B,">="&T!$C$4,Bogføring!$B:$B,"<="&T!$C$5,Bogføring!$G:$G,A32) -> 0 | G32: =SUM(C2:C18) -> 129864.46 | H32: 1300 | J32: Kage
A33: 2000 | B33: Bankgebyr | C33: =SUMIFS(Bogføring!$H:$H,Bogføring!$B:$B,">="&T!$C$4,Bogføring!$B:$B,"<="&T!$C$5,Bogføring!$G:$G,A33)-SUMIFS(Bogføring!$I:$I,Bogføring!$B:$B,">="&T!$C$4,Bogføring!$B:$B,"<="&T!$C$5,Bogføring!$G:$G,A33) -> 109.5 | H33: 2000
A34: 2005 | B34: Gebyr Izettle | C34: =SUMIFS(Bogføring!$H:$H,Bogføring!$B:$B,">="&T!$C$4,Bogføring!$B:$B,"<="&T!$C$5,Bogføring!$G:$G,A34)-SUMIFS(Bogføring!$I:$I,Bogføring!$B:$B,">="&T!$C$4,Bogføring!$B:$B,"<="&T!$C$5,Bogføring!$G:$G,A34) -> 23.99 | H34: 2010
A35: 2010 | B35: Danløn | C35: =SUMIFS(Bogføring!$H:$H,Bogføring!$B:$B,">="&T!$C$4,Bogføring!$B:$B,"<="&T!$C$5,Bogføring!$G:$G,A35)-SUMIFS(Bogføring!$I:$I,Bogføring!$B:$B,">="&T!$C$4,Bogføring!$B:$B,"<="&T!$C$5,Bogføring!$G:$G,A35) -> 27.5 | H35: 2020
A36: 2015 | B36: Advokat | C36: =SUMIFS(Bogføring!$H:$H,Bogføring!$B:$B,">="&T!$C$4,Bogføring!$B:$B,"<="&T!$C$5,Bogføring!$G:$G,A36)-SUMIFS(Bogføring!$I:$I,Bogføring!$B:$B,">="&T!$C$4,Bogføring!$B:$B,"<="&T!$C$5,Bogføring!$G:$G,A36) -> 0 | H36: 2030
A37: 2020 | B37: Revision | C37: =SUMIFS(Bogføring!$H:$H,Bogføring!$B:$B,">="&T!$C$4,Bogføring!$B:$B,"<="&T!$C$5,Bogføring!$G:$G,A37)-SUMIFS(Bogføring!$I:$I,Bogføring!$B:$B,">="&T!$C$4,Bogføring!$B:$B,"<="&T!$C$5,Bogføring!$G:$G,A37) -> 0 | H37: 2035 | J37: Advokat
A38: 2025 | B38: Regnskabsservice | C38: =SUMIFS(Bogføring!$H:$H,Bogføring!$B:$B,">="&T!$C$4,Bogføring!$B:$B,"<="&T!$C$5,Bogføring!$G:$G,A38)-SUMIFS(Bogføring!$I:$I,Bogføring!$B:$B,">="&T!$C$4,Bogføring!$B:$B,"<="&T!$C$5,Bogføring!$G:$G,A38) -> 490.63 | H38: 2040
A39: 2030 | B39: Bygnings vedligehold | C39: =SUMIFS(Bogføring!$H:$H,Bogføring!$B:$B,">="&T!$C$4,Bogføring!$B:$B,"<="&T!$C$5,Bogføring!$G:$G,A39)-SUMIFS(Bogføring!$I:$I,Bogføring!$B:$B,">="&T!$C$4,Bogføring!$B:$B,"<="&T!$C$5,Bogføring!$G:$G,A39) -> 329.7 | H39: 2050
A40: 2035 | B40: Grønne områder | C40: =SUMIFS(Bogføring!$H:$H,Bogføring!$B:$B,">="&T!$C$4,Bogføring!$B:$B,"<="&T!$C$5,Bogføring!$G:$G,A40)-SUMIFS(Bogføring!$I:$I,Bogføring!$B:$B,">="&T!$C$4,Bogføring!$B:$B,"<="&T!$C$5,Bogføring!$G:$G,A40) -> 713.64 | H40: 2060
A41: 2037 | B41: Rengørringsartikler | C41: =SUMIFS(Bogføring!$H:$H,Bogføring!$B:$B,">="&T!$C$4,Bogføring!$B:$B,"<="&T!$C$5,Bogføring!$G:$G,A41)-SUMIFS(Bogføring!$I:$I,Bogføring!$B:$B,">="&T!$C$4,Bogføring!$B:$B,"<="&T!$C$5,Bogføring!$G:$G,A41) -> 0 | H41: 2070
A42: 2040 | B42: El, Vand og Varme | C42: =SUMIFS(Bogføring!$H:$H,Bogføring!$B:$B,">="&T!$C$4,Bogføring!$B:$B,"<="&T!$C$5,Bogføring!$G:$G,A42)-SUMIFS(Bogføring!$I:$I,Bogføring!$B:$B,">="&T!$C$4,Bogføring!$B:$B,"<="&T!$C$5,Bogføring!$G:$G,A42) -> 27955.02 | J42: Microsoft
A43: 2050 | B43: Deltagelse i GF i Andre Foren. | C43: =SUMIFS(Bogføring!$H:$H,Bogføring!$B:$B,">="&T!$C$4,Bogføring!$B:$B,"<="&T!$C$5,Bogføring!$G:$G,A43)-SUMIFS(Bogføring!$I:$I,Bogføring!$B:$B,">="&T!$C$4,Bogføring!$B:$B,"<="&T!$C$5,Bogføring!$G:$G,A43) -> 0 | H43: 2080
A44: 2055 | B44: Indkøb af øl + vand | C44: =SUMIFS(Bogføring!$H:$H,Bogføring!$B:$B,">="&T!$C$4,Bogføring!$B:$B,"<="&T!$C$5,Bogføring!$G:$G,A44)-SUMIFS(Bogføring!$I:$I,Bogføring!$B:$B,">="&T!$C$4,Bogføring!$B:$B,"<="&T!$C$5,Bogføring!$G:$G,A44) -> 0 | H44: 2090
A45: 2060 | B45: Internet, mobiltelefon, Forsik. | C45: =SUMIFS(Bogføring!$H:$H,Bogføring!$B:$B,">="&T!$C$4,Bogføring!$B:$B,"<="&T!$C$5,Bogføring!$G:$G,A45)-SUMIFS(Bogføring!$I:$I,Bogføring!$B:$B,">="&T!$C$4,Bogføring!$B:$B,"<="&T!$C$5,Bogføring!$G:$G,A45) -> 2230.96 | H45: 2100 | J45: havemaskiner
A46: 2065 | B46: Udstilling | C46: =SUMIFS(Bogføring!$H:$H,Bogføring!$B:$B,">="&T!$C$4,Bogføring!$B:$B,"<="&T!$C$5,Bogføring!$G:$G,A46)-SUMIFS(Bogføring!$I:$I,Bogføring!$B:$B,">="&T!$C$4,Bogføring!$B:$B,"<="&T!$C$5,Bogføring!$G:$G,A46) -> 11386.63 | H46: 2110
A47: 2070 | B47: Tin og sortkrudt | C47: =SUMIFS(Bogføring!$H:$H,Bogføring!$B:$B,">="&T!$C$4,Bogføring!$B:$B,"<="&T!$C$5,Bogføring!$G:$G,A47)-SUMIFS(Bogføring!$I:$I,Bogføring!$B:$B,">="&T!$C$4,Bogføring!$B:$B,"<="&T!$C$5,Bogføring!$G:$G,A47) -> 0
A48: 2075 | B48: Gaver | C48: =SUMIFS(Bogføring!$H:$H,Bogføring!$B:$B,">="&T!$C$4,Bogføring!$B:$B,"<="&T!$C$5,Bogføring!$G:$G,A48)-SUMIFS(Bogføring!$I:$I,Bogføring!$B:$B,">="&T!$C$4,Bogføring!$B:$B,"<="&T!$C$5,Bogføring!$G:$G,A48) -> 170 | H48: 2120
A49: 2080 | B49: Indkøb af bøger | C49: =SUMIFS(Bogføring!$H:$H,Bogføring!$B:$B,">="&T!$C$4,Bogføring!$B:$B,"<="&T!$C$5,Bogføring!$G:$G,A49)-SUMIFS(Bogføring!$I:$I,Bogføring!$B:$B,">="&T!$C$4,Bogføring!$B:$B,"<="&T!$C$5,Bogføring!$G:$G,A49) -> 1200 | H49: 2130
A50: 2090 | B50: Kontingent til andre Foreninger | C50: =SUMIFS(Bogføring!$H:$H,Bogføring!$B:$B,">="&T!$C$4,Bogføring!$B:$B,"<="&T!$C$5,Bogføring!$G:$G,A50)-SUMIFS(Bogføring!$I:$I,Bogføring!$B:$B,">="&T!$C$4,Bogføring!$B:$B,"<="&T!$C$5,Bogføring!$G:$G,A50) -> 100 | H50: 2140
A51: 2100 | B51: Forplejning til møder/Rejser | C51: =SUMIFS(Bogføring!$H:$H,Bogføring!$B:$B,">="&T!$C$4,Bogføring!$B:$B,"<="&T!$C$5,Bogføring!$G:$G,A51)-SUMIFS(Bogføring!$I:$I,Bogføring!$B:$B,">="&T!$C$4,Bogføring!$B:$B,"<="&T!$C$5,Bogføring!$G:$G,A51) -> 1405.25 | H51: 2150
A52: 2110 | B52: Kontorhold - Porto - IT | C52: =SUMIFS(Bogføring!$H:$H,Bogføring!$B:$B,">="&T!$C$4,Bogføring!$B:$B,"<="&T!$C$5,Bogføring!$G:$G,A52)-SUMIFS(Bogføring!$I:$I,Bogføring!$B:$B,">="&T!$C$4,Bogføring!$B:$B,"<="&T!$C$5,Bogføring!$G:$G,A52) -> 1483.4 | H52: 2160
A53: 2120 | B53: Hjemmeside | C53: =SUMIFS(Bogføring!$H:$H,Bogføring!$B:$B,">="&T!$C$4,Bogføring!$B:$B,"<="&T!$C$5,Bogføring!$G:$G,A53)-SUMIFS(Bogføring!$I:$I,Bogføring!$B:$B,">="&T!$C$4,Bogføring!$B:$B,"<="&T!$C$5,Bogføring!$G:$G,A53) -> 0 | H53: 2170
A54: 2130 | B54: Annoncer | C54: =SUMIFS(Bogføring!$H:$H,Bogføring!$B:$B,">="&T!$C$4,Bogføring!$B:$B,"<="&T!$C$5,Bogføring!$G:$G,A54)-SUMIFS(Bogføring!$I:$I,Bogføring!$B:$B,">="&T!$C$4,Bogføring!$B:$B,"<="&T!$C$5,Bogføring!$G:$G,A54) -> 2318.75 | H54: 2180
A55: 2135 | B55: Tryksager | C55: =SUMIFS(Bogføring!$H:$H,Bogføring!$B:$B,">="&T!$C$4,Bogføring!$B:$B,"<="&T!$C$5,Bogføring!$G:$G,A55)-SUMIFS(Bogføring!$I:$I,Bogføring!$B:$B,">="&T!$C$4,Bogføring!$B:$B,"<="&T!$C$5,Bogføring!$G:$G,A55) -> 0 | H55: 2190
A56: 2140 | B56: Kassedifferance | C56: =SUMIFS(Bogføring!$H:$H,Bogføring!$B:$B,">="&T!$C$4,Bogføring!$B:$B,"<="&T!$C$5,Bogføring!$G:$G,A56)-SUMIFS(Bogføring!$I:$I,Bogføring!$B:$B,">="&T!$C$4,Bogføring!$B:$B,"<="&T!$C$5,Bogføring!$G:$G,A56) -> 0 | H56: 2200
A57: 2150 | B57: Øreafrundning | C57: =SUMIFS(Bogføring!$H:$H,Bogføring!$B:$B,">="&T!$C$4,Bogføring!$B:$B,"<="&T!$C$5,Bogføring!$G:$G,A57)-SUMIFS(Bogføring!$I:$I,Bogføring!$B:$B,">="&T!$C$4,Bogføring!$B:$B,"<="&T!$C$5,Bogføring!$G:$G,A57) -> 0 | H57: 2210
A58: 2160 | B58: Rejser | C58: =SUMIFS(Bogføring!$H:$H,Bogføring!$B:$B,">="&T!$C$4,Bogføring!$B:$B,"<="&T!$C$5,Bogføring!$G:$G,A58)-SUMIFS(Bogføring!$I:$I,Bogføring!$B:$B,">="&T!$C$4,Bogføring!$B:$B,"<="&T!$C$5,Bogføring!$G:$G,A58) -> 0 | H58: 2220
A59: 2165 | B59: G4S tyverialarm | C59: =SUMIFS(Bogføring!$H:$H,Bogføring!$B:$B,">="&T!$C$4,Bogføring!$B:$B,"<="&T!$C$5,Bogføring!$G:$G,A59)-SUMIFS(Bogføring!$I:$I,Bogføring!$B:$B,">="&T!$C$4,Bogføring!$B:$B,"<="&T!$C$5,Bogføring!$G:$G,A59) -> 3785.94 | H59: 2230
A60: 2166 | B60: Forsikringer | C60: =SUMIFS(Bogføring!$H:$H,Bogføring!$B:$B,">="&T!$C$4,Bogføring!$B:$B,"<="&T!$C$5,Bogføring!$G:$G,A60)-SUMIFS(Bogføring!$I:$I,Bogføring!$B:$B,">="&T!$C$4,Bogføring!$B:$B,"<="&T!$C$5,Bogføring!$G:$G,A60) -> 7598.9 | H60: 2240
A61: 2170 | B61: Afholdelse af GF | C61: =SUMIFS(Bogføring!$H:$H,Bogføring!$B:$B,">="&T!$C$4,Bogføring!$B:$B,"<="&T!$C$5,Bogføring!$G:$G,A61)-SUMIFS(Bogføring!$I:$I,Bogføring!$B:$B,">="&T!$C$4,Bogføring!$B:$B,"<="&T!$C$5,Bogføring!$G:$G,A61) -> 306.1 | H61: 2250
A62: 2180 | B62: Bestyrelses møder | C62: =SUMIFS(Bogføring!$H:$H,Bogføring!$B:$B,">="&T!$C$4,Bogføring!$B:$B,"<="&T!$C$5,Bogføring!$G:$G,A62)-SUMIFS(Bogføring!$I:$I,Bogføring!$B:$B,">="&T!$C$4,Bogføring!$B:$B,"<="&T!$C$5,Bogføring!$G:$G,A62) -> 0 | H62: 2260
A63: 2190 | B63: Diverse Udgifter | C63: =SUMIFS(Bogføring!$H:$H,Bogføring!$B:$B,">="&T!$C$4,Bogføring!$B:$B,"<="&T!$C$5,Bogføring!$G:$G,A63)-SUMIFS(Bogføring!$I:$I,Bogføring!$B:$B,">="&T!$C$4,Bogføring!$B:$B,"<="&T!$C$5,Bogføring!$G:$G,A63) -> 0 | H63: 2270
A64: 2195 | B64: Arkitekt | C64: =SUMIFS(Bogføring!$H:$H,Bogføring!$B:$B,">="&T!$C$4,Bogføring!$B:$B,"<="&T!$C$5,Bogføring!$G:$G,A64)-SUMIFS(Bogføring!$I:$I,Bogføring!$B:$B,">="&T!$C$4,Bogføring!$B:$B,"<="&T!$C$5,Bogføring!$G:$G,A64) -> 2500 | H64: 2280
A65: 2200 | B65: Kontingenter overført til KVB | C65: =SUMIFS(Bogføring!$H:$H,Bogføring!$B:$B,">="&T!$C$4,Bogføring!$B:$B,"<="&T!$C$5,Bogføring!$G:$G,A65)-SUMIFS(Bogføring!$I:$I,Bogføring!$B:$B,">="&T!$C$4,Bogføring!$B:$B,"<="&T!$C$5,Bogføring!$G:$G,A65) -> 0 | H65: 2290
A66: 3100 | B66: Lønomkostninger | C66: =SUMIFS(Bogføring!$H:$H,Bogføring!$B:$B,">="&T!$C$4,Bogføring!$B:$B,"<="&T!$C$5,Bogføring!$G:$G,A66)-SUMIFS(Bogføring!$I:$I,Bogføring!$B:$B,">="&T!$C$4,Bogføring!$B:$B,"<="&T!$C$5,Bogføring!$G:$G,A66) -> 0 | H66: 2295 | J66: xxxxxxx
A67: 3110 | B67: Lønninger incl ATP -AM | C67: =SUMIFS(Bogføring!$H:$H,Bogføring!$B:$B,">="&T!$C$4,Bogføring!$B:$B,"<="&T!$C$5,Bogføring!$G:$G,A67)-SUMIFS(Bogføring!$I:$I,Bogføring!$B:$B,">="&T!$C$4,Bogføring!$B:$B,"<="&T!$C$5,Bogføring!$G:$G,A67) -> 40800 | H67: 2300
A68: 3120 | B68: ATP | C68: =SUMIFS(Bogføring!$H:$H,Bogføring!$B:$B,">="&T!$C$4,Bogføring!$B:$B,"<="&T!$C$5,Bogføring!$G:$G,A68)-SUMIFS(Bogføring!$I:$I,Bogføring!$B:$B,">="&T!$C$4,Bogføring!$B:$B,"<="&T!$C$5,Bogføring!$G:$G,A68) -> 820.3 | H68: 2310
A69: 3125 | B69: Samlet betaling | C69: =SUMIFS(Bogføring!$H:$H,Bogføring!$B:$B,">="&T!$C$4,Bogføring!$B:$B,"<="&T!$C$5,Bogføring!$G:$G,A69)-SUMIFS(Bogføring!$I:$I,Bogføring!$B:$B,">="&T!$C$4,Bogføring!$B:$B,"<="&T!$C$5,Bogføring!$G:$G,A69) -> 492.92 | H69: 2320
A70: 3130 | B70: A-skat & Am-bidrag | C70: =SUMIFS(Bogføring!$H:$H,Bogføring!$B:$B,">="&T!$C$4,Bogføring!$B:$B,"<="&T!$C$5,Bogføring!$G:$G,A70)-SUMIFS(Bogføring!$I:$I,Bogføring!$B:$B,">="&T!$C$4,Bogføring!$B:$B,"<="&T!$C$5,Bogføring!$G:$G,A70) -> 3664 | H70: 2330
A71: 3135 | B71: Gl. Skat og Gebyr | C71: =SUMIFS(Bogføring!$H:$H,Bogføring!$B:$B,">="&T!$C$4,Bogføring!$B:$B,"<="&T!$C$5,Bogføring!$G:$G,A71)-SUMIFS(Bogføring!$I:$I,Bogføring!$B:$B,">="&T!$C$4,Bogføring!$B:$B,"<="&T!$C$5,Bogføring!$G:$G,A71) -> 0 | H71: 2340
A72: 3140 | B72: Lønsum | C72: =SUMIFS(Bogføring!$H:$H,Bogføring!$B:$B,">="&T!$C$4,Bogføring!$B:$B,"<="&T!$C$5,Bogføring!$G:$G,A72)-SUMIFS(Bogføring!$I:$I,Bogføring!$B:$B,">="&T!$C$4,Bogføring!$B:$B,"<="&T!$C$5,Bogføring!$G:$G,A72) -> 0 | H72: 3000
A73: 3150 | B73: Indefrosne feriepenge | C73: =SUMIFS(Bogføring!$H:$H,Bogføring!$B:$B,">="&T!$C$4,Bogføring!$B:$B,"<="&T!$C$5,Bogføring!$G:$G,A73)-SUMIFS(Bogføring!$I:$I,Bogføring!$B:$B,">="&T!$C$4,Bogføring!$B:$B,"<="&T!$C$5,Bogføring!$G:$G,A73) -> 922.26 | H73: 3010
C74: =SUMIFS(Bogføring!$H:$H,Bogføring!$B:$B,">="&T!$C$4,Bogføring!$B:$B,"<="&T!$C$5,Bogføring!$G:$G,A74)-SUMIFS(Bogføring!$I:$I,Bogføring!$B:$B,">="&T!$C$4,Bogføring!$B:$B,"<="&T!$C$5,Bogføring!$G:$G,A74) -> 0 | G74: =SUM(C33:C72) -> 109913.13 | H74: 3020
G75: =G32-G74 -> 19951.33
A76: 12310 | B76: Bank konto | C76: =SUMIFS(Bogføring!$H:$H,Bogføring!$B:$B,">="&T!$C$4,Bogføring!$B:$B,"<="&T!$C$5,Bogføring!$G:$G,A76)-SUMIFS(Bogføring!$I:$I,Bogføring!$B:$B,">="&T!$C$4,Bogføring!$B:$B,"<="&T!$C$5,Bogføring!$G:$G,A76) -> 21291.5 | H76: 3030
A77: 12320 | B77: Kasse | C77: =SUMIFS(Bogføring!$H:$H,Bogføring!$B:$B,">="&T!$C$4,Bogføring!$B:$B,"<="&T!$C$5,Bogføring!$G:$G,A77)-SUMIFS(Bogføring!$I:$I,Bogføring!$B:$B,">="&T!$C$4,Bogføring!$B:$B,"<="&T!$C$5,Bogføring!$G:$G,A77) -> 4736 | H77: 3040
A78: 12330 | B78: Egenkapital | C78: =SUMIFS(Bogføring!$I:$I,Bogføring!$B:$B,">="&T!$C$4,Bogføring!$B:$B,"<="&T!$C$5,Bogføring!$G:$G,A78)-SUMIFS(Bogføring!$H:$H,Bogføring!$B:$B,">="&T!$C$4,Bogføring!$B:$B,"<="&T!$C$5,Bogføring!$G:$G,A78)+G75 -> 21961.17
C79: =SUMIFS(Bogføring!$H:$H,Bogføring!$B:$B,">="&T!$C$4,Bogføring!$B:$B,"<="&T!$C$5,Bogføring!$G:$G,A79)-SUMIFS(Bogføring!$I:$I,Bogføring!$B:$B,">="&T!$C$4,Bogføring!$B:$B,"<="&T!$C$5,Bogføring!$G:$G,A79) -> 0
A80: 12360 | B80: Skyldig A-skat | C80: =SUMIFS(Bogføring!$I:$I,Bogføring!$B:$B,">="&T!$C$4,Bogføring!$B:$B,"<="&T!$C$5,Bogføring!$G:$G,A80)-SUMIFS(Bogføring!$H:$H,Bogføring!$B:$B,">="&T!$C$4,Bogføring!$B:$B,"<="&T!$C$5,Bogføring!$G:$G,A80)+F73 -> 4219
A81: 12361 | B81: Skyldig AM | C81: =SUMIFS(Bogføring!$I:$I,Bogføring!$B:$B,">="&T!$C$4,Bogføring!$B:$B,"<="&T!$C$5,Bogføring!$G:$G,A81)-SUMIFS(Bogføring!$H:$H,Bogføring!$B:$B,">="&T!$C$4,Bogføring!$B:$B,"<="&T!$C$5,Bogføring!$G:$G,A81)+F74 -> 797
A82: 12362 | B82: Skyldig ATP | C82: =SUMIFS(Bogføring!$I:$I,Bogføring!$B:$B,">="&T!$C$4,Bogføring!$B:$B,"<="&T!$C$5,Bogføring!$G:$G,A82)-SUMIFS(Bogføring!$H:$H,Bogføring!$B:$B,">="&T!$C$4,Bogføring!$B:$B,"<="&T!$C$5,Bogføring!$G:$G,A82)+F75 -> 378.6
A83: 12364 | B83: Skyldig feriepenge | C83: =SUMIFS(Bogføring!$I:$I,Bogføring!$B:$B,">="&T!$C$4,Bogføring!$B:$B,"<="&T!$C$5,Bogføring!$G:$G,A83)-SUMIFS(Bogføring!$H:$H,Bogføring!$B:$B,">="&T!$C$4,Bogføring!$B:$B,"<="&T!$C$5,Bogføring!$G:$G,A83) -> 800
A84: 12365 | B84: Forudbetalt omk. | C84: =SUMIFS(Bogføring!$I:$I,Bogføring!$B:$B,">="&T!$C$4,Bogføring!$B:$B,"<="&T!$C$5,Bogføring!$G:$G,A84)-SUMIFS(Bogføring!$H:$H,Bogføring!$B:$B,">="&T!$C$4,Bogføring!$B:$B,"<="&T!$C$5,Bogføring!$G:$G,A84)+F77 -> 0
A85: 12370 | B85: Forudbetalt kontingent | C85: =SUMIFS(Bogføring!$I:$I,Bogføring!$B:$B,">="&T!$C$4,Bogføring!$B:$B,"<="&T!$C$5,Bogføring!$G:$G,A85)-SUMIFS(Bogføring!$H:$H,Bogføring!$B:$B,">="&T!$C$4,Bogføring!$B:$B,"<="&T!$C$5,Bogføring!$G:$G,A85)+F78 -> 0
A86: 12380 | B86: Banklån | C86: =SUMIFS(Bogføring!$I:$I,Bogføring!$B:$B,">="&T!$C$4,Bogføring!$B:$B,"<="&T!$C$5,Bogføring!$G:$G,A86)-SUMIFS(Bogføring!$H:$H,Bogføring!$B:$B,">="&T!$C$4,Bogføring!$B:$B,"<="&T!$C$5,Bogføring!$G:$G,A86)+F79 -> 0
A87: 12390 | B87: Andre Lån | C87: =SUMIFS(Bogføring!$I:$I,Bogføring!$B:$B,">="&T!$C$4,Bogføring!$B:$B,"<="&T!$C$5,Bogføring!$G:$G,A87)-SUMIFS(Bogføring!$H:$H,Bogføring!$B:$B,">="&T!$C$4,Bogføring!$B:$B,"<="&T!$C$5,Bogføring!$G:$G,A87)+F80 -> 0
A88: 12400 | B88: Kreditorer samler konto | C88: =SUMIFS(Bogføring!$H:$H,Bogføring!$B:$B,">="&T!$C$4,Bogføring!$B:$B,"<="&T!$C$5,Bogføring!$G:$G,A88)-SUMIFS(Bogføring!$I:$I,Bogføring!$B:$B,">="&T!$C$4,Bogføring!$B:$B,"<="&T!$C$5,Bogføring!$G:$G,A88) -> 0 | E88: 12370 | F88: 12390
A90: 12410 | B90: Tilgodehavende Kontingenter | C90: =SUMIFS(Bogføring!$I:$I,Bogføring!$B:$B,">="&T!$C$4,Bogføring!$B:$B,"<="&T!$C$5,Bogføring!$G:$G,A90)-SUMIFS(Bogføring!$H:$H,Bogføring!$B:$B,">="&T!$C$4,Bogføring!$B:$B,"<="&T!$C$5,Bogføring!$G:$G,A90)+F86 -> 0
A91: 12420 | C91: =SUMIFS(Bogføring!$I:$I,Bogføring!$B:$B,">="&T!$C$4,Bogføring!$B:$B,"<="&T!$C$5,Bogføring!$G:$G,A91)-SUMIFS(Bogføring!$H:$H,Bogføring!$B:$B,">="&T!$C$4,Bogføring!$B:$B,"<="&T!$C$5,Bogføring!$G:$G,A91)+F87 -> 0
A92: 12430 | B92: Tilgode PayPal | C92: =SUMIFS(Bogføring!$I:$I,Bogføring!$B:$B,">="&T!$C$4,Bogføring!$B:$B,"<="&T!$C$5,Bogføring!$G:$G,A92)-SUMIFS(Bogføring!$H:$H,Bogføring!$B:$B,">="&T!$C$4,Bogføring!$B:$B,"<="&T!$C$5,Bogføring!$G:$G,A92) -> -1206.01
A93: 12500 | B93: Debitorer samler konto | C93: =SUM(C90:C91) -> 0 | E93: 12410 | F93: 12420

Sheet Regnskab GF (hidden)
A2: REGNSKAB FOR 3. ORDINÆRE GENERALFORSAMLING 13.01.18.
D4: Indtægt | E4: Udgift | F4: Resultat
A5: 41 Kuv. Gule ærter/Stroganof | D5: 6450 | E5: 3772
A6: 41 øl | E6: 430
A7: Kaffe, småkager | E7: 64
A8: 12 Morgenmad inkl. bestyrelse | D8: 470 | E8: 410
A9: Værelser (10 enheder) | D9: 1125 | E9: 784.16
A10: Duge, servietter m.m. | E10: 611
A11: Salg af 79 øl | D11: 1580
A12: Salg af 27 snaps | D12: 540
A13: Salg af 8 vand | D13: 80
A14: 11 mærker | D14: 550
E15: 0
E16: 0
E17: 0
A18: Gave til | E18: 0
A19: I alt | D19: =SUM(D5:D18) -> 10795 | E19: =SUM(E5:E18) -> 6071.16 | F19: =D19-E19 -> 4723.84
A21: Salget på denne generalforsamling har vist sig at passe perfekt - det stemmer på øren - og det er dejligt. Ved optælling af beholdning af øl og snaps, er der 30 øl og lidt snaps, til næste arrangement.
D24: Indtægt | E24: Udgift | F24: TOTAL
A25: Kontant fra festen indsat i bank | F25: 2750
A27: Salg af 11 klister/stofmærker | D27: 550
A28: Salg af 79 øl og 27 snaps = 106 | D28: 2120
A29: Salg af 8 vand | D29: 80
A30: I alt | D30: =SUM(D27:D29) -> 2750 | F30: 2750
A31: Overskud | F31: =F25-F30 -> 0
A36: Der er overskud af snaps til næste Generalforsamling, samt 30 øl til brug ved et senere arrangement. Som det fremgår er der ingen udgift til øl, da disse er købt i okt 2017 og indgår i 2017 regnskabet, ligesom snaps, da der var overskud fra sidste generalforsamlingdet indhentet u/b.
A46: Jens P. Christoffersson - formand

Sheet Medlemsliste (hidden)
A1: ="Medlemsliste for "&T!B9 -> Medlemsliste for xxxxxxxxxxxxx | J1: Antal medlemmer : | L1: =COUNT(A5:A189) -> 155 | N1: =COUNT($A:$A) -> 155 | P1: =COUNT($A:$A) -> 155 | R1: =COUNT($A:$A) -> 155 | T1: =COUNT($A:$A) -> 155
J2: Betalende medlemmer : | L2: =COUNTIF(L6:L190,">0")+1 -> 1 | N2: =COUNTIF(M:M,">0") -> 0 | P2: =COUNTIF(O:O,">0") -> 0 | R2: =COUNTIF(Q:Q,">0") -> 0 | T2: =COUNTIF(S:S,">0") -> 0
J3: Rest : | L3: =L1-L2-3 -> 151 | N3: =N1-N2 -> 155 | P3: =P1-P2 -> 155 | R3: =R1-R2 -> 155 | T3: =T1-T2 -> 155
J4: Medl.nr. : | L4: =DATE(L5,4,1) -> 2020-04-01 | N4: =DATE(N5,4,1) -> 2021-04-01 | P4: 2022-04-01 | R4: 2023-04-01 | T4: 2024-04-01 | V4: 2025-04-01 | X4: 2026-04-01 | Z4: 2027-04-01 | AB4: 2028-04-01 | AD4: 2029-04-01
A5: Medl.nr. : | B5: NAVN | C5: ADRESSE | D5: POSTNR | E5: By | F5: TELEFON | G5: E-MAIL | H5: Indmeldt | I5: Bemærkning: | K5: Bet. Dato | L5: 2020 | M5: Bet. Dato | N5: 2021 | P5: 2022 | R5: 2023 | T5: 2024 | V5: 2025 | X5: 2026 | Z5: 2027 | AB5: 2028 | AD5: 2029
A6: 1 | B6: Jens P. Christoffersson | C6: Højvangsparken 8 st. 1. | D6: 3700 | E6: Rønne | F6: 40373460 | G6: jp.stoffer.555@gmail.com | I6: Formand, Medlem af FU | J6: =IF(A6="","",A6) -> 1 | K6: =IF(L6=0,"",INDEX(Bogføring!$B:$B,MATCH(Tabel2[[#This Row],[Medl.nr. :]],Bogføring!$E:$E,0),0)) ->  | L6: =SUMIFS(Bogføring!I:I,Bogføring!F:F,"="&$L$5,Bogføring!E:E,"="&A6) -> 0 | M6: =IF(N6=0,"",SUMIFS(Bogføring!$B:$B,Bogføring!$F:$F,"="&$N$5,Bogføring!$E:$E,"="&A6)) ->  | N6: =SUMIFS(Bogføring!I:I,Bogføring!F:F,"="&$N$5,Bogføring!E:E,"="&A6) -> 0 | O6: =IF(P6=0,"",SUMIFS(Bogføring!$B:$B,Bogføring!$F:$F,"="&$P$5,Bogføring!$E:$E,"="&A6)) ->  | P6: =SUMIFS(Bogføring!$I:$I,Bogføring!$F:$F,"="&$P$5,Bogføring!$E:$E,"="&A6) -> 0 | Q6: =IF(R6=0,"",SUMIFS(Bogføring!$B:$B,Bogføring!$F:$F,"="&$R$5,Bogføring!$E:$E,"="&A6)) ->  | R6: =SUMIFS(Bogføring!$I:$I,Bogføring!$F:$F,"="&$R$5,Bogføring!$E:$E,"="&A6) -> 0 | S6: =IF(T6=0,"",SUMIFS(Bogføring!$B:$B,Bogføring!$F:$F,"="&$T$5,Bogføring!$E:$E,"="&A6)) ->  | T6: =SUMIFS(Bogføring!$I:$I,Bogføring!$F:$F,"="&$T$5,Bogføring!$E:$E,"="&A6) -> 0 | V6: =SUMIFS(Bogføring!$I:$I,Bogføring!$F:$F,"="&$V$5,Bogføring!$E:$E,"="&A6) -> 0 | X6: =SUMIFS(Bogføring!$I:$I,Bogføring!$F:$F,"="&$X$5,Bogføring!$E:$E,"="&A6) -> 0 | Z6: =SUMIFS(Bogføring!$I:$I,Bogføring!$F:$F,"="&$Z$5,Bogføring!$E:$E,"="&A6) -> 0 | AB6: =SUMIFS(Bogføring!$I:$I,Bogføring!$F:$F,"="&$AB$5,Bogføring!$E:$E,"="&A6) -> 0 | AD6: =SUMIFS(Bogføring!$I:$I,Bogføring!$F:$F,"="&$AD$5,Bogføring!$E:$E,"="&A6) -> 0
A7: 2 | B7: Jens Chr. Skaarup | C7: Hedningestræde 1 | D7: 3700 | E7: Rønne | F7: 21240945 | G7: bjskaarup@gmail.com | I7: Næstformand, Medlem af FU | J7: 2 | K7: =IF(L7=0,"",INDEX(Bogføring!$B:$B,MATCH(Tabel2[[#This Row],[Medl.nr. :]],Bogføring!$E:$E,0),0)) ->  | L7: =SUMIFS(Bogføring!I:I,Bogføring!F:F,"="&$L$5,Bogføring!E:E,"="&A7) -> 0 | M7: =IF(N7=0,"",SUMIFS(Bogføring!B:B,Bogføring!F:F,"="&$N$5,Bogføring!E:E,"="&A7)) ->  | N7: =SUMIFS(Bogføring!I:I,Bogføring!F:F,"="&$N$5,Bogføring!E:E,"="&A7) -> 0 | O7: =IF(N7=0,"",SUMIFS(Bogføring!$B:$B,Bogføring!$F:$F,"="&$P$5,Bogføring!$E:$E,"="&A7)) ->  | P7: =SUMIFS(Bogføring!$I:$I,Bogføring!$F:$F,"="&$P$5,Bogføring!$E:$E,"="&A7) -> 0
A8: 3 | B8: Jens Ole Ipsen Fassel | C8: Smedegård, Kirkedalsvej 17, Rutsker | D8: 3700 | E8: Rønne | F8: 56969798 | G8: f@ssel.dk | I8: Bestyrelsesmedlem | J8: 3 | K8: =IF(L8=0,"",INDEX(Bogføring!$B:$B,MATCH(Tabel2[[#This Row],[Medl.nr. :]],Bogføring!$E:$E,0),0)) ->  | L8: =SUMIFS(Bogføring!I:I,Bogføring!F:F,"="&$L$5,Bogføring!E:E,"="&A8) -> 0 | M8: =IF(N8=0,"",SUMIFS(Bogføring!B:B,Bogføring!F:F,"="&$N$5,Bogføring!E:E,"="&A8)) ->  | N8: =SUMIFS(Bogføring!I:I,Bogføring!F:F,"="&$N$5,Bogføring!E:E,"="&A8) -> 0 | O8: =IF(N8=0,"",SUMIFS(Bogføring!$B:$B,Bogføring!$F:$F,"="&$P$5,Bogføring!$E:$E,"="&A8)) ->  | P8: =SUMIFS(Bogføring!$I:$I,Bogføring!$F:$F,"="&$P$5,Bogføring!$E:$E,"="&A8) -> 0
A9: 4 | B9: Finn Kjerulff Hansen | C9: Sigurdsgade 13 | D9: 3700 | E9: Rønne | F9: 30254320 | G9: fkh.segen@gmail.com | I9: Sekretær, Medlem af FU | J9: 4 | K9: =IF(L9=0,"",INDEX(Bogføring!$B:$B,MATCH(Tabel2[[#This Row],[Medl.nr. :]],Bogføring!$E:$E,0),0)) ->  | L9: =SUMIFS(Bogføring!I:I,Bogføring!F:F,"="&$L$5,Bogføring!E:E,"="&A9) -> 0 | M9: =IF(N9=0,"",SUMIFS(Bogføring!B:B,Bogføring!F:F,"="&$N$5,Bogføring!E:E,"="&A9)) ->  | N9: =SUMIFS(Bogføring!I:I,Bogføring!F:F,"="&$N$5,Bogføring!E:E,"="&A9) -> 0 | O9: =IF(N9=0,"",SUMIFS(Bogføring!$B:$B,Bogføring!$F:$F,"="&$P$5,Bogføring!$E:$E,"="&A9)) ->  | P9: =SUMIFS(Bogføring!$I:$I,Bogføring!$F:$F,"="&$P$5,Bogføring!$E:$E,"="&A9) -> 0
A10: 5 | B10: Stefan Erik Asp | C10: Thorkildsvej 43, 2. th. | D10: 3700 | E10: Rønne | F10: 23820033 | G10: stefan_easp@hotmail.com | I10: Web&Marketing, Medlem af FU | J10: 5 | K10: =IF(L10=0,"",INDEX(Bogføring!$B:$B,MATCH(Tabel2[[#This Row],[Medl.nr. :]],Bogføring!$E:$E,0),0)) ->  | L10: =SUMIFS(Bogføring!I:I,Bogføring!F:F,"="&$L$5,Bogføring!E:E,"="&A10) -> 0 | M10: =IF(N10=0,"",SUMIFS(Bogføring!B:B,Bogføring!F:F,"="&$N$5,Bogføring!E:E,"="&A10)) ->  | N10: =SUMIFS(Bogføring!I:I,Bogføring!F:F,"="&$N$5,Bogføring!E:E,"="&A10) -> 0 | O10: =IF(N10=0,"",SUMIFS(Bogføring!$B:$B,Bogføring!$F:$F,"="&$P$5,Bogføring!$E:$E,"="&A10)) ->  | P10: =SUMIFS(Bogføring!$I:$I,Bogføring!$F:$F,"="&$P$5,Bogføring!$E:$E,"="&A10) -> 0
A11: 6 | B11: Henrik Frost Rasmussen | C11: Bøgeløkken 5 | D11: 3700 | E11: Rønne | F11: 21260931 | G11: frost_rasmussen@mail.tele.dk | I11: Bestyrelsesmedlem | J11: 6 | K11: =IF(L11=0,"",INDEX(Bogføring!$B:$B,MATCH(Tabel2[[#This Row],[Medl.nr. :]],Bogføring!$E:$E,0),0)) ->  | L11: =SUMIFS(Bogføring!I:I,Bogføring!F:F,"="&$L$5,Bogføring!E:E,"="&A11) -> 0 | M11: =IF(N11=0,"",SUMIFS(Bogføring!B:B,Bogføring!F:F,"="&$N$5,Bogføring!E:E,"="&A11)) ->  | N11: =SUMIFS(Bogføring!I:I,Bogføring!F:F,"="&$N$5,Bogføring!E:E,"="&A11) -> 0 | O11: =IF(N11=0,"",SUMIFS(Bogføring!$B:$B,Bogføring!$F:$F,"="&$P$5,Bogføring!$E:$E,"="&A11)) ->  | P11: =SUMIFS(Bogføring!$I:$I,Bogføring!$F:$F,"="&$P$5,Bogføring!$E:$E,"="&A11) -> 0
A12: 7 | B12: Henrik Vensild | C12: Storegade 29 | D12: 3700 | E12: Rønne | F12: 21254190 | G12: h.vensild@mail.dk | I12: Bestyrelsesmedlem | J12: 7 | K12: =IF(L12=0,"",INDEX(Bogføring!$B:$B,MATCH(Tabel2[[#This Row],[Medl.nr. :]],Bogføring!$E:$E,0),0)) ->  | L12: =SUMIFS(Bogføring!I:I,Bogføring!F:F,"="&$L$5,Bogføring!E:E,"="&A12) -> 0 | M12: =IF(N12=0,"",SUMIFS(Bogføring!B:B,Bogføring!F:F,"="&$N$5,Bogføring!E:E,"="&A12)) ->  | N12: =SUMIFS(Bogføring!I:I,Bogføring!F:F,"="&$N$5,Bogføring!E:E,"="&A12) -> 0 | O12: =IF(N12=0,"",SUMIFS(Bogføring!$B:$B,Bogføring!$F:$F,"="&$P$5,Bogføring!$E:$E,"="&A12)) ->  | P12: =SUMIFS(Bogføring!$I:$I,Bogføring!$F:$F,"="&$P$5,Bogføring!$E:$E,"="&A12) -> 0
A13: 8 | B13: Jacob Bjerring-Hansen | C13: Bh. Museum, Sct. Mortensgade 29 | D13: 3700 | E13: Rønne | F13: 25601164 | G13: jbh@bornholmsmuseum.dk | I13: Udpeget bestyrelssmedlem | J13: 8 | K13: =IF(L13=0,"",INDEX(Bogføring!$B:$B,MATCH(Tabel2[[#This Row],[Medl.nr. :]],Bogføring!$E:$E,0),0)) ->  | L13: =SUMIFS(Bogføring!I:I,Bogføring!F:F,"="&$L$5,Bogføring!E:E,"="&A13) -> 0 | M13: =IF(N13=0,"",SUMIFS(Bogføring!B:B,Bogføring!F:F,"="&$N$5,Bogføring!E:E,"="&A13)) ->  | N13: =SUMIFS(Bogføring!I:I,Bogføring!F:F,"="&$N$5,Bogføring!E:E,"="&A13) -> 0 | O13: =IF(N13=0,"",SUMIFS(Bogføring!$B:$B,Bogføring!$F:$F,"="&$P$5,Bogføring!$E:$E,"="&A13)) ->  | P13: =SUMIFS(Bogføring!$I:$I,Bogføring!$F:$F,"="&$P$5,Bogføring!$E:$E,"="&A13) -> 0
A14: 9 | B14: Torben Hedeman Petersen | C14: GSE, Almegårds Kaserne | D14: 3700 | E14: Rønne | F14: 24654997 | G14: ghr-3b-gse01@mil.dk | I14: Udpeget bestyrelsesmedlem | J14: 9 | K14: =IF(L14=0,"",INDEX(Bogføring!$B:$B,MATCH(Tabel2[[#This Row],[Medl.nr. :]],Bogføring!$E:$E,0),0)) ->  | L14: =SUMIFS(Bogføring!I:I,Bogføring!F:F,"="&$L$5,Bogføring!E:E,"="&A14) -> 0 | M14: =IF(N14=0,"",SUMIFS(Bogføring!B:B,Bogføring!F:F,"="&$N$5,Bogføring!E:E,"="&A14)) ->  | N14: =SUMIFS(Bogføring!I:I,Bogføring!F:F,"="&$N$5,Bogføring!E:E,"="&A14) -> 0 | O14: =IF(N14=0,"",SUMIFS(Bogføring!$B:$B,Bogføring!$F:$F,"="&$P$5,Bogføring!$E:$E,"="&A14)) ->  | P14: =SUMIFS(Bogføring!$I:$I,Bogføring!$F:$F,"="&$P$5,Bogføring!$E:$E,"="&A14) -> 0
A15: 10 | B15: Poul E. T. Figa | C15: Møllebakken 21 A | D15: 3740 | E15: Svaneke | F15: 51515550 | G15: petfiga@gmail.com | I15: Udpeget bestyrelsesmedlem | J15: 10 | K15: =IF(L15=0,"",INDEX(Bogføring!$B:$B,MATCH(Tabel2[[#This Row],[Medl.nr. :]],Bogføring!$E:$E,0),0)) ->  | L15: =SUMIFS(Bogføring!I:I,Bogføring!F:F,"="&$L$5,Bogføring!E:E,"="&A15) -> 0 | M15: =IF(N15=0,"",SUMIFS(Bogføring!B:B,Bogføring!F:F,"="&$N$5,Bogføring!E:E,"="&A15)) ->  | N15: =SUMIFS(Bogføring!I:I,Bogføring!F:F,"="&$N$5,Bogføring!E:E,"="&A15) -> 0 | O15: =IF(N15=0,"",SUMIFS(Bogføring!$B:$B,Bogføring!$F:$F,"="&$P$5,Bogføring!$E:$E,"="&A15)) ->  | P15: =SUMIFS(Bogføring!$I:$I,Bogføring!$F:$F,"="&$P$5,Bogføring!$E:$E,"="&A15) -> 0
A16: 11 | B16: Bjarne Hansen | C16: Lyrsbyvej 31 | D16: 3751 | E16: Østermarie | F16: 40212694 | G16: bjarne-hansen@outlook.dk | I16: Kasserer, Medlem af FU | J16: 11 | K16: =IF(L16=0,"",INDEX(Bogføring!$B:$B,MATCH(Tabel2[[#This Row],[Medl.nr. :]],Bogføring!$E:$E,0),0)) ->  | L16: =SUMIFS(Bogføring!I:I,Bogføring!F:F,"="&$L$5,Bogføring!E:E,"="&A16) -> 0 | M16: =IF(N16=0,"",SUMIFS(Bogføring!B:B,Bogføring!F:F,"="&$N$5,Bogføring!E:E,"="&A16)) ->  | N16: =SUMIFS(Bogføring!I:I,Bogføring!F:F,"="&$N$5,Bogføring!E:E,"="&A16) -> 0 | O16: =IF(N16=0,"",SUMIFS(Bogføring!$B:$B,Bogføring!$F:$F,"="&$P$5,Bogføring!$E:$E,"="&A16)) ->  | P16: =SUMIFS(Bogføring!$I:$I,Bogføring!$F:$F,"="&$P$5,Bogføring!$E:$E,"="&A16) -> 0
A17: 12 | B17: Jakob Pii | C17: Østerled 20 | D17: 3700 | E17: Rønne | G17: pii@mil.dk | I17: Bilagskontrollant | J17: 12 | K17: =IF(L17=0,"",INDEX(Bogføring!$B:$B,MATCH(Tabel2[[#This Row],[Medl.nr. :]],Bogføring!$E:$E,0),0)) ->  | L17: =SUMIFS(Bogføring!I:I,Bogføring!F:F,"="&$L$5,Bogføring!E:E,"="&A17) -> 0 | M17: =IF(N17=0,"",SUMIFS(Bogføring!B:B,Bogføring!F:F,"="&$N$5,Bogføring!E:E,"="&A17)) ->  | N17: =SUMIFS(Bogføring!I:I,Bogføring!F:F,"="&$N$5,Bogføring!E:E,"="&A17) -> 0 | O17: =IF(N17=0,"",SUMIFS(Bogføring!$B:$B,Bogføring!$F:$F,"="&$P$5,Bogføring!$E:$E,"="&A17)) ->  | P17: =SUMIFS(Bogføring!$I:$I,Bogføring!$F:$F,"="&$P$5,Bogføring!$E:$E,"="&A17) -> 0
A18: 13 | B18: Kai Platz | C18: Sandgade 8 | D18: 3700 | E18: Rønne | G18: kaiplatz@mail.dk | I18: ÆRESMEDLEM - Bilagskontrollant | J18: 13 | K18: =IF(L18=0,"",INDEX(Bogføring!$B:$B,MATCH(Tabel2[[#This Row],[Medl.nr. :]],Bogføring!$E:$E,0),0)) ->  | L18: =SUMIFS(Bogføring!I:I,Bogføring!F:F,"="&$L$5,Bogføring!E:E,"="&A18) -> 0 | M18: =IF(N18=0,"",SUMIFS(Bogføring!B:B,Bogføring!F:F,"="&$N$5,Bogføring!E:E,"="&A18)) ->  | N18: =SUMIFS(Bogføring!I:I,Bogføring!F:F,"="&$N$5,Bogføring!E:E,"="&A18) -> 0 | O18: =IF(N18=0,"",SUMIFS(Bogføring!$B:$B,Bogføring!$F:$F,"="&$P$5,Bogføring!$E:$E,"="&A18)) ->  | P18: =SUMIFS(Bogføring!$I:$I,Bogføring!$F:$F,"="&$P$5,Bogføring!$E:$E,"="&A18) -> 0
A19: 14 | B19: Maud og Tom West | C19: Sølunden 4 | D19: 3700 | E19: Rønne | G19: sbfmw@mail.dk | I19: Maud, Bilagskontrollantsuppleant | J19: 14 | K19: =IF(L19=0,"",INDEX(Bogføring!$B:$B,MATCH(Tabel2[[#This Row],[Medl.nr. :]],Bogføring!$E:$E,0),0)) ->  | L19: =SUMIFS(Bogføring!I:I,Bogføring!F:F,"="&$L$5,Bogføring!E:E,"="&A19) -> 0 | M19: =IF(N19=0,"",SUMIFS(Bogføring!B:B,Bogføring!F:F,"="&$N$5,Bogføring!E:E,"="&A19)) ->  | N19: =SUMIFS(Bogføring!I:I,Bogføring!F:F,"="&$N$5,Bogføring!E:E,"="&A19) -> 0 | O19: =IF(N19=0,"",SUMIFS(Bogføring!$B:$B,Bogføring!$F:$F,"="&$P$5,Bogføring!$E:$E,"="&A19)) ->  | P19: =SUMIFS(Bogføring!$I:$I,Bogføring!$F:$F,"="&$P$5,Bogføring!$E:$E,"="&A19) -> 0
A20: 15 | B20: Klaus Linnert | C20: Hedebovej 22, Knudsker | D20: 3700 | E20: Rønne | F20: 51330033 | G20: klaus@linnert.dk | I20: Museumsleder | J20: 15 | K20: =IF(L20=0,"",INDEX(Bogføring!$B:$B,MATCH(Tabel2[[#This Row],[Medl.nr. :]],Bogføring!$E:$E,0),0)) ->  | L20: =SUMIFS(Bogføring!I:I,Bogføring!F:F,"="&$L$5,Bogføring!E:E,"="&A20) -> 0 | M20: =IF(N20=0,"",SUMIFS(Bogføring!B:B,Bogføring!F:F,"="&$N$5,Bogføring!E:E,"="&A20)) ->  | N20: =SUMIFS(Bogføring!I:I,Bogføring!F:F,"="&$N$5,Bogføring!E:E,"="&A20) -> 0 | O20: =IF(N20=0,"",SUMIFS(Bogføring!$B:$B,Bogføring!$F:$F,"="&$P$5,Bogføring!$E:$E,"="&A20)) ->  | P20: =SUMIFS(Bogføring!$I:$I,Bogføring!$F:$F,"="&$P$5,Bogføring!$E:$E,"="&A20) -> 0
A21: 16 | B21: Per A. Nielsen | C21: Ingemannsvej 2, Listed | D21: 3740 | E21: Svaneke | F21: 56496374 | G21: signeogper@gmail.com | I21: ÆRESMEDLEM | J21: 16 | K21: =IF(L21=0,"",INDEX(Bogføring!$B:$B,MATCH(Tabel2[[#This Row],[Medl.nr. :]],Bogføring!$E:$E,0),0)) ->  | L21: =SUMIFS(Bogføring!I:I,Bogføring!F:F,"="&$L$5,Bogføring!E:E,"="&A21) -> 0 | M21: =IF(N21=0,"",SUMIFS(Bogføring!B:B,Bogføring!F:F,"="&$N$5,Bogføring!E:E,"="&A21)) ->  | N21: =SUMIFS(Bogføring!I:I,Bogføring!F:F,"="&$N$5,Bogføring!E:E,"="&A21) -> 0 | O21: =IF(N21=0,"",SUMIFS(Bogføring!$B:$B,Bogføring!$F:$F,"="&$P$5,Bogføring!$E:$E,"="&A21)) ->  | P21: =SUMIFS(Bogføring!$I:$I,Bogføring!$F:$F,"="&$P$5,Bogføring!$E:$E,"="&A21) -> 0
A22: 17 | B22: Knud K. Pallesen | C22: Weidekampsgade 29, 5.tv. | D22: 2300 | E22: København S. | F22: 35391251 | G22: kpallesen@gmail.com | J22: 17 | K22: =IF(L22=0,"",INDEX(Bogføring!$B:$B,MATCH(Tabel2[[#This Row],[Medl.nr. :]],Bogføring!$E:$E,0),0)) ->  | L22: =SUMIFS(Bogføring!I:I,Bogføring!F:F,"="&$L$5,Bogføring!E:E,"="&A22) -> 0 | M22: =IF(N22=0,"",SUMIFS(Bogføring!B:B,Bogføring!F:F,"="&$N$5,Bogføring!E:E,"="&A22)) ->  | N22: =SUMIFS(Bogføring!I:I,Bogføring!F:F,"="&$N$5,Bogføring!E:E,"="&A22) -> 0 | O22: =IF(N22=0,"",SUMIFS(Bogføring!$B:$B,Bogføring!$F:$F,"="&$P$5,Bogføring!$E:$E,"="&A22)) ->  | P22: =SUMIFS(Bogføring!$I:$I,Bogføring!$F:$F,"="&$P$5,Bogføring!$E:$E,"="&A22) -> 0
A23: 18 | B23: Kristian Hofgaard | C23: Kong Georgs Vej 54, I.tv. | D23: 2000 | E23: Frederiksberg | G23: hofgaardkristian@gmail.com | J23: 18 | K23: =IF(L23=0,"",INDEX(Bogføring!$B:$B,MATCH(Tabel2[[#This Row],[Medl.nr. :]],Bogføring!$E:$E,0),0)) ->  | L23: =SUMIFS(Bogføring!I:I,Bogføring!F:F,"="&$L$5,Bogføring!E:E,"="&A23) -> 0 | M23: =IF(N23=0,"",SUMIFS(Bogføring!B:B,Bogføring!F:F,"="&$N$5,Bogføring!E:E,"="&A23)) ->  | N23: =SUMIFS(Bogføring!I:I,Bogføring!F:F,"="&$N$5,Bogføring!E:E,"="&A23) -> 0 | O23: =IF(N23=0,"",SUMIFS(Bogføring!$B:$B,Bogføring!$F:$F,"="&$P$5,Bogføring!$E:$E,"="&A23)) ->  | P23: =SUMIFS(Bogføring!$I:$I,Bogføring!$F:$F,"="&$P$5,Bogføring!$E:$E,"="&A23) -> 0
A24: 19 | B24: Søren Bech Jensen | C24: Østergade 46 b, | D24: 3700 | E24: Rønne | G24: sbjdansk@gmail.com | J24: 19 | K24: =IF(L24=0,"",INDEX(Bogføring!$B:$B,MATCH(Tabel2[[#This Row],[Medl.nr. :]],Bogføring!$E:$E,0),0)) ->  | L24: =SUMIFS(Bogføring!I:I,Bogføring!F:F,"="&$L$5,Bogføring!E:E,"="&A24) -> 0 | M24: =IF(N24=0,"",SUMIFS(Bogføring!B:B,Bogføring!F:F,"="&$N$5,Bogføring!E:E,"="&A24)) ->  | N24: =SUMIFS(Bogføring!I:I,Bogføring!F:F,"="&$N$5,Bogføring!E:E,"="&A24) -> 0 | O24: =IF(N24=0,"",SUMIFS(Bogføring!$B:$B,Bogføring!$F:$F,"="&$P$5,Bogføring!$E:$E,"="&A24)) ->  | P24: =SUMIFS(Bogføring!$I:$I,Bogføring!$F:$F,"="&$P$5,Bogføring!$E:$E,"="&A24) -> 0
A25: 20 | B25: Peder Jon Andersen | C25: Gartnerhaven 8 | D25: 2800 | E25: Kgs. Lyngby | G25: peajay@pc.dk | J25: 20 | K25: =IF(L25=0,"",INDEX(Bogføring!$B:$B,MATCH(Tabel2[[#This Row],[Medl.nr. :]],Bogføring!$E:$E,0),0)) ->  | L25: =SUMIFS(Bogføring!I:I,Bogføring!F:F,"="&$L$5,Bogføring!E:E,"="&A25) -> 0 | M25: =IF(N25=0,"",SUMIFS(Bogføring!B:B,Bogføring!F:F,"="&$N$5,Bogføring!E:E,"="&A25)) ->  | N25: =SUMIFS(Bogføring!I:I,Bogføring!F:F,"="&$N$5,Bogføring!E:E,"="&A25) -> 0 | O25: =IF(N25=0,"",SUMIFS(Bogføring!$B:$B,Bogføring!$F:$F,"="&$P$5,Bogføring!$E:$E,"="&A25)) ->  | P25: =SUMIFS(Bogføring!$I:$I,Bogføring!$F:$F,"="&$P$5,Bogføring!$E:$E,"="&A25) -> 0
A26: 21 | B26: Kaj E. Boesen | C26: Birkevej 20 | D26: 3770 | E26: Allinge | G26: kaje.boesen@gmail.com | I26: Frivillig | J26: 21 | K26: =IF(L26=0,"",INDEX(Bogføring!$B:$B,MATCH(Tabel2[[#This Row],[Medl.nr. :]],Bogføring!$E:$E,0),0)) ->  | L26: =SUMIFS(Bogføring!I:I,Bogføring!F:F,"="&$L$5,Bogføring!E:E,"="&A26) -> 0 | M26: =IF(N26=0,"",SUMIFS(Bogføring!B:B,Bogføring!F:F,"="&$N$5,Bogføring!E:E,"="&A26)) ->  | N26: =SUMIFS(Bogføring!I:I,Bogføring!F:F,"="&$N$5,Bogføring!E:E,"="&A26) -> 0 | O26: =IF(N26=0,"",SUMIFS(Bogføring!$B:$B,Bogføring!$F:$F,"="&$P$5,Bogføring!$E:$E,"="&A26)) ->  | P26: =SUMIFS(Bogføring!$I:$I,Bogføring!$F:$F,"="&$P$5,Bogføring!$E:$E,"="&A26) -> 0
A27: 22 | B27: Jørn-Ole Lund | C27: Borgmester Nielsensvej 84 | D27: 3700 | E27: Rønne | G27: jomlund@hotmail.com | I27: Pluggegårdsvej 25, Nyker | J27: 22 | K27: =IF(L27=0,"",INDEX(Bogføring!$B:$B,MATCH(Tabel2[[#This Row],[Medl.nr. :]],Bogføring!$E:$E,0),0)) ->  | L27: =SUMIFS(Bogføring!I:I,Bogføring!F:F,"="&$L$5,Bogføring!E:E,"="&A27) -> 0 | M27: =IF(N27=0,"",SUMIFS(Bogføring!B:B,Bogføring!F:F,"="&$N$5,Bogføring!E:E,"="&A27)) ->  | N27: =SUMIFS(Bogføring!I:I,Bogføring!F:F,"="&$N$5,Bogføring!E:E,"="&A27) -> 0 | O27: =IF(N27=0,"",SUMIFS(Bogføring!$B:$B,Bogføring!$F:$F,"="&$P$5,Bogføring!$E:$E,"="&A27)) ->  | P27: =SUMIFS(Bogføring!$I:$I,Bogføring!$F:$F,"="&$P$5,Bogføring!$E:$E,"="&A27) -> 0
A28: 23 | B28: Henrik H. Poulsen | C28: Kirkebyvej 46 | D28: 3751 | E28: Østermarie | G28: hhp@cabh.dk | J28: 23 | K28: =IF(L28=0,"",INDEX(Bogføring!$B:$B,MATCH(Tabel2[[#This Row],[Medl.nr. :]],Bogføring!$E:$E,0),0)) ->  | L28: =SUMIFS(Bogføring!I:I,Bogføring!F:F,"="&$L$5,Bogføring!E:E,"="&A28) -> 0 | M28: =IF(N28=0,"",SUMIFS(Bogføring!B:B,Bogføring!F:F,"="&$N$5,Bogføring!E:E,"="&A28)) ->  | N28: =SUMIFS(Bogføring!I:I,Bogføring!F:F,"="&$N$5,Bogføring!E:E,"="&A28) -> 0 | O28: =IF(N28=0,"",SUMIFS(Bogføring!$B:$B,Bogføring!$F:$F,"="&$P$5,Bogføring!$E:$E,"="&A28)) ->  | P28: =SUMIFS(Bogføring!$I:$I,Bogføring!$F:$F,"="&$P$5,Bogføring!$E:$E,"="&A28) -> 0
A29: 24 | B29: Knud og Randi Veje | C29: Teglgårdsvej 12 | D29: 3700 | E29: Rønne | G29: rkveje@pc.dk | J29: 24 | K29: =IF(L29=0,"",INDEX(Bogføring!$B:$B,MATCH(Tabel2[[#This Row],[Medl.nr. :]],Bogføring!$E:$E,0),0)) ->  | L29: =SUMIFS(Bogføring!I:I,Bogføring!F:F,"="&$L$5,Bogføring!E:E,"="&A29) -> 0 | M29: =IF(N29=0,"",SUMIFS(Bogføring!B:B,Bogføring!F:F,"="&$N$5,Bogføring!E:E,"="&A29)) ->  | N29: =SUMIFS(Bogføring!I:I,Bogføring!F:F,"="&$N$5,Bogføring!E:E,"="&A29) -> 0 | O29: =IF(N29=0,"",SUMIFS(Bogføring!$B:$B,Bogføring!$F:$F,"="&$P$5,Bogføring!$E:$E,"="&A29)) ->  | P29: =SUMIFS(Bogføring!$I:$I,Bogføring!$F:$F,"="&$P$5,Bogføring!$E:$E,"="&A29) -> 0
A30: 25 | B30: John Bloch Andersen | C30: Tornegård, Almegårdsvej 12 | D30: 3700 | E30: Rønne | F30: 21612882 | G30: bloch44@hotmail.com | I30: Paradisvej 11, -10 | J30: 25 | K30: =IF(L30=0,"",INDEX(Bogføring!$B:$B,MATCH(Tabel2[[#This Row],[Medl.nr. :]],Bogføring!$E:$E,0),0)) ->  | L30: =SUMIFS(Bogføring!I:I,Bogføring!F:F,"="&$L$5,Bogføring!E:E,"="&A30) -> 0 | M30: =IF(N30=0,"",SUMIFS(Bogføring!B:B,Bogføring!F:F,"="&$N$5,Bogføring!E:E,"="&A30)) ->  | N30: =SUMIFS(Bogføring!I:I,Bogføring!F:F,"="&$N$5,Bogføring!E:E,"="&A30) -> 0 | O30: =IF(N30=0,"",SUMIFS(Bogføring!$B:$B,Bogføring!$F:$F,"="&$P$5,Bogføring!$E:$E,"="&A30)) ->  | P30: =SUMIFS(Bogføring!$I:$I,Bogføring!$F:$F,"="&$P$5,Bogføring!$E:$E,"="&A30) -> 0
A31: 26 | B31: Margrethe & Jørn Birk | C31: Sdr. Landevej 47, Aaker | D31: 3720 | E31: Åkirkeby | F31: 56974743 | G31: aakervvs@os.dk | J31: 26 | K31: =IF(L31=0,"",INDEX(Bogføring!$B:$B,MATCH(Tabel2[[#This Row],[Medl.nr. :]],Bogføring!$E:$E,0),0)) ->  | L31: =SUMIFS(Bogføring!I:I,Bogføring!F:F,"="&$L$5,Bogføring!E:E,"="&A31) -> 0 | M31: =IF(N31=0,"",SUMIFS(Bogføring!B:B,Bogføring!F:F,"="&$N$5,Bogføring!E:E,"="&A31)) ->  | N31: =SUMIFS(Bogføring!I:I,Bogføring!F:F,"="&$N$5,Bogføring!E:E,"="&A31) -> 0 | O31: =IF(N31=0,"",SUMIFS(Bogføring!$B:$B,Bogføring!$F:$F,"="&$P$5,Bogføring!$E:$E,"="&A31)) ->  | P31: =SUMIFS(Bogføring!$I:$I,Bogføring!$F:$F,"="&$P$5,Bogføring!$E:$E,"="&A31) -> 0
A32: 27 | B32: Helge Holst | C32: Bramsnæslund 12 Ejby | D32: 4070 | E32: Kirke Hylling | G32: helgeaholst@gmail.com | J32: 27 | K32: =IF(L32=0,"",INDEX(Bogføring!$B:$B,MATCH(Tabel2[[#This Row],[Medl.nr. :]],Bogføring!$E:$E,0),0)) ->  | L32: =SUMIFS(Bogføring!I:I,Bogføring!F:F,"="&$L$5,Bogføring!E:E,"="&A32) -> 0 | M32: =IF(N32=0,"",SUMIFS(Bogføring!B:B,Bogføring!F:F,"="&$N$5,Bogføring!E:E,"="&A32)) ->  | N32: =SUMIFS(Bogføring!I:I,Bogføring!F:F,"="&$N$5,Bogføring!E:E,"="&A32) -> 0 | O32: =IF(N32=0,"",SUMIFS(Bogføring!$B:$B,Bogføring!$F:$F,"="&$P$5,Bogføring!$E:$E,"="&A32)) ->  | P32: =SUMIFS(Bogføring!$I:$I,Bogføring!$F:$F,"="&$P$5,Bogføring!$E:$E,"="&A32) -> 0
A33: 28 | B33: Lars T. Jensen | C33: Poul Ankersvej 17 | D33: 3700 | E33: Rønne | G33: bltjacn@gmail.com | J33: 28 | K33: =IF(L33=0,"",INDEX(Bogføring!$B:$B,MATCH(Tabel2[[#This Row],[Medl.nr. :]],Bogføring!$E:$E,0),0)) ->  | L33: =SUMIFS(Bogføring!I:I,Bogføring!F:F,"="&$L$5,Bogføring!E:E,"="&A33) -> 0 | M33: =IF(N33=0,"",SUMIFS(Bogføring!B:B,Bogføring!F:F,"="&$N$5,Bogføring!E:E,"="&A33)) ->  | N33: =SUMIFS(Bogføring!I:I,Bogføring!F:F,"="&$N$5,Bogføring!E:E,"="&A33) -> 0 | O33: =IF(N33=0,"",SUMIFS(Bogføring!$B:$B,Bogføring!$F:$F,"="&$P$5,Bogføring!$E:$E,"="&A33)) ->  | P33: =SUMIFS(Bogføring!$I:$I,Bogføring!$F:$F,"="&$P$5,Bogføring!$E:$E,"="&A33) -> 0
A34: 30 | B34: Grethe og Finn J.H. Carlsen | C34: Brøndshøj 7 | D34: 3700 | E34: Rønne | F34: 56950212 | G34: finnc@post12.tele.dk | J34: 30 | K34: =IF(L34=0,"",INDEX(Bogføring!$B:$B,MATCH(Tabel2[[#This Row],[Medl.nr. :]],Bogføring!$E:$E,0),0)) ->  | L34: =SUMIFS(Bogføring!I:I,Bogføring!F:F,"="&$L$5,Bogføring!E:E,"="&A34) -> 0 | M34: =IF(N34=0,"",SUMIFS(Bogføring!B:B,Bogføring!F:F,"="&$N$5,Bogføring!E:E,"="&A34)) ->  | N34: =SUMIFS(Bogføring!I:I,Bogføring!F:F,"="&$N$5,Bogføring!E:E,"="&A34) -> 0 | O34: =IF(N34=0,"",SUMIFS(Bogføring!$B:$B,Bogføring!$F:$F,"="&$P$5,Bogføring!$E:$E,"="&A34)) ->  | P34: =SUMIFS(Bogføring!$I:$I,Bogføring!$F:$F,"="&$P$5,Bogføring!$E:$E,"="&A34) -> 0
A35: 31 | B35: Ivar Jørgensen | C35: Havnebryggen 1 | D35: 3740 | E35: Svaneke | G35: havnebryggen@gmail.com | J35: 31 | K35: =IF(L35=0,"",INDEX(Bogføring!$B:$B,MATCH(Tabel2[[#This Row],[Medl.nr. :]],Bogføring!$E:$E,0),0)) ->  | L35: =SUMIFS(Bogføring!I:I,Bogføring!F:F,"="&$L$5,Bogføring!E:E,"="&A35) -> 0 | M35: =IF(N35=0,"",SUMIFS(Bogføring!B:B,Bogføring!F:F,"="&$N$5,Bogføring!E:E,"="&A35)) ->  | N35: =SUMIFS(Bogføring!I:I,Bogføring!F:F,"="&$N$5,Bogføring!E:E,"="&A35) -> 0 | O35: =IF(N35=0,"",SUMIFS(Bogføring!$B:$B,Bogføring!$F:$F,"="&$P$5,Bogføring!$E:$E,"="&A35)) ->  | P35: =SUMIFS(Bogføring!$I:$I,Bogføring!$F:$F,"="&$P$5,Bogføring!$E:$E,"="&A35) -> 0
A36: 32 | B36: Carsten Gjessing | C36: Kirkepladsen 6 | D36: 3700 | E36: Rønne | G36: oz4cg@post3.tele.dk | J36: 32 | K36: =IF(L36=0,"",INDEX(Bogføring!$B:$B,MATCH(Tabel2[[#This Row],[Medl.nr. :]],Bogføring!$E:$E,0),0)) ->  | L36: =SUMIFS(Bogføring!I:I,Bogføring!F:F,"="&$L$5,Bogføring!E:E,"="&A36) -> 0 | M36: =IF(N36=0,"",SUMIFS(Bogføring!B:B,Bogføring!F:F,"="&$N$5,Bogføring!E:E,"="&A36)) ->  | N36: =SUMIFS(Bogføring!I:I,Bogføring!F:F,"="&$N$5,Bogføring!E:E,"="&A36) -> 0 | O36: =IF(N36=0,"",SUMIFS(Bogføring!$B:$B,Bogføring!$F:$F,"="&$P$5,Bogføring!$E:$E,"="&A36)) ->  | P36: =SUMIFS(Bogføring!$I:$I,Bogføring!$F:$F,"="&$P$5,Bogføring!$E:$E,"="&A36) -> 0
A37: 33 | B37: Jan Kristiansen | C37: Bækken 21 | D37: 3700 | E37: Rønne | G37: jandor51@youmail.dk | I37: Solbakkevej 4 | J37: 33 | K37: =IF(L37=0,"",INDEX(Bogføring!$B:$B,MATCH(Tabel2[[#This Row],[Medl.nr. :]],Bogføring!$E:$E,0),0)) ->  | L37: =SUMIFS(Bogføring!I:I,Bogføring!F:F,"="&$L$5,Bogføring!E:E,"="&A37) -> 0 | M37: =IF(N37=0,"",SUMIFS(Bogføring!B:B,Bogføring!F:F,"="&$N$5,Bogføring!E:E,"="&A37)) ->  | N37: =SUMIFS(Bogføring!I:I,Bogføring!F:F,"="&$N$5,Bogføring!E:E,"="&A37) -> 0 | O37: =IF(N37=0,"",SUMIFS(Bogføring!$B:$B,Bogføring!$F:$F,"="&$P$5,Bogføring!$E:$E,"="&A37)) ->  | P37: =SUMIFS(Bogføring!$I:$I,Bogføring!$F:$F,"="&$P$5,Bogføring!$E:$E,"="&A37) -> 0
A38: 34 | B38: Elin og Hans Jørgen Brandt | C38: Præstegårdsvejen 7, Vestermarie | D38: 3700 | E38: Rønne | G38: maresoe@hotmail.com | J38: =IF(A38="","",A38) -> 34 | K38: =IF(L38=0,"",INDEX(Bogføring!$B:$B,MATCH(Tabel2[[#This Row],[Medl.nr. :]],Bogføring!$E:$E,0),0)) ->  | L38: =SUMIFS(Bogføring!I:I,Bogføring!F:F,"="&$L$5,Bogføring!E:E,"="&A38) -> 0 | M38: =IF(N38=0,"",SUMIFS(Bogføring!B:B,Bogføring!F:F,"="&$N$5,Bogføring!E:E,"="&A38)) ->  | N38: =SUMIFS(Bogføring!I:I,Bogføring!F:F,"="&$N$5,Bogføring!E:E,"="&A38) -> 0 | O38: =IF(N38=0,"",SUMIFS(Bogføring!$B:$B,Bogføring!$F:$F,"="&$P$5,Bogføring!$E:$E,"="&A38)) ->  | P38: =SUMIFS(Bogføring!$I:$I,Bogføring!$F:$F,"="&$P$5,Bogføring!$E:$E,"="&A38) -> 0
A39: 35 | B39: Niels Chr. Garde | C39: Mulebyvej 24 | D39: 3700 | E39: Rønne | G39: niels-garde@hotmail.com | J39: 35 | K39: =IF(L39=0,"",INDEX(Bogføring!$B:$B,MATCH(Tabel2[[#This Row],[Medl.nr. :]],Bogføring!$E:$E,0),0)) ->  | L39: =SUMIFS(Bogføring!I:I,Bogføring!F:F,"="&$L$5,Bogføring!E:E,"="&A39) -> 0 | M39: =IF(N39=0,"",SUMIFS(Bogføring!B:B,Bogføring!F:F,"="&$N$5,Bogføring!E:E,"="&A39)) ->  | N39: =SUMIFS(Bogføring!I:I,Bogføring!F:F,"="&$N$5,Bogføring!E:E,"="&A39) -> 0 | O39: =IF(N39=0,"",SUMIFS(Bogføring!$B:$B,Bogføring!$F:$F,"="&$P$5,Bogføring!$E:$E,"="&A39)) ->  | P39: =SUMIFS(Bogføring!$I:$I,Bogføring!$F:$F,"="&$P$5,Bogføring!$E:$E,"="&A39) -> 0
A40: 36 | B40: Connie og Flemming Lykke Koch | C40: Møllevænget 11, Nyker | D40: 3700 | E40: Rønne | F40: 20186030 | G40: flkoch@outlook.com | J40: 36 | K40: =IF(L40=0,"",INDEX(Bogføring!$B:$B,MATCH(Tabel2[[#This Row],[Medl.nr. :]],Bogføring!$E:$E,0),0)) ->  | L40: =SUMIFS(Bogføring!I:I,Bogføring!F:F,"="&$L$5,Bogføring!E:E,"="&A40) -> 0 | M40: =IF(N40=0,"",SUMIFS(Bogføring!B:B,Bogføring!F:F,"="&$N$5,Bogføring!E:E,"="&A40)) ->  | N40: =SUMIFS(Bogføring!I:I,Bogføring!F:F,"="&$N$5,Bogføring!E:E,"="&A40) -> 0 | O40: =IF(N40=0,"",SUMIFS(Bogføring!$B:$B,Bogføring!$F:$F,"="&$P$5,Bogføring!$E:$E,"="&A40)) ->  | P40: =SUMIFS(Bogføring!$I:$I,Bogføring!$F:$F,"="&$P$5,Bogføring!$E:$E,"="&A40) -> 0
A41: 37 | B41: Erik Andersen | C41: Malmøvej 26 | D41: 3700 | E41: Rønne | G41: erik-ag@mail.dk | J41: 37 | K41: =IF(L41=0,"",INDEX(Bogføring!$B:$B,MATCH(Tabel2[[#This Row],[Medl.nr. :]],Bogføring!$E:$E,0),0)) ->  | L41: =SUMIFS(Bogføring!I:I,Bogføring!F:F,"="&$L$5,Bogføring!E:E,"="&A41) -> 0 | M41: =IF(N41=0,"",SUMIFS(Bogføring!B:B,Bogføring!F:F,"="&$N$5,Bogføring!E:E,"="&A41)) ->  | N41: =SUMIFS(Bogføring!I:I,Bogføring!F:F,"="&$N$5,Bogføring!E:E,"="&A41) -> 0 | O41: =IF(N41=0,"",SUMIFS(Bogføring!$B:$B,Bogføring!$F:$F,"="&$P$5,Bogføring!$E:$E,"="&A41)) ->  | P41: =SUMIFS(Bogføring!$I:$I,Bogføring!$F:$F,"="&$P$5,Bogføring!$E:$E,"="&A41) -> 0
A42: 38 | B42: Holger Pii | C42: Byvangen 37 | D42: 3700 | E42: Rønne | G42: hpii@city.dk | J42: 38 | K42: =IF(L42=0,"",INDEX(Bogføring!$B:$B,MATCH(Tabel2[[#This Row],[Medl.nr. :]],Bogføring!$E:$E,0),0)) ->  | L42: =SUMIFS(Bogføring!I:I,Bogføring!F:F,"="&$L$5,Bogføring!E:E,"="&A42) -> 0 | M42: =IF(N42=0,"",SUMIFS(Bogføring!B:B,Bogføring!F:F,"="&$N$5,Bogføring!E:E,"="&A42)) ->  | N42: =SUMIFS(Bogføring!I:I,Bogføring!F:F,"="&$N$5,Bogføring!E:E,"="&A42) -> 0 | O42: =IF(N42=0,"",SUMIFS(Bogføring!$B:$B,Bogføring!$F:$F,"="&$P$5,Bogføring!$E:$E,"="&A42)) ->  | P42: =SUMIFS(Bogføring!$I:$I,Bogføring!$F:$F,"="&$P$5,Bogføring!$E:$E,"="&A42) -> 0
A43: 39 | B43: Bente Kofod | C43: Østergade 44 C | D43: 3700 | E43: Rønne | F43: 24402236 | G43: bhkofod@email.dk | J43: 39 | K43: =IF(L43=0,"",INDEX(Bogføring!$B:$B,MATCH(Tabel2[[#This Row],[Medl.nr. :]],Bogføring!$E:$E,0),0)) ->  | L43: =SUMIFS(Bogføring!I:I,Bogføring!F:F,"="&$L$5,Bogføring!E:E,"="&A43) -> 0 | M43: =IF(N43=0,"",SUMIFS(Bogføring!B:B,Bogføring!F:F,"="&$N$5,Bogføring!E:E,"="&A43)) ->  | N43: =SUMIFS(Bogføring!I:I,Bogføring!F:F,"="&$N$5,Bogføring!E:E,"="&A43) -> 0 | O43: =IF(N43=0,"",SUMIFS(Bogføring!$B:$B,Bogføring!$F:$F,"="&$P$5,Bogføring!$E:$E,"="&A43)) ->  | P43: =SUMIFS(Bogføring!$I:$I,Bogføring!$F:$F,"="&$P$5,Bogføring!$E:$E,"="&A43) -> 0
A44: 40 | B44: Jens Baunsgaard | C44: Teglkåsvej 36, Rutsker | D44: 3790 | E44: Hasle | G44: j_baunsgaard@hotmail.com | J44: 40 | K44: =IF(L44=0,"",INDEX(Bogføring!$B:$B,MATCH(Tabel2[[#This Row],[Medl.nr. :]],Bogføring!$E:$E,0),0)) ->  | L44: =SUMIFS(Bogføring!I:I,Bogføring!F:F,"="&$L$5,Bogføring!E:E,"="&A44) -> 0 | M44: =IF(N44=0,"",SUMIFS(Bogføring!B:B,Bogføring!F:F,"="&$N$5,Bogføring!E:E,"="&A44)) ->  | N44: =SUMIFS(Bogføring!I:I,Bogføring!F:F,"="&$N$5,Bogføring!E:E,"="&A44) -> 0 | O44: =IF(N44=0,"",SUMIFS(Bogføring!$B:$B,Bogføring!$F:$F,"="&$P$5,Bogføring!$E:$E,"="&A44)) ->  | P44: =SUMIFS(Bogføring!$I:$I,Bogføring!$F:$F,"="&$P$5,Bogføring!$E:$E,"="&A44) -> 0
A45: 41 | B45: Charlotte Henriksen | C45: Malmøvej 7 | D45: 3700 | E45: Rønne | G45: kim.charlotte@stofanet.dk | H45: 2018 | J45: 41 | K45: =IF(L45=0,"",INDEX(Bogføring!$B:$B,MATCH(Tabel2[[#This Row],[Medl.nr. :]],Bogføring!$E:$E,0),0)) ->  | L45: =SUMIFS(Bogføring!I:I,Bogføring!F:F,"="&$L$5,Bogføring!E:E,"="&A45) -> 0 | M45: =IF(N45=0,"",SUMIFS(Bogføring!B:B,Bogføring!F:F,"="&$N$5,Bogføring!E:E,"="&A45)) ->  | N45: =SUMIFS(Bogføring!I:I,Bogføring!F:F,"="&$N$5,Bogføring!E:E,"="&A45) -> 0 | O45: =IF(N45=0,"",SUMIFS(Bogføring!$B:$B,Bogføring!$F:$F,"="&$P$5,Bogføring!$E:$E,"="&A45)) ->  | P45: =SUMIFS(Bogføring!$I:$I,Bogføring!$F:$F,"="&$P$5,Bogføring!$E:$E,"="&A45) -> 0
A46: 42 | B46: Hanne og Sten Hueg | C46: Sofienborg, Lynggårdsvej 11, Olsker | D46: 3770 | E46: Allinge | G46: sfhueg@godmail.dk | J46: 42 | K46: =IF(L46=0,"",INDEX(Bogføring!$B:$B,MATCH(Tabel2[[#This Row],[Medl.nr. :]],Bogføring!$E:$E,0),0)) ->  | L46: =SUMIFS(Bogføring!I:I,Bogføring!F:F,"="&$L$5,Bogføring!E:E,"="&A46) -> 0 | M46: =IF(N46=0,"",SUMIFS(Bogføring!B:B,Bogføring!F:F,"="&$N$5,Bogføring!E:E,"="&A46)) ->  | N46: =SUMIFS(Bogføring!I:I,Bogføring!F:F,"="&$N$5,Bogføring!E:E,"="&A46) -> 0 | O46: =IF(N46=0,"",SUMIFS(Bogføring!$B:$B,Bogføring!$F:$F,"="&$P$5,Bogføring!$E:$E,"="&A46)) ->  | P46: =SUMIFS(Bogføring!$I:$I,Bogføring!$F:$F,"="&$P$5,Bogføring!$E:$E,"="&A46) -> 0
A47: 43 | B47: Zarina Tina Sose | C47: Pilestræde 18 | D47: 3700 | E47: Rønne | G47: zizisose@outlook.dk | I47: Frivillig | J47: 43 | K47: =IF(L47=0,"",INDEX(Bogføring!$B:$B,MATCH(Tabel2[[#This Row],[Medl.nr. :]],Bogføring!$E:$E,0),0)) ->  | L47: =SUMIFS(Bogføring!I:I,Bogføring!F:F,"="&$L$5,Bogføring!E:E,"="&A47) -> 0 | M47: =IF(N47=0,"",SUMIFS(Bogføring!B:B,Bogføring!F:F,"="&$N$5,Bogføring!E:E,"="&A47)) ->  | N47: =SUMIFS(Bogføring!I:I,Bogføring!F:F,"="&$N$5,Bogføring!E:E,"="&A47) -> 0 | O47: =IF(N47=0,"",SUMIFS(Bogføring!$B:$B,Bogføring!$F:$F,"="&$P$5,Bogføring!$E:$E,"="&A47)) ->  | P47: =SUMIFS(Bogføring!$I:$I,Bogføring!$F:$F,"="&$P$5,Bogføring!$E:$E,"="&A47) -> 0
A48: 44 | B48: Ole Bramsgaard | C48: Borgergade 11 | D48: 3700 | E48: Rønne | F48: 21647153 | G48: ole@bramsgaard.dk | J48: 44 | K48: =IF(L48=0,"",INDEX(Bogføring!$B:$B,MATCH(Tabel2[[#This Row],[Medl.nr. :]],Bogføring!$E:$E,0),0)) ->  | L48: =SUMIFS(Bogføring!I:I,Bogføring!F:F,"="&$L$5,Bogføring!E:E,"="&A48) -> 0 | M48: =IF(N48=0,"",SUMIFS(Bogføring!B:B,Bogføring!F:F,"="&$N$5,Bogføring!E:E,"="&A48)) ->  | N48: =SUMIFS(Bogføring!I:I,Bogføring!F:F,"="&$N$5,Bogføring!E:E,"="&A48) -> 0 | O48: =IF(N48=0,"",SUMIFS(Bogføring!$B:$B,Bogføring!$F:$F,"="&$P$5,Bogføring!$E:$E,"="&A48)) ->  | P48: =SUMIFS(Bogføring!$I:$I,Bogføring!$F:$F,"="&$P$5,Bogføring!$E:$E,"="&A48) -> 0
A49: 45 | B49: Hanne Bærild Jacobsen | C49: St. Torvegade 58 | D49: 3700 | E49: Rønne | G49: hbj0940@gmail.com | J49: 45 | K49: =IF(L49=0,"",INDEX(Bogføring!$B:$B,MATCH(Tabel2[[#This Row],[Medl.nr. :]],Bogføring!$E:$E,0),0)) ->  | L49: =SUMIFS(Bogføring!I:I,Bogføring!F:F,"="&$L$5,Bogføring!E:E,"="&A49) -> 0 | M49: =IF(N49=0,"",SUMIFS(Bogføring!B:B,Bogføring!F:F,"="&$N$5,Bogføring!E:E,"="&A49)) ->  | N49: =SUMIFS(Bogføring!I:I,Bogføring!F:F,"="&$N$5,Bogføring!E:E,"="&A49) -> 0 | O49: =IF(N49=0,"",SUMIFS(Bogføring!$B:$B,Bogføring!$F:$F,"="&$P$5,Bogføring!$E:$E,"="&A49)) ->  | P49: =SUMIFS(Bogføring!$I:$I,Bogføring!$F:$F,"="&$P$5,Bogføring!$E:$E,"="&A49) -> 0
A50: 46 | B50: Anne og Niels-Kristian Pii | C50: Langholmen 3 | D50: 2630 | E50: Tåstrup | G50: anne.pii@mail.dk | J50: 46 | K50: =IF(L50=0,"",INDEX(Bogføring!$B:$B,MATCH(Tabel2[[#This Row],[Medl.nr. :]],Bogføring!$E:$E,0),0)) ->  | L50: =SUMIFS(Bogføring!I:I,Bogføring!F:F,"="&$L$5,Bogføring!E:E,"="&A50) -> 0 | M50: =IF(N50=0,"",SUMIFS(Bogføring!B:B,Bogføring!F:F,"="&$N$5,Bogføring!E:E,"="&A50)) ->  | N50: =SUMIFS(Bogføring!I:I,Bogføring!F:F,"="&$N$5,Bogføring!E:E,"="&A50) -> 0 | O50: =IF(N50=0,"",SUMIFS(Bogføring!$B:$B,Bogføring!$F:$F,"="&$P$5,Bogføring!$E:$E,"="&A50)) ->  | P50: =SUMIFS(Bogføring!$I:$I,Bogføring!$F:$F,"="&$P$5,Bogføring!$E:$E,"="&A50) -> 0
A51: 47 | B51: Arne V. Hansen | C51: Gyldengårdsvej 5 | D51: 3700 | E51: Rønne | G51: arne.v@hansen.mail.dk | J51: 47 | K51: =IF(L51=0,"",INDEX(Bogføring!$B:$B,MATCH(Tabel2[[#This Row],[Medl.nr. :]],Bogføring!$E:$E,0),0)) ->  | L51: =SUMIFS(Bogføring!I:I,Bogføring!F:F,"="&$L$5,Bogføring!E:E,"="&A51) -> 0 | M51: =IF(N51=0,"",SUMIFS(Bogføring!B:B,Bogføring!F:F,"="&$N$5,Bogføring!E:E,"="&A51)) ->  | N51: =SUMIFS(Bogføring!I:I,Bogføring!F:F,"="&$N$5,Bogføring!E:E,"="&A51) -> 0 | O51: =IF(N51=0,"",SUMIFS(Bogføring!$B:$B,Bogføring!$F:$F,"="&$P$5,Bogføring!$E:$E,"="&A51)) ->  | P51: =SUMIFS(Bogføring!$I:$I,Bogføring!$F:$F,"="&$P$5,Bogføring!$E:$E,"="&A51) -> 0
A52: 48 | B52: Marian og Holger Juul-Pedersen | C52: Bagergade 1 | D52: 3700 | E52: Rønne | G52: juul-pedersen@hotmail.dk | J52: 48 | K52: =IF(L52=0,"",INDEX(Bogføring!$B:$B,MATCH(Tabel2[[#This Row],[Medl.nr. :]],Bogføring!$E:$E,0),0)) ->  | L52: =SUMIFS(Bogføring!I:I,Bogføring!F:F,"="&$L$5,Bogføring!E:E,"="&A52) -> 0 | M52: =IF(N52=0,"",SUMIFS(Bogføring!B:B,Bogføring!F:F,"="&$N$5,Bogføring!E:E,"="&A52)) ->  | N52: =SUMIFS(Bogføring!I:I,Bogføring!F:F,"="&$N$5,Bogføring!E:E,"="&A52) -> 0 | O52: =IF(N52=0,"",SUMIFS(Bogføring!$B:$B,Bogføring!$F:$F,"="&$P$5,Bogføring!$E:$E,"="&A52)) ->  | P52: =SUMIFS(Bogføring!$I:$I,Bogføring!$F:$F,"="&$P$5,Bogføring!$E:$E,"="&A52) -> 0
A53: 49 | B53: C.U. Essemann-Beck | C53: Sejersvej 29 | D53: 3700 | E53: Rønne | F53: 56955329 | G53: essebeck3@gmail.com | J53: 49 | K53: =IF(L53=0,"",INDEX(Bogføring!$B:$B,MATCH(Tabel2[[#This Row],[Medl.nr. :]],Bogføring!$E:$E,0),0)) ->  | L53: =SUMIFS(Bogføring!I:I,Bogføring!F:F,"="&$L$5,Bogføring!E:E,"="&A53) -> 0 | M53: =IF(N53=0,"",SUMIFS(Bogføring!B:B,Bogføring!F:F,"="&$N$5,Bogføring!E:E,"="&A53)) ->  | N53: =SUMIFS(Bogføring!I:I,Bogføring!F:F,"="&$N$5,Bogføring!E:E,"="&A53) -> 0 | O53: =IF(N53=0,"",SUMIFS(Bogføring!$B:$B,Bogføring!$F:$F,"="&$P$5,Bogføring!$E:$E,"="&A53)) ->  | P53: =SUMIFS(Bogføring!$I:$I,Bogføring!$F:$F,"="&$P$5,Bogføring!$E:$E,"="&A53) -> 0
A54: 50 | B54: Erik A. Larsen | C54: Svanekevej 60 | D54: 3700 | E54: Rønne | F54: 56953180 | G54: erik.a.larsen@mail.dk | J54: 50 | K54: =IF(L54=0,"",INDEX(Bogføring!$B:$B,MATCH(Tabel2[[#This Row],[Medl.nr. :]],Bogføring!$E:$E,0),0)) ->  | L54: =SUMIFS(Bogføring!I:I,Bogføring!F:F,"="&$L$5,Bogføring!E:E,"="&A54) -> 0 | M54: =IF(N54=0,"",SUMIFS(Bogføring!B:B,Bogføring!F:F,"="&$N$5,Bogføring!E:E,"="&A54)) ->  | N54: =SUMIFS(Bogføring!I:I,Bogføring!F:F,"="&$N$5,Bogføring!E:E,"="&A54) -> 0 | O54: =IF(N54=0,"",SUMIFS(Bogføring!$B:$B,Bogføring!$F:$F,"="&$P$5,Bogføring!$E:$E,"="&A54)) ->  | P54: =SUMIFS(Bogføring!$I:$I,Bogføring!$F:$F,"="&$P$5,Bogføring!$E:$E,"="&A54) -> 0
A55: 51 | B55: Finn Jakobsen | C55: Toftekrogen 2 | D55: 3790 | E55: Hasle | G55: finn@stortuen.dk | J55: 51 | K55: =IF(L55=0,"",INDEX(Bogføring!$B:$B,MATCH(Tabel2[[#This Row],[Medl.nr. :]],Bogføring!$E:$E,0),0)) ->  | L55: =SUMIFS(Bogføring!I:I,Bogføring!F:F,"="&$L$5,Bogføring!E:E,"="&A55) -> 0 | M55: =IF(N55=0,"",SUMIFS(Bogføring!B:B,Bogføring!F:F,"="&$N$5,Bogføring!E:E,"="&A55)) ->  | N55: =SUMIFS(Bogføring!I:I,Bogføring!F:F,"="&$N$5,Bogføring!E:E,"="&A55) -> 0 | O55: =IF(N55=0,"",SUMIFS(Bogføring!$B:$B,Bogføring!$F:$F,"="&$P$5,Bogføring!$E:$E,"="&A55)) ->  | P55: =SUMIFS(Bogføring!$I:$I,Bogføring!$F:$F,"="&$P$5,Bogføring!$E:$E,"="&A55) -> 0
A56: 52 | B56: Jens Kofod | C56: Søndre Mosevej 2, Snogebæk | D56: 3730 | E56: Nexø | F56: 22115310 | G56: jenskofod@outlook.com | J56: 52 | K56: =IF(L56=0,"",INDEX(Bogføring!$B:$B,MATCH(Tabel2[[#This Row],[Medl.nr. :]],Bogføring!$E:$E,0),0)) ->  | L56: =SUMIFS(Bogføring!I:I,Bogføring!F:F,"="&$L$5,Bogføring!E:E,"="&A56) -> 0 | M56: =IF(N56=0,"",SUMIFS(Bogføring!B:B,Bogføring!F:F,"="&$N$5,Bogføring!E:E,"="&A56)) ->  | N56: =SUMIFS(Bogføring!I:I,Bogføring!F:F,"="&$N$5,Bogføring!E:E,"="&A56) -> 0 | O56: =IF(N56=0,"",SUMIFS(Bogføring!$B:$B,Bogføring!$F:$F,"="&$P$5,Bogføring!$E:$E,"="&A56)) ->  | P56: =SUMIFS(Bogføring!$I:$I,Bogføring!$F:$F,"="&$P$5,Bogføring!$E:$E,"="&A56) -> 0
A57: 53 | B57: Jørn Ole Jensen | C57: Højegårdsvej 9 | D57: 3700 | E57: Rønne | G57: joj74@icloud.com | J57: 53 | K57: =IF(L57=0,"",INDEX(Bogføring!$B:$B,MATCH(Tabel2[[#This Row],[Medl.nr. :]],Bogføring!$E:$E,0),0)) ->  | L57: =SUMIFS(Bogføring!I:I,Bogføring!F:F,"="&$L$5,Bogføring!E:E,"="&A57) -> 0 | M57: =IF(N57=0,"",SUMIFS(Bogføring!B:B,Bogføring!F:F,"="&$N$5,Bogføring!E:E,"="&A57)) ->  | N57: =SUMIFS(Bogføring!I:I,Bogføring!F:F,"="&$N$5,Bogføring!E:E,"="&A57) -> 0 | O57: =IF(N57=0,"",SUMIFS(Bogføring!$B:$B,Bogføring!$F:$F,"="&$P$5,Bogføring!$E:$E,"="&A57)) ->  | P57: =SUMIFS(Bogføring!$I:$I,Bogføring!$F:$F,"="&$P$5,Bogføring!$E:$E,"="&A57) -> 0
A58: 54 | B58: Ole Ingvorsen | C58: Duebjerggård, Simblegårdsvej 21 | D58: 3790 | E58: Hasle | G58: ole.ingvorsen40@gmail.com | J58: 54 | K58: =IF(L58=0,"",INDEX(Bogføring!$B:$B,MATCH(Tabel2[[#This Row],[Medl.nr. :]],Bogføring!$E:$E,0),0)) ->  | L58: =SUMIFS(Bogføring!I:I,Bogføring!F:F,"="&$L$5,Bogføring!E:E,"="&A58) -> 0 | M58: =IF(N58=0,"",SUMIFS(Bogføring!B:B,Bogføring!F:F,"="&$N$5,Bogføring!E:E,"="&A58)) ->  | N58: =SUMIFS(Bogføring!I:I,Bogføring!F:F,"="&$N$5,Bogføring!E:E,"="&A58) -> 0 | O58: =IF(N58=0,"",SUMIFS(Bogføring!$B:$B,Bogføring!$F:$F,"="&$P$5,Bogføring!$E:$E,"="&A58)) ->  | P58: =SUMIFS(Bogføring!$I:$I,Bogføring!$F:$F,"="&$P$5,Bogføring!$E:$E,"="&A58) -> 0
A59: 55 | B59: Michael Berg Petersen | C59: Lille Madsegade 123 | D59: 3700 | E59: Rønne | G59: mbpberg@image.dk | J59: 55 | K59: =IF(L59=0,"",INDEX(Bogføring!$B:$B,MATCH(Tabel2[[#This Row],[Medl.nr. :]],Bogføring!$E:$E,0),0)) ->  | L59: =SUMIFS(Bogføring!I:I,Bogføring!F:F,"="&$L$5,Bogføring!E:E,"="&A59) -> 0 | M59: =IF(N59=0,"",SUMIFS(Bogføring!B:B,Bogføring!F:F,"="&$N$5,Bogføring!E:E,"="&A59)) ->  | N59: =SUMIFS(Bogføring!I:I,Bogføring!F:F,"="&$N$5,Bogføring!E:E,"="&A59) -> 0 | O59: =IF(N59=0,"",SUMIFS(Bogføring!$B:$B,Bogføring!$F:$F,"="&$P$5,Bogføring!$E:$E,"="&A59)) ->  | P59: =SUMIFS(Bogføring!$I:$I,Bogføring!$F:$F,"="&$P$5,Bogføring!$E:$E,"="&A59) -> 0
A60: 56 | B60: Hans Jørn Sonne | C60: Tornegård, Hovedgårdsvejen 3 | D60: 3720 | E60: Åkirkeby | G60: Sellesborg@mail.tele.dk | J60: 56 | K60: =IF(L60=0,"",INDEX(Bogføring!$B:$B,MATCH(Tabel2[[#This Row],[Medl.nr. :]],Bogføring!$E:$E,0),0)) ->  | L60: =SUMIFS(Bogføring!I:I,Bogføring!F:F,"="&$L$5,Bogføring!E:E,"="&A60) -> 0 | M60: =IF(N60=0,"",SUMIFS(Bogføring!B:B,Bogføring!F:F,"="&$N$5,Bogføring!E:E,"="&A60)) ->  | N60: =SUMIFS(Bogføring!I:I,Bogføring!F:F,"="&$N$5,Bogføring!E:E,"="&A60) -> 0 | O60: =IF(N60=0,"",SUMIFS(Bogføring!$B:$B,Bogføring!$F:$F,"="&$P$5,Bogføring!$E:$E,"="&A60)) ->  | P60: =SUMIFS(Bogføring!$I:$I,Bogføring!$F:$F,"="&$P$5,Bogføring!$E:$E,"="&A60) -> 0
A61: 57 | B61: Palle Roch Nielsen | C61: Ugleengevejen 1 | D61: 3720 | E61: Åkirkeby | G61: palle@roch.dk | J61: 57 | K61: =IF(L61=0,"",INDEX(Bogføring!$B:$B,MATCH(Tabel2[[#This Row],[Medl.nr. :]],Bogføring!$E:$E,0),0)) ->  | L61: =SUMIFS(Bogføring!I:I,Bogføring!F:F,"="&$L$5,Bogføring!E:E,"="&A61) -> 0 | M61: =IF(N61=0,"",SUMIFS(Bogføring!B:B,Bogføring!F:F,"="&$N$5,Bogføring!E:E,"="&A61)) ->  | N61: =SUMIFS(Bogføring!I:I,Bogføring!F:F,"="&$N$5,Bogføring!E:E,"="&A61) -> 0 | O61: =IF(N61=0,"",SUMIFS(Bogføring!$B:$B,Bogføring!$F:$F,"="&$P$5,Bogføring!$E:$E,"="&A61)) ->  | P61: =SUMIFS(Bogføring!$I:$I,Bogføring!$F:$F,"="&$P$5,Bogføring!$E:$E,"="&A61) -> 0
A62: 58 | B62: Per Erik Christiansen | C62: Hellestien 3 | D62: 8600 | E62: Silkeborg | G62: hellestien3@yahoo.dk | J62: 58 | K62: =IF(L62=0,"",INDEX(Bogføring!$B:$B,MATCH(Tabel2[[#This Row],[Medl.nr. :]],Bogføring!$E:$E,0),0)) ->  | L62: =SUMIFS(Bogføring!I:I,Bogføring!F:F,"="&$L$5,Bogføring!E:E,"="&A62) -> 0 | M62: =IF(N62=0,"",SUMIFS(Bogføring!B:B,Bogføring!F:F,"="&$N$5,Bogføring!E:E,"="&A62)) ->  | N62: =SUMIFS(Bogføring!I:I,Bogføring!F:F,"="&$N$5,Bogføring!E:E,"="&A62) -> 0 | O62: =IF(N62=0,"",SUMIFS(Bogføring!$B:$B,Bogføring!$F:$F,"="&$P$5,Bogføring!$E:$E,"="&A62)) ->  | P62: =SUMIFS(Bogføring!$I:$I,Bogføring!$F:$F,"="&$P$5,Bogføring!$E:$E,"="&A62) -> 0
A63: 59 | B63: Flemming Hansen | C63: Bøllingsvej 15 D, st. th., | D63: 4100 | E63: Ringsted | F63: 22369745 | G63: lifl@live.dk | J63: 59 | K63: =IF(L63=0,"",INDEX(Bogføring!$B:$B,MATCH(Tabel2[[#This Row],[Medl.nr. :]],Bogføring!$E:$E,0),0)) ->  | L63: =SUMIFS(Bogføring!I:I,Bogføring!F:F,"="&$L$5,Bogføring!E:E,"="&A63) -> 0 | M63: =IF(N63=0,"",SUMIFS(Bogføring!B:B,Bogføring!F:F,"="&$N$5,Bogføring!E:E,"="&A63)) ->  | N63: =SUMIFS(Bogføring!I:I,Bogføring!F:F,"="&$N$5,Bogføring!E:E,"="&A63) -> 0 | O63: =IF(N63=0,"",SUMIFS(Bogføring!$B:$B,Bogføring!$F:$F,"="&$P$5,Bogføring!$E:$E,"="&A63)) ->  | P63: =SUMIFS(Bogføring!$I:$I,Bogføring!$F:$F,"="&$P$5,Bogføring!$E:$E,"="&A63) -> 0
A64: 60 | B64: Jørgen Ulrik Selmer | C64: Østergade 2 | D64: 3700 | E64: Rønne | F64: 53656166 | G64: joergenselmer@gmail.com | H64: 2018 | J64: 60 | K64: =IF(L64=0,"",INDEX(Bogføring!$B:$B,MATCH(Tabel2[[#This Row],[Medl.nr. :]],Bogføring!$E:$E,0),0)) ->  | L64: =SUMIFS(Bogføring!I:I,Bogføring!F:F,"="&$L$5,Bogføring!E:E,"="&A64) -> 0 | M64: =IF(N64=0,"",SUMIFS(Bogføring!B:B,Bogføring!F:F,"="&$N$5,Bogføring!E:E,"="&A64)) ->  | N64: =SUMIFS(Bogføring!I:I,Bogføring!F:F,"="&$N$5,Bogføring!E:E,"="&A64) -> 0 | O64: =IF(N64=0,"",SUMIFS(Bogføring!$B:$B,Bogføring!$F:$F,"="&$P$5,Bogføring!$E:$E,"="&A64)) ->  | P64: =SUMIFS(Bogføring!$I:$I,Bogføring!$F:$F,"="&$P$5,Bogføring!$E:$E,"="&A64) -> 0
A65: 61 | B65: Hans Hellisen | C65: Slamrebjergvej 4, Bodilsker | D65: 3730 | E65: Nexø | G65: hans.hellisen@get2net.dk | J65: 61 | K65: =IF(L65=0,"",INDEX(Bogføring!$B:$B,MATCH(Tabel2[[#This Row],[Medl.nr. :]],Bogføring!$E:$E,0),0)) ->  | L65: =SUMIFS(Bogføring!I:I,Bogføring!F:F,"="&$L$5,Bogføring!E:E,"="&A65) -> 0 | M65: =IF(N65=0,"",SUMIFS(Bogføring!B:B,Bogføring!F:F,"="&$N$5,Bogføring!E:E,"="&A65)) ->  | N65: =SUMIFS(Bogføring!I:I,Bogføring!F:F,"="&$N$5,Bogføring!E:E,"="&A65) -> 0 | O65: =IF(N65=0,"",SUMIFS(Bogføring!$B:$B,Bogføring!$F:$F,"="&$P$5,Bogføring!$E:$E,"="&A65)) ->  | P65: =SUMIFS(Bogføring!$I:$I,Bogføring!$F:$F,"="&$P$5,Bogføring!$E:$E,"="&A65) -> 0
A66: 62 | B66: Tommy Niels Bendtsen | C66: Bodernevej 6 | D66: 3720 | E66: Åkirkeby | F66: 23274895 | G66: Tommy25dk@gmail.com | H66: 2018 | J66: 62 | K66: =IF(L66=0,"",INDEX(Bogføring!$B:$B,MATCH(Tabel2[[#This Row],[Medl.nr. :]],Bogføring!$E:$E,0),0)) ->  | L66: =SUMIFS(Bogføring!I:I,Bogføring!F:F,"="&$L$5,Bogføring!E:E,"="&A66) -> 0 | M66: =IF(N66=0,"",SUMIFS(Bogføring!B:B,Bogføring!F:F,"="&$N$5,Bogføring!E:E,"="&A66)) ->  | N66: =SUMIFS(Bogføring!I:I,Bogføring!F:F,"="&$N$5,Bogføring!E:E,"="&A66) -> 0 | O66: =IF(N66=0,"",SUMIFS(Bogføring!$B:$B,Bogføring!$F:$F,"="&$P$5,Bogføring!$E:$E,"="&A66)) ->  | P66: =SUMIFS(Bogføring!$I:$I,Bogføring!$F:$F,"="&$P$5,Bogføring!$E:$E,"="&A66) -> 0
A67: 63 | B67: Jens Christian Hansen | C67: Snorrebakken 50 | D67: 3700 | E67: Rønne | G67: jchansen@nypost.dk | J67: 63 | K67: =IF(L67=0,"",INDEX(Bogføring!$B:$B,MATCH(Tabel2[[#This Row],[Medl.nr. :]],Bogføring!$E:$E,0),0)) ->  | L67: =SUMIFS(Bogføring!I:I,Bogføring!F:F,"="&$L$5,Bogføring!E:E,"="&A67) -> 0 | M67: =IF(N67=0,"",SUMIFS(Bogføring!B:B,Bogføring!F:F,"="&$N$5,Bogføring!E:E,"="&A67)) ->  | N67: =SUMIFS(Bogføring!I:I,Bogføring!F:F,"="&$N$5,Bogføring!E:E,"="&A67) -> 0 | O67: =IF(N67=0,"",SUMIFS(Bogføring!$B:$B,Bogføring!$F:$F,"="&$P$5,Bogføring!$E:$E,"="&A67)) ->  | P67: =SUMIFS(Bogføring!$I:$I,Bogføring!$F:$F,"="&$P$5,Bogføring!$E:$E,"="&A67) -> 0
A68: 64 | B68: Erik Ipsen | C68: Borgmester Nielsensvej 153 | D68: 3700 | E68: Rønne | G68: ipsen@post7.tele.dk | J68: 64 | K68: =IF(L68=0,"",INDEX(Bogføring!$B:$B,MATCH(Tabel2[[#This Row],[Medl.nr. :]],Bogføring!$E:$E,0),0)) ->  | L68: =SUMIFS(Bogføring!I:I,Bogføring!F:F,"="&$L$5,Bogføring!E:E,"="&A68) -> 0 | M68: =IF(N68=0,"",SUMIFS(Bogføring!B:B,Bogføring!F:F,"="&$N$5,Bogføring!E:E,"="&A68)) ->  | N68: =SUMIFS(Bogføring!I:I,Bogføring!F:F,"="&$N$5,Bogføring!E:E,"="&A68) -> 0 | O68: =IF(N68=0,"",SUMIFS(Bogføring!$B:$B,Bogføring!$F:$F,"="&$P$5,Bogføring!$E:$E,"="&A68)) ->  | P68: =SUMIFS(Bogføring!$I:$I,Bogføring!$F:$F,"="&$P$5,Bogføring!$E:$E,"="&A68) -> 0
A69: 65 | B69: Jesper Lund Koefoed | C69: Spageregård, Loftsgårdsvej 1 | D69: 3720 | E69: Åkirkeby | G69: spageregaard@get2net.dk | J69: 65 | K69: =IF(L69=0,"",INDEX(Bogføring!$B:$B,MATCH(Tabel2[[#This Row],[Medl.nr. :]],Bogføring!$E:$E,0),0)) ->  | L69: =SUMIFS(Bogføring!I:I,Bogføring!F:F,"="&$L$5,Bogføring!E:E,"="&A69) -> 0 | M69: =IF(N69=0,"",SUMIFS(Bogføring!B:B,Bogføring!F:F,"="&$N$5,Bogføring!E:E,"="&A69)) ->  | N69: =SUMIFS(Bogføring!I:I,Bogføring!F:F,"="&$N$5,Bogføring!E:E,"="&A69) -> 0 | O69: =IF(N69=0,"",SUMIFS(Bogføring!$B:$B,Bogføring!$F:$F,"="&$P$5,Bogføring!$E:$E,"="&A69)) ->  | P69: =SUMIFS(Bogføring!$I:$I,Bogføring!$F:$F,"="&$P$5,Bogføring!$E:$E,"="&A69) -> 0
A70: 66 | B70: Jens & Lene Holm Andersen | C70: Sandmarksvej 6, Sorthat-Muleby | D70: 3700 | E70: Rønne | G70: jensandersen59@gmail.com | J70: =IF(A70="","",A70) -> 66 | K70: =IF(L70=0,"",INDEX(Bogføring!$B:$B,MATCH(Tabel2[[#This Row],[Medl.nr. :]],Bogføring!$E:$E,0),0)) ->  | L70: =SUMIFS(Bogføring!I:I,Bogføring!F:F,"="&$L$5,Bogføring!E:E,"="&A70) -> 0 | M70: =IF(N70=0,"",SUMIFS(Bogføring!B:B,Bogføring!F:F,"="&$N$5,Bogføring!E:E,"="&A70)) ->  | N70: =SUMIFS(Bogføring!I:I,Bogføring!F:F,"="&$N$5,Bogføring!E:E,"="&A70) -> 0 | O70: =IF(N70=0,"",SUMIFS(Bogføring!$B:$B,Bogføring!$F:$F,"="&$P$5,Bogføring!$E:$E,"="&A70)) ->  | P70: =SUMIFS(Bogføring!$I:$I,Bogføring!$F:$F,"="&$P$5,Bogføring!$E:$E,"="&A70) -> 0
A71: 67 | B71: Poul Hviid | C71: Tyttebærløkken 1 | D71: 3700 | E71: Rønne | G71: poul.hviid@gmail.com | J71: 67 | K71: =IF(L71=0,"",INDEX(Bogføring!$B:$B,MATCH(Tabel2[[#This Row],[Medl.nr. :]],Bogføring!$E:$E,0),0)) ->  | L71: =SUMIFS(Bogføring!I:I,Bogføring!F:F,"="&$L$5,Bogføring!E:E,"="&A71) -> 0 | M71: =IF(N71=0,"",SUMIFS(Bogføring!B:B,Bogføring!F:F,"="&$N$5,Bogføring!E:E,"="&A71)) ->  | N71: =SUMIFS(Bogføring!I:I,Bogføring!F:F,"="&$N$5,Bogføring!E:E,"="&A71) -> 0 | O71: =IF(N71=0,"",SUMIFS(Bogføring!$B:$B,Bogføring!$F:$F,"="&$P$5,Bogføring!$E:$E,"="&A71)) ->  | P71: =SUMIFS(Bogføring!$I:$I,Bogføring!$F:$F,"="&$P$5,Bogføring!$E:$E,"="&A71) -> 0
A72: 68 | B72: Ketty Fuglsbjerg Hansen | C72: Ingemannsvej 6, Listed | D72: 3740 | E72: Svaneke | G72: fuglsbjerg@privat.dk | J72: 68 | K72: =IF(L72=0,"",INDEX(Bogføring!$B:$B,MATCH(Tabel2[[#This Row],[Medl.nr. :]],Bogføring!$E:$E,0),0)) ->  | L72: =SUMIFS(Bogføring!I:I,Bogføring!F:F,"="&$L$5,Bogføring!E:E,"="&A72) -> 0 | M72: =IF(N72=0,"",SUMIFS(Bogføring!B:B,Bogføring!F:F,"="&$N$5,Bogføring!E:E,"="&A72)) ->  | N72: =SUMIFS(Bogføring!I:I,Bogføring!F:F,"="&$N$5,Bogføring!E:E,"="&A72) -> 0 | O72: =IF(N72=0,"",SUMIFS(Bogføring!$B:$B,Bogføring!$F:$F,"="&$P$5,Bogføring!$E:$E,"="&A72)) ->  | P72: =SUMIFS(Bogføring!$I:$I,Bogføring!$F:$F,"="&$P$5,Bogføring!$E:$E,"="&A72) -> 0
A73: 69 | B73: Annette S. Dreyer | C73: Højvangsparken 43 st. | D73: 3700 | E73: Rønne | F73: 50994923 | G73: a.solveig.dreyer@gmail.com | H73: 2019 | I73: Frivillig | J73: 69 | K73: =IF(L73=0,"",INDEX(Bogføring!$B:$B,MATCH(Tabel2[[#This Row],[Medl.nr. :]],Bogføring!$E:$E,0),0)) ->  | L73: =SUMIFS(Bogføring!I:I,Bogføring!F:F,"="&$L$5,Bogføring!E:E,"="&A73) -> 0 | M73: =IF(N73=0,"",SUMIFS(Bogføring!B:B,Bogføring!F:F,"="&$N$5,Bogføring!E:E,"="&A73)) ->  | N73: =SUMIFS(Bogføring!I:I,Bogføring!F:F,"="&$N$5,Bogføring!E:E,"="&A73) -> 0 | O73: =IF(N73=0,"",SUMIFS(Bogføring!$B:$B,Bogføring!$F:$F,"="&$P$5,Bogføring!$E:$E,"="&A73)) ->  | P73: =SUMIFS(Bogføring!$I:$I,Bogføring!$F:$F,"="&$P$5,Bogføring!$E:$E,"="&A73) -> 0
A74: 70 | B74: Bjarne Rasmussen | C74: Bygvænget 6, Lendemarke | D74: 4780 | E74: Stege | F74: 28408914 | G74: ulla.bjarne@dlgtele.dk | H74: 2019 | J74: 70 | K74: =IF(L74=0,"",INDEX(Bogføring!$B:$B,MATCH(Tabel2[[#This Row],[Medl.nr. :]],Bogføring!$E:$E,0),0)) ->  | L74: =SUMIFS(Bogføring!I:I,Bogføring!F:F,"="&$L$5,Bogføring!E:E,"="&A74) -> 0 | M74: =IF(N74=0,"",SUMIFS(Bogføring!B:B,Bogføring!F:F,"="&$N$5,Bogføring!E:E,"="&A74)) ->  | N74: =SUMIFS(Bogføring!I:I,Bogføring!F:F,"="&$N$5,Bogføring!E:E,"="&A74) -> 0 | O74: =IF(N74=0,"",SUMIFS(Bogføring!$B:$B,Bogføring!$F:$F,"="&$P$5,Bogføring!$E:$E,"="&A74)) ->  | P74: =SUMIFS(Bogføring!$I:$I,Bogføring!$F:$F,"="&$P$5,Bogføring!$E:$E,"="&A74) -> 0
A75: 71 | B75: Bitten Poss Jørgensen | C75: Studebyvej 10 | D75: 3760 | E75: Gudhjem | F75: 51893547 | G75: maj-ben@privat.dk | H75: 2019 | J75: 71 | K75: =IF(L75=0,"",INDEX(Bogføring!$B:$B,MATCH(Tabel2[[#This Row],[Medl.nr. :]],Bogføring!$E:$E,0),0)) ->  | L75: =SUMIFS(Bogføring!I:I,Bogføring!F:F,"="&$L$5,Bogføring!E:E,"="&A75) -> 0 | M75: =IF(N75=0,"",SUMIFS(Bogføring!B:B,Bogføring!F:F,"="&$N$5,Bogføring!E:E,"="&A75)) ->  | N75: =SUMIFS(Bogføring!I:I,Bogføring!F:F,"="&$N$5,Bogføring!E:E,"="&A75) -> 0 | O75: =IF(N75=0,"",SUMIFS(Bogføring!$B:$B,Bogføring!$F:$F,"="&$P$5,Bogføring!$E:$E,"="&A75)) ->  | P75: =SUMIFS(Bogføring!$I:$I,Bogføring!$F:$F,"="&$P$5,Bogføring!$E:$E,"="&A75) -> 0
A76: 72 | B76: Sven Holm Jensen | C76: Smørengevejen 26, V-Marie | D76: 3720 | E76: Åkirkeby | F76: 61334913 | G76: lykkensproeve@gmail.com | H76: 2019 | J76: 72 | K76: =IF(L76=0,"",INDEX(Bogføring!$B:$B,MATCH(Tabel2[[#This Row],[Medl.nr. :]],Bogføring!$E:$E,0),0)) ->  | L76: =SUMIFS(Bogføring!I:I,Bogføring!F:F,"="&$L$5,Bogføring!E:E,"="&A76) -> 0 | M76: =IF(N76=0,"",SUMIFS(Bogføring!B:B,Bogføring!F:F,"="&$N$5,Bogføring!E:E,"="&A76)) ->  | N76: =SUMIFS(Bogføring!I:I,Bogføring!F:F,"="&$N$5,Bogføring!E:E,"="&A76) -> 0 | O76: =IF(N76=0,"",SUMIFS(Bogføring!$B:$B,Bogføring!$F:$F,"="&$P$5,Bogføring!$E:$E,"="&A76)) ->  | P76: =SUMIFS(Bogføring!$I:$I,Bogføring!$F:$F,"="&$P$5,Bogføring!$E:$E,"="&A76) -> 0
A77: 73 | B77: Kenneth Frithiof Kure | C77: Meulenborg Park 31 | D77: 3070 | E77: Snekkersten | F77: 24630084 | G77: kurs@mail.dk | H77: 2019 | J77: 73 | K77: =IF(L77=0,"",INDEX(Bogføring!$B:$B,MATCH(Tabel2[[#This Row],[Medl.nr. :]],Bogføring!$E:$E,0),0)) ->  | L77: =SUMIFS(Bogføring!I:I,Bogføring!F:F,"="&$L$5,Bogføring!E:E,"="&A77) -> 0 | M77: =IF(N77=0,"",SUMIFS(Bogføring!B:B,Bogføring!F:F,"="&$N$5,Bogføring!E:E,"="&A77)) ->  | N77: =SUMIFS(Bogføring!I:I,Bogføring!F:F,"="&$N$5,Bogføring!E:E,"="&A77) -> 0 | O77: =IF(N77=0,"",SUMIFS(Bogføring!$B:$B,Bogføring!$F:$F,"="&$P$5,Bogføring!$E:$E,"="&A77)) ->  | P77: =SUMIFS(Bogføring!$I:$I,Bogføring!$F:$F,"="&$P$5,Bogføring!$E:$E,"="&A77) -> 0
A78: 74 | B78: Lotte Roch | C78: Strøbyvej 2 | D78: 3720 | E78: Åkirkeby | F78: 21912063 | G78: lotte@roch.dk | J78: 74 | K78: =IF(L78=0,"",INDEX(Bogføring!$B:$B,MATCH(Tabel2[[#This Row],[Medl.nr. :]],Bogføring!$E:$E,0),0)) ->  | L78: =SUMIFS(Bogføring!I:I,Bogføring!F:F,"="&$L$5,Bogføring!E:E,"="&A78) -> 0 | M78: =IF(N78=0,"",SUMIFS(Bogføring!B:B,Bogføring!F:F,"="&$N$5,Bogføring!E:E,"="&A78)) ->  | N78: =SUMIFS(Bogføring!I:I,Bogføring!F:F,"="&$N$5,Bogføring!E:E,"="&A78) -> 0 | O78: =IF(N78=0,"",SUMIFS(Bogføring!$B:$B,Bogføring!$F:$F,"="&$P$5,Bogføring!$E:$E,"="&A78)) ->  | P78: =SUMIFS(Bogføring!$I:$I,Bogføring!$F:$F,"="&$P$5,Bogføring!$E:$E,"="&A78) -> 0
A79: 75 | B79: Niels-Viggo Stage | C79: Kapelvej 53 | D79: 3700 | E79: Rønne | F79: 56914825 | G79: niels-viggostage@mail.dk | J79: 75 | K79: =IF(L79=0,"",INDEX(Bogføring!$B:$B,MATCH(Tabel2[[#This Row],[Medl.nr. :]],Bogføring!$E:$E,0),0)) ->  | L79: =SUMIFS(Bogføring!I:I,Bogføring!F:F,"="&$L$5,Bogføring!E:E,"="&A79) -> 0 | M79: =IF(N79=0,"",SUMIFS(Bogføring!B:B,Bogføring!F:F,"="&$N$5,Bogføring!E:E,"="&A79)) ->  | N79: =SUMIFS(Bogføring!I:I,Bogføring!F:F,"="&$N$5,Bogføring!E:E,"="&A79) -> 0 | O79: =IF(N79=0,"",SUMIFS(Bogføring!$B:$B,Bogføring!$F:$F,"="&$P$5,Bogføring!$E:$E,"="&A79)) ->  | P79: =SUMIFS(Bogføring!$I:$I,Bogføring!$F:$F,"="&$P$5,Bogføring!$E:$E,"="&A79) -> 0
A80: 76 | B80: Søren Peter Elleby | C80: Slappegade 12 | D80: 3700 | E80: Rønne | F80: 56951086 | G80: s.p.elleby@hotmail.com | I80: Bet. af Hanne Merete Elleby, Solnavej 23,St tv,2860 Søborg | J80: 76 | K80: =IF(L80=0,"",INDEX(Bogføring!$B:$B,MATCH(Tabel2[[#This Row],[Medl.nr. :]],Bogføring!$E:$E,0),0)) ->  | L80: =SUMIFS(Bogføring!I:I,Bogføring!F:F,"="&$L$5,Bogføring!E:E,"="&A80) -> 0 | M80: =IF(N80=0,"",SUMIFS(Bogføring!B:B,Bogføring!F:F,"="&$N$5,Bogføring!E:E,"="&A80)) ->  | N80: =SUMIFS(Bogføring!I:I,Bogføring!F:F,"="&$N$5,Bogføring!E:E,"="&A80) -> 0 | O80: =IF(N80=0,"",SUMIFS(Bogføring!$B:$B,Bogføring!$F:$F,"="&$P$5,Bogføring!$E:$E,"="&A80)) ->  | P80: =SUMIFS(Bogføring!$I:$I,Bogføring!$F:$F,"="&$P$5,Bogføring!$E:$E,"="&A80) -> 0
A81: 77 | B81: Jørgen Christian Espersen | C81: Peter Ipsensvej 49 | D81: 3700 | E81: Rønne | F81: 24436630 | G81: espersen@piv49.dk | J81: 77 | K81: =IF(L81=0,"",INDEX(Bogføring!$B:$B,MATCH(Tabel2[[#This Row],[Medl.nr. :]],Bogføring!$E:$E,0),0)) ->  | L81: =SUMIFS(Bogføring!I:I,Bogføring!F:F,"="&$L$5,Bogføring!E:E,"="&A81) -> 0 | M81: =IF(N81=0,"",SUMIFS(Bogføring!B:B,Bogføring!F:F,"="&$N$5,Bogføring!E:E,"="&A81)) ->  | N81: =SUMIFS(Bogføring!I:I,Bogføring!F:F,"="&$N$5,Bogføring!E:E,"="&A81) -> 0 | O81: =IF(N81=0,"",SUMIFS(Bogføring!$B:$B,Bogføring!$F:$F,"="&$P$5,Bogføring!$E:$E,"="&A81)) ->  | P81: =SUMIFS(Bogføring!$I:$I,Bogføring!$F:$F,"="&$P$5,Bogføring!$E:$E,"="&A81) -> 0
A82: 78 | B82: Henning Nielsen | C82: Gammelvældevej 1 A, Østerlars | D82: 3760 | E82: Gudhjem | F82: 23245589 | G82: hnielsen293@gmail.com | J82: 78 | K82: =IF(L82=0,"",INDEX(Bogføring!$B:$B,MATCH(Tabel2[[#This Row],[Medl.nr. :]],Bogføring!$E:$E,0),0)) ->  | L82: =SUMIFS(Bogføring!I:I,Bogføring!F:F,"="&$L$5,Bogføring!E:E,"="&A82) -> 0 | M82: =IF(N82=0,"",SUMIFS(Bogføring!B:B,Bogføring!F:F,"="&$N$5,Bogføring!E:E,"="&A82)) ->  | N82: =SUMIFS(Bogføring!I:I,Bogføring!F:F,"="&$N$5,Bogføring!E:E,"="&A82) -> 0 | O82: =IF(N82=0,"",SUMIFS(Bogføring!$B:$B,Bogføring!$F:$F,"="&$P$5,Bogføring!$E:$E,"="&A82)) ->  | P82: =SUMIFS(Bogføring!$I:$I,Bogføring!$F:$F,"="&$P$5,Bogføring!$E:$E,"="&A82) -> 0
A83: 79 | B83: Jørn Uffe Hansen | C83: Krakvej 7, Rutsker | D83: 3790 | E83: Hasle | F83: 30119065 | G83: j.u.hansen@mail.dk | J83: 79 | K83: =IF(L83=0,"",INDEX(Bogføring!$B:$B,MATCH(Tabel2[[#This Row],[Medl.nr. :]],Bogføring!$E:$E,0),0)) ->  | L83: =SUMIFS(Bogføring!I:I,Bogføring!F:F,"="&$L$5,Bogføring!E:E,"="&A83) -> 0 | M83: =IF(N83=0,"",SUMIFS(Bogføring!B:B,Bogføring!F:F,"="&$N$5,Bogføring!E:E,"="&A83)) ->  | N83: =SUMIFS(Bogføring!I:I,Bogføring!F:F,"="&$N$5,Bogføring!E:E,"="&A83) -> 0 | O83: =IF(N83=0,"",SUMIFS(Bogføring!$B:$B,Bogføring!$F:$F,"="&$P$5,Bogføring!$E:$E,"="&A83)) ->  | P83: =SUMIFS(Bogføring!$I:$I,Bogføring!$F:$F,"="&$P$5,Bogføring!$E:$E,"="&A83) -> 0
A84: 80 | B84: Georg Wibe Nielsen | C84: Rønnevej 109 | D84: 3700 | E84: Rønne | F84: 56972146 | G84: geni2@outlook.dk | J84: 80 | K84: =IF(L84=0,"",INDEX(Bogføring!$B:$B,MATCH(Tabel2[[#This Row],[Medl.nr. :]],Bogføring!$E:$E,0),0)) ->  | L84: =SUMIFS(Bogføring!I:I,Bogføring!F:F,"="&$L$5,Bogføring!E:E,"="&A84) -> 0 | M84: =IF(N84=0,"",SUMIFS(Bogføring!B:B,Bogføring!F:F,"="&$N$5,Bogføring!E:E,"="&A84)) ->  | N84: =SUMIFS(Bogføring!I:I,Bogføring!F:F,"="&$N$5,Bogføring!E:E,"="&A84) -> 0 | O84: =IF(N84=0,"",SUMIFS(Bogføring!$B:$B,Bogføring!$F:$F,"="&$P$5,Bogføring!$E:$E,"="&A84)) ->  | P84: =SUMIFS(Bogføring!$I:$I,Bogføring!$F:$F,"="&$P$5,Bogføring!$E:$E,"="&A84) -> 0
A85: 81 | B85: Jørn Lund | C85: St. Torvegade 62 | D85: 3700 | E85: Rønne | F85: 40282002 | G85: jorn.lund.ronne@gmail.com | J85: 81 | K85: =IF(L85=0,"",INDEX(Bogføring!$B:$B,MATCH(Tabel2[[#This Row],[Medl.nr. :]],Bogføring!$E:$E,0),0)) ->  | L85: =SUMIFS(Bogføring!I:I,Bogføring!F:F,"="&$L$5,Bogføring!E:E,"="&A85) -> 0 | M85: =IF(N85=0,"",SUMIFS(Bogføring!B:B,Bogføring!F:F,"="&$N$5,Bogføring!E:E,"="&A85)) ->  | N85: =SUMIFS(Bogføring!I:I,Bogføring!F:F,"="&$N$5,Bogføring!E:E,"="&A85) -> 0 | O85: =IF(N85=0,"",SUMIFS(Bogføring!$B:$B,Bogføring!$F:$F,"="&$P$5,Bogføring!$E:$E,"="&A85)) ->  | P85: =SUMIFS(Bogføring!$I:$I,Bogføring!$F:$F,"="&$P$5,Bogføring!$E:$E,"="&A85) -> 0
A86: 82 | B86: Jan og Inge Grete Gulstad | C86: Sveasvej 28 | D86: 3700 | E86: Rønne | F86: 29435783 | G86: janinge@youmail.dk | J86: 82 | K86: =IF(L86=0,"",INDEX(Bogføring!$B:$B,MATCH(Tabel2[[#This Row],[Medl.nr. :]],Bogføring!$E:$E,0),0)) ->  | L86: =SUMIFS(Bogføring!I:I,Bogføring!F:F,"="&$L$5,Bogføring!E:E,"="&A86) -> 0 | M86: =IF(N86=0,"",SUMIFS(Bogføring!B:B,Bogføring!F:F,"="&$N$5,Bogføring!E:E,"="&A86)) ->  | N86: =SUMIFS(Bogføring!I:I,Bogføring!F:F,"="&$N$5,Bogføring!E:E,"="&A86) -> 0 | O86: =IF(N86=0,"",SUMIFS(Bogføring!$B:$B,Bogføring!$F:$F,"="&$P$5,Bogføring!$E:$E,"="&A86)) ->  | P86: =SUMIFS(Bogføring!$I:$I,Bogføring!$F:$F,"="&$P$5,Bogføring!$E:$E,"="&A86) -> 0
A87: 83 | B87: Pia Thykjær & Ole Gerhard Jørgensen | C87: Blemmelyngvejen 12, Nylars | D87: 3700 | E87: Rønne | F87: 24455947 | G87: pjot@mail.dk | J87: 83 | K87: =IF(L87=0,"",INDEX(Bogføring!$B:$B,MATCH(Tabel2[[#This Row],[Medl.nr. :]],Bogføring!$E:$E,0),0)) ->  | L87: =SUMIFS(Bogføring!I:I,Bogføring!F:F,"="&$L$5,Bogføring!E:E,"="&A87) -> 0 | M87: =IF(N87=0,"",SUMIFS(Bogføring!B:B,Bogføring!F:F,"="&$N$5,Bogføring!E:E,"="&A87)) ->  | N87: =SUMIFS(Bogføring!I:I,Bogføring!F:F,"="&$N$5,Bogføring!E:E,"="&A87) -> 0 | O87: =IF(N87=0,"",SUMIFS(Bogføring!$B:$B,Bogføring!$F:$F,"="&$P$5,Bogføring!$E:$E,"="&A87)) ->  | P87: =SUMIFS(Bogføring!$I:$I,Bogføring!$F:$F,"="&$P$5,Bogføring!$E:$E,"="&A87) -> 0
A88: 84 | B88: Per Loumand | C88: Stationsvej 72, Pjedsted | D88: 7000 | E88: Frederecia | F88: 27777890 | G88: Per@spanensbjerg-loumand.dk | H88: 2019 | J88: 84 | K88: =IF(L88=0,"",INDEX(Bogføring!$B:$B,MATCH(Tabel2[[#This Row],[Medl.nr. :]],Bogføring!$E:$E,0),0)) ->  | L88: =SUMIFS(Bogføring!I:I,Bogføring!F:F,"="&$L$5,Bogføring!E:E,"="&A88) -> 0 | M88: =IF(N88=0,"",SUMIFS(Bogføring!B:B,Bogføring!F:F,"="&$N$5,Bogføring!E:E,"="&A88)) ->  | N88: =SUMIFS(Bogføring!I:I,Bogføring!F:F,"="&$N$5,Bogføring!E:E,"="&A88) -> 0 | O88: =IF(N88=0,"",SUMIFS(Bogføring!$B:$B,Bogføring!$F:$F,"="&$P$5,Bogføring!$E:$E,"="&A88)) ->  | P88: =SUMIFS(Bogføring!$I:$I,Bogføring!$F:$F,"="&$P$5,Bogføring!$E:$E,"="&A88) -> 0
A89: 85 | B89: Bente Hansen | C89: Morrevej 14 | D89: 7500 | E89: Holstebro | F89: 30428102 | G89: bh.fjt@fibermail.dk | H89: 2019 | J89: 85 | K89: =IF(L89=0,"",INDEX(Bogføring!$B:$B,MATCH(Tabel2[[#This Row],[Medl.nr. :]],Bogføring!$E:$E,0),0)) ->  | L89: =SUMIFS(Bogføring!I:I,Bogføring!F:F,"="&$L$5,Bogføring!E:E,"="&A89) -> 0 | M89: =IF(N89=0,"",SUMIFS(Bogføring!B:B,Bogføring!F:F,"="&$N$5,Bogføring!E:E,"="&A89)) ->  | N89: =SUMIFS(Bogføring!I:I,Bogføring!F:F,"="&$N$5,Bogføring!E:E,"="&A89) -> 0 | O89: =IF(N89=0,"",SUMIFS(Bogføring!$B:$B,Bogføring!$F:$F,"="&$P$5,Bogføring!$E:$E,"="&A89)) ->  | P89: =SUMIFS(Bogføring!$I:$I,Bogføring!$F:$F,"="&$P$5,Bogføring!$E:$E,"="&A89) -> 0
A90: 86 | B90: Hans Jacob Rømer | C90: Fabriksvej 30 | D90: 3782 | E90: Klemensker | F90: 56966024 | G90: hansjacobroemer@gmail.com | J90: 86 | K90: =IF(L90=0,"",INDEX(Bogføring!$B:$B,MATCH(Tabel2[[#This Row],[Medl.nr. :]],Bogføring!$E:$E,0),0)) ->  | L90: =SUMIFS(Bogføring!I:I,Bogføring!F:F,"="&$L$5,Bogføring!E:E,"="&A90) -> 0 | M90: =IF(N90=0,"",SUMIFS(Bogføring!B:B,Bogføring!F:F,"="&$N$5,Bogføring!E:E,"="&A90)) ->  | N90: =SUMIFS(Bogføring!I:I,Bogføring!F:F,"="&$N$5,Bogføring!E:E,"="&A90) -> 0 | O90: =IF(N90=0,"",SUMIFS(Bogføring!$B:$B,Bogføring!$F:$F,"="&$P$5,Bogføring!$E:$E,"="&A90)) ->  | P90: =SUMIFS(Bogføring!$I:$I,Bogføring!$F:$F,"="&$P$5,Bogføring!$E:$E,"="&A90) -> 0
A91: 87 | B91: Jens og Anne-Lise Aagesen | C91: Egeløkken 11 | D91: 3700 | E91: Rønne | F91: 51895289 | G91: jens.aagesen@gmail.com | J91: 87 | K91: =IF(L91=0,"",INDEX(Bogføring!$B:$B,MATCH(Tabel2[[#This Row],[Medl.nr. :]],Bogføring!$E:$E,0),0)) ->  | L91: =SUMIFS(Bogføring!I:I,Bogføring!F:F,"="&$L$5,Bogføring!E:E,"="&A91) -> 0 | M91: =IF(N91=0,"",SUMIFS(Bogføring!B:B,Bogføring!F:F,"="&$N$5,Bogføring!E:E,"="&A91)) ->  | N91: =SUMIFS(Bogføring!I:I,Bogføring!F:F,"="&$N$5,Bogføring!E:E,"="&A91) -> 0 | O91: =IF(N91=0,"",SUMIFS(Bogføring!$B:$B,Bogføring!$F:$F,"="&$P$5,Bogføring!$E:$E,"="&A91)) ->  | P91: =SUMIFS(Bogføring!$I:$I,Bogføring!$F:$F,"="&$P$5,Bogføring!$E:$E,"="&A91) -> 0
A92: 88 | B92: S. Aa. Olsen | C92: Dampmøllegade 5B | D92: 3700 | E92: Rønne | F92: 30265597 | G92: svaaolsen@godmail.dk | J92: 88 | K92: =IF(L92=0,"",INDEX(Bogføring!$B:$B,MATCH(Tabel2[[#This Row],[Medl.nr. :]],Bogføring!$E:$E,0),0)) ->  | L92: =SUMIFS(Bogføring!I:I,Bogføring!F:F,"="&$L$5,Bogføring!E:E,"="&A92) -> 0 | M92: =IF(N92=0,"",SUMIFS(Bogføring!B:B,Bogføring!F:F,"="&$N$5,Bogføring!E:E,"="&A92)) ->  | N92: =SUMIFS(Bogføring!I:I,Bogføring!F:F,"="&$N$5,Bogføring!E:E,"="&A92) -> 0 | O92: =IF(N92=0,"",SUMIFS(Bogføring!$B:$B,Bogføring!$F:$F,"="&$P$5,Bogføring!$E:$E,"="&A92)) ->  | P92: =SUMIFS(Bogføring!$I:$I,Bogføring!$F:$F,"="&$P$5,Bogføring!$E:$E,"="&A92) -> 0
A93: 89 | B93: Claus Paulsen | C93: Syrenvej 5 | D93: 3700 | E93: Rønne | F93: 30715477 | G93: birgit_claus@paulsen.mail.dk | J93: 89 | K93: =IF(L93=0,"",INDEX(Bogføring!$B:$B,MATCH(Tabel2[[#This Row],[Medl.nr. :]],Bogføring!$E:$E,0),0)) ->  | L93: =SUMIFS(Bogføring!I:I,Bogføring!F:F,"="&$L$5,Bogføring!E:E,"="&A93) -> 0 | M93: =IF(N93=0,"",SUMIFS(Bogføring!B:B,Bogføring!F:F,"="&$N$5,Bogføring!E:E,"="&A93)) ->  | N93: =SUMIFS(Bogføring!I:I,Bogføring!F:F,"="&$N$5,Bogføring!E:E,"="&A93) -> 0 | O93: =IF(N93=0,"",SUMIFS(Bogføring!$B:$B,Bogføring!$F:$F,"="&$P$5,Bogføring!$E:$E,"="&A93)) ->  | P93: =SUMIFS(Bogføring!$I:$I,Bogføring!$F:$F,"="&$P$5,Bogføring!$E:$E,"="&A93) -> 0
A94: 90 | B94: Dan Olsen | C94: Ølenevejen 58 | D94: 3720 | E94: Åkirkeby | F94: 29421873 | G94: d-olsen8268@gmail.com | J94: 90 | K94: =IF(L94=0,"",INDEX(Bogføring!$B:$B,MATCH(Tabel2[[#This Row],[Medl.nr. :]],Bogføring!$E:$E,0),0)) ->  | L94: =SUMIFS(Bogføring!I:I,Bogføring!F:F,"="&$L$5,Bogføring!E:E,"="&A94) -> 0 | M94: =IF(N94=0,"",SUMIFS(Bogføring!B:B,Bogføring!F:F,"="&$N$5,Bogføring!E:E,"="&A94)) ->  | N94: =SUMIFS(Bogføring!I:I,Bogføring!F:F,"="&$N$5,Bogføring!E:E,"="&A94) -> 0 | O94: =IF(N94=0,"",SUMIFS(Bogføring!$B:$B,Bogføring!$F:$F,"="&$P$5,Bogføring!$E:$E,"="&A94)) ->  | P94: =SUMIFS(Bogføring!$I:$I,Bogføring!$F:$F,"="&$P$5,Bogføring!$E:$E,"="&A94) -> 0
A95: 91 | B95: Sven Haugaard Jørgensen | C95: Timianløkken 10 | D95: 3700 | E95: Rønne | F95: 20185984 | G95: jemsj@youmail.dk | J95: 91 | K95: =IF(L95=0,"",INDEX(Bogføring!$B:$B,MATCH(Tabel2[[#This Row],[Medl.nr. :]],Bogføring!$E:$E,0),0)) ->  | L95: =SUMIFS(Bogføring!I:I,Bogføring!F:F,"="&$L$5,Bogføring!E:E,"="&A95) -> 0 | M95: =IF(N95=0,"",SUMIFS(Bogføring!B:B,Bogføring!F:F,"="&$N$5,Bogføring!E:E,"="&A95)) ->  | N95: =SUMIFS(Bogføring!I:I,Bogføring!F:F,"="&$N$5,Bogføring!E:E,"="&A95) -> 0 | O95: =IF(N95=0,"",SUMIFS(Bogføring!$B:$B,Bogføring!$F:$F,"="&$P$5,Bogføring!$E:$E,"="&A95)) ->  | P95: =SUMIFS(Bogføring!$I:$I,Bogføring!$F:$F,"="&$P$5,Bogføring!$E:$E,"="&A95) -> 0
A96: 92 | B96: Ole Kock-Jensen | C96: Skovløkken 8 | D96: 3720 | E96: Åkirkeby | F96: 21458148 | G96: ole.kock-jensen@mail.dk | J96: 92 | K96: =IF(L96=0,"",INDEX(Bogføring!$B:$B,MATCH(Tabel2[[#This Row],[Medl.nr. :]],Bogføring!$E:$E,0),0)) ->  | L96: =SUMIFS(Bogføring!I:I,Bogføring!F:F,"="&$L$5,Bogføring!E:E,"="&A96) -> 0 | M96: =IF(N96=0,"",SUMIFS(Bogføring!B:B,Bogføring!F:F,"="&$N$5,Bogføring!E:E,"="&A96)) ->  | N96: =SUMIFS(Bogføring!I:I,Bogføring!F:F,"="&$N$5,Bogføring!E:E,"="&A96) -> 0 | O96: =IF(N96=0,"",SUMIFS(Bogføring!$B:$B,Bogføring!$F:$F,"="&$P$5,Bogføring!$E:$E,"="&A96)) ->  | P96: =SUMIFS(Bogføring!$I:$I,Bogføring!$F:$F,"="&$P$5,Bogføring!$E:$E,"="&A96) -> 0
A97: 93 | B97: Thomas Thors | C97: Tyttebærløkken 4 | D97: 3700 | E97: Rønne | F97: 56951349 | G97: thomas.thors@live.dk | J97: 93 | K97: =IF(L97=0,"",INDEX(Bogføring!$B:$B,MATCH(Tabel2[[#This Row],[Medl.nr. :]],Bogføring!$E:$E,0),0)) ->  | L97: =SUMIFS(Bogføring!I:I,Bogføring!F:F,"="&$L$5,Bogføring!E:E,"="&A97) -> 0 | M97: =IF(N97=0,"",SUMIFS(Bogføring!B:B,Bogføring!F:F,"="&$N$5,Bogføring!E:E,"="&A97)) ->  | N97: =SUMIFS(Bogføring!I:I,Bogføring!F:F,"="&$N$5,Bogføring!E:E,"="&A97) -> 0 | O97: =IF(N97=0,"",SUMIFS(Bogføring!$B:$B,Bogføring!$F:$F,"="&$P$5,Bogføring!$E:$E,"="&A97)) ->  | P97: =SUMIFS(Bogføring!$I:$I,Bogføring!$F:$F,"="&$P$5,Bogføring!$E:$E,"="&A97) -> 0
A98: 94 | B98: Frank Kofoed | C98: Engvej 1 | D98: 3700 | E98: Rønne | F98: 61339036 | G98: engvej1@live.dk | J98: 94 | K98: =IF(L98=0,"",INDEX(Bogføring!$B:$B,MATCH(Tabel2[[#This Row],[Medl.nr. :]],Bogføring!$E:$E,0),0)) ->  | L98: =SUMIFS(Bogføring!I:I,Bogføring!F:F,"="&$L$5,Bogføring!E:E,"="&A98) -> 0 | M98: =IF(N98=0,"",SUMIFS(Bogføring!B:B,Bogføring!F:F,"="&$N$5,Bogføring!E:E,"="&A98)) ->  | N98: =SUMIFS(Bogføring!I:I,Bogføring!F:F,"="&$N$5,Bogføring!E:E,"="&A98) -> 0 | O98: =IF(N98=0,"",SUMIFS(Bogføring!$B:$B,Bogføring!$F:$F,"="&$P$5,Bogføring!$E:$E,"="&A98)) ->  | P98: =SUMIFS(Bogføring!$I:$I,Bogføring!$F:$F,"="&$P$5,Bogføring!$E:$E,"="&A98) -> 0
A99: 95 | B99: Per Ole Westall | C99: Rønnebær Allé 32 | D99: 3000 | E99: Helsingør | F99: 25411343 | G99: westall@it.dk | J99: 95 | K99: =IF(L99=0,"",INDEX(Bogføring!$B:$B,MATCH(Tabel2[[#This Row],[Medl.nr. :]],Bogføring!$E:$E,0),0)) ->  | L99: =SUMIFS(Bogføring!I:I,Bogføring!F:F,"="&$L$5,Bogføring!E:E,"="&A99) -> 0 | M99: =IF(N99=0,"",SUMIFS(Bogføring!B:B,Bogføring!F:F,"="&$N$5,Bogføring!E:E,"="&A99)) ->  | N99: =SUMIFS(Bogføring!I:I,Bogføring!F:F,"="&$N$5,Bogføring!E:E,"="&A99) -> 0 | O99: =IF(N99=0,"",SUMIFS(Bogføring!$B:$B,Bogføring!$F:$F,"="&$P$5,Bogføring!$E:$E,"="&A99)) ->  | P99: =SUMIFS(Bogføring!$I:$I,Bogføring!$F:$F,"="&$P$5,Bogføring!$E:$E,"="&A99) -> 0
A100: 96 | B100: Flemming Thorsen | C100: Præstevej 65 c | D100: 4700 | E100: Næstved | F100: 26821044 | G100: thormark27@gmail.com | J100: 96 | K100: =IF(L100=0,"",INDEX(Bogføring!$B:$B,MATCH(Tabel2[[#This Row],[Medl.nr. :]],Bogføring!$E:$E,0),0)) ->  | L100: =SUMIFS(Bogføring!I:I,Bogføring!F:F,"="&$L$5,Bogføring!E:E,"="&A100) -> 0 | M100: =IF(N100=0,"",SUMIFS(Bogføring!B:B,Bogføring!F:F,"="&$N$5,Bogføring!E:E,"="&A100)) ->  | N100: =SUMIFS(Bogføring!I:I,Bogføring!F:F,"="&$N$5,Bogføring!E:E,"="&A100) -> 0 | O100: =IF(N100=0,"",SUMIFS(Bogføring!$B:$B,Bogføring!$F:$F,"="&$P$5,Bogføring!$E:$E,"="&A100)) ->  | P100: =SUMIFS(Bogføring!$I:$I,Bogføring!$F:$F,"="&$P$5,Bogføring!$E:$E,"="&A100) -> 0
A101: 97 | B101: Bettina Pedersen | C101: Sursænkevej 1 | D101: 3700 | E101: Rønne | F101: 23477109 | G101: pedersen@outlook.dk | H101: 2019 | J101: 97 | K101: =IF(L101=0,"",INDEX(Bogføring!$B:$B,MATCH(Tabel2[[#This Row],[Medl.nr. :]],Bogføring!$E:$E,0),0)) ->  | L101: =SUMIFS(Bogføring!I:I,Bogføring!F:F,"="&$L$5,Bogføring!E:E,"="&A101) -> 0 | M101: =IF(N101=0,"",SUMIFS(Bogføring!B:B,Bogføring!F:F,"="&$N$5,Bogføring!E:E,"="&A101)) ->  | N101: =SUMIFS(Bogføring!I:I,Bogføring!F:F,"="&$N$5,Bogføring!E:E,"="&A101) -> 0 | O101: =IF(N101=0,"",SUMIFS(Bogføring!$B:$B,Bogføring!$F:$F,"="&$P$5,Bogføring!$E:$E,"="&A101)) ->  | P101: =SUMIFS(Bogføring!$I:$I,Bogføring!$F:$F,"="&$P$5,Bogføring!$E:$E,"="&A101) -> 0
A102: 98 | B102: Gitte Haahr | C102: Jerndorffsvænget | D102: 7000 | E102: Frederecia | F102: 30115670 | G102: haahr.gitte@gmail.com | H102: 2019 | J102: =IF(A102="","",A102) -> 98 | K102: =IF(L102=0,"",INDEX(Bogføring!$B:$B,MATCH(Tabel2[[#This Row],[Medl.nr. :]],Bogføring!$E:$E,0),0)) ->  | L102: =SUMIFS(Bogføring!I:I,Bogføring!F:F,"="&$L$5,Bogføring!E:E,"="&A102) -> 0 | M102: =IF(N102=0,"",SUMIFS(Bogføring!B:B,Bogføring!F:F,"="&$N$5,Bogføring!E:E,"="&A102)) ->  | N102: =SUMIFS(Bogføring!I:I,Bogføring!F:F,"="&$N$5,Bogføring!E:E,"="&A102) -> 0 | O102: =IF(N102=0,"",SUMIFS(Bogføring!$B:$B,Bogføring!$F:$F,"="&$P$5,Bogføring!$E:$E,"="&A102)) ->  | P102: =SUMIFS(Bogføring!$I:$I,Bogføring!$F:$F,"="&$P$5,Bogføring!$E:$E,"="&A102) -> 0
A103: 99 | B103: Jørn Kofod | C103: Gadekæret 9 | D103: 3720 | E103: Åkirkeby | F103: 21391507 | G103: jekofod4501@gmail.com | J103: 99 | K103: =IF(L103=0,"",INDEX(Bogføring!$B:$B,MATCH(Tabel2[[#This Row],[Medl.nr. :]],Bogføring!$E:$E,0),0)) ->  | L103: =SUMIFS(Bogføring!I:I,Bogføring!F:F,"="&$L$5,Bogføring!E:E,"="&A103) -> 0 | M103: =IF(N103=0,"",SUMIFS(Bogføring!B:B,Bogføring!F:F,"="&$N$5,Bogføring!E:E,"="&A103)) ->  | N103: =SUMIFS(Bogføring!I:I,Bogføring!F:F,"="&$N$5,Bogføring!E:E,"="&A103) -> 0 | O103: =IF(N103=0,"",SUMIFS(Bogføring!$B:$B,Bogføring!$F:$F,"="&$P$5,Bogføring!$E:$E,"="&A103)) ->  | P103: =SUMIFS(Bogføring!$I:$I,Bogføring!$F:$F,"="&$P$5,Bogføring!$E:$E,"="&A103) -> 0
A104: 100 | B104: Kurt Friedrich Peters | C104: Søndre Allé 30 | D104: 3700 | E104: Rønne | F104: 56958686 | G104: kurt.peters@dadelnet.dk | J104: 100 | K104: =IF(L104=0,"",INDEX(Bogføring!$B:$B,MATCH(Tabel2[[#This Row],[Medl.nr. :]],Bogføring!$E:$E,0),0)) ->  | L104: =SUMIFS(Bogføring!I:I,Bogføring!F:F,"="&$L$5,Bogføring!E:E,"="&A104) -> 0 | M104: =IF(N104=0,"",SUMIFS(Bogføring!B:B,Bogføring!F:F,"="&$N$5,Bogføring!E:E,"="&A104)) ->  | N104: =SUMIFS(Bogføring!I:I,Bogføring!F:F,"="&$N$5,Bogføring!E:E,"="&A104) -> 0 | O104: =IF(N104=0,"",SUMIFS(Bogføring!$B:$B,Bogføring!$F:$F,"="&$P$5,Bogføring!$E:$E,"="&A104)) ->  | P104: =SUMIFS(Bogføring!$I:$I,Bogføring!$F:$F,"="&$P$5,Bogføring!$E:$E,"="&A104) -> 0
A105: 101 | B105: Gunnar Kofoed | C105: Lillegade 20 | D105: 3700 | E105: Rønne | F105: 51329941 | G105: gunnar-kofoed@gmail.com | J105: 101 | K105: =IF(L105=0,"",INDEX(Bogføring!$B:$B,MATCH(Tabel2[[#This Row],[Medl.nr. :]],Bogføring!$E:$E,0),0)) ->  | L105: =SUMIFS(Bogføring!I:I,Bogføring!F:F,"="&$L$5,Bogføring!E:E,"="&A105) -> 0 | M105: =IF(N105=0,"",SUMIFS(Bogføring!B:B,Bogføring!F:F,"="&$N$5,Bogføring!E:E,"="&A105)) ->  | N105: =SUMIFS(Bogføring!I:I,Bogføring!F:F,"="&$N$5,Bogføring!E:E,"="&A105) -> 0 | O105: =IF(N105=0,"",SUMIFS(Bogføring!$B:$B,Bogføring!$F:$F,"="&$P$5,Bogføring!$E:$E,"="&A105)) ->  | P105: =SUMIFS(Bogføring!$I:$I,Bogføring!$F:$F,"="&$P$5,Bogføring!$E:$E,"="&A105) -> 0
A106: 102 | B106: Mogens Christoffersen | C106: Pingels Allé 70 | D106: 3700 | E106: Rønne | F106: 56951013 | G106: mac@teliamail.dk | J106: 102 | K106: =IF(L106=0,"",INDEX(Bogføring!$B:$B,MATCH(Tabel2[[#This Row],[Medl.nr. :]],Bogføring!$E:$E,0),0)) ->  | L106: =SUMIFS(Bogføring!I:I,Bogføring!F:F,"="&$L$5,Bogføring!E:E,"="&A106) -> 0 | M106: =IF(N106=0,"",SUMIFS(Bogføring!B:B,Bogføring!F:F,"="&$N$5,Bogføring!E:E,"="&A106)) ->  | N106: =SUMIFS(Bogføring!I:I,Bogføring!F:F,"="&$N$5,Bogføring!E:E,"="&A106) -> 0 | O106: =IF(N106=0,"",SUMIFS(Bogføring!$B:$B,Bogføring!$F:$F,"="&$P$5,Bogføring!$E:$E,"="&A106)) ->  | P106: =SUMIFS(Bogføring!$I:$I,Bogføring!$F:$F,"="&$P$5,Bogføring!$E:$E,"="&A106) -> 0
A107: 103 | B107: Kjeld E. Hansen | C107: Torneværksvej 36 | D107: 3700 | E107: Rønne | F107: 56955076 | G107: torn@hansen.mail.dk | J107: 103 | K107: =IF(L107=0,"",INDEX(Bogføring!$B:$B,MATCH(Tabel2[[#This Row],[Medl.nr. :]],Bogføring!$E:$E,0),0)) ->  | L107: =SUMIFS(Bogføring!I:I,Bogføring!F:F,"="&$L$5,Bogføring!E:E,"="&A107) -> 0 | M107: =IF(N107=0,"",SUMIFS(Bogføring!B:B,Bogføring!F:F,"="&$N$5,Bogføring!E:E,"="&A107)) ->  | N107: =SUMIFS(Bogføring!I:I,Bogføring!F:F,"="&$N$5,Bogføring!E:E,"="&A107) -> 0 | O107: =IF(N107=0,"",SUMIFS(Bogføring!$B:$B,Bogføring!$F:$F,"="&$P$5,Bogføring!$E:$E,"="&A107)) ->  | P107: =SUMIFS(Bogføring!$I:$I,Bogføring!$F:$F,"="&$P$5,Bogføring!$E:$E,"="&A107) -> 0
A108: 104 | B108: Christian J. Duch | C108: Borreshovedvej 5 | D108: 4654 | E108: Fakse Ladeplads | F108: 21220340 | G108: christianduch@fakse-ladeplads.dk | J108: 104 | K108: =IF(L108=0,"",INDEX(Bogføring!$B:$B,MATCH(Tabel2[[#This Row],[Medl.nr. :]],Bogføring!$E:$E,0),0)) ->  | L108: =SUMIFS(Bogføring!I:I,Bogføring!F:F,"="&$L$5,Bogføring!E:E,"="&A108) -> 0 | M108: =IF(N108=0,"",SUMIFS(Bogføring!B:B,Bogføring!F:F,"="&$N$5,Bogføring!E:E,"="&A108)) ->  | N108: =SUMIFS(Bogføring!I:I,Bogføring!F:F,"="&$N$5,Bogføring!E:E,"="&A108) -> 0 | O108: =IF(N108=0,"",SUMIFS(Bogføring!$B:$B,Bogføring!$F:$F,"="&$P$5,Bogføring!$E:$E,"="&A108)) ->  | P108: =SUMIFS(Bogføring!$I:$I,Bogføring!$F:$F,"="&$P$5,Bogføring!$E:$E,"="&A108) -> 0
A109: 105 | B109: Lauge Madsen | C109: Østergade 19 | D109: 4171 | E109: Glumsø | F109: 57646877 | G109: inge-lise@madsen.adsl.tdc.dk | J109: 105 | K109: =IF(L109=0,"",INDEX(Bogføring!$B:$B,MATCH(Tabel2[[#This Row],[Medl.nr. :]],Bogføring!$E:$E,0),0)) ->  | L109: =SUMIFS(Bogføring!I:I,Bogføring!F:F,"="&$L$5,Bogføring!E:E,"="&A109) -> 0 | M109: =IF(N109=0,"",SUMIFS(Bogføring!B:B,Bogføring!F:F,"="&$N$5,Bogføring!E:E,"="&A109)) ->  | N109: =SUMIFS(Bogføring!I:I,Bogføring!F:F,"="&$N$5,Bogføring!E:E,"="&A109) -> 0 | O109: =IF(N109=0,"",SUMIFS(Bogføring!$B:$B,Bogføring!$F:$F,"="&$P$5,Bogføring!$E:$E,"="&A109)) ->  | P109: =SUMIFS(Bogføring!$I:$I,Bogføring!$F:$F,"="&$P$5,Bogføring!$E:$E,"="&A109) -> 0
A110: 106 | B110: Bjarne Lind | C110: Strandvejen 140 | D110: 3700 | E110: Rønne | F110: 21750454 | G110: b.lind@privat.dk | I110: Har betalt 2 gange, 31/3/20 - næste år | J110: 106 | K110: =IF(L110=0,"",INDEX(Bogføring!$B:$B,MATCH(Tabel2[[#This Row],[Medl.nr. :]],Bogføring!$E:$E,0),0)) ->  | L110: =SUMIFS(Bogføring!I:I,Bogføring!F:F,"="&$L$5,Bogføring!E:E,"="&A110) -> 0 | M110: =IF(N110=0,"",SUMIFS(Bogføring!B:B,Bogføring!F:F,"="&$N$5,Bogføring!E:E,"="&A110)) ->  | N110: =SUMIFS(Bogføring!I:I,Bogføring!F:F,"="&$N$5,Bogføring!E:E,"="&A110) -> 0 | O110: =IF(N110=0,"",SUMIFS(Bogføring!$B:$B,Bogføring!$F:$F,"="&$P$5,Bogføring!$E:$E,"="&A110)) ->  | P110: =SUMIFS(Bogføring!$I:$I,Bogføring!$F:$F,"="&$P$5,Bogføring!$E:$E,"="&A110) -> 0
A111: 107 | B111: Vagn Risager | C111: Ndr. Strandvej 73, Tejn | D111: 3770 | E111: Allinge | F111: 21275950 | G111: vri@mail.dk | I111: Har betalt 2 gange, 13/3/20 - næste år | J111: 107 | K111: =IF(L111=0,"",INDEX(Bogføring!$B:$B,MATCH(Tabel2[[#This Row],[Medl.nr. :]],Bogføring!$E:$E,0),0)) ->  | L111: =SUMIFS(Bogføring!I:I,Bogføring!F:F,"="&$L$5,Bogføring!E:E,"="&A111) -> 0 | M111: =IF(N111=0,"",SUMIFS(Bogføring!B:B,Bogføring!F:F,"="&$N$5,Bogføring!E:E,"="&A111)) ->  | N111: =SUMIFS(Bogføring!I:I,Bogføring!F:F,"="&$N$5,Bogføring!E:E,"="&A111) -> 0 | O111: =IF(N111=0,"",SUMIFS(Bogføring!$B:$B,Bogføring!$F:$F,"="&$P$5,Bogføring!$E:$E,"="&A111)) ->  | P111: =SUMIFS(Bogføring!$I:$I,Bogføring!$F:$F,"="&$P$5,Bogføring!$E:$E,"="&A111) -> 0
A112: 108 | B112: Kornel L. Christiansen | C112: Blykobbevej 26 | D112: 3700 | E112: Rønne | F112: 56952610 | G112: jytte-kornel@post.tele.dk | J112: 108 | K112: =IF(L112=0,"",INDEX(Bogføring!$B:$B,MATCH(Tabel2[[#This Row],[Medl.nr. :]],Bogføring!$E:$E,0),0)) ->  | L112: =SUMIFS(Bogføring!I:I,Bogføring!F:F,"="&$L$5,Bogføring!E:E,"="&A112) -> 0 | M112: =IF(N112=0,"",SUMIFS(Bogføring!B:B,Bogføring!F:F,"="&$N$5,Bogføring!E:E,"="&A112)) ->  | N112: =SUMIFS(Bogføring!I:I,Bogføring!F:F,"="&$N$5,Bogføring!E:E,"="&A112) -> 0 | O112: =IF(N112=0,"",SUMIFS(Bogføring!$B:$B,Bogføring!$F:$F,"="&$P$5,Bogføring!$E:$E,"="&A112)) ->  | P112: =SUMIFS(Bogføring!$I:$I,Bogføring!$F:$F,"="&$P$5,Bogføring!$E:$E,"="&A112) -> 0
A113: 109 | B113: Svend Rasmussen | C113: Kjeldgårdsvej 8, Gl. Mollerup | D113: 7900 | E113: Nykøbing Mors | F113: 20153735 | G113: svendrasmussen@hotmail.com | H113: 2018 | J113: 109 | K113: =IF(L113=0,"",INDEX(Bogføring!$B:$B,MATCH(Tabel2[[#This Row],[Medl.nr. :]],Bogføring!$E:$E,0),0)) ->  | L113: =SUMIFS(Bogføring!I:I,Bogføring!F:F,"="&$L$5,Bogføring!E:E,"="&A113) -> 0 | M113: =IF(N113=0,"",SUMIFS(Bogføring!B:B,Bogføring!F:F,"="&$N$5,Bogføring!E:E,"="&A113)) ->  | N113: =SUMIFS(Bogføring!I:I,Bogføring!F:F,"="&$N$5,Bogføring!E:E,"="&A113) -> 0 | O113: =IF(N113=0,"",SUMIFS(Bogføring!$B:$B,Bogføring!$F:$F,"="&$P$5,Bogføring!$E:$E,"="&A113)) ->  | P113: =SUMIFS(Bogføring!$I:$I,Bogføring!$F:$F,"="&$P$5,Bogføring!$E:$E,"="&A113) -> 0
A114: 110 | B114: Kaj Grøn | C114: Egeløkken 14 | D114: 3700 | E114: Rønne | F114: 56952592 | G114: kgron@mail.dk | J114: 110 | K114: =IF(L114=0,"",INDEX(Bogføring!$B:$B,MATCH(Tabel2[[#This Row],[Medl.nr. :]],Bogføring!$E:$E,0),0)) ->  | L114: =SUMIFS(Bogføring!I:I,Bogføring!F:F,"="&$L$5,Bogføring!E:E,"="&A114) -> 0 | M114: =IF(N114=0,"",SUMIFS(Bogføring!B:B,Bogføring!F:F,"="&$N$5,Bogføring!E:E,"="&A114)) ->  | N114: =SUMIFS(Bogføring!I:I,Bogføring!F:F,"="&$N$5,Bogføring!E:E,"="&A114) -> 0 | O114: =IF(N114=0,"",SUMIFS(Bogføring!$B:$B,Bogføring!$F:$F,"="&$P$5,Bogføring!$E:$E,"="&A114)) ->  | P114: =SUMIFS(Bogføring!$I:$I,Bogføring!$F:$F,"="&$P$5,Bogføring!$E:$E,"="&A114) -> 0
A115: 111 | B115: Carl Ilsøe | C115: Kapelvej 15 | D115: 3700 | E115: Rønne | F115: 30181939 | G115: carlilsoe@gmail.com | J115: 111 | K115: =IF(L115=0,"",INDEX(Bogføring!$B:$B,MATCH(Tabel2[[#This Row],[Medl.nr. :]],Bogføring!$E:$E,0),0)) ->  | L115: =SUMIFS(Bogføring!I:I,Bogføring!F:F,"="&$L$5,Bogføring!E:E,"="&A115) -> 0 | M115: =IF(N115=0,"",SUMIFS(Bogføring!B:B,Bogføring!F:F,"="&$N$5,Bogføring!E:E,"="&A115)) ->  | N115: =SUMIFS(Bogføring!I:I,Bogføring!F:F,"="&$N$5,Bogføring!E:E,"="&A115) -> 0 | O115: =IF(N115=0,"",SUMIFS(Bogføring!$B:$B,Bogføring!$F:$F,"="&$P$5,Bogføring!$E:$E,"="&A115)) ->  | P115: =SUMIFS(Bogføring!$I:$I,Bogføring!$F:$F,"="&$P$5,Bogføring!$E:$E,"="&A115) -> 0
A116: 112 | B116: Nicolai Ilsted Bech | C116: Teglporten 16 | D116: 3460 | E116: Birkerød | F116: 60777958 | G116: ilsted.nb@gmail.com | H116: 2018 | J116: 112 | K116: =IF(L116=0,"",INDEX(Bogføring!$B:$B,MATCH(Tabel2[[#This Row],[Medl.nr. :]],Bogføring!$E:$E,0),0)) ->  | L116: =SUMIFS(Bogføring!I:I,Bogføring!F:F,"="&$L$5,Bogføring!E:E,"="&A116) -> 0 | M116: =IF(N116=0,"",SUMIFS(Bogføring!B:B,Bogføring!F:F,"="&$N$5,Bogføring!E:E,"="&A116)) ->  | N116: =SUMIFS(Bogføring!I:I,Bogføring!F:F,"="&$N$5,Bogføring!E:E,"="&A116) -> 0 | O116: =IF(N116=0,"",SUMIFS(Bogføring!$B:$B,Bogføring!$F:$F,"="&$P$5,Bogføring!$E:$E,"="&A116)) ->  | P116: =SUMIFS(Bogføring!$I:$I,Bogføring!$F:$F,"="&$P$5,Bogføring!$E:$E,"="&A116) -> 0
A117: 113 | B117: Marianne Thomsen Kjæmpe | C117: Røglevænget 5 | D117: 3450 | E117: Allerød | G117: Marianne@kjoeller.dk | J117: 113 | K117: =IF(L117=0,"",INDEX(Bogføring!$B:$B,MATCH(Tabel2[[#This Row],[Medl.nr. :]],Bogføring!$E:$E,0),0)) ->  | L117: =SUMIFS(Bogføring!I:I,Bogføring!F:F,"="&$L$5,Bogføring!E:E,"="&A117) -> 0 | M117: =IF(N117=0,"",SUMIFS(Bogføring!B:B,Bogføring!F:F,"="&$N$5,Bogføring!E:E,"="&A117)) ->  | N117: =SUMIFS(Bogføring!I:I,Bogføring!F:F,"="&$N$5,Bogføring!E:E,"="&A117) -> 0 | O117: =IF(N117=0,"",SUMIFS(Bogføring!$B:$B,Bogføring!$F:$F,"="&$P$5,Bogføring!$E:$E,"="&A117)) ->  | P117: =SUMIFS(Bogføring!$I:$I,Bogføring!$F:$F,"="&$P$5,Bogføring!$E:$E,"="&A117) -> 0
A118: 114 | B118: Henning Søby Andersen | C118: Hedebovej 31 | D118: 3700 | E118: Rønne | F118: 24851642 | G118: hsoebyandersen1961@gmail.com | J118: 114 | K118: =IF(L118=0,"",INDEX(Bogføring!$B:$B,MATCH(Tabel2[[#This Row],[Medl.nr. :]],Bogføring!$E:$E,0),0)) ->  | L118: =SUMIFS(Bogføring!I:I,Bogføring!F:F,"="&$L$5,Bogføring!E:E,"="&A118) -> 0 | M118: =IF(N118=0,"",SUMIFS(Bogføring!B:B,Bogføring!F:F,"="&$N$5,Bogføring!E:E,"="&A118)) ->  | N118: =SUMIFS(Bogføring!I:I,Bogføring!F:F,"="&$N$5,Bogføring!E:E,"="&A118) -> 0 | O118: =IF(N118=0,"",SUMIFS(Bogføring!$B:$B,Bogføring!$F:$F,"="&$P$5,Bogføring!$E:$E,"="&A118)) ->  | P118: =SUMIFS(Bogføring!$I:$I,Bogføring!$F:$F,"="&$P$5,Bogføring!$E:$E,"="&A118) -> 0
A119: 115 | B119: Anders Koefoed Larsen | C119: Kampeløkken 9 | D119: 3770 | E119: Allinge | F119: 40322002 | G119: akl@sport.dk | J119: 115 | K119: =IF(L119=0,"",INDEX(Bogføring!$B:$B,MATCH(Tabel2[[#This Row],[Medl.nr. :]],Bogføring!$E:$E,0),0)) ->  | L119: =SUMIFS(Bogføring!I:I,Bogføring!F:F,"="&$L$5,Bogføring!E:E,"="&A119) -> 0 | M119: =IF(N119=0,"",SUMIFS(Bogføring!B:B,Bogføring!F:F,"="&$N$5,Bogføring!E:E,"="&A119)) ->  | N119: =SUMIFS(Bogføring!I:I,Bogføring!F:F,"="&$N$5,Bogføring!E:E,"="&A119) -> 0 | O119: =IF(N119=0,"",SUMIFS(Bogføring!$B:$B,Bogføring!$F:$F,"="&$P$5,Bogføring!$E:$E,"="&A119)) ->  | P119: =SUMIFS(Bogføring!$I:$I,Bogføring!$F:$F,"="&$P$5,Bogføring!$E:$E,"="&A119) -> 0
A120: 116 | B120: Holger Fuglsang-Damgård | C120: Pæretræsdalen 12 | D120: 3700 | E120: Rønne | F120: 23305594 | G120: fuglsang@info.dk | J120: 116 | K120: =IF(L120=0,"",INDEX(Bogføring!$B:$B,MATCH(Tabel2[[#This Row],[Medl.nr. :]],Bogføring!$E:$E,0),0)) ->  | L120: =SUMIFS(Bogføring!I:I,Bogføring!F:F,"="&$L$5,Bogføring!E:E,"="&A120) -> 0 | M120: =IF(N120=0,"",SUMIFS(Bogføring!B:B,Bogføring!F:F,"="&$N$5,Bogføring!E:E,"="&A120)) ->  | N120: =SUMIFS(Bogføring!I:I,Bogføring!F:F,"="&$N$5,Bogføring!E:E,"="&A120) -> 0 | O120: =IF(N120=0,"",SUMIFS(Bogføring!$B:$B,Bogføring!$F:$F,"="&$P$5,Bogføring!$E:$E,"="&A120)) ->  | P120: =SUMIFS(Bogføring!$I:$I,Bogføring!$F:$F,"="&$P$5,Bogføring!$E:$E,"="&A120) -> 0
A121: 117 | B121: Martin Kaltoft | C121: Lille Madsegade 19 | D121: 3700 | E121: Rønne | F121: 40412349 | G121: seattle@mail.tele.dk | I121: OBS - 2019 - betalt til og med 2029 | J121: 117 | K121: =IF(L121=0,"",INDEX(Bogføring!$B:$B,MATCH(Tabel2[[#This Row],[Medl.nr. :]],Bogføring!$E:$E,0),0)) ->  | L121: =SUMIFS(Bogføring!I:I,Bogføring!F:F,"="&$L$5,Bogføring!E:E,"="&A121) -> 0 | M121: =IF(N121=0,"",SUMIFS(Bogføring!B:B,Bogføring!F:F,"="&$N$5,Bogføring!E:E,"="&A121)) ->  | N121: =SUMIFS(Bogføring!I:I,Bogføring!F:F,"="&$N$5,Bogføring!E:E,"="&A121) -> 0 | O121: =IF(N121=0,"",SUMIFS(Bogføring!$B:$B,Bogføring!$F:$F,"="&$P$5,Bogføring!$E:$E,"="&A121)) ->  | P121: =SUMIFS(Bogføring!$I:$I,Bogføring!$F:$F,"="&$P$5,Bogføring!$E:$E,"="&A121) -> 0
A122: 118 | B122: Poul Johnny Drachmann | C122: Toftelunden 24 | D122: 3790 | E122: Hasle | F122: 61713848 | G122: johnny.drachmann@gmail.com | H122: 2018 | J122: 118 | K122: =IF(L122=0,"",INDEX(Bogføring!$B:$B,MATCH(Tabel2[[#This Row],[Medl.nr. :]],Bogføring!$E:$E,0),0)) ->  | L122: =SUMIFS(Bogføring!I:I,Bogføring!F:F,"="&$L$5,Bogføring!E:E,"="&A122) -> 0 | M122: =IF(N122=0,"",SUMIFS(Bogføring!B:B,Bogføring!F:F,"="&$N$5,Bogføring!E:E,"="&A122)) ->  | N122: =SUMIFS(Bogføring!I:I,Bogføring!F:F,"="&$N$5,Bogføring!E:E,"="&A122) -> 0 | O122: =IF(N122=0,"",SUMIFS(Bogføring!$B:$B,Bogføring!$F:$F,"="&$P$5,Bogføring!$E:$E,"="&A122)) ->  | P122: =SUMIFS(Bogføring!$I:$I,Bogføring!$H:$H,"="&$P$5,Bogføring!$E:$E,"="&A122) -> 0
A123: 119 | B123: John V. Jakobsen | C123: Kong Georgs Vej 88, 4 th. | D123: 2000 | E123: Frederiksberg | F123: 28608077 | G123: jvarmark@gmail.com | J123: 119 | K123: =IF(L123=0,"",INDEX(Bogføring!$B:$B,MATCH(Tabel2[[#This Row],[Medl.nr. :]],Bogføring!$E:$E,0),0)) ->  | L123: =SUMIFS(Bogføring!I:I,Bogføring!F:F,"="&$L$5,Bogføring!E:E,"="&A123) -> 0 | M123: =IF(N123=0,"",SUMIFS(Bogføring!B:B,Bogføring!F:F,"="&$N$5,Bogføring!E:E,"="&A123)) ->  | N123: =SUMIFS(Bogføring!I:I,Bogføring!F:F,"="&$N$5,Bogføring!E:E,"="&A123) -> 0 | O123: =IF(N123=0,"",SUMIFS(Bogføring!$B:$B,Bogføring!$F:$F,"="&$P$5,Bogføring!$E:$E,"="&A123)) ->  | P123: =SUMIFS(Bogføring!$I:$I,Bogføring!$H:$H,"="&$P$5,Bogføring!$E:$E,"="&A123) -> 0
A124: 120 | B124: Aage Juul | C124: Svanekevej 19 | D124: 3700 | E124: Rønne | F124: 56952410 | G124: aagejuul@mail.dk | J124: 120 | K124: =IF(L124=0,"",INDEX(Bogføring!$B:$B,MATCH(Tabel2[[#This Row],[Medl.nr. :]],Bogføring!$E:$E,0),0)) ->  | L124: =SUMIFS(Bogføring!I:I,Bogføring!F:F,"="&$L$5,Bogføring!E:E,"="&A124) -> 0 | M124: =IF(N124=0,"",SUMIFS(Bogføring!B:B,Bogføring!F:F,"="&$N$5,Bogføring!E:E,"="&A124)) ->  | N124: =SUMIFS(Bogføring!I:I,Bogføring!F:F,"="&$N$5,Bogføring!E:E,"="&A124) -> 0 | O124: =IF(N124=0,"",SUMIFS(Bogføring!$B:$B,Bogføring!$F:$F,"="&$P$5,Bogføring!$E:$E,"="&A124)) ->  | P124: =SUMIFS(Bogføring!$I:$I,Bogføring!$H:$H,"="&$P$5,Bogføring!$E:$E,"="&A124) -> 0
A125: 121 | B125: Ole og Gurli Hansen | C125: Munkegårdsvejen 10, Poulsker | D125: 3730 | E125: Nexø | F125: 42211180 | G125: gurli@mailreal.dk | J125: 121 | K125: =IF(L125=0,"",INDEX(Bogføring!$B:$B,MATCH(Tabel2[[#This Row],[Medl.nr. :]],Bogføring!$E:$E,0),0)) ->  | L125: =SUMIFS(Bogføring!I:I,Bogføring!F:F,"="&$L$5,Bogføring!E:E,"="&A125) -> 0 | M125: =IF(N125=0,"",SUMIFS(Bogføring!B:B,Bogføring!F:F,"="&$N$5,Bogføring!E:E,"="&A125)) ->  | N125: =SUMIFS(Bogføring!I:I,Bogføring!F:F,"="&$N$5,Bogføring!E:E,"="&A125) -> 0 | O125: =IF(N125=0,"",SUMIFS(Bogføring!$B:$B,Bogføring!$F:$F,"="&$P$5,Bogføring!$E:$E,"="&A125)) ->  | P125: =SUMIFS(Bogføring!$I:$I,Bogføring!$H:$H,"="&$P$5,Bogføring!$E:$E,"="&A125) -> 0
A126: 122 | B126: Noomi og Peter Aage Bak | C126: Rønnevej 132, Nylars | D126: 3700 | E126: Rønne | F126: 56972166 | G126: peteraagebak@gmail.com | J126: 122 | K126: =IF(L126=0,"",INDEX(Bogføring!$B:$B,MATCH(Tabel2[[#This Row],[Medl.nr. :]],Bogføring!$E:$E,0),0)) ->  | L126: =SUMIFS(Bogføring!I:I,Bogføring!F:F,"="&$L$5,Bogføring!E:E,"="&A126) -> 0 | M126: =IF(N126=0,"",SUMIFS(Bogføring!B:B,Bogføring!F:F,"="&$N$5,Bogføring!E:E,"="&A126)) ->  | N126: =SUMIFS(Bogføring!I:I,Bogføring!F:F,"="&$N$5,Bogføring!E:E,"="&A126) -> 0 | O126: =IF(N126=0,"",SUMIFS(Bogføring!$B:$B,Bogføring!$F:$F,"="&$P$5,Bogføring!$E:$E,"="&A126)) ->  | P126: =SUMIFS(Bogføring!$I:$I,Bogføring!$H:$H,"="&$P$5,Bogføring!$E:$E,"="&A126) -> 0
A127: 123 | B127: Carl Emil Kragh | C127: Helgenæsvej 175 | D127: 4900 | E127: Nakskov | F127: 51158426 | G127: cekragh@youmail.dk | J127: 123 | K127: =IF(L127=0,"",INDEX(Bogføring!$B:$B,MATCH(Tabel2[[#This Row],[Medl.nr. :]],Bogføring!$E:$E,0),0)) ->  | L127: =SUMIFS(Bogføring!I:I,Bogføring!F:F,"="&$L$5,Bogføring!E:E,"="&A127) -> 0 | M127: =IF(N127=0,"",SUMIFS(Bogføring!B:B,Bogføring!F:F,"="&$N$5,Bogføring!E:E,"="&A127)) ->  | N127: =SUMIFS(Bogføring!I:I,Bogføring!F:F,"="&$N$5,Bogføring!E:E,"="&A127) -> 0 | O127: =IF(N127=0,"",SUMIFS(Bogføring!$B:$B,Bogføring!$F:$F,"="&$P$5,Bogføring!$E:$E,"="&A127)) ->  | P127: =SUMIFS(Bogføring!$I:$I,Bogføring!$H:$H,"="&$P$5,Bogføring!$E:$E,"="&A127) -> 0
A128: 124 | B128: Jørn Koefoed Larsen | C128: Mågevej 34, Madsnedø | D128: 4760 | E128: Vordingborg | F128: 23628188 | G128: masnedbo34@gmail.com | J128: 124 | K128: =IF(L128=0,"",INDEX(Bogføring!$B:$B,MATCH(Tabel2[[#This Row],[Medl.nr. :]],Bogføring!$E:$E,0),0)) ->  | L128: =SUMIFS(Bogføring!I:I,Bogføring!F:F,"="&$L$5,Bogføring!E:E,"="&A128) -> 0 | M128: =IF(N128=0,"",SUMIFS(Bogføring!B:B,Bogføring!F:F,"="&$N$5,Bogføring!E:E,"="&A128)) ->  | N128: =SUMIFS(Bogføring!I:I,Bogføring!F:F,"="&$N$5,Bogføring!E:E,"="&A128) -> 0 | O128: =IF(N128=0,"",SUMIFS(Bogføring!$B:$B,Bogføring!$F:$F,"="&$P$5,Bogføring!$E:$E,"="&A128)) ->  | P128: =SUMIFS(Bogføring!$I:$I,Bogføring!$H:$H,"="&$P$5,Bogføring!$E:$E,"="&A128) -> 0
A129: 125 | B129: Jørgen Jensen | C129: Stenhusvej 2 | D129: 4130 | E129: Viby Sj. | F129: 23414178 | G129: jfmj78@gmail.com | H129: 2020 | J129: 125 | K129: =IF(L129=0,"",INDEX(Bogføring!$B:$B,MATCH(Tabel2[[#This Row],[Medl.nr. :]],Bogføring!$E:$E,0),0)) ->  | L129: =SUMIFS(Bogføring!I:I,Bogføring!F:F,"="&$L$5,Bogføring!E:E,"="&A129) -> 0 | M129: =IF(N129=0,"",SUMIFS(Bogføring!B:B,Bogføring!F:F,"="&$N$5,Bogføring!E:E,"="&A129)) ->  | N129: =SUMIFS(Bogføring!I:I,Bogføring!F:F,"="&$N$5,Bogføring!E:E,"="&A129) -> 0 | O129: =IF(N129=0,"",SUMIFS(Bogføring!$B:$B,Bogføring!$F:$F,"="&$P$5,Bogføring!$E:$E,"="&A129)) ->  | P129: =SUMIFS(Bogføring!$I:$I,Bogføring!$H:$H,"="&$P$5,Bogføring!$E:$E,"="&A129) -> 0
A130: 126 | B130: Ole Hassager | C130: Ved Grænsen 62 | D130: 2000 | E130: Frederiksberg | F130: 23652303 | G130: ole.hassager@gmail.com | H130: 2020 | J130: 126 | K130: =IF(L130=0,"",INDEX(Bogføring!$B:$B,MATCH(Tabel2[[#This Row],[Medl.nr. :]],Bogføring!$E:$E,0),0)) ->  | L130: =SUMIFS(Bogføring!I:I,Bogføring!F:F,"="&$L$5,Bogføring!E:E,"="&A130) -> 0 | M130: =IF(N130=0,"",SUMIFS(Bogføring!B:B,Bogføring!F:F,"="&$N$5,Bogføring!E:E,"="&A130)) ->  | N130: =SUMIFS(Bogføring!I:I,Bogføring!F:F,"="&$N$5,Bogføring!E:E,"="&A130) -> 0 | O130: =IF(N130=0,"",SUMIFS(Bogføring!$B:$B,Bogføring!$F:$F,"="&$P$5,Bogføring!$E:$E,"="&A130)) ->  | P130: =SUMIFS(Bogføring!$I:$I,Bogføring!$H:$H,"="&$P$5,Bogføring!$E:$E,"="&A130) -> 0
A131: 127 | B131: Per K. Funch | C131: Skarpegade 5 | D131: 3700 | E131: Rønne | G131: GIRO | J131: 127 | K131: =IF(L131=0,"",INDEX(Bogføring!$B:$B,MATCH(Tabel2[[#This Row],[Medl.nr. :]],Bogføring!$E:$E,0),0)) ->  | L131: =SUMIFS(Bogføring!I:I,Bogføring!F:F,"="&$L$5,Bogføring!E:E,"="&A131) -> 0 | M131: =IF(N131=0,"",SUMIFS(Bogføring!B:B,Bogføring!F:F,"="&$N$5,Bogføring!E:E,"="&A131)) ->  | N131: =SUMIFS(Bogføring!I:I,Bogføring!F:F,"="&$N$5,Bogføring!E:E,"="&A131) -> 0 | O131: =IF(N131=0,"",SUMIFS(Bogføring!$B:$B,Bogføring!$F:$F,"="&$P$5,Bogføring!$E:$E,"="&A131)) ->  | P131: =SUMIFS(Bogføring!$I:$I,Bogføring!$H:$H,"="&$P$5,Bogføring!$E:$E,"="&A131) -> 0
A132: 128 | B132: Niels Bøje P. Karlsen | C132: Torneværksvej 45,1 lejl. 5 | D132: 3700 | E132: Rønne | F132: 40203559 | G132: GIRO | H132: 2019 | J132: 128 | K132: =IF(L132=0,"",INDEX(Bogføring!$B:$B,MATCH(Tabel2[[#This Row],[Medl.nr. :]],Bogføring!$E:$E,0),0)) ->  | L132: =SUMIFS(Bogføring!I:I,Bogføring!F:F,"="&$L$5,Bogføring!E:E,"="&A132) -> 0 | M132: =IF(N132=0,"",SUMIFS(Bogføring!B:B,Bogføring!F:F,"="&$N$5,Bogføring!E:E,"="&A132)) ->  | N132: =SUMIFS(Bogføring!I:I,Bogføring!F:F,"="&$N$5,Bogføring!E:E,"="&A132) -> 0 | O132: =IF(N132=0,"",SUMIFS(Bogføring!$B:$B,Bogføring!$F:$F,"="&$P$5,Bogføring!$E:$E,"="&A132)) ->  | P132: =SUMIFS(Bogføring!$I:$I,Bogføring!$H:$H,"="&$P$5,Bogføring!$E:$E,"="&A132) -> 0
A133: 129 | B133: Ebba L. Bang | C133: Skarvigen 8, Aarsdale | D133: 3740 | E133: Svaneke | F133: 56496566 | G133: GIRO | J133: 129 | K133: =IF(L133=0,"",INDEX(Bogføring!$B:$B,MATCH(Tabel2[[#This Row],[Medl.nr. :]],Bogføring!$E:$E,0),0)) ->  | L133: =SUMIFS(Bogføring!I:I,Bogføring!F:F,"="&$L$5,Bogføring!E:E,"="&A133) -> 0 | M133: =IF(N133=0,"",SUMIFS(Bogføring!B:B,Bogføring!F:F,"="&$N$5,Bogføring!E:E,"="&A133)) ->  | N133: =SUMIFS(Bogføring!I:I,Bogføring!F:F,"="&$N$5,Bogføring!E:E,"="&A133) -> 0 | O133: =IF(N133=0,"",SUMIFS(Bogføring!$B:$B,Bogføring!$F:$F,"="&$P$5,Bogføring!$E:$E,"="&A133)) ->  | P133: =SUMIFS(Bogføring!$I:$I,Bogføring!$H:$H,"="&$P$5,Bogføring!$E:$E,"="&A133) -> 0
A134: 130 | B134: Jørn Nilsson | C134: Snellemark 4 | D134: 3700 | E134: Rønne | G134: GIRO | H134: 2018 | I134: Bet. af Jesper Nilsson - Stormgade 5 | J134: =IF(A134="","",A134) -> 130 | K134: =IF(L134=0,"",INDEX(Bogføring!$B:$B,MATCH(Tabel2[[#This Row],[Medl.nr. :]],Bogføring!$E:$E,0),0)) ->  | L134: =SUMIFS(Bogføring!I:I,Bogføring!F:F,"="&$L$5,Bogføring!E:E,"="&A134) -> 0 | M134: =IF(N134=0,"",SUMIFS(Bogføring!B:B,Bogføring!F:F,"="&$N$5,Bogføring!E:E,"="&A134)) ->  | N134: =SUMIFS(Bogføring!I:I,Bogføring!F:F,"="&$N$5,Bogføring!E:E,"="&A134) -> 0 | O134: =IF(N134=0,"",SUMIFS(Bogføring!$B:$B,Bogføring!$F:$F,"="&$P$5,Bogføring!$E:$E,"="&A134)) ->  | P134: =SUMIFS(Bogføring!$I:$I,Bogføring!$H:$H,"="&$P$5,Bogføring!$E:$E,"="&A134) -> 0
A135: 131 | B135: Ole Brandt Andersen | C135: Æblestien 13 | D135: 3700 | E135: Rønne | F135: 29889916 | G135: GIRO | J135: 131 | K135: =IF(L135=0,"",INDEX(Bogføring!$B:$B,MATCH(Tabel2[[#This Row],[Medl.nr. :]],Bogføring!$E:$E,0),0)) ->  | L135: =SUMIFS(Bogføring!I:I,Bogføring!F:F,"="&$L$5,Bogføring!E:E,"="&A135) -> 0 | M135: =IF(N135=0,"",SUMIFS(Bogføring!B:B,Bogføring!F:F,"="&$N$5,Bogføring!E:E,"="&A135)) ->  | N135: =SUMIFS(Bogføring!I:I,Bogføring!F:F,"="&$N$5,Bogføring!E:E,"="&A135) -> 0 | O135: =IF(N135=0,"",SUMIFS(Bogføring!$B:$B,Bogføring!$F:$F,"="&$P$5,Bogføring!$E:$E,"="&A135)) ->  | P135: =SUMIFS(Bogføring!$I:$I,Bogføring!$H:$H,"="&$P$5,Bogføring!$E:$E,"="&A135) -> 0
A136: 132 | B136: Bent Aune | C136: Gammel Byvej 4A, 1.th. | D136: 2650 | E136: Hvidovre | F136: 29629091 | G136: GIRO | J136: 132 | K136: =IF(L136=0,"",INDEX(Bogføring!$B:$B,MATCH(Tabel2[[#This Row],[Medl.nr. :]],Bogføring!$E:$E,0),0)) ->  | L136: =SUMIFS(Bogføring!I:I,Bogføring!F:F,"="&$L$5,Bogføring!E:E,"="&A136) -> 0 | M136: =IF(N136=0,"",SUMIFS(Bogføring!B:B,Bogføring!F:F,"="&$N$5,Bogføring!E:E,"="&A136)) ->  | N136: =SUMIFS(Bogføring!I:I,Bogføring!F:F,"="&$N$5,Bogføring!E:E,"="&A136) -> 0 | O136: =IF(N136=0,"",SUMIFS(Bogføring!$B:$B,Bogføring!$F:$F,"="&$P$5,Bogføring!$E:$E,"="&A136)) ->  | P136: =SUMIFS(Bogføring!$I:$I,Bogføring!$H:$H,"="&$P$5,Bogføring!$E:$E,"="&A136) -> 0
A137: 134 | B137: Poul Dyrekær Nielsen | C137: Diget 16 | D137: 4652 | E137: Hårlev | F137: 23906231 | G137: GIRO | J137: 134 | K137: =IF(L137=0,"",INDEX(Bogføring!$B:$B,MATCH(Tabel2[[#This Row],[Medl.nr. :]],Bogføring!$E:$E,0),0)) ->  | L137: =SUMIFS(Bogføring!I:I,Bogføring!F:F,"="&$L$5,Bogføring!E:E,"="&A137) -> 0 | M137: =IF(N137=0,"",SUMIFS(Bogføring!B:B,Bogføring!F:F,"="&$N$5,Bogføring!E:E,"="&A137)) ->  | N137: =SUMIFS(Bogføring!I:I,Bogføring!F:F,"="&$N$5,Bogføring!E:E,"="&A137) -> 0 | O137: =IF(N137=0,"",SUMIFS(Bogføring!$B:$B,Bogføring!$F:$F,"="&$P$5,Bogføring!$E:$E,"="&A137)) ->  | P137: =SUMIFS(Bogføring!$I:$I,Bogføring!$H:$H,"="&$P$5,Bogføring!$E:$E,"="&A137) -> 0
A138: 135 | B138: Leif Herluf Nielsen | C138: Smålandsvej 25 | D138: 3700 | E138: Rønne | F138: 56957971 | G138: GIRO | J138: 135 | K138: =IF(L138=0,"",INDEX(Bogføring!$B:$B,MATCH(Tabel2[[#This Row],[Medl.nr. :]],Bogføring!$E:$E,0),0)) ->  | L138: =SUMIFS(Bogføring!I:I,Bogføring!F:F,"="&$L$5,Bogføring!E:E,"="&A138) -> 0 | M138: =IF(N138=0,"",SUMIFS(Bogføring!B:B,Bogføring!F:F,"="&$N$5,Bogføring!E:E,"="&A138)) ->  | N138: =SUMIFS(Bogføring!I:I,Bogføring!F:F,"="&$N$5,Bogføring!E:E,"="&A138) -> 0 | O138: =IF(N138=0,"",SUMIFS(Bogføring!$B:$B,Bogføring!$F:$F,"="&$P$5,Bogføring!$E:$E,"="&A138)) ->  | P138: =SUMIFS(Bogføring!$I:$I,Bogføring!$H:$H,"="&$P$5,Bogføring!$E:$E,"="&A138) -> 0
A139: 136 | B139: Kurt Mogensen | C139: Voldgade 28 | D139: 3700 | E139: Rønne | F139: 24803842 | G139: GIRO | J139: 136 | K139: =IF(L139=0,"",INDEX(Bogføring!$B:$B,MATCH(Tabel2[[#This Row],[Medl.nr. :]],Bogføring!$E:$E,0),0)) ->  | L139: =SUMIFS(Bogføring!I:I,Bogføring!F:F,"="&$L$5,Bogføring!E:E,"="&A139) -> 0 | M139: =IF(N139=0,"",SUMIFS(Bogføring!B:B,Bogføring!F:F,"="&$N$5,Bogføring!E:E,"="&A139)) ->  | N139: =SUMIFS(Bogføring!I:I,Bogføring!F:F,"="&$N$5,Bogføring!E:E,"="&A139) -> 0 | O139: =IF(N139=0,"",SUMIFS(Bogføring!$B:$B,Bogføring!$F:$F,"="&$P$5,Bogføring!$E:$E,"="&A139)) ->  | P139: =SUMIFS(Bogføring!$I:$I,Bogføring!$H:$H,"="&$P$5,Bogføring!$E:$E,"="&A139) -> 0
A140: 137 | B140: Hans Hardo Holmgaard Christensen | C140: Skørpingevej 21 a | D140: 4673 | E140: Rødvig | F140: 21192109 | G140: GIRO | I140: Bet. af Tina Egholm Jensen | J140: 137 | K140: =IF(L140=0,"",INDEX(Bogføring!$B:$B,MATCH(Tabel2[[#This Row],[Medl.nr. :]],Bogføring!$E:$E,0),0)) ->  | L140: =SUMIFS(Bogføring!I:I,Bogføring!F:F,"="&$L$5,Bogføring!E:E,"="&A140) -> 0 | M140: =IF(N140=0,"",SUMIFS(Bogføring!B:B,Bogføring!F:F,"="&$N$5,Bogføring!E:E,"="&A140)) ->  | N140: =SUMIFS(Bogføring!I:I,Bogføring!F:F,"="&$N$5,Bogføring!E:E,"="&A140) -> 0 | O140: =IF(N140=0,"",SUMIFS(Bogføring!$B:$B,Bogføring!$F:$F,"="&$P$5,Bogføring!$E:$E,"="&A140)) ->  | P140: =SUMIFS(Bogføring!$I:$I,Bogføring!$H:$H,"="&$P$5,Bogføring!$E:$E,"="&A140) -> 0
A141: 138 | B141: Bente Bojesen-Koefoed | C141: Storegade 67 | D141: 3700 | E141: Rønne | F141: 56950941 | G141: GIRO | J141: 138 | K141: =IF(L141=0,"",INDEX(Bogføring!$B:$B,MATCH(Tabel2[[#This Row],[Medl.nr. :]],Bogføring!$E:$E,0),0)) ->  | L141: =SUMIFS(Bogføring!I:I,Bogføring!F:F,"="&$L$5,Bogføring!E:E,"="&A141) -> 0 | M141: =IF(N141=0,"",SUMIFS(Bogføring!B:B,Bogføring!F:F,"="&$N$5,Bogføring!E:E,"="&A141)) ->  | N141: =SUMIFS(Bogføring!I:I,Bogføring!F:F,"="&$N$5,Bogføring!E:E,"="&A141) -> 0 | O141: =IF(N141=0,"",SUMIFS(Bogføring!$B:$B,Bogføring!$F:$F,"="&$P$5,Bogføring!$E:$E,"="&A141)) ->  | P141: =SUMIFS(Bogføring!$I:$I,Bogføring!$H:$H,"="&$P$5,Bogføring!$E:$E,"="&A141) -> 0
A142: 139 | B142: Fritz Olsen | C142: Teglgårdsvej 19 | D142: 3700 | E142: Rønne | F142: 56950217 | G142: GIRO | J142: 139 | K142: =IF(L142=0,"",INDEX(Bogføring!$B:$B,MATCH(Tabel2[[#This Row],[Medl.nr. :]],Bogføring!$E:$E,0),0)) ->  | L142: =SUMIFS(Bogføring!I:I,Bogføring!F:F,"="&$L$5,Bogføring!E:E,"="&A142) -> 0 | M142: =IF(N142=0,"",SUMIFS(Bogføring!B:B,Bogføring!F:F,"="&$N$5,Bogføring!E:E,"="&A142)) ->  | N142: =SUMIFS(Bogføring!I:I,Bogføring!F:F,"="&$N$5,Bogføring!E:E,"="&A142) -> 0 | O142: =IF(N142=0,"",SUMIFS(Bogføring!$B:$B,Bogføring!$F:$F,"="&$P$5,Bogføring!$E:$E,"="&A142)) ->  | P142: =SUMIFS(Bogføring!$I:$I,Bogføring!$H:$H,"="&$P$5,Bogføring!$E:$E,"="&A142) -> 0
A143: 140 | B143: Birthe Jepsen | C143: Finsensvej 7C, st.th | D143: 2000 | E143: Frederiksberg | F143: 29661836 | G143: GIRO | J143: 140 | K143: =IF(L143=0,"",INDEX(Bogføring!$B:$B,MATCH(Tabel2[[#This Row],[Medl.nr. :]],Bogføring!$E:$E,0),0)) ->  | L143: =SUMIFS(Bogføring!I:I,Bogføring!F:F,"="&$L$5,Bogføring!E:E,"="&A143) -> 0 | M143: =IF(N143=0,"",SUMIFS(Bogføring!B:B,Bogføring!F:F,"="&$N$5,Bogføring!E:E,"="&A143)) ->  | N143: =SUMIFS(Bogføring!I:I,Bogføring!F:F,"="&$N$5,Bogføring!E:E,"="&A143) -> 0 | O143: =IF(N143=0,"",SUMIFS(Bogføring!$B:$B,Bogføring!$F:$F,"="&$P$5,Bogføring!$E:$E,"="&A143)) ->  | P143: =SUMIFS(Bogføring!$I:$I,Bogføring!$H:$H,"="&$P$5,Bogføring!$E:$E,"="&A143) -> 0
A144: 141 | B144: Niels Holm | C144: Havnebakken 1 A, Lejl. 1 | D144: 3700 | E144: Rønne | F144: 56951638 | G144: GIRO | J144: 141 | K144: =IF(L144=0,"",INDEX(Bogføring!$B:$B,MATCH(Tabel2[[#This Row],[Medl.nr. :]],Bogføring!$E:$E,0),0)) ->  | L144: =SUMIFS(Bogføring!I:I,Bogføring!F:F,"="&$L$5,Bogføring!E:E,"="&A144) -> 0 | M144: =IF(N144=0,"",SUMIFS(Bogføring!B:B,Bogføring!F:F,"="&$N$5,Bogføring!E:E,"="&A144)) ->  | N144: =SUMIFS(Bogføring!I:I,Bogføring!F:F,"="&$N$5,Bogføring!E:E,"="&A144) -> 0 | O144: =IF(N144=0,"",SUMIFS(Bogføring!$B:$B,Bogføring!$F:$F,"="&$P$5,Bogføring!$E:$E,"="&A144)) ->  | P144: =SUMIFS(Bogføring!$I:$I,Bogføring!$H:$H,"="&$P$5,Bogføring!$E:$E,"="&A144) -> 0
A145: 142 | B145: Ole Sonne | C145: Sorteengevejen 2, Nylars | D145: 3700 | E145: Rønne | F145: 30495111 | G145: GIRO | J145: 142 | K145: =IF(L145=0,"",INDEX(Bogføring!$B:$B,MATCH(Tabel2[[#This Row],[Medl.nr. :]],Bogføring!$E:$E,0),0)) ->  | L145: =SUMIFS(Bogføring!I:I,Bogføring!F:F,"="&$L$5,Bogføring!E:E,"="&A145) -> 0 | M145: =IF(N145=0,"",SUMIFS(Bogføring!B:B,Bogføring!F:F,"="&$N$5,Bogføring!E:E,"="&A145)) ->  | N145: =SUMIFS(Bogføring!I:I,Bogføring!F:F,"="&$N$5,Bogføring!E:E,"="&A145) -> 0 | O145: =IF(N145=0,"",SUMIFS(Bogføring!$B:$B,Bogføring!$F:$F,"="&$P$5,Bogføring!$E:$E,"="&A145)) ->  | P145: =SUMIFS(Bogføring!$I:$I,Bogføring!$H:$H,"="&$P$5,Bogføring!$E:$E,"="&A145) -> 0
A146: 143 | B146: Peter Aage Henriksen | C146: Overgaden Neden Vandet 5B, st.tv. | D146: 1414 | E146: København K | F146: 20305977 | G146: Hx@webspeed.dk | J146: 143 | K146: =IF(L146=0,"",INDEX(Bogføring!$B:$B,MATCH(Tabel2[[#This Row],[Medl.nr. :]],Bogføring!$E:$E,0),0)) ->  | L146: =SUMIFS(Bogføring!I:I,Bogføring!F:F,"="&$L$5,Bogføring!E:E,"="&A146) -> 0 | M146: =IF(N146=0,"",SUMIFS(Bogføring!B:B,Bogføring!F:F,"="&$N$5,Bogføring!E:E,"="&A146)) ->  | N146: =SUMIFS(Bogføring!I:I,Bogføring!F:F,"="&$N$5,Bogføring!E:E,"="&A146) -> 0 | O146: =IF(N146=0,"",SUMIFS(Bogføring!$B:$B,Bogføring!$F:$F,"="&$P$5,Bogføring!$E:$E,"="&A146)) ->  | P146: =SUMIFS(Bogføring!$I:$I,Bogføring!$H:$H,"="&$P$5,Bogføring!$E:$E,"="&A146) -> 0
A147: 144 | B147: Karsten Rasmussen | C147: Løkkegade 3 | D147: 3790 | E147: Hasle | F147: 56955227 | G147: GIRO-nummeret ikke i brug | J147: 144 | K147: =IF(L147=0,"",INDEX(Bogføring!$B:$B,MATCH(Tabel2[[#This Row],[Medl.nr. :]],Bogføring!$E:$E,0),0)) ->  | L147: =SUMIFS(Bogføring!I:I,Bogføring!F:F,"="&$L$5,Bogføring!E:E,"="&A147) -> 0 | M147: =IF(N147=0,"",SUMIFS(Bogføring!B:B,Bogføring!F:F,"="&$N$5,Bogføring!E:E,"="&A147)) ->  | N147: =SUMIFS(Bogføring!I:I,Bogføring!F:F,"="&$N$5,Bogføring!E:E,"="&A147) -> 0 | O147: =IF(N147=0,"",SUMIFS(Bogføring!$B:$B,Bogføring!$F:$F,"="&$P$5,Bogføring!$E:$E,"="&A147)) ->  | P147: =SUMIFS(Bogføring!$I:$I,Bogføring!$H:$H,"="&$P$5,Bogføring!$E:$E,"="&A147) -> 0
A148: 145 | B148: John Pedersen | C148: Rundløkkevejen 2 | D148: 3720 | E148: Åkirkeby | F148: 56974224 | G148: GIRO-nummeret ikke i brug | J148: 145 | K148: =IF(L148=0,"",INDEX(Bogføring!$B:$B,MATCH(Tabel2[[#This Row],[Medl.nr. :]],Bogføring!$E:$E,0),0)) ->  | L148: =SUMIFS(Bogføring!I:I,Bogføring!F:F,"="&$L$5,Bogføring!E:E,"="&A148) -> 0 | M148: =IF(N148=0,"",SUMIFS(Bogføring!B:B,Bogføring!F:F,"="&$N$5,Bogføring!E:E,"="&A148)) ->  | N148: =SUMIFS(Bogføring!I:I,Bogføring!F:F,"="&$N$5,Bogføring!E:E,"="&A148) -> 0 | O148: =IF(N148=0,"",SUMIFS(Bogføring!$B:$B,Bogføring!$F:$F,"="&$P$5,Bogføring!$E:$E,"="&A148)) ->  | P148: =SUMIFS(Bogføring!$I:$I,Bogføring!$H:$H,"="&$P$5,Bogføring!$E:$E,"="&A148) -> 0
A149: 146 | B149: Marianne Hansen | C149: Ipsens Have 10 | D149: 3700 | E149: Rønne | F149: 61394505 | G149: Giro | J149: 146 | K149: =IF(L149=0,"",INDEX(Bogføring!$B:$B,MATCH(Tabel2[[#This Row],[Medl.nr. :]],Bogføring!$E:$E,0),0)) ->  | L149: =SUMIFS(Bogføring!I:I,Bogføring!F:F,"="&$L$5,Bogføring!E:E,"="&A149) -> 0 | M149: =IF(N149=0,"",SUMIFS(Bogføring!B:B,Bogføring!F:F,"="&$N$5,Bogføring!E:E,"="&A149)) ->  | N149: =SUMIFS(Bogføring!I:I,Bogføring!F:F,"="&$N$5,Bogføring!E:E,"="&A149) -> 0 | O149: =IF(N149=0,"",SUMIFS(Bogføring!$B:$B,Bogføring!$F:$F,"="&$P$5,Bogføring!$E:$E,"="&A149)) ->  | P149: =SUMIFS(Bogføring!$I:$I,Bogføring!$H:$H,"="&$P$5,Bogføring!$E:$E,"="&A149) -> 0
A150: 147 | B150: Michael Christian Kofoed | C150: Langelinie 10 | D150: 3700 | E150: Rønne | J150: 147 | K150: =IF(L150=0,"",INDEX(Bogføring!$B:$B,MATCH(Tabel2[[#This Row],[Medl.nr. :]],Bogføring!$E:$E,0),0)) ->  | L150: =SUMIFS(Bogføring!I:I,Bogføring!F:F,"="&$L$5,Bogføring!E:E,"="&A150) -> 0 | M150: =IF(N150=0,"",SUMIFS(Bogføring!B:B,Bogføring!F:F,"="&$N$5,Bogføring!E:E,"="&A150)) ->  | N150: =SUMIFS(Bogføring!I:I,Bogføring!F:F,"="&$N$5,Bogføring!E:E,"="&A150) -> 0 | O150: =IF(N150=0,"",SUMIFS(Bogføring!$B:$B,Bogføring!$F:$F,"="&$P$5,Bogføring!$E:$E,"="&A150)) ->  | P150: =SUMIFS(Bogføring!$I:$I,Bogføring!$H:$H,"="&$P$5,Bogføring!$E:$E,"="&A150) -> 0
A151: 148 | B151: Poul-Erik Kofoed | C151: Slåenvej 31 | D151: 3700 | E151: Rønne | F151: 29253020 | G151: pekofoed@hotmail.dk | J151: 148 | K151: =IF(L151=0,"",INDEX(Bogføring!$B:$B,MATCH(Tabel2[[#This Row],[Medl.nr. :]],Bogføring!$E:$E,0),0)) ->  | L151: =SUMIFS(Bogføring!I:I,Bogføring!F:F,"="&$L$5,Bogføring!E:E,"="&A151) -> 0 | M151: =IF(N151=0,"",SUMIFS(Bogføring!B:B,Bogføring!F:F,"="&$N$5,Bogføring!E:E,"="&A151)) ->  | N151: =SUMIFS(Bogføring!I:I,Bogføring!F:F,"="&$N$5,Bogføring!E:E,"="&A151) -> 0 | O151: =IF(N151=0,"",SUMIFS(Bogføring!$B:$B,Bogføring!$F:$F,"="&$P$5,Bogføring!$E:$E,"="&A151)) ->  | P151: =SUMIFS(Bogføring!$I:$I,Bogføring!$H:$H,"="&$P$5,Bogføring!$E:$E,"="&A151) -> 0
A152: 1001 | B152: Rønne Handelsstandsfor. c/o Meny | C152: StoreTorv 11 | D152: 3700 | E152: Rønne | G152: 037619@meny.dk | J152: 1001 | K152: =IF(L152=0,"",INDEX(Bogføring!$B:$B,MATCH(Tabel2[[#This Row],[Medl.nr. :]],Bogføring!$E:$E,0),0)) ->  | L152: =SUMIFS(Bogføring!I:I,Bogføring!F:F,"="&$L$5,Bogføring!E:E,"="&A152) -> 0 | M152: =IF(N152=0,"",SUMIFS(Bogføring!B:B,Bogføring!F:F,"="&$N$5,Bogføring!E:E,"="&A152)) ->  | N152: =SUMIFS(Bogføring!I:I,Bogføring!F:F,"="&$N$5,Bogføring!E:E,"="&A152) -> 0 | O152: =IF(N152=0,"",SUMIFS(Bogføring!$B:$B,Bogføring!$F:$F,"="&$P$5,Bogføring!$E:$E,"="&A152)) ->  | P152: =SUMIFS(Bogføring!$I:$I,Bogføring!$H:$H,"="&$P$5,Bogføring!$E:$E,"="&A152) -> 0
A153: 1002 | B153: Kastellets Venner og Historisk Samling c/o Steen Kjær | C153: Skoletoften 1 | D153: 6430 | E153: Nordborg | I153: Gl. Hovedvagt, Kastellet 1, 2100 København Ø | J153: 1002 | K153: =IF(L153=0,"",INDEX(Bogføring!$B:$B,MATCH(Tabel2[[#This Row],[Medl.nr. :]],Bogføring!$E:$E,0),0)) ->  | L153: =SUMIFS(Bogføring!I:I,Bogføring!F:F,"="&$L$5,Bogføring!E:E,"="&A153) -> 0 | M153: =IF(N153=0,"",SUMIFS(Bogføring!B:B,Bogføring!F:F,"="&$N$5,Bogføring!E:E,"="&A153)) ->  | N153: =SUMIFS(Bogføring!I:I,Bogføring!F:F,"="&$N$5,Bogføring!E:E,"="&A153) -> 0 | O153: =IF(N153=0,"",SUMIFS(Bogføring!$B:$B,Bogføring!$F:$F,"="&$P$5,Bogføring!$E:$E,"="&A153)) ->  | P153: =SUMIFS(Bogføring!$I:$I,Bogføring!$H:$H,"="&$P$5,Bogføring!$E:$E,"="&A153) -> 0
A154: 1003 | B154: BH LT-Gilde v/Niels Lausten Brogård | C154: Skolebakken 84 | D154: 2830 | E154: Virum | I154: Bidrag Betalt den 3/12/2019 | J154: 1003 | K154: =IF(L154=0,"",INDEX(Bogføring!$B:$B,MATCH(Tabel2[[#This Row],[Medl.nr. :]],Bogføring!$E:$E,0),0)) ->  | L154: =SUMIFS(Bogføring!I:I,Bogføring!F:F,"="&$L$5,Bogføring!E:E,"="&A154) -> 0 | M154: =IF(N154=0,"",SUMIFS(Bogføring!B:B,Bogføring!F:F,"="&$N$5,Bogføring!E:E,"="&A154)) ->  | N154: =SUMIFS(Bogføring!I:I,Bogføring!F:F,"="&$N$5,Bogføring!E:E,"="&A154) -> 0 | O154: =IF(N154=0,"",SUMIFS(Bogføring!$B:$B,Bogføring!$F:$F,"="&$P$5,Bogføring!$E:$E,"="&A154)) ->  | P154: =SUMIFS(Bogføring!$I:$I,Bogføring!$H:$H,"="&$P$5,Bogføring!$E:$E,"="&A154) -> 0
A155: 1004 | B155: EDC BornholmerBo-Kurt Mortensen | C155: Tornegade 1-3 | D155: 3700 | E155: Rønne | F155: 56955683 | G155: 371@edc.dk | H155: 2019 | J155: 1004 | K155: =IF(L155=0,"",INDEX(Bogføring!$B:$B,MATCH(Tabel2[[#This Row],[Medl.nr. :]],Bogføring!$E:$E,0),0)) ->  | L155: =SUMIFS(Bogføring!I:I,Bogføring!F:F,"="&$L$5,Bogføring!E:E,"="&A155) -> 0 | M155: =IF(N155=0,"",SUMIFS(Bogføring!B:B,Bogføring!F:F,"="&$N$5,Bogføring!E:E,"="&A155)) ->  | N155: =SUMIFS(Bogføring!I:I,Bogføring!F:F,"="&$N$5,Bogføring!E:E,"="&A155) -> 0 | O155: =IF(N155=0,"",SUMIFS(Bogføring!$B:$B,Bogføring!$F:$F,"="&$P$5,Bogføring!$E:$E,"="&A155)) ->  | P155: =SUMIFS(Bogføring!$I:$I,Bogføring!$H:$H,"="&$P$5,Bogføring!$E:$E,"="&A155) -> 0
A156: 1005 | B156: HKKF Hærens Konstabel- og Korporalfor. | C156: Borgergade 101, Postboks 143 | D156: 8600 | E156: Silkeborg | G156: GIRO | J156: 1005 | K156: =IF(L156=0,"",INDEX(Bogføring!$B:$B,MATCH(Tabel2[[#This Row],[Medl.nr. :]],Bogføring!$E:$E,0),0)) ->  | L156: =SUMIFS(Bogføring!I:I,Bogføring!F:F,"="&$L$5,Bogføring!E:E,"="&A156) -> 0 | M156: =IF(N156=0,"",SUMIFS(Bogføring!B:B,Bogføring!F:F,"="&$N$5,Bogføring!E:E,"="&A156)) ->  | N156: =SUMIFS(Bogføring!I:I,Bogføring!F:F,"="&$N$5,Bogføring!E:E,"="&A156) -> 0 | O156: =IF(N156=0,"",SUMIFS(Bogføring!$B:$B,Bogføring!$F:$F,"="&$P$5,Bogføring!$E:$E,"="&A156)) ->  | P156: =SUMIFS(Bogføring!$I:$I,Bogføring!$H:$H,"="&$P$5,Bogføring!$E:$E,"="&A156) -> 0
A157: 1006 | B157: BECK PACK SYSTEM a/s | C157: Sandemandsvej 6 | D157: 3700 | E157: Rønne | G157: GIRO | J157: 1006 | K157: =IF(L157=0,"",INDEX(Bogføring!$B:$B,MATCH(Tabel2[[#This Row],[Medl.nr. :]],Bogføring!$E:$E,0),0)) ->  | L157: =SUMIFS(Bogføring!I:I,Bogføring!F:F,"="&$L$5,Bogføring!E:E,"="&A157) -> 0 | M157: =IF(N157=0,"",SUMIFS(Bogføring!B:B,Bogføring!F:F,"="&$N$5,Bogføring!E:E,"="&A157)) ->  | N157: =SUMIFS(Bogføring!I:I,Bogføring!F:F,"="&$N$5,Bogføring!E:E,"="&A157) -> 0 | O157: =IF(N157=0,"",SUMIFS(Bogføring!$B:$B,Bogføring!$F:$F,"="&$P$5,Bogføring!$E:$E,"="&A157)) ->  | P157: =SUMIFS(Bogføring!$I:$I,Bogføring!$H:$H,"="&$P$5,Bogføring!$E:$E,"="&A157) -> 0
A158: 1008 | B158: Rønne Ejendomshandel | C158: Søndergade 6 | D158: 3700 | E158: Rønne | F158: 56956886 | G158: post@reh.dk | H158: 2020 | J158: 1008 | K158: =IF(L158=0,"",INDEX(Bogføring!$B:$B,MATCH(Tabel2[[#This Row],[Medl.nr. :]],Bogføring!$E:$E,0),0)) ->  | L158: =SUMIFS(Bogføring!I:I,Bogføring!F:F,"="&$L$5,Bogføring!E:E,"="&A158) -> 0 | M158: =IF(N158=0,"",SUMIFS(Bogføring!B:B,Bogføring!F:F,"="&$N$5,Bogføring!E:E,"="&A158)) ->  | N158: =SUMIFS(Bogføring!I:I,Bogføring!F:F,"="&$N$5,Bogføring!E:E,"="&A158) -> 0 | O158: =IF(N158=0,"",SUMIFS(Bogføring!$B:$B,Bogføring!$F:$F,"="&$P$5,Bogføring!$E:$E,"="&A158)) ->  | P158: =SUMIFS(Bogføring!$I:$I,Bogføring!$H:$H,"="&$P$5,Bogføring!$E:$E,"="&A158) -> 0
A159: 1009 | B159: Danbolig Bornholm | C159: Nørregade 6 | D159: 3700 | E159: Rønne | F159: 56951995 | G159: roenne@danbolig.dk | J159: 1009 | K159: =IF(L159=0,"",INDEX(Bogføring!$B:$B,MATCH(Tabel2[[#This Row],[Medl.nr. :]],Bogføring!$E:$E,0),0)) ->  | L159: =SUMIFS(Bogføring!I:I,Bogføring!F:F,"="&$L$5,Bogføring!E:E,"="&A159) -> 0 | M159: =IF(N159=0,"",SUMIFS(Bogføring!B:B,Bogføring!F:F,"="&$N$5,Bogføring!E:E,"="&A159)) ->  | N159: =SUMIFS(Bogføring!I:I,Bogføring!F:F,"="&$N$5,Bogføring!E:E,"="&A159) -> 0 | O159: =IF(N159=0,"",SUMIFS(Bogføring!$B:$B,Bogføring!$F:$F,"="&$P$5,Bogføring!$E:$E,"="&A159)) ->  | P159: =SUMIFS(Bogføring!$I:$I,Bogføring!$H:$H,"="&$P$5,Bogføring!$E:$E,"="&A159) -> 0
A160: 1010 | B160: Danmarks Veteraner Afd. Bornholm v/KS Klaus RIIs Buchholdt | C160: Glentevangen10 | D160: 3700 | E160: Rønne | F160: 20159791 | G160: 54atehena@gmail.com | H160: 2020 | I160: betalt 2 gange 14/4/20 | J160: 1010 | K160: =IF(L160=0,"",INDEX(Bogføring!$B:$B,MATCH(Tabel2[[#This Row],[Medl.nr. :]],Bogføring!$E:$E,0),0)) ->  | L160: =SUMIFS(Bogføring!I:I,Bogføring!F:F,"="&$L$5,Bogføring!E:E,"="&A160) -> 0 | M160: =IF(N160=0,"",SUMIFS(Bogføring!B:B,Bogføring!F:F,"="&$N$5,Bogføring!E:E,"="&A160)) ->  | N160: =SUMIFS(Bogføring!I:I,Bogføring!F:F,"="&$N$5,Bogføring!E:E,"="&A160) -> 0 | O160: =IF(N160=0,"",SUMIFS(Bogføring!$B:$B,Bogføring!$F:$F,"="&$P$5,Bogføring!$E:$E,"="&A160)) ->  | P160: =SUMIFS(Bogføring!$I:$I,Bogføring!$H:$H,"="&$P$5,Bogføring!$E:$E,"="&A160) -> 0
K161: =IF(L161=0,"",INDEX(Bogføring!$B:$B,MATCH(Tabel2[[#This Row],[Medl.nr. :]],Bogføring!$E:$E,0),0)) ->  | L161: =SUMIFS(Bogføring!I:I,Bogføring!F:F,"="&$L$5,Bogføring!E:E,"="&A161) -> 0 | M161: =IF(N161=0,"",SUMIFS(Bogføring!B:B,Bogføring!F:F,"="&$N$5,Bogføring!E:E,"="&A161)) ->  | N161: =SUMIFS(Bogføring!I:I,Bogføring!F:F,"="&$N$5,Bogføring!E:E,"="&A161) -> 0 | O161: =IF(N161=0,"",SUMIFS(Bogføring!$B:$B,Bogføring!$F:$F,"="&$P$5,Bogføring!$E:$E,"="&A161)) ->  | P161: =SUMIFS(Bogføring!$I:$I,Bogføring!$H:$H,"="&$P$5,Bogføring!$E:$E,"="&A161) -> 0
K162: =IF(L162=0,"",INDEX(Bogføring!$B:$B,MATCH(Tabel2[[#This Row],[Medl.nr. :]],Bogføring!$E:$E,0),0)) ->  | L162: =SUMIFS(Bogføring!I:I,Bogføring!F:F,"="&$L$5,Bogføring!E:E,"="&A162) -> 0 | M162: =IF(N162=0,"",SUMIFS(Bogføring!B:B,Bogføring!F:F,"="&$N$5,Bogføring!E:E,"="&A162)) ->  | N162: =SUMIFS(Bogføring!I:I,Bogføring!F:F,"="&$N$5,Bogføring!E:E,"="&A162) -> 0 | O162: =IF(N162=0,"",SUMIFS(Bogføring!$B:$B,Bogføring!$F:$F,"="&$P$5,Bogføring!$E:$E,"="&A162)) ->  | P162: =SUMIFS(Bogføring!$I:$I,Bogføring!$H:$H,"="&$P$5,Bogføring!$E:$E,"="&A162) -> 0
K163: =IF(L163=0,"",INDEX(Bogføring!$B:$B,MATCH(Tabel2[[#This Row],[Medl.nr. :]],Bogføring!$E:$E,0),0)) ->  | L163: =SUMIFS(Bogføring!I:I,Bogføring!F:F,"="&$L$5,Bogføring!E:E,"="&A163) -> 0 | M163: =IF(N163=0,"",SUMIFS(Bogføring!B:B,Bogføring!F:F,"="&$N$5,Bogføring!E:E,"="&A163)) ->  | N163: =SUMIFS(Bogføring!I:I,Bogføring!F:F,"="&$N$5,Bogføring!E:E,"="&A163) -> 0 | O163: =IF(N163=0,"",SUMIFS(Bogføring!$B:$B,Bogføring!$F:$F,"="&$P$5,Bogføring!$E:$E,"="&A163)) ->  | P163: =SUMIFS(Bogføring!$I:$I,Bogføring!$H:$H,"="&$P$5,Bogføring!$E:$E,"="&A163) -> 0
K164: =IF(L164=0,"",INDEX(Bogføring!$B:$B,MATCH(Tabel2[[#This Row],[Medl.nr. :]],Bogføring!$E:$E,0),0)) ->  | L164: =SUMIFS(Bogføring!I:I,Bogføring!F:F,"="&$L$5,Bogføring!E:E,"="&A164) -> 0 | M164: =IF(N164=0,"",SUMIFS(Bogføring!B:B,Bogføring!F:F,"="&$N$5,Bogføring!E:E,"="&A164)) ->  | N164: =SUMIFS(Bogføring!I:I,Bogføring!F:F,"="&$N$5,Bogføring!E:E,"="&A164) -> 0 | O164: =IF(N164=0,"",SUMIFS(Bogføring!$B:$B,Bogføring!$F:$F,"="&$P$5,Bogføring!$E:$E,"="&A164)) ->  | P164: =SUMIFS(Bogføring!$I:$I,Bogføring!$H:$H,"="&$P$5,Bogføring!$E:$E,"="&A164) -> 0
K165: =IF(L165=0,"",INDEX(Bogføring!$B:$B,MATCH(Tabel2[[#This Row],[Medl.nr. :]],Bogføring!$E:$E,0),0)) ->  | L165: =SUMIFS(Bogføring!I:I,Bogføring!F:F,"="&$L$5,Bogføring!E:E,"="&A165) -> 0 | M165: =IF(N165=0,"",SUMIFS(Bogføring!B:B,Bogføring!F:F,"="&$N$5,Bogføring!E:E,"="&A165)) ->  | N165: =SUMIFS(Bogføring!I:I,Bogføring!F:F,"="&$N$5,Bogføring!E:E,"="&A165) -> 0 | O165: =IF(N165=0,"",SUMIFS(Bogføring!$B:$B,Bogføring!$F:$F,"="&$P$5,Bogføring!$E:$E,"="&A165)) ->  | P165: =SUMIFS(Bogføring!$I:$I,Bogføring!$H:$H,"="&$P$5,Bogføring!$E:$E,"="&A165) -> 0
J166: =IF(A166="","",A166) ->  | K166: =IF(L166=0,"",INDEX(Bogføring!$B:$B,MATCH(Tabel2[[#This Row],[Medl.nr. :]],Bogføring!$E:$E,0),0)) ->  | L166: =SUMIFS(Bogføring!I:I,Bogføring!F:F,"="&$L$5,Bogføring!E:E,"="&A166) -> 0 | M166: =IF(N166=0,"",SUMIFS(Bogføring!B:B,Bogføring!F:F,"="&$N$5,Bogføring!E:E,"="&A166)) ->  | N166: =SUMIFS(Bogføring!I:I,Bogføring!F:F,"="&$N$5,Bogføring!E:E,"="&A166) -> 0 | O166: =IF(N166=0,"",SUMIFS(Bogføring!$B:$B,Bogføring!$F:$F,"="&$P$5,Bogføring!$E:$E,"="&A166)) ->  | P166: =SUMIFS(Bogføring!$I:$I,Bogføring!$H:$H,"="&$P$5,Bogføring!$E:$E,"="&A166) -> 0

Sheet Afv % (hidden)
B1: =T!B9 -> xxxxxxxxxxxxx
B5: ="Afvigelser "&T!C2 -> Afvigelser 2022
B7: =T!A7 -> Periode : 01-01-2022 - 15-05-2022
F8: Aktuelt år | H8: Sidste år | J8: Forrige år
F9: =T!C2 -> 2022 | G9: afv i % | H9: =F9-1 -> 2021 | I9: afv i % | J9: =F9-2 -> 2020
B10: Indtægter
A12: 1000 | B12: =IFERROR(VLOOKUP(A12,Kontoplan!$A$2:$D$31,2,0),"") -> Entre | E12: =IFERROR(IF(D12=0,"",(D12-H12)/H12),"") ->  | F12: =SUMIFS(Bogføring!$I:$I,Bogføring!$B:$B,">="&T!$C$4,Bogføring!$B:$B,"<="&T!$C$5,Bogføring!$G:$G,A12)-SUMIFS(Bogføring!$H:$H,Bogføring!$B:$B,">="&T!$C$4,Bogføring!$B:$B,"<="&T!$C$5,Bogføring!$G:$G,A12) -> 8740 | G12: =IFERROR((F12-H12)/H12,"") -> -0.9537211088 | H12: =SUMIFS(Bogføring!$I:$I,Bogføring!$B:$B,">="&T!$D$4,Bogføring!$B:$B,"<="&T!$D$5,Bogføring!$G:$G,A12) -> 188855 | I12: =IFERROR((H12-J12)/J12,"") ->  | J12: =SUMIFS(Bogføring!$I:$I,Bogføring!$B:$B,">="&T!$E$4,Bogføring!$B:$B,"<="&T!$E$5,Bogføring!$G:$G,A12) -> 0
A13: 1010 | B13: =IFERROR(VLOOKUP(A13,Kontoplan!$A$2:$D$31,2,0),"") -> Kiosk salg | E13: =IFERROR(IF(D13=0,"",(D13-H13)/H13),"") ->  | F13: =SUMIFS(Bogføring!$I:$I,Bogføring!$B:$B,">="&T!$C$4,Bogføring!$B:$B,"<="&T!$C$5,Bogføring!$G:$G,A13)-SUMIFS(Bogføring!$H:$H,Bogføring!$B:$B,">="&T!$C$4,Bogføring!$B:$B,"<="&T!$C$5,Bogføring!$G:$G,A13) -> 75 | G13: =IFERROR((F13-H13)/H13,"") -> -0.9953247084 | H13: =SUMIFS(Bogføring!$I:$I,Bogføring!$B:$B,">="&T!$D$4,Bogføring!$B:$B,"<="&T!$D$5,Bogføring!$G:$G,A13)-SUMIFS(Bogføring!$H:$H,Bogføring!$B:$B,">="&T!$D$4,Bogføring!$B:$B,"<="&T!$D$5,Bogføring!$G:$G,A13) -> 16041.78 | I13: =IFERROR((H13-J13)/J13,"") ->  | J13: =SUMIFS(Bogføring!$I:$I,Bogføring!$B:$B,">="&T!$E$4,Bogføring!$B:$B,"<="&T!$E$5,Bogføring!$G:$G,A13) -> 0
A14: 1020 | B14: =IFERROR(VLOOKUP(A14,Kontoplan!$A$2:$D$31,2,0),"") -> Tilskud fra BRK/ drifttilskud | E14: =IFERROR(IF(D14=0,"",(D14-H14)/H14),"") ->  | F14: =SUMIFS(Bogføring!$I:$I,Bogføring!$B:$B,">="&T!$C$4,Bogføring!$B:$B,"<="&T!$C$5,Bogføring!$G:$G,A14)-SUMIFS(Bogføring!$H:$H,Bogføring!$B:$B,">="&T!$C$4,Bogføring!$B:$B,"<="&T!$C$5,Bogføring!$G:$G,A14) -> 74021 | G14: =IFERROR((F14-H14)/H14,"") -> 0.02100747607 | H14: =SUMIFS(Bogføring!$I:$I,Bogføring!$B:$B,">="&T!$D$4,Bogføring!$B:$B,"<="&T!$D$5,Bogføring!$G:$G,A14)-SUMIFS(Bogføring!$H:$H,Bogføring!$B:$B,">="&T!$D$4,Bogføring!$B:$B,"<="&T!$D$5,Bogføring!$G:$G,A14) -> 72498 | I14: =IFERROR((H14-J14)/J14,"") ->  | J14: =SUMIFS(Bogføring!$I:$I,Bogføring!$B:$B,">="&T!$E$4,Bogføring!$B:$B,"<="&T!$E$5,Bogføring!$G:$G,A14) -> 0
A15: 1030 | B15: =IFERROR(VLOOKUP(A15,Kontoplan!$A$2:$D$31,2,0),"") -> Tilskud fra KVB | F15: =SUMIFS(Bogføring!$I:$I,Bogføring!$B:$B,">="&T!$C$4,Bogføring!$B:$B,"<="&T!$C$5,Bogføring!$G:$G,A15)-SUMIFS(Bogføring!$H:$H,Bogføring!$B:$B,">="&T!$C$4,Bogføring!$B:$B,"<="&T!$C$5,Bogføring!$G:$G,A15) -> 20000 | G15: =IFERROR((F15-H15)/H15,"") -> -0.3333333333 | H15: =SUMIFS(Bogføring!$I:$I,Bogføring!$B:$B,">="&T!$D$4,Bogføring!$B:$B,"<="&T!$D$5,Bogføring!$G:$G,A15)-SUMIFS(Bogføring!$H:$H,Bogføring!$B:$B,">="&T!$D$4,Bogføring!$B:$B,"<="&T!$D$5,Bogføring!$G:$G,A15) -> 30000 | I15: =IFERROR((H15-J15)/J15,"") ->  | J15: =SUMIFS(Bogføring!$I:$I,Bogføring!$B:$B,">="&T!$E$4,Bogføring!$B:$B,"<="&T!$E$5,Bogføring!$G:$G,A15) -> 0
A16: 1040 | B16: =IFERROR(VLOOKUP(A16,Kontoplan!$A$2:$D$31,2,0),"") -> Fonde/Gaver | F16: =SUMIFS(Bogføring!$I:$I,Bogføring!$B:$B,">="&T!$C$4,Bogføring!$B:$B,"<="&T!$C$5,Bogføring!$G:$G,A16)-SUMIFS(Bogføring!$H:$H,Bogføring!$B:$B,">="&T!$C$4,Bogføring!$B:$B,"<="&T!$C$5,Bogføring!$G:$G,A16) -> 0 | G16: -1 | H16: =SUMIFS(Bogføring!$I:$I,Bogføring!$B:$B,">="&T!$D$4,Bogføring!$B:$B,"<="&T!$D$5,Bogføring!$G:$G,A16)-SUMIFS(Bogføring!$H:$H,Bogføring!$B:$B,">="&T!$D$4,Bogføring!$B:$B,"<="&T!$D$5,Bogføring!$G:$G,A16) -> 30000 | I16: =IFERROR((H16-J16)/J16,"") ->  | J16: =SUMIFS(Bogføring!$I:$I,Bogføring!$B:$B,">="&T!$E$4,Bogføring!$B:$B,"<="&T!$E$5,Bogføring!$G:$G,A16) -> 0
A17: 1050 | B17: =IFERROR(VLOOKUP(A17,Kontoplan!$A$2:$D$31,2,0),"") -> Aktiviteter | F17: =SUMIFS(Bogføring!$I:$I,Bogføring!$B:$B,">="&T!$C$4,Bogføring!$B:$B,"<="&T!$C$5,Bogføring!$G:$G,A17)-SUMIFS(Bogføring!$H:$H,Bogføring!$B:$B,">="&T!$C$4,Bogføring!$B:$B,"<="&T!$C$5,Bogføring!$G:$G,A17) -> 0 | H17: =SUMIFS(Bogføring!$I:$I,Bogføring!$B:$B,">="&T!$D$4,Bogføring!$B:$B,"<="&T!$D$5,Bogføring!$G:$G,A17)-SUMIFS(Bogføring!$H:$H,Bogføring!$B:$B,">="&T!$D$4,Bogføring!$B:$B,"<="&T!$D$5,Bogføring!$G:$G,A17) -> 0 | I17: =IFERROR((H17-J17)/J17,"") ->  | J17: =SUMIFS(Bogføring!$I:$I,Bogføring!$B:$B,">="&T!$E$4,Bogføring!$B:$B,"<="&T!$E$5,Bogføring!$G:$G,A17) -> 0
A18: 1070 | B18: =IFERROR(VLOOKUP(A18,Kontoplan!$A$2:$D$31,2,0),"") -> Pengegaver | F18: =SUMIFS(Bogføring!$I:$I,Bogføring!$B:$B,">="&T!$C$4,Bogføring!$B:$B,"<="&T!$C$5,Bogføring!$G:$G,A18)-SUMIFS(Bogføring!$H:$H,Bogføring!$B:$B,">="&T!$C$4,Bogføring!$B:$B,"<="&T!$C$5,Bogføring!$G:$G,A18) -> 0 | H18: =SUMIFS(Bogføring!$I:$I,Bogføring!$B:$B,">="&T!$D$4,Bogføring!$B:$B,"<="&T!$D$5,Bogføring!$G:$G,A18) -> 0 | J18: =SUMIFS(Bogføring!$I:$I,Bogføring!$B:$B,">="&T!$E$4,Bogføring!$B:$B,"<="&T!$E$5,Bogføring!$G:$G,A18) -> 0
A19: 1080 | B19: =IFERROR(VLOOKUP(A19,Kontoplan!$A$2:$D$31,2,0),"") -> Flaskepant retur | F19: =SUMIFS(Bogføring!$I:$I,Bogføring!$B:$B,">="&T!$C$4,Bogføring!$B:$B,"<="&T!$C$5,Bogføring!$G:$G,A19)-SUMIFS(Bogføring!$H:$H,Bogføring!$B:$B,">="&T!$C$4,Bogføring!$B:$B,"<="&T!$C$5,Bogføring!$G:$G,A19) -> 0 | H19: =SUMIFS(Bogføring!$I:$I,Bogføring!$B:$B,">="&T!$D$4,Bogføring!$B:$B,"<="&T!$D$5,Bogføring!$G:$G,A20) -> 0 | J19: =SUMIFS(Bogføring!$I:$I,Bogføring!$B:$B,">="&T!$E$4,Bogføring!$B:$B,"<="&T!$E$5,Bogføring!$G:$G,A20) -> 0
A20: 1090 | B20: =IFERROR(VLOOKUP(A20,Kontoplan!$A$2:$D$31,2,0),"") -> Kassedifferance | F20: =SUMIFS(Bogføring!$I:$I,Bogføring!$B:$B,">="&T!$C$4,Bogføring!$B:$B,"<="&T!$C$5,Bogføring!$G:$G,A20)-SUMIFS(Bogføring!$H:$H,Bogføring!$B:$B,">="&T!$C$4,Bogføring!$B:$B,"<="&T!$C$5,Bogføring!$G:$G,A20) -> 0 | H20: =SUMIFS(Bogføring!$I:$I,Bogføring!$B:$B,">="&T!$D$4,Bogføring!$B:$B,"<="&T!$D$5,Bogføring!$G:$G,A21) -> 0 | J20: =SUMIFS(Bogføring!$I:$I,Bogføring!$B:$B,">="&T!$E$4,Bogføring!$B:$B,"<="&T!$E$5,Bogføring!$G:$G,A21) -> 0
B21: =IFERROR(VLOOKUP(A21,Kontoplan!$A$2:$D$31,2,0),"") ->  | F21: =SUMIFS(Bogføring!$I:$I,Bogføring!$B:$B,">="&T!$C$4,Bogføring!$B:$B,"<="&T!$C$5,Bogføring!$G:$G,A21)-SUMIFS(Bogføring!$H:$H,Bogføring!$B:$B,">="&T!$C$4,Bogføring!$B:$B,"<="&T!$C$5,Bogføring!$G:$G,A21) -> 0 | H21: =SUMIFS(Bogføring!$I:$I,Bogføring!$B:$B,">="&T!$D$4,Bogføring!$B:$B,"<="&T!$D$5,Bogføring!$G:$G,A22) -> 0 | J21: =SUMIFS(Bogføring!$I:$I,Bogføring!$B:$B,">="&T!$E$4,Bogføring!$B:$B,"<="&T!$E$5,Bogføring!$G:$G,A22) -> 0
B22: =IFERROR(VLOOKUP(A22,Kontoplan!$A$2:$D$31,2,0),"") ->  | F22: =SUMIFS(Bogføring!$I:$I,Bogføring!$B:$B,">="&T!$C$4,Bogføring!$B:$B,"<="&T!$C$5,Bogføring!$G:$G,A22)-SUMIFS(Bogføring!$H:$H,Bogføring!$B:$B,">="&T!$C$4,Bogføring!$B:$B,"<="&T!$C$5,Bogføring!$G:$G,A22) -> 0 | G22: -1 | H22: =SUMIFS(Bogføring!$I:$I,Bogføring!$B:$B,">="&T!$D$4,Bogføring!$B:$B,"<="&T!$D$5,Bogføring!$G:$G,A23) -> 6538.19 | J22: =SUMIFS(Bogføring!$I:$I,Bogføring!$B:$B,">="&T!$E$4,Bogføring!$B:$B,"<="&T!$E$5,Bogføring!$G:$G,A23) -> 0
A23: 1130 | B23: =IFERROR(VLOOKUP(A23,Kontoplan!$A$2:$D$31,2,0),"") -> Diverse Indtægter | F23: =SUMIFS(Bogføring!$I:$I,Bogføring!$B:$B,">="&T!$C$4,Bogføring!$B:$B,"<="&T!$C$5,Bogføring!$G:$G,A23)-SUMIFS(Bogføring!$H:$H,Bogføring!$B:$B,">="&T!$C$4,Bogføring!$B:$B,"<="&T!$C$5,Bogføring!$G:$G,A23) -> 532.1 | H23: =SUMIFS(Bogføring!$I:$I,Bogføring!$B:$B,">="&T!$D$4,Bogføring!$B:$B,"<="&T!$D$5,Bogføring!$G:$G,A24) -> 0 | J23: =SUMIFS(Bogføring!$I:$I,Bogføring!$B:$B,">="&T!$E$4,Bogføring!$B:$B,"<="&T!$E$5,Bogføring!$G:$G,A24) -> 0
B24: =IFERROR(VLOOKUP(A24,Kontoplan!$A$2:$D$31,2,0),"") ->  | F24: =SUMIFS(Bogføring!$I:$I,Bogføring!$B:$B,">="&T!$C$4,Bogføring!$B:$B,"<="&T!$C$5,Bogføring!$G:$G,A24)-SUMIFS(Bogføring!$H:$H,Bogføring!$B:$B,">="&T!$C$4,Bogføring!$B:$B,"<="&T!$C$5,Bogføring!$G:$G,A24) -> 0 | H24: =SUMIFS(Bogføring!$I:$I,Bogføring!$B:$B,">="&T!$D$4,Bogføring!$B:$B,"<="&T!$D$5,Bogføring!$G:$G,#REF!) -> 0 | J24: =SUMIFS(Bogføring!$I:$I,Bogføring!$B:$B,">="&T!$E$4,Bogføring!$B:$B,"<="&T!$E$5,Bogføring!$G:$G,#REF!) -> 0
B25: =IFERROR(VLOOKUP(A25,Kontoplan!$A$2:$D$31,2,0),"") ->  | F25: =SUMIFS(Bogføring!$I:$I,Bogføring!$B:$B,">="&T!$C$4,Bogføring!$B:$B,"<="&T!$C$5,Bogføring!$G:$G,A25)-SUMIFS(Bogføring!$H:$H,Bogføring!$B:$B,">="&T!$C$4,Bogføring!$B:$B,"<="&T!$C$5,Bogføring!$G:$G,A25) -> 0 | H25: =SUMIFS(Bogføring!$I:$I,Bogføring!$B:$B,">="&T!$D$4,Bogføring!$B:$B,"<="&T!$D$5,Bogføring!$G:$G,A25) -> 0 | J25: =SUMIFS(Bogføring!$I:$I,Bogføring!$B:$B,">="&T!$E$4,Bogføring!$B:$B,"<="&T!$E$5,Bogføring!$G:$G,A25) -> 0
B27: Indtægter i alt | F27: =SUM(F12:F25) -> 103368.1 | G27: -0.6994527742 | H27: =SUM(H12:H25) -> 343932.97 | I27: =IFERROR((H27-J27)/H27,"") -> 1 | J27: =SUM(J12:J25) -> 0
E28: =IFERROR((D28-F28)/D28,"") ->  | G28: =IFERROR((F28-H28)/F28,"") ->  | I28: =IFERROR((H28-J28)/H28,"") -> 
B29: Udgifter | E29: =IFERROR((D29-F29)/D29,"") ->  | G29: =IFERROR((F29-H29)/F29,"") ->  | I29: =IFERROR((H29-J29)/H29,"") -> 
E30: =IFERROR((D30-F30)/D30,"") ->  | G30: =IFERROR((F30-H30)/F30,"") ->  | I30: =IFERROR((H30-J30)/H30,"") -> 
A31: 2000 | B31: =IFERROR(VLOOKUP(A31,Kontoplan!$A$2:$D$31,2,0),"") ->  | E31: =IFERROR(IF(D31=0,"",(D31-H31)/H31),"") ->  | F31: =SUMIFS(Bogføring!$H:$H,Bogføring!$B:$B,">="&T!$C$4,Bogføring!$B:$B,"<="&T!$C$5,Bogføring!$G:$G,A31)-SUMIFS(Bogføring!$I:$I,Bogføring!$B:$B,">="&T!$C$4,Bogføring!$B:$B,"<="&T!$C$5,Bogføring!$G:$G,A31) -> 109.5 | G31: =IFERROR((F31-H31)/H31,"") -> -0.8175699315 | H31: =SUMIFS(Bogføring!$H:$H,Bogføring!$B:$B,">="&T!$D$4,Bogføring!$B:$B,"<="&T!$D$5,Bogføring!$G:$G,A31) -> 600.23 | I31: =IFERROR((H31-J31)/J31,"") ->  | J31: =SUMIFS(Bogføring!$H:$H,Bogføring!$B:$B,">="&T!$E$4,Bogføring!$B:$B,"<="&T!$E$5,Bogføring!$G:$G,A31) -> 0
A32: 2010 | B32: =IFERROR(VLOOKUP(A32,Kontoplan!$A$2:$D$31,2,0),"") ->  | E32: =IFERROR(IF(D32=0,"",(D32-H32)/H32),"") ->  | F32: =SUMIFS(Bogføring!$H:$H,Bogføring!$B:$B,">="&T!$C$4,Bogføring!$B:$B,"<="&T!$C$5,Bogføring!$G:$G,A32)-SUMIFS(Bogføring!$I:$I,Bogføring!$B:$B,">="&T!$C$4,Bogføring!$B:$B,"<="&T!$C$5,Bogføring!$G:$G,A32) -> 27.5 | G32: =IFERROR((F32-H32)/H32,"") -> -0.987617298 | H32: =SUMIFS(Bogføring!$H:$H,Bogføring!$B:$B,">="&T!$D$4,Bogføring!$B:$B,"<="&T!$D$5,Bogføring!$G:$G,A32) -> 2220.84 | I32: =IFERROR((H32-J32)/J32,"") ->  | J32: =SUMIFS(Bogføring!$H:$H,Bogføring!$B:$B,">="&T!$E$4,Bogføring!$B:$B,"<="&T!$E$5,Bogføring!$G:$G,A32) -> 0
A33: 2020 | B33: =IFERROR(VLOOKUP(A33,Kontoplan!$A$2:$D$31,2,0),"") ->  | F33: =SUMIFS(Bogføring!$H:$H,Bogføring!$B:$B,">="&T!$C$4,Bogføring!$B:$B,"<="&T!$C$5,Bogføring!$G:$G,A33)-SUMIFS(Bogføring!$I:$I,Bogføring!$B:$B,">="&T!$C$4,Bogføring!$B:$B,"<="&T!$C$5,Bogføring!$G:$G,A33) -> 0 | G33: -1 | H33: =SUMIFS(Bogføring!$H:$H,Bogføring!$B:$B,">="&T!$D$4,Bogføring!$B:$B,"<="&T!$D$5,Bogføring!$G:$G,A33) -> 25000 | J33: =SUMIFS(Bogføring!$H:$H,Bogføring!$B:$B,">="&T!$E$4,Bogføring!$B:$B,"<="&T!$E$5,Bogføring!$G:$G,A33) -> 0
A34: 2025 | B34: =IFERROR(VLOOKUP(A34,Kontoplan!$A$2:$D$31,2,0),"") ->  | F34: =SUMIFS(Bogføring!$H:$H,Bogføring!$B:$B,">="&T!$C$4,Bogføring!$B:$B,"<="&T!$C$5,Bogføring!$G:$G,A34)-SUMIFS(Bogføring!$I:$I,Bogføring!$B:$B,">="&T!$C$4,Bogføring!$B:$B,"<="&T!$C$5,Bogføring!$G:$G,A34) -> 490.63 | G34: -0.5468876986 | H34: =SUMIFS(Bogføring!$H:$H,Bogføring!$B:$B,">="&T!$D$4,Bogføring!$B:$B,"<="&T!$D$5,Bogføring!$G:$G,A34) -> 1082.8 | J34: =SUMIFS(Bogføring!$H:$H,Bogføring!$B:$B,">="&T!$E$4,Bogføring!$B:$B,"<="&T!$E$5,Bogføring!$G:$G,A34) -> 0
A35: 2030 | B35: =IFERROR(VLOOKUP(A35,Kontoplan!$A$2:$D$31,2,0),"") ->  | F35: =SUMIFS(Bogføring!$H:$H,Bogføring!$B:$B,">="&T!$C$4,Bogføring!$B:$B,"<="&T!$C$5,Bogføring!$G:$G,A35)-SUMIFS(Bogføring!$I:$I,Bogføring!$B:$B,">="&T!$C$4,Bogføring!$B:$B,"<="&T!$C$5,Bogføring!$G:$G,A35) -> 329.7 | G35: -0.994142531 | H35: =SUMIFS(Bogføring!$H:$H,Bogføring!$B:$B,">="&T!$D$4,Bogføring!$B:$B,"<="&T!$D$5,Bogføring!$G:$G,A35) -> 56287.11 | J35: =SUMIFS(Bogføring!$H:$H,Bogføring!$B:$B,">="&T!$E$4,Bogføring!$B:$B,"<="&T!$E$5,Bogføring!$G:$G,A35) -> 0
A36: 2040 | B36: =IFERROR(VLOOKUP(A36,Kontoplan!$A$2:$D$31,2,0),"") ->  | F36: =SUMIFS(Bogføring!$H:$H,Bogføring!$B:$B,">="&T!$C$4,Bogføring!$B:$B,"<="&T!$C$5,Bogføring!$G:$G,A36)-SUMIFS(Bogføring!$I:$I,Bogføring!$B:$B,">="&T!$C$4,Bogføring!$B:$B,"<="&T!$C$5,Bogføring!$G:$G,A36) -> 27955.02 | G36: -0.2331739335 | H36: =SUMIFS(Bogføring!$H:$H,Bogføring!$B:$B,">="&T!$D$4,Bogføring!$B:$B,"<="&T!$D$5,Bogføring!$G:$G,A36) -> 36455.49 | J36: =SUMIFS(Bogføring!$H:$H,Bogføring!$B:$B,">="&T!$E$4,Bogføring!$B:$B,"<="&T!$E$5,Bogføring!$G:$G,A36) -> 0
A37: 2055 | B37: =IFERROR(VLOOKUP(A37,Kontoplan!$A$2:$D$31,2,0),"") ->  | F37: =SUMIFS(Bogføring!$H:$H,Bogføring!$B:$B,">="&T!$C$4,Bogføring!$B:$B,"<="&T!$C$5,Bogføring!$G:$G,A37)-SUMIFS(Bogføring!$I:$I,Bogføring!$B:$B,">="&T!$C$4,Bogføring!$B:$B,"<="&T!$C$5,Bogføring!$G:$G,A37) -> 0 | G37: -1 | H37: =SUMIFS(Bogføring!$H:$H,Bogføring!$B:$B,">="&T!$D$4,Bogføring!$B:$B,"<="&T!$D$5,Bogføring!$G:$G,A37) -> 693.65 | J37: =SUMIFS(Bogføring!$H:$H,Bogføring!$B:$B,">="&T!$E$4,Bogføring!$B:$B,"<="&T!$E$5,Bogføring!$G:$G,A37) -> 0
A38: 2060 | B38: =IFERROR(VLOOKUP(A38,Kontoplan!$A$2:$D$31,2,0),"") ->  | F38: =SUMIFS(Bogføring!$H:$H,Bogføring!$B:$B,">="&T!$C$4,Bogføring!$B:$B,"<="&T!$C$5,Bogføring!$G:$G,A38)-SUMIFS(Bogføring!$I:$I,Bogføring!$B:$B,">="&T!$C$4,Bogføring!$B:$B,"<="&T!$C$5,Bogføring!$G:$G,A38) -> 2230.96 | G38: -0.8669512565 | H38: =SUMIFS(Bogføring!$H:$H,Bogføring!$B:$B,">="&T!$D$4,Bogføring!$B:$B,"<="&T!$D$5,Bogføring!$G:$G,A38) -> 16767.99 | J38: =SUMIFS(Bogføring!$H:$H,Bogføring!$B:$B,">="&T!$E$4,Bogføring!$B:$B,"<="&T!$E$5,Bogføring!$G:$G,A38) -> 0
A39: 2065 | B39: =IFERROR(VLOOKUP(A39,Kontoplan!$A$2:$D$31,2,0),"") ->  | F39: =SUMIFS(Bogføring!$H:$H,Bogføring!$B:$B,">="&T!$C$4,Bogføring!$B:$B,"<="&T!$C$5,Bogføring!$G:$G,A39)-SUMIFS(Bogføring!$I:$I,Bogføring!$B:$B,">="&T!$C$4,Bogføring!$B:$B,"<="&T!$C$5,Bogføring!$G:$G,A39) -> 11386.63 | G39: -0.6800659164 | H39: =SUMIFS(Bogføring!$H:$H,Bogføring!$B:$B,">="&T!$D$4,Bogføring!$B:$B,"<="&T!$D$5,Bogføring!$G:$G,A39) -> 35590.55 | J39: =SUMIFS(Bogføring!$H:$H,Bogføring!$B:$B,">="&T!$E$4,Bogføring!$B:$B,"<="&T!$E$5,Bogføring!$G:$G,A39) -> 0
A40: 2070 | B40: =IFERROR(VLOOKUP(A40,Kontoplan!$A$2:$D$31,2,0),"") ->  | F40: =SUMIFS(Bogføring!$H:$H,Bogføring!$B:$B,">="&T!$C$4,Bogføring!$B:$B,"<="&T!$C$5,Bogføring!$G:$G,A40)-SUMIFS(Bogføring!$I:$I,Bogføring!$B:$B,">="&T!$C$4,Bogføring!$B:$B,"<="&T!$C$5,Bogføring!$G:$G,A40) -> 0 | G40: =IFERROR((F40-H40)/H40,"") -> -1 | H40: =SUMIFS(Bogføring!$H:$H,Bogføring!$B:$B,">="&T!$D$4,Bogføring!$B:$B,"<="&T!$D$5,Bogføring!$G:$G,A40) -> 1462.5 | J40: =SUMIFS(Bogføring!$H:$H,Bogføring!$B:$B,">="&T!$E$4,Bogføring!$B:$B,"<="&T!$E$5,Bogføring!$G:$G,A40) -> 0
A41: 2090 | B41: =IFERROR(VLOOKUP(A41,Kontoplan!$A$2:$D$31,2,0),"") ->  | F41: =SUMIFS(Bogføring!$H:$H,Bogføring!$B:$B,">="&T!$C$4,Bogføring!$B:$B,"<="&T!$C$5,Bogføring!$G:$G,A41)-SUMIFS(Bogføring!$I:$I,Bogføring!$B:$B,">="&T!$C$4,Bogføring!$B:$B,"<="&T!$C$5,Bogføring!$G:$G,A41) -> 100 | G41: -0.9615384615 | H41: =SUMIFS(Bogføring!$H:$H,Bogføring!$B:$B,">="&T!$D$4,Bogføring!$B:$B,"<="&T!$D$5,Bogføring!$G:$G,A41) -> 2600 | J41: =SUMIFS(Bogføring!$H:$H,Bogføring!$B:$B,">="&T!$E$4,Bogføring!$B:$B,"<="&T!$E$5,Bogføring!$G:$G,A41) -> 0
A42: 2100 | B42: =IFERROR(VLOOKUP(A42,Kontoplan!$A$2:$D$31,2,0),"") ->  | F42: =SUMIFS(Bogføring!$H:$H,Bogføring!$B:$B,">="&T!$C$4,Bogføring!$B:$B,"<="&T!$C$5,Bogføring!$G:$G,A42)-SUMIFS(Bogføring!$I:$I,Bogføring!$B:$B,">="&T!$C$4,Bogføring!$B:$B,"<="&T!$C$5,Bogføring!$G:$G,A42) -> 1405.25 | G42: -0.1783268917 | H42: =SUMIFS(Bogføring!$H:$H,Bogføring!$B:$B,">="&T!$D$4,Bogføring!$B:$B,"<="&T!$D$5,Bogføring!$G:$G,A42) -> 1710.23 | J42: =SUMIFS(Bogføring!$H:$H,Bogføring!$B:$B,">="&T!$E$4,Bogføring!$B:$B,"<="&T!$E$5,Bogføring!$G:$G,A42) -> 0
A43: 2140 | B43: =IFERROR(VLOOKUP(A43,Kontoplan!$A$2:$D$31,2,0),"") ->  | F43: =SUMIFS(Bogføring!$H:$H,Bogføring!$B:$B,">="&T!$C$4,Bogføring!$B:$B,"<="&T!$C$5,Bogføring!$G:$G,A43)-SUMIFS(Bogføring!$I:$I,Bogføring!$B:$B,">="&T!$C$4,Bogføring!$B:$B,"<="&T!$C$5,Bogføring!$G:$G,A43) -> 0 | G43: -1 | H43: =SUMIFS(Bogføring!$H:$H,Bogføring!$B:$B,">="&T!$D$4,Bogføring!$B:$B,"<="&T!$D$5,Bogføring!$G:$G,A43) -> 545 | J43: =SUMIFS(Bogføring!$H:$H,Bogføring!$B:$B,">="&T!$E$4,Bogføring!$B:$B,"<="&T!$E$5,Bogføring!$G:$G,A43) -> 0
A44: 2110 | B44: =IFERROR(VLOOKUP(A44,Kontoplan!$A$2:$D$31,2,0),"") ->  | F44: =SUMIFS(Bogføring!$H:$H,Bogføring!$B:$B,">="&T!$C$4,Bogføring!$B:$B,"<="&T!$C$5,Bogføring!$G:$G,A44)-SUMIFS(Bogføring!$I:$I,Bogføring!$B:$B,">="&T!$C$4,Bogføring!$B:$B,"<="&T!$C$5,Bogføring!$G:$G,A44) -> 1483.4 | G44: -0.7564315598 | H44: =SUMIFS(Bogføring!$H:$H,Bogføring!$B:$B,">="&T!$D$4,Bogføring!$B:$B,"<="&T!$D$5,Bogføring!$G:$G,A44) -> 6090.28 | J44: =SUMIFS(Bogføring!$H:$H,Bogføring!$B:$B,">="&T!$E$4,Bogføring!$B:$B,"<="&T!$E$5,Bogføring!$G:$G,A44) -> 0
A45: 2120 | B45: =IFERROR(VLOOKUP(A45,Kontoplan!$A$2:$D$31,2,0),"") ->  | F45: =SUMIFS(Bogføring!$H:$H,Bogføring!$B:$B,">="&T!$C$4,Bogføring!$B:$B,"<="&T!$C$5,Bogføring!$G:$G,A45)-SUMIFS(Bogføring!$I:$I,Bogføring!$B:$B,">="&T!$C$4,Bogføring!$B:$B,"<="&T!$C$5,Bogføring!$G:$G,A45) -> 0 | G45: -1 | H45: =SUMIFS(Bogføring!$H:$H,Bogføring!$B:$B,">="&T!$D$4,Bogføring!$B:$B,"<="&T!$D$5,Bogføring!$G:$G,A45) -> 947.14 | J45: =SUMIFS(Bogføring!$H:$H,Bogføring!$B:$B,">="&T!$E$4,Bogføring!$B:$B,"<="&T!$E$5,Bogføring!$G:$G,A45) -> 0
A46: 2165 | B46: =IFERROR(VLOOKUP(A46,Kontoplan!$A$2:$D$31,2,0),"") ->  | F46: =SUMIFS(Bogføring!$H:$H,Bogføring!$B:$B,">="&T!$C$4,Bogføring!$B:$B,"<="&T!$C$5,Bogføring!$G:$G,A46)-SUMIFS(Bogføring!$I:$I,Bogføring!$B:$B,">="&T!$C$4,Bogføring!$B:$B,"<="&T!$C$5,Bogføring!$G:$G,A46) -> 3785.94 | G46: -0.73935529 | H46: =SUMIFS(Bogføring!$H:$H,Bogføring!$B:$B,">="&T!$D$4,Bogføring!$B:$B,"<="&T!$D$5,Bogføring!$G:$G,A46) -> 14525.29 | J46: =SUMIFS(Bogføring!$H:$H,Bogføring!$B:$B,">="&T!$E$4,Bogføring!$B:$B,"<="&T!$E$5,Bogføring!$G:$G,A46) -> 0
A47: 2170 | B47: =IFERROR(VLOOKUP(A47,Kontoplan!$A$2:$D$31,2,0),"") ->  | F47: =SUMIFS(Bogføring!$H:$H,Bogføring!$B:$B,">="&T!$C$4,Bogføring!$B:$B,"<="&T!$C$5,Bogføring!$G:$G,A47)-SUMIFS(Bogføring!$I:$I,Bogføring!$B:$B,">="&T!$C$4,Bogføring!$B:$B,"<="&T!$C$5,Bogføring!$G:$G,A47) -> 306.1 | H47: =SUMIFS(Bogføring!$H:$H,Bogføring!$B:$B,">="&T!$D$4,Bogføring!$B:$B,"<="&T!$D$5,Bogføring!$G:$G,A47) -> 0 | J47: =SUMIFS(Bogføring!$H:$H,Bogføring!$B:$B,">="&T!$E$4,Bogføring!$B:$B,"<="&T!$E$5,Bogføring!$G:$G,A47) -> 0
A48: 2180 | B48: =IFERROR(VLOOKUP(A48,Kontoplan!$A$2:$D$31,2,0),"") ->  | F48: =SUMIFS(Bogføring!$H:$H,Bogføring!$B:$B,">="&T!$C$4,Bogføring!$B:$B,"<="&T!$C$5,Bogføring!$G:$G,A48)-SUMIFS(Bogføring!$I:$I,Bogføring!$B:$B,">="&T!$C$4,Bogføring!$B:$B,"<="&T!$C$5,Bogføring!$G:$G,A48) -> 0 | H48: =SUMIFS(Bogføring!$H:$H,Bogføring!$B:$B,">="&T!$D$4,Bogføring!$B:$B,"<="&T!$D$5,Bogføring!$G:$G,A48) -> 0 | I48: =IFERROR((H48-J48)/J48,"") ->  | J48: =SUMIFS(Bogføring!$H:$H,Bogføring!$B:$B,">="&T!$E$4,Bogføring!$B:$B,"<="&T!$E$5,Bogføring!$G:$G,A48) -> 0
A49: 2190 | B49: =IFERROR(VLOOKUP(A49,Kontoplan!$A$2:$D$31,2,0),"") ->  | F49: =SUMIFS(Bogføring!$H:$H,Bogføring!$B:$B,">="&T!$C$4,Bogføring!$B:$B,"<="&T!$C$5,Bogføring!$G:$G,A49)-SUMIFS(Bogføring!$I:$I,Bogføring!$B:$B,">="&T!$C$4,Bogføring!$B:$B,"<="&T!$C$5,Bogføring!$G:$G,A49) -> 0 | G49: =IFERROR((F49-H49)/H49,"") -> -1 | H49: =SUMIFS(Bogføring!$H:$H,Bogføring!$B:$B,">="&T!$D$4,Bogføring!$B:$B,"<="&T!$D$5,Bogføring!$G:$G,A49) -> 9777.4 | J49: =SUMIFS(Bogføring!$H:$H,Bogføring!$B:$B,">="&T!$E$4,Bogføring!$B:$B,"<="&T!$E$5,Bogføring!$G:$G,A49) -> 0
A50: 2200 | B50: =IFERROR(VLOOKUP(A50,Kontoplan!$A$2:$D$31,2,0),"") ->  | F50: =SUMIFS(Bogføring!$H:$H,Bogføring!$B:$B,">="&T!$C$4,Bogføring!$B:$B,"<="&T!$C$5,Bogføring!$G:$G,A50)-SUMIFS(Bogføring!$I:$I,Bogføring!$B:$B,">="&T!$C$4,Bogføring!$B:$B,"<="&T!$C$5,Bogføring!$G:$G,A50) -> 0 | G50: -1 | H50: =SUMIFS(Bogføring!$H:$H,Bogføring!$B:$B,">="&T!$D$4,Bogføring!$B:$B,"<="&T!$D$5,Bogføring!$G:$G,A50) -> 2250 | J50: =SUMIFS(Bogføring!$H:$H,Bogføring!$B:$B,">="&T!$E$4,Bogføring!$B:$B,"<="&T!$E$5,Bogføring!$G:$G,A50) -> 0
A51: 3100 | B51: =IFERROR(VLOOKUP(A51,Kontoplan!$A$2:$D$31,2,0),"") ->  | F51: =SUMIFS(Bogføring!$H:$H,Bogføring!$B:$B,">="&T!$C$4,Bogføring!$B:$B,"<="&T!$C$5,Bogføring!$G:$G,A51)-SUMIFS(Bogføring!$I:$I,Bogføring!$B:$B,">="&T!$C$4,Bogføring!$B:$B,"<="&T!$C$5,Bogføring!$G:$G,A51) -> 0 | G51: -1 | H51: =SUMIFS(Bogføring!$H:$H,Bogføring!$B:$B,">="&T!$D$4,Bogføring!$B:$B,"<="&T!$D$5,Bogføring!$G:$G,A51) -> 37480.11 | J51: =SUMIFS(Bogføring!$H:$H,Bogføring!$B:$B,">="&T!$E$4,Bogføring!$B:$B,"<="&T!$E$5,Bogføring!$G:$G,A51) -> 0
A52: 3110 | B52: =IFERROR(VLOOKUP(A52,Kontoplan!$A$2:$D$31,2,0),"") ->  | F52: =SUMIFS(Bogføring!$H:$H,Bogføring!$B:$B,">="&T!$C$4,Bogføring!$B:$B,"<="&T!$C$5,Bogføring!$G:$G,A52)-SUMIFS(Bogføring!$I:$I,Bogføring!$B:$B,">="&T!$C$4,Bogføring!$B:$B,"<="&T!$C$5,Bogføring!$G:$G,A52) -> 40800 | G52: -0.5729009416 | H52: =SUMIFS(Bogføring!$H:$H,Bogføring!$B:$B,">="&T!$D$4,Bogføring!$B:$B,"<="&T!$D$5,Bogføring!$G:$G,A52) -> 95528.19 | J52: =SUMIFS(Bogføring!$H:$H,Bogføring!$B:$B,">="&T!$E$4,Bogføring!$B:$B,"<="&T!$E$5,Bogføring!$G:$G,A52) -> 0
A53: 3120 | B53: =IFERROR(VLOOKUP(A53,Kontoplan!$A$2:$D$31,2,0),"") ->  | F53: =SUMIFS(Bogføring!$H:$H,Bogføring!$B:$B,">="&T!$C$4,Bogføring!$B:$B,"<="&T!$C$5,Bogføring!$G:$G,A53)-SUMIFS(Bogføring!$I:$I,Bogføring!$B:$B,">="&T!$C$4,Bogføring!$B:$B,"<="&T!$C$5,Bogføring!$G:$G,A53) -> 820.3 | G53: -0.6583008768 | H53: =SUMIFS(Bogføring!$H:$H,Bogføring!$B:$B,">="&T!$D$4,Bogføring!$B:$B,"<="&T!$D$5,Bogføring!$G:$G,A53) -> 2400.65 | J53: =SUMIFS(Bogføring!$H:$H,Bogføring!$B:$B,">="&T!$E$4,Bogføring!$B:$B,"<="&T!$E$5,Bogføring!$G:$G,A53) -> 0
B54: =IFERROR(VLOOKUP(A54,Kontoplan!$A$2:$D$31,2,0),"") ->  | F54: =SUMIFS(Bogføring!$H:$H,Bogføring!$B:$B,">="&T!$C$4,Bogføring!$B:$B,"<="&T!$C$5,Bogføring!$G:$G,A54)-SUMIFS(Bogføring!$I:$I,Bogføring!$B:$B,">="&T!$C$4,Bogføring!$B:$B,"<="&T!$C$5,Bogføring!$G:$G,A54) -> 0 | H54: =SUMIFS(Bogføring!$H:$H,Bogføring!$B:$B,">="&T!$D$4,Bogføring!$B:$B,"<="&T!$D$5,Bogføring!$G:$G,A54) -> 0 | J54: =SUMIFS(Bogføring!$H:$H,Bogføring!$B:$B,">="&T!$E$4,Bogføring!$B:$B,"<="&T!$E$5,Bogføring!$G:$G,A54) -> 0
B55: =IFERROR(VLOOKUP(A55,Kontoplan!$A$2:$D$31,2,0),"") ->  | F55: =SUMIFS(Bogføring!$H:$H,Bogføring!$B:$B,">="&T!$C$4,Bogføring!$B:$B,"<="&T!$C$5,Bogføring!$G:$G,A55)-SUMIFS(Bogføring!$I:$I,Bogføring!$B:$B,">="&T!$C$4,Bogføring!$B:$B,"<="&T!$C$5,Bogføring!$G:$G,A55) -> 0 | H55: =SUMIFS(Bogføring!$H:$H,Bogføring!$B:$B,">="&T!$D$4,Bogføring!$B:$B,"<="&T!$D$5,Bogføring!$G:$G,A55) -> 0 | J55: =SUMIFS(Bogføring!$H:$H,Bogføring!$B:$B,">="&T!$E$4,Bogføring!$B:$B,"<="&T!$E$5,Bogføring!$G:$G,A55) -> 0
B56: =IFERROR(VLOOKUP(A56,Kontoplan!$A$2:$D$31,2,0),"") ->  | F56: =SUMIFS(Bogføring!$H:$H,Bogføring!$B:$B,">="&T!$C$4,Bogføring!$B:$B,"<="&T!$C$5,Bogføring!$G:$G,A56)-SUMIFS(Bogføring!$I:$I,Bogføring!$B:$B,">="&T!$C$4,Bogføring!$B:$B,"<="&T!$C$5,Bogføring!$G:$G,A56) -> 0 | H56: =SUMIFS(Bogføring!$H:$H,Bogføring!$B:$B,">="&T!$D$4,Bogføring!$B:$B,"<="&T!$D$5,Bogføring!$G:$G,A56) -> 0 | J56: =SUMIFS(Bogføring!$H:$H,Bogføring!$B:$B,">="&T!$E$4,Bogføring!$B:$B,"<="&T!$E$5,Bogføring!$G:$G,A56) -> 0
B58: Udgifter i alt | F58: =SUM(F31:F57) -> 91230.93 | G58: -0.7393517058 | H58: =SUM(H31:H57) -> 350015.45 | J58: =SUM(J31:J57) -> 0
B60: =IF(F60<0,"Årets resultat, Underskud","Årets resultat, Overskud") -> Årets resultat, Overskud | F60: =F27-F58 -> 12137.17 | G60: =IFERROR((F60-H60)/H60,"") -> -2.99543114 | H60: =H27-H58 -> -6082.48 | J60: =J27-J58 -> 0
E61: =IFERROR((D61-F61)/D61,"") ->  | G61: =IFERROR((F61-H61)/F61,"") ->  | I61: =IFERROR((H61-J61)/H61,"") -> 

Sheet Kontoplan (2) (hidden)
A1: Konto | B1: Kontobeskrivelse | C1: Saldo | D1: Kommentarer | E1: Fra | F1: Til
A2: 1000 | B2: Entre | C2: =SUMIFS(Bogføring!$I:$I,Bogføring!$B:$B,">="&T!$C$4,Bogføring!$B:$B,"<="&T!$C$5,Bogføring!$G:$G,A2)-SUMIFS(Bogføring!$H:$H,Bogføring!$B:$B,">="&T!$C$4,Bogføring!$B:$B,"<="&T!$C$5,Bogføring!$G:$G,A2) -> 8740 | D2: =SUM(C3:C10) -> 0
A3: 1001 | B3: Voksne | C3: =SUMIFS(Bogføring!$I:$I,Bogføring!$B:$B,">="&T!$C$4,Bogføring!$B:$B,"<="&T!$C$5,Bogføring!$G:$G,A3)-SUMIFS(Bogføring!$H:$H,Bogføring!$B:$B,">="&T!$C$4,Bogføring!$B:$B,"<="&T!$C$5,Bogføring!$G:$G,A3) -> 0 | I3: 14603.17
A4: 1002 | B4: Pensionister | C4: =SUMIFS(Bogføring!$I:$I,Bogføring!$B:$B,">="&T!$C$4,Bogføring!$B:$B,"<="&T!$C$5,Bogføring!$G:$G,A4)-SUMIFS(Bogføring!$H:$H,Bogføring!$B:$B,">="&T!$C$4,Bogføring!$B:$B,"<="&T!$C$5,Bogføring!$G:$G,A4) -> 0
A5: 1003 | B5: Børn 6/16 | C5: =SUMIFS(Bogføring!$I:$I,Bogføring!$B:$B,">="&T!$C$4,Bogføring!$B:$B,"<="&T!$C$5,Bogføring!$G:$G,A5)-SUMIFS(Bogføring!$H:$H,Bogføring!$B:$B,">="&T!$C$4,Bogføring!$B:$B,"<="&T!$C$5,Bogføring!$G:$G,A5) -> 0
A6: 1004 | B6: Børn u/6 | C6: =SUMIFS(Bogføring!$I:$I,Bogføring!$B:$B,">="&T!$C$4,Bogføring!$B:$B,"<="&T!$C$5,Bogføring!$G:$G,A6)-SUMIFS(Bogføring!$H:$H,Bogføring!$B:$B,">="&T!$C$4,Bogføring!$B:$B,"<="&T!$C$5,Bogføring!$G:$G,A6) -> 0
A7: 1005 | B7: skoler | C7: =SUMIFS(Bogføring!$I:$I,Bogføring!$B:$B,">="&T!$C$4,Bogføring!$B:$B,"<="&T!$C$5,Bogføring!$G:$G,A7)-SUMIFS(Bogføring!$H:$H,Bogføring!$B:$B,">="&T!$C$4,Bogføring!$B:$B,"<="&T!$C$5,Bogføring!$G:$G,A7) -> 0
A8: 1006 | B8: BH skoler | C8: =SUMIFS(Bogføring!$I:$I,Bogføring!$B:$B,">="&T!$C$4,Bogføring!$B:$B,"<="&T!$C$5,Bogføring!$G:$G,A8)-SUMIFS(Bogføring!$H:$H,Bogføring!$B:$B,">="&T!$C$4,Bogføring!$B:$B,"<="&T!$C$5,Bogføring!$G:$G,A8) -> 0
A9: 1007 | B9: Grupper | C9: =SUMIFS(Bogføring!$I:$I,Bogføring!$B:$B,">="&T!$C$4,Bogføring!$B:$B,"<="&T!$C$5,Bogføring!$G:$G,A9)-SUMIFS(Bogføring!$H:$H,Bogføring!$B:$B,">="&T!$C$4,Bogføring!$B:$B,"<="&T!$C$5,Bogføring!$G:$G,A9) -> 0
A10: 1008 | B10: Militær ID | C10: =SUMIFS(Bogføring!$I:$I,Bogføring!$B:$B,">="&T!$C$4,Bogføring!$B:$B,"<="&T!$C$5,Bogføring!$G:$G,A10)-SUMIFS(Bogføring!$H:$H,Bogføring!$B:$B,">="&T!$C$4,Bogføring!$B:$B,"<="&T!$C$5,Bogføring!$G:$G,A10) -> 0
A11: 1010 | B11: Kiosk salg | C11: =SUMIFS(Bogføring!$I:$I,Bogføring!$B:$B,">="&T!$C$4,Bogføring!$B:$B,"<="&T!$C$5,Bogføring!$G:$G,A11)-SUMIFS(Bogføring!$H:$H,Bogføring!$B:$B,">="&T!$C$4,Bogføring!$B:$B,"<="&T!$C$5,Bogføring!$G:$G,A11) -> 75
A12: 1011 | B12: Sodavand | C12: =SUMIFS(Bogføring!$I:$I,Bogføring!$B:$B,">="&T!$C$4,Bogføring!$B:$B,"<="&T!$C$5,Bogføring!$G:$G,A12)-SUMIFS(Bogføring!$H:$H,Bogføring!$B:$B,">="&T!$C$4,Bogføring!$B:$B,"<="&T!$C$5,Bogføring!$G:$G,A12) -> 0
A13: 1012 | B13: kort | C13: =SUMIFS(Bogføring!$I:$I,Bogføring!$B:$B,">="&T!$C$4,Bogføring!$B:$B,"<="&T!$C$5,Bogføring!$G:$G,A13)-SUMIFS(Bogføring!$H:$H,Bogføring!$B:$B,">="&T!$C$4,Bogføring!$B:$B,"<="&T!$C$5,Bogføring!$G:$G,A13) -> 0
A14: 1013 | B14: Bælter | C14: =SUMIFS(Bogføring!$I:$I,Bogføring!$B:$B,">="&T!$C$4,Bogføring!$B:$B,"<="&T!$C$5,Bogføring!$G:$G,A14)-SUMIFS(Bogføring!$H:$H,Bogføring!$B:$B,">="&T!$C$4,Bogføring!$B:$B,"<="&T!$C$5,Bogføring!$G:$G,A14) -> 0
A15: 1014 | B15: Færdige Tinsoldater | C15: =SUMIFS(Bogføring!$I:$I,Bogføring!$B:$B,">="&T!$C$4,Bogføring!$B:$B,"<="&T!$C$5,Bogføring!$G:$G,A15)-SUMIFS(Bogføring!$H:$H,Bogføring!$B:$B,">="&T!$C$4,Bogføring!$B:$B,"<="&T!$C$5,Bogføring!$G:$G,A15) -> 0
A16: 1015
A17: 1020 | B17: Tilskud BRK | C17: =SUMIFS(Bogføring!$I:$I,Bogføring!$B:$B,">="&T!$C$4,Bogføring!$B:$B,"<="&T!$C$5,Bogføring!$G:$G,A17)-SUMIFS(Bogføring!$H:$H,Bogføring!$B:$B,">="&T!$C$4,Bogføring!$B:$B,"<="&T!$C$5,Bogføring!$G:$G,A17) -> 74021
A18: 1030 | B18: Tilskud KVB | C18: =SUMIFS(Bogføring!$I:$I,Bogføring!$B:$B,">="&T!$C$4,Bogføring!$B:$B,"<="&T!$C$5,Bogføring!$G:$G,A18)-SUMIFS(Bogføring!$H:$H,Bogføring!$B:$B,">="&T!$C$4,Bogføring!$B:$B,"<="&T!$C$5,Bogføring!$G:$G,A18) -> 20000
A19: 1040 | B19: Fonde/Gaver | C19: =SUMIFS(Bogføring!$I:$I,Bogføring!$B:$B,">="&T!$C$4,Bogføring!$B:$B,"<="&T!$C$5,Bogføring!$G:$G,A19)-SUMIFS(Bogføring!$H:$H,Bogføring!$B:$B,">="&T!$C$4,Bogføring!$B:$B,"<="&T!$C$5,Bogføring!$G:$G,A19) -> 0
A20: 1050 | B20: Aktiviteter | C20: =SUMIFS(Bogføring!$I:$I,Bogføring!$B:$B,">="&T!$C$4,Bogføring!$B:$B,"<="&T!$C$5,Bogføring!$G:$G,A20)-SUMIFS(Bogføring!$H:$H,Bogføring!$B:$B,">="&T!$C$4,Bogføring!$B:$B,"<="&T!$C$5,Bogføring!$G:$G,A20) -> 0
A21: 1060 | C21: =SUMIFS(Bogføring!$I:$I,Bogføring!$B:$B,">="&T!$C$4,Bogføring!$B:$B,"<="&T!$C$5,Bogføring!$G:$G,A21)-SUMIFS(Bogføring!$H:$H,Bogføring!$B:$B,">="&T!$C$4,Bogføring!$B:$B,"<="&T!$C$5,Bogføring!$G:$G,A21) -> 0
A22: 1070 | B22: Pengegaver | C22: =SUMIFS(Bogføring!$I:$I,Bogføring!$B:$B,">="&T!$C$4,Bogføring!$B:$B,"<="&T!$C$5,Bogføring!$G:$G,A22)-SUMIFS(Bogføring!$H:$H,Bogføring!$B:$B,">="&T!$C$4,Bogføring!$B:$B,"<="&T!$C$5,Bogføring!$G:$G,A22) -> 0
A23: 1080 | B23: Flaskepant retur | C23: =SUMIFS(Bogføring!$I:$I,Bogføring!$B:$B,">="&T!$C$4,Bogføring!$B:$B,"<="&T!$C$5,Bogføring!$G:$G,A23)-SUMIFS(Bogføring!$H:$H,Bogføring!$B:$B,">="&T!$C$4,Bogføring!$B:$B,"<="&T!$C$5,Bogføring!$G:$G,A23) -> 0
A24: 1090 | B24: Kassedifferance | C24: =SUMIFS(Bogføring!$I:$I,Bogføring!$B:$B,">="&T!$C$4,Bogføring!$B:$B,"<="&T!$C$5,Bogføring!$G:$G,A24)-SUMIFS(Bogføring!$H:$H,Bogføring!$B:$B,">="&T!$C$4,Bogføring!$B:$B,"<="&T!$C$5,Bogføring!$G:$G,A24) -> 0
A25: 1100 | C25: =SUMIFS(Bogføring!$I:$I,Bogføring!$B:$B,">="&T!$C$4,Bogføring!$B:$B,"<="&T!$C$5,Bogføring!$G:$G,A25)-SUMIFS(Bogføring!$H:$H,Bogføring!$B:$B,">="&T!$C$4,Bogføring!$B:$B,"<="&T!$C$5,Bogføring!$G:$G,A25) -> 0
A26: 1110 | C26: =SUMIFS(Bogføring!$I:$I,Bogføring!$B:$B,">="&T!$C$4,Bogføring!$B:$B,"<="&T!$C$5,Bogføring!$G:$G,A26)-SUMIFS(Bogføring!$H:$H,Bogføring!$B:$B,">="&T!$C$4,Bogføring!$B:$B,"<="&T!$C$5,Bogføring!$G:$G,A26) -> 2.9
A27: 1120 | C27: =SUMIFS(Bogføring!$I:$I,Bogføring!$B:$B,">="&T!$C$4,Bogføring!$B:$B,"<="&T!$C$5,Bogføring!$G:$G,A27)-SUMIFS(Bogføring!$H:$H,Bogføring!$B:$B,">="&T!$C$4,Bogføring!$B:$B,"<="&T!$C$5,Bogføring!$G:$G,A27) -> 11493.46
A28: 1130 | B28: Diverse Indtægter | C28: =SUMIFS(Bogføring!$I:$I,Bogføring!$B:$B,">="&T!$C$4,Bogføring!$B:$B,"<="&T!$C$5,Bogføring!$G:$G,A28)-SUMIFS(Bogføring!$H:$H,Bogføring!$B:$B,">="&T!$C$4,Bogføring!$B:$B,"<="&T!$C$5,Bogføring!$G:$G,A28) -> 532.1 | G28: =SUM(C2:C28) -> 114864.46
A29: 2000 | B29: Bankgebyr+iZ | C29: =SUMIFS(Bogføring!$H:$H,Bogføring!$B:$B,">="&T!$C$4,Bogføring!$B:$B,"<="&T!$C$5,Bogføring!$G:$G,A29)-SUMIFS(Bogføring!$I:$I,Bogføring!$B:$B,">="&T!$C$4,Bogføring!$B:$B,"<="&T!$C$5,Bogføring!$G:$G,A29) -> 109.5
A30: 2010 | B30: Visma | C30: =SUMIFS(Bogføring!$H:$H,Bogføring!$B:$B,">="&T!$C$4,Bogføring!$B:$B,"<="&T!$C$5,Bogføring!$G:$G,A30)-SUMIFS(Bogføring!$I:$I,Bogføring!$B:$B,">="&T!$C$4,Bogføring!$B:$B,"<="&T!$C$5,Bogføring!$G:$G,A30) -> 27.5
A31: 2020 | B31: Revision | C31: =SUMIFS(Bogføring!$H:$H,Bogføring!$B:$B,">="&T!$C$4,Bogføring!$B:$B,"<="&T!$C$5,Bogføring!$G:$G,A31)-SUMIFS(Bogføring!$I:$I,Bogføring!$B:$B,">="&T!$C$4,Bogføring!$B:$B,"<="&T!$C$5,Bogføring!$G:$G,A31) -> 0
A32: 2030 | B32: Bygnings vedligehold | C32: =SUMIFS(Bogføring!$H:$H,Bogføring!$B:$B,">="&T!$C$4,Bogføring!$B:$B,"<="&T!$C$5,Bogføring!$G:$G,A32)-SUMIFS(Bogføring!$I:$I,Bogføring!$B:$B,">="&T!$C$4,Bogføring!$B:$B,"<="&T!$C$5,Bogføring!$G:$G,A32) -> 329.7
A33: 2040 | B33: El, Vand og Varme | C33: =SUMIFS(Bogføring!$H:$H,Bogføring!$B:$B,">="&T!$C$4,Bogføring!$B:$B,"<="&T!$C$5,Bogføring!$G:$G,A33)-SUMIFS(Bogføring!$I:$I,Bogføring!$B:$B,">="&T!$C$4,Bogføring!$B:$B,"<="&T!$C$5,Bogføring!$G:$G,A33) -> 27955.02
A34: 2050 | B34: Deltagelse i GF i Andre Foren. | C34: =SUMIFS(Bogføring!$H:$H,Bogføring!$B:$B,">="&T!$C$4,Bogføring!$B:$B,"<="&T!$C$5,Bogføring!$G:$G,A34)-SUMIFS(Bogføring!$I:$I,Bogføring!$B:$B,">="&T!$C$4,Bogføring!$B:$B,"<="&T!$C$5,Bogføring!$G:$G,A34) -> 0
A35: 2055 | B35: Indkøb af øl + vand | C35: =SUMIFS(Bogføring!$H:$H,Bogføring!$B:$B,">="&T!$C$4,Bogføring!$B:$B,"<="&T!$C$5,Bogføring!$G:$G,A35)-SUMIFS(Bogføring!$I:$I,Bogføring!$B:$B,">="&T!$C$4,Bogføring!$B:$B,"<="&T!$C$5,Bogføring!$G:$G,A35) -> 0
A36: 2060 | B36: Internet, mobiltelefon, Forsik. | C36: =SUMIFS(Bogføring!$H:$H,Bogføring!$B:$B,">="&T!$C$4,Bogføring!$B:$B,"<="&T!$C$5,Bogføring!$G:$G,A36)-SUMIFS(Bogføring!$I:$I,Bogføring!$B:$B,">="&T!$C$4,Bogføring!$B:$B,"<="&T!$C$5,Bogføring!$G:$G,A36) -> 2230.96
A37: 2065 | B37: Udstilling | C37: =SUMIFS(Bogføring!$H:$H,Bogføring!$B:$B,">="&T!$C$4,Bogføring!$B:$B,"<="&T!$C$5,Bogføring!$G:$G,A37)-SUMIFS(Bogføring!$I:$I,Bogføring!$B:$B,">="&T!$C$4,Bogføring!$B:$B,"<="&T!$C$5,Bogføring!$G:$G,A37) -> 11386.63
A38: 2070 | B38: Tin og sortkrudt | C38: =SUMIFS(Bogføring!$H:$H,Bogføring!$B:$B,">="&T!$C$4,Bogføring!$B:$B,"<="&T!$C$5,Bogføring!$G:$G,A38)-SUMIFS(Bogføring!$I:$I,Bogføring!$B:$B,">="&T!$C$4,Bogføring!$B:$B,"<="&T!$C$5,Bogføring!$G:$G,A38) -> 0
A39: 2075 | B39: Gaver | C39: =SUMIFS(Bogføring!$H:$H,Bogføring!$B:$B,">="&T!$C$4,Bogføring!$B:$B,"<="&T!$C$5,Bogføring!$G:$G,A39)-SUMIFS(Bogføring!$I:$I,Bogføring!$B:$B,">="&T!$C$4,Bogføring!$B:$B,"<="&T!$C$5,Bogføring!$G:$G,A39) -> 170
A40: 2090 | B40: Kontigent til andre Foreninger | C40: =SUMIFS(Bogføring!$H:$H,Bogføring!$B:$B,">="&T!$C$4,Bogføring!$B:$B,"<="&T!$C$5,Bogføring!$G:$G,A40)-SUMIFS(Bogføring!$I:$I,Bogføring!$B:$B,">="&T!$C$4,Bogføring!$B:$B,"<="&T!$C$5,Bogføring!$G:$G,A40) -> 100
A41: 2100 | B41: Forplejning til møder/Rejser | C41: =SUMIFS(Bogføring!$H:$H,Bogføring!$B:$B,">="&T!$C$4,Bogføring!$B:$B,"<="&T!$C$5,Bogføring!$G:$G,A41)-SUMIFS(Bogføring!$I:$I,Bogføring!$B:$B,">="&T!$C$4,Bogføring!$B:$B,"<="&T!$C$5,Bogføring!$G:$G,A41) -> 1405.25
A42: 2110 | B42: Kontorhold - Porto - IT | C42: =SUMIFS(Bogføring!$H:$H,Bogføring!$B:$B,">="&T!$C$4,Bogføring!$B:$B,"<="&T!$C$5,Bogføring!$G:$G,A42)-SUMIFS(Bogføring!$I:$I,Bogføring!$B:$B,">="&T!$C$4,Bogføring!$B:$B,"<="&T!$C$5,Bogføring!$G:$G,A42) -> 1483.4
A43: 2120 | B43: Hjemmeside | C43: =SUMIFS(Bogføring!$H:$H,Bogføring!$B:$B,">="&T!$C$4,Bogføring!$B:$B,"<="&T!$C$5,Bogføring!$G:$G,A43)-SUMIFS(Bogføring!$I:$I,Bogføring!$B:$B,">="&T!$C$4,Bogføring!$B:$B,"<="&T!$C$5,Bogføring!$G:$G,A43) -> 0
A44: 2130 | B44: Annoncer | C44: =SUMIFS(Bogføring!$H:$H,Bogføring!$B:$B,">="&T!$C$4,Bogføring!$B:$B,"<="&T!$C$5,Bogføring!$G:$G,A44)-SUMIFS(Bogføring!$I:$I,Bogføring!$B:$B,">="&T!$C$4,Bogføring!$B:$B,"<="&T!$C$5,Bogføring!$G:$G,A44) -> 2318.75
A45: 2140 | B45: Kassedifferance | C45: =SUMIFS(Bogføring!$H:$H,Bogføring!$B:$B,">="&T!$C$4,Bogføring!$B:$B,"<="&T!$C$5,Bogføring!$G:$G,A45)-SUMIFS(Bogføring!$I:$I,Bogføring!$B:$B,">="&T!$C$4,Bogføring!$B:$B,"<="&T!$C$5,Bogføring!$G:$G,A45) -> 0
A46: 2150 | B46: Øreafrundning | C46: =SUMIFS(Bogføring!$H:$H,Bogføring!$B:$B,">="&T!$C$4,Bogføring!$B:$B,"<="&T!$C$5,Bogføring!$G:$G,A46)-SUMIFS(Bogføring!$I:$I,Bogføring!$B:$B,">="&T!$C$4,Bogføring!$B:$B,"<="&T!$C$5,Bogføring!$G:$G,A46) -> 0
A47: 2160 | B47: Rejser | C47: =SUMIFS(Bogføring!$H:$H,Bogføring!$B:$B,">="&T!$C$4,Bogføring!$B:$B,"<="&T!$C$5,Bogføring!$G:$G,A47)-SUMIFS(Bogføring!$I:$I,Bogføring!$B:$B,">="&T!$C$4,Bogføring!$B:$B,"<="&T!$C$5,Bogføring!$G:$G,A47) -> 0
A48: 2165 | B48: G4S tyverialarm | C48: =SUMIFS(Bogføring!$H:$H,Bogføring!$B:$B,">="&T!$C$4,Bogføring!$B:$B,"<="&T!$C$5,Bogføring!$G:$G,A48)-SUMIFS(Bogføring!$I:$I,Bogføring!$B:$B,">="&T!$C$4,Bogføring!$B:$B,"<="&T!$C$5,Bogføring!$G:$G,A48) -> 3785.94
A49: 2170 | B49: Afholdelse af GF | C49: =SUMIFS(Bogføring!$H:$H,Bogføring!$B:$B,">="&T!$C$4,Bogføring!$B:$B,"<="&T!$C$5,Bogføring!$G:$G,A49)-SUMIFS(Bogføring!$I:$I,Bogføring!$B:$B,">="&T!$C$4,Bogføring!$B:$B,"<="&T!$C$5,Bogføring!$G:$G,A49) -> 306.1
A50: 2180 | B50: Bestyrelses møder | C50: =SUMIFS(Bogføring!$H:$H,Bogføring!$B:$B,">="&T!$C$4,Bogføring!$B:$B,"<="&T!$C$5,Bogføring!$G:$G,A50)-SUMIFS(Bogføring!$I:$I,Bogføring!$B:$B,">="&T!$C$4,Bogføring!$B:$B,"<="&T!$C$5,Bogføring!$G:$G,A50) -> 0
A51: 2190 | B51: Diverse Udgifter | C51: =SUMIFS(Bogføring!$H:$H,Bogføring!$B:$B,">="&T!$C$4,Bogføring!$B:$B,"<="&T!$C$5,Bogføring!$G:$G,A51)-SUMIFS(Bogføring!$I:$I,Bogføring!$B:$B,">="&T!$C$4,Bogføring!$B:$B,"<="&T!$C$5,Bogføring!$G:$G,A51) -> 0
A52: 2200 | B52: Kontingenter overført til KVB | C52: =SUMIFS(Bogføring!$H:$H,Bogføring!$B:$B,">="&T!$C$4,Bogføring!$B:$B,"<="&T!$C$5,Bogføring!$G:$G,A52)-SUMIFS(Bogføring!$I:$I,Bogføring!$B:$B,">="&T!$C$4,Bogføring!$B:$B,"<="&T!$C$5,Bogføring!$G:$G,A52) -> 0
A53: 3100 | B53: Lønomkostninger | C53: =SUMIFS(Bogføring!$H:$H,Bogføring!$B:$B,">="&T!$C$4,Bogføring!$B:$B,"<="&T!$C$5,Bogføring!$G:$G,A53)-SUMIFS(Bogføring!$I:$I,Bogføring!$B:$B,">="&T!$C$4,Bogføring!$B:$B,"<="&T!$C$5,Bogføring!$G:$G,A53) -> 0
A54: 3110 | B54: Løn inkl. feriepenge | C54: =SUMIFS(Bogføring!$H:$H,Bogføring!$B:$B,">="&T!$C$4,Bogføring!$B:$B,"<="&T!$C$5,Bogføring!$G:$G,A54)-SUMIFS(Bogføring!$I:$I,Bogføring!$B:$B,">="&T!$C$4,Bogføring!$B:$B,"<="&T!$C$5,Bogføring!$G:$G,A54) -> 40800
A55: 3120 | B55: ATP | C55: =SUMIFS(Bogføring!$H:$H,Bogføring!$B:$B,">="&T!$C$4,Bogføring!$B:$B,"<="&T!$C$5,Bogføring!$G:$G,A55)-SUMIFS(Bogføring!$I:$I,Bogføring!$B:$B,">="&T!$C$4,Bogføring!$B:$B,"<="&T!$C$5,Bogføring!$G:$G,A55) -> 820.3
A56: 3130 | B56: Am | C56: =SUMIFS(Bogføring!$H:$H,Bogføring!$B:$B,">="&T!$C$4,Bogføring!$B:$B,"<="&T!$C$5,Bogføring!$G:$G,A56)-SUMIFS(Bogføring!$I:$I,Bogføring!$B:$B,">="&T!$C$4,Bogføring!$B:$B,"<="&T!$C$5,Bogføring!$G:$G,A56) -> 3664
A57: 3140 | B57: Lønsum | C57: =SUMIFS(Bogføring!$H:$H,Bogføring!$B:$B,">="&T!$C$4,Bogføring!$B:$B,"<="&T!$C$5,Bogføring!$G:$G,A57)-SUMIFS(Bogføring!$I:$I,Bogføring!$B:$B,">="&T!$C$4,Bogføring!$B:$B,"<="&T!$C$5,Bogføring!$G:$G,A57) -> 0
C58: =SUMIFS(Bogføring!$H:$H,Bogføring!$B:$B,">="&T!$C$4,Bogføring!$B:$B,"<="&T!$C$5,Bogføring!$G:$G,A58)-SUMIFS(Bogføring!$I:$I,Bogføring!$B:$B,">="&T!$C$4,Bogføring!$B:$B,"<="&T!$C$5,Bogføring!$G:$G,A58) -> 0
C59: =SUMIFS(Bogføring!$H:$H,Bogføring!$B:$B,">="&T!$C$4,Bogføring!$B:$B,"<="&T!$C$5,Bogføring!$G:$G,A59)-SUMIFS(Bogføring!$I:$I,Bogføring!$B:$B,">="&T!$C$4,Bogføring!$B:$B,"<="&T!$C$5,Bogføring!$G:$G,A59) -> 0 | G59: =SUM(C29:C57) -> 96893.05
G60: =G28-G59 -> 17971.41
A61: 12310 | B61: Bank konto | C61: =SUMIFS(Bogføring!$H:$H,Bogføring!$B:$B,">="&T!$C$4,Bogføring!$B:$B,"<="&T!$C$5,Bogføring!$G:$G,A61)-SUMIFS(Bogføring!$I:$I,Bogføring!$B:$B,">="&T!$C$4,Bogføring!$B:$B,"<="&T!$C$5,Bogføring!$G:$G,A61) -> 21291.5
A62: 12320 | B62: Kasse | C62: =SUMIFS(Bogføring!$H:$H,Bogføring!$B:$B,">="&T!$C$4,Bogføring!$B:$B,"<="&T!$C$5,Bogføring!$G:$G,A62)-SUMIFS(Bogføring!$I:$I,Bogføring!$B:$B,">="&T!$C$4,Bogføring!$B:$B,"<="&T!$C$5,Bogføring!$G:$G,A62) -> 4736
A63: 12330 | B63: Egenkapital | C63: =SUMIFS(Bogføring!$I:$I,Bogføring!$B:$B,">="&T!$C$4,Bogføring!$B:$B,"<="&T!$C$5,Bogføring!$G:$G,A63)-SUMIFS(Bogføring!$H:$H,Bogføring!$B:$B,">="&T!$C$4,Bogføring!$B:$B,"<="&T!$C$5,Bogføring!$G:$G,A63)+G60 -> 19981.25
C64: =SUMIFS(Bogføring!$I:$I,Bogføring!$B:$B,">="&T!$C$4,Bogføring!$B:$B,"<="&T!$C$5,Bogføring!$G:$G,A64)-SUMIFS(Bogføring!$H:$H,Bogføring!$B:$B,">="&T!$C$4,Bogføring!$B:$B,"<="&T!$C$5,Bogføring!$G:$G,A64)+F57 -> 0
A65: 12360 | B65: Skyldig A-skat | C65: =SUMIFS(Bogføring!$I:$I,Bogføring!$B:$B,">="&T!$C$4,Bogføring!$B:$B,"<="&T!$C$5,Bogføring!$G:$G,A65)-SUMIFS(Bogføring!$H:$H,Bogføring!$B:$B,">="&T!$C$4,Bogføring!$B:$B,"<="&T!$C$5,Bogføring!$G:$G,A65)+F58 -> 4219
A66: 12361 | B66: Skyldig AM | C66: =SUMIFS(Bogføring!$I:$I,Bogføring!$B:$B,">="&T!$C$4,Bogføring!$B:$B,"<="&T!$C$5,Bogføring!$G:$G,A66)-SUMIFS(Bogføring!$H:$H,Bogføring!$B:$B,">="&T!$C$4,Bogføring!$B:$B,"<="&T!$C$5,Bogføring!$G:$G,A66)+F59 -> 797
A67: 12362 | B67: Skyldig ATP | C67: =SUMIFS(Bogføring!$I:$I,Bogføring!$B:$B,">="&T!$C$4,Bogføring!$B:$B,"<="&T!$C$5,Bogføring!$G:$G,A67)-SUMIFS(Bogføring!$H:$H,Bogføring!$B:$B,">="&T!$C$4,Bogføring!$B:$B,"<="&T!$C$5,Bogføring!$G:$G,A67)+F60 -> 378.6
A68: 12364 | B68: Skyldige Feriepenge | C68: =SUMIFS(Bogføring!$I:$I,Bogføring!$B:$B,">="&T!$C$4,Bogføring!$B:$B,"<="&T!$C$5,Bogføring!$G:$G,A68)-SUMIFS(Bogføring!$H:$H,Bogføring!$B:$B,">="&T!$C$4,Bogføring!$B:$B,"<="&T!$C$5,Bogføring!$G:$G,A68)+F61 -> 800
A71: 12370 | B71: Forudbetalt kontingent | C71: =SUMIFS(Bogføring!$I:$I,Bogføring!$B:$B,">="&T!$C$4,Bogføring!$B:$B,"<="&T!$C$5,Bogføring!$G:$G,A71)-SUMIFS(Bogføring!$H:$H,Bogføring!$B:$B,">="&T!$C$4,Bogføring!$B:$B,"<="&T!$C$5,Bogføring!$G:$G,A71)+F62 -> 0
A72: 12380 | B72: Banklån | C72: =SUMIFS(Bogføring!$I:$I,Bogføring!$B:$B,">="&T!$C$4,Bogføring!$B:$B,"<="&T!$C$5,Bogføring!$G:$G,A72)-SUMIFS(Bogføring!$H:$H,Bogføring!$B:$B,">="&T!$C$4,Bogføring!$B:$B,"<="&T!$C$5,Bogføring!$G:$G,A72)+F62 -> 0
A73: 12390 | B73: Andre Lån | C73: =SUMIFS(Bogføring!$I:$I,Bogføring!$B:$B,">="&T!$C$4,Bogføring!$B:$B,"<="&T!$C$5,Bogføring!$G:$G,A73)-SUMIFS(Bogføring!$H:$H,Bogføring!$B:$B,">="&T!$C$4,Bogføring!$B:$B,"<="&T!$C$5,Bogføring!$G:$G,A73)+F63 -> 0
A74: 12400 | B74: Kreditorer samler konto | C74: =SUM(C71:C73) -> 0 | E74: 12370 | F74: 12390
C75: =SUM(C66:C74) -> 1975.6
A76: 12410 | B76: Tilgodehavende Kontingenter | C76: =SUMIFS(Bogføring!$I:$I,Bogføring!$B:$B,">="&T!$C$4,Bogføring!$B:$B,"<="&T!$C$5,Bogføring!$G:$G,A76)-SUMIFS(Bogføring!$H:$H,Bogføring!$B:$B,">="&T!$C$4,Bogføring!$B:$B,"<="&T!$C$5,Bogføring!$G:$G,A76)+F72 -> 0
A77: 12420 | B77: Lån til Forsvarsmuseumet | C77: =SUMIFS(Bogføring!$H:$H,Bogføring!$B:$B,">="&T!$C$4,Bogføring!$B:$B,"<="&T!$C$5,Bogføring!$G:$G,A77)-SUMIFS(Bogføring!$I:$I,Bogføring!$B:$B,">="&T!$C$4,Bogføring!$B:$B,"<="&T!$C$5,Bogføring!$G:$G,A77)+F73 -> 0
A78: 12500 | B78: Debitorer samler konto | C78: =SUM(C76:C77) -> 0 | E78: 12410 | F78: 12420

Sheet Udgiftsbilag (hidden)
C3: Bornholms Forsvarsmuseum
B7: Udgifts bilag. | G7: Bilags nr.:
G9: Kontering
G11: D | I11: K
B13: Dato:
B15: Beløb:
B17: Formål:
B22: Betalt til :
B24: Underskrift:

Sheet T
A2: Regnskabs år | B2: =C2+1 -> 2023 | C2: 2022 | D2: =C2-1 -> 2021 | E2: =C2-2 -> 2020 | F2: =D2-2 -> 2019 | H2: cellen C2 | I2: her indtastes det indeværende regnskabs år
B3: =IF(YEAR(B4)<>YEAR(B5),YEAR(B4)&"-"&YEAR(B5),YEAR(B4)) -> 2023 | C3: =IF(YEAR(C4)<>YEAR(C5),YEAR(C4)&"-"&YEAR(C5),YEAR(C4)) -> 2022 | D3: =IF(YEAR(D4)<>YEAR(D5),YEAR(D4)&"-"&YEAR(D5),YEAR(D4)) -> 2021 | E3: =IF(YEAR(E4)<>YEAR(E5),YEAR(E4)&"-"&YEAR(E5),YEAR(E4)) -> 2020 | F3: =IF(YEAR(F4)<>YEAR(F5),YEAR(F4)&"-"&YEAR(F5),YEAR(F4)) -> 2019
A4: Regnskabsårets start | B4: =DATE(B2-I5,$L$5,$K$5) -> 2023-01-01 | C4: =DATE(C2-I5,$L$5,$K$5) -> 2022-01-01 | D4: =DATE(D2-I5,$L$5,$K$5) -> 2021-01-01 | E4: =DATE(E2-I5,$L$5,$K$5) -> 2020-01-01 | F4: =DATE(F2-I5,$L$5,$K$5) -> 2019-01-01 | H4: Regnskabs året starter : | K4: dag | L4: måned
A5: Regnskabs årets slut | B5: =N7 -> 2023-12-31 | C5: =L7 -> 2022-12-31 | D5: =P7 -> 2021-12-31 | E5: =R7 -> 2020-12-31 | F5: =T7 -> 2019-12-31 | I5: 0 | K5: 1 | L5: 1
K6: Aktuelt år | M6: Budget år | O6: realiseret år | Q6: realiseret år | S6: realiseret år
A7: ="Periode : "&TEXT(C4,"dd-mm-åååå")&" - "&TEXT(IF(TODAY()>C5,C5,TODAY()),"dd-mm-åååå") -> Periode : 01-01-2022 - 15-05-2022 | C7: version 1.00.009.047 | H7: Regnskabs året slutter : | K7: =C4-1 -> 2021-12-31 | L7: =DATE(YEAR(K7)+1,MONTH(K7),DAY(K7)) -> 2022-12-31 | M7: =B4-1 -> 2022-12-31 | N7: =DATE(YEAR(M7)+1,MONTH(M7),DAY(M7)) -> 2023-12-31 | O7: =D4-1 -> 2020-12-31 | P7: =DATE(YEAR(O7)+1,MONTH(O7),DAY(O7)) -> 2021-12-31 | Q7: =E4-1 -> 2019-12-31 | R7: =DATE(YEAR(Q7)+1,MONTH(Q7),DAY(Q7)) -> 2020-12-31 | S7: =F4-1 -> 2018-12-31 | T7: =DATE(YEAR(S7)+1,MONTH(S7),DAY(S7)) -> 2019-12-31
A9: Foreningens navn: | B9: xxxxxxxxxxxxx | H9: Revisionspåtegning: (1-3) | K9: 1 | L9: 0= tomt felt
A11: Kasserer : | B11: Kasserer | H11: Næste medl. Nr. : | K11: 109
A13: Bilagskontollant : | B13: xxxx xxxx | H13: SE-NR : | I13: 88739817
A15: Bilagskontollant : | B15: xxxxx xx
A17: Mail til Revisor : | B17: xxx
A19: Revisionspåtegning: 1
A20: Regnskabet er d.d. revideret. Beholdningkonti er fundet til stede. Bogføringen er kontrollet. Revisionen gav anledning til flg. Bemærkning
A22: Revisionspåtegning: 2
A23: Kalenderårsregnskabet med resultatopgørese og balance er gennemgået og afstemt af generalforsamlingsvante revisorer samt jf. foreningens lov/vedtægt med bogføringsbekendtgørelsen som vejledning. Fra statustidspunktet og til revisionsdatoen er der ikke kendskab til forhold, som vil kunne forrykke vurderingen af regnskabet, som giver et retvisende billede.
A25: Revisionspåtegning: 3
A26: Årsregnskabet med bilag, resultat, balance og udtog er gennemgået og afstemt af de valgte revisorer. Gennemgangen har ikke givet anledning til bemærkninger.
A28: Bemærkninger:
A29: Regnskabet er det 6. i Bornholmske Dragoner, og på baggrund af 74 betalende medlemmer. Der er 14 restancer.
A34: 2021

Sheet Regnskab GF2 (hidden)
B2: REGNSKAB FOR 3. ORDINÆRE GENERALFORSAMLING 13.01.18.
C4: Antal | E4: Indtægt | F4: Udgift | G4: Resultat
B5: Kuv. Gule ærter/Stroganof | D5: 150
B6: øl | D6: 10
B7: Kaffe, småkager
B8: 12 Morgenmad inkl. bestyrelse
B9: Værelser (10 enheder) | D9: 75
B10: Duge, servietter m.m.
B11: Salg af øl | D11: 20
B12: Salg af snaps | D12: 20
B13: Salg af vand | D13: 10
B14: Salg af mærker | D14: 50
F15: 0
F16: 0
F17: 0
B18: Gave til | F18: 0
B19: I alt | E19: =SUM(E5:E18) -> 0 | F19: =SUM(F5:F18) -> 0 | G19: =E19-F19 -> 0
B21: Salget på denne generalforsamling har vist sig at passe perfekt - det stemmer på øren - og det er dejligt. Ved optælling af beholdning af øl og snaps, er der 30 øl og lidt snaps, til næste arrangement.
E24: Indtægt | F24: Udgift | G24: TOTAL
B25: Kontant fra festen indsat i bank
B27: Salg af 11 klister/stofmærker
B28: Salg af 79 øl og 27 snaps = 106
B29: Salg af 8 vand
B30: I alt
B31: Overskud | G31: =G25-G30 -> 0

Sheet vejlend. (hidden)
A1: HUSK:
A2: Ved årsskifte / regnskabsårsafslutning.
A4: PRINT: | B4: DETTE ÅR:
B5: Bogføring hele året
B6: Kontoplan
B7: Regnskab
B8: 1. Kontoudtog fra banken hele året (fra 1/1 til 31/12)
B9: 2. Kontoudtog fra banken hele året (fra 1/1 til 31/12)
A11: PRINT: | B11: NYT ÅR:
B12: Bogføring for nyt år
B13: Kontoplan
B14: 1. Kontoudtog fra banken nyt år (fra 1/1 - ….)
B15: 2. Kontoudtog fra banken nyt år (fra 1/1 - ….)
A17: Mail til REVISOR: | B17: Sende mail med vedhæftet:
B18: Bogføring dette år
B19: Bogføring nyt år
B20: Tid for besøg med bilag
B21: Evt. - bemærkninger til året
A23: Til REVISOR: | B23: Alle bilag
B24: Alle udtog
B25: Alle kontoudtog / bankkontoudtog
B26: Alle opgørelser
B27: Evt. køb/salg
B28: evt. +???
A31: ÅRSSKIFTE | B31: Ændre til nyt år på ÅR p.t.
B32: BEMÆRK:
B33: år 1 = budget / næste år | E33: rettes efter aktuelt år
A34: nyt år | B34: år 2 = aktuelt år / dette år | E34: KUN aktuelt år indtastes
B35: år 3 = sidste år realiseret | E35: rettes efter aktuelt år
B36: år 4 = forrige år realiseret | E36: rettes efter aktuelt år
A38: nyt år | B38: Rette ARK Bogføring: B55 til ny dato
B39: (rette ARK Bogføring: B45 til ny dato)
A41: BUDGET: | B41: indtastes i Bogføring med næste års dato
B42: (evt. i hovedtal) - nyt regnskabsår + 1 år..
A45: NB. | B45: Afslutningsposter i tilhørende år (31/12 / ultimo)
B46: Åbningsposter fra tilhørende år (1/1 / primo)

Sheet Udmeldelser (hidden)
A1: Medl.nr. : | B1: NAVN | C1: ADRESSE | D1: POSTNR | E1: By | F1: TELEFON | G1: E-MAIL | H1: Udmeldt | I1: Bemærkning:
A2: 1 | B2: Finn Bræstrup Karlsen | C2: Vimmelskaftet 14 | D2: 3700 | E2: Rønne | G2: fjkarlsen@gmail.com
A3: 2 | B3: Lone Kure | C3: Harbovej 40A | D3: 3700 | E3: Rønne | G3: lonekure2014@gmail.com
A4: 3 | B4: Ole og Olga Drobova Andersen | C4: Vesterbro 10 | D4: 3720 | E4: Åkirkeby | G4: ole_andersen@hotmail.com
A5: 4 | B5: Ole Koefoed Marker | C5: Piberegård, Bodernevej 17 | D5: 3720 | E5: Åkirkeby | I5: DØD-oplyst 13.09.19.
A6: 5 | B6: Birgit Andersen | C6: Mulebyvej 2 | D6: 3700 | E6: Rønne | G6: birgitkure@gmail.com
A7: 6 | B7: Birthe Juel-Jensen | C7: Egeløkken 3 | D7: 3700 | E7: Rønne | F7: 56961052 | I7: Død - jan 2020
A8: 7 | B8: Sven Munch og Pyllis Holm | C8: Morbærstien 5 | D8: 3700 | E8: Rønne | I8: Død - feb 2020
A9: 29 | B9: Nina Vibe | C9: Charlottevej 7, Muleby | D9: 3700 | E9: Rønne | G9: ninavibe@live.dk | H9: 2020-04-07
A10: 133 | B10: Jonna Jensen | C10: Spodsbjergvej 127 | D10: 5900 | E10: Rudkøbing | F10: 20311031 | G10: GIRO | H10: 2019
A11: 1007 | B11: MALERFIRMAET Borg Aps | C11: Åkirkebyvej 66 | D11: 3700 | E11: Rønne | G11: info@malerborg.dk

Sheet Om (hidden)
B1: Dette regneark er lavet efter en ide fra Excelgaard.dk
B2: Revideret af Bjarne Hansen
B4: Besøg excelgaard.dk
B6: START med DATAår + kontoplan
B7: Jeg vil gerne knytte en kommentar til det regneark, som Bjarne H. har lagt op...
B9: Fra: EXCELGAARD: 19/4-2018:
B10: 1. Bemærk, at man skal kende til, og benytte det dobbelt bogføringssystem, med debit og kredit posteringer.
B11: 2. En "fed" ting ved systemet, er, at man kan benytte bogføringen løbende år efter år, og i princippet aldrig behøver opstarte et nyt bogføringsark, selvom man starter et nyt regnskabsår - ja, faktisk er det meningen, at man blot skal forsætte, og så på 'Regnskab' arket, skal man benytter '=SUM.HVISSER()' til både, at afgrænse på konto og datoer (regnskabsår).
B12: (Bjarne er netop opstartet på regnearket, og afgrænser, lige nu, blot på konto, men, når der skiftes regnskabsår, skal formlerne lige udvides til datoer også
B13: 3. Er man rigtigt snu, så laver man et felt til indtastning af regnskabsår på ARK: "ÅR p.t.", og dermed kan man altid hente et bestemt regnskabsår, med sammenligningsregnskab, selvom årene går.
B14: 4. Man kan let udvide bogføringsarket til også, at indeholde dimensioner - hvis man f.eks. tilføjer en kolonne, der hedder 'Faktua', kan man altid indtast både egne og leverandørers faktura nummer, og fremover hurtigt finde dem, ved hjælp af filteret.
B15: 5. Og, det er jo kun fantasien, der bestemmer, hvilke dimensioner man ønsker på posteringerne, f.eks. 'Køretøj', 'Medarbejder', 'Afdeling', 'Formål', 'Bærer', 'Kunde', 'Medlem', 'Leverandør', o.s.v..
B17: Kilde:
B18: Udarbejdet af: Excelgaard 2016
B19: Tilrettet af: Bjarne Hansen 2018
B20: +ønsker m.m. fra: InfoTAL / H.C. 04/2018 (via DRF)
B22: Dette program er velegnet til
B23: mindre regnskaber for foreninger o.l.
B25: Skal der være konti med moms, så se evt. på: www.dinero.dk
B26: (u/beregning u/revisionsmodul - ellers gebyr pr. md.)
B28: BOGFØRING: - (vejledning) - ARK: Bogføring
B29: ART: Debet Kredit
B30: drift udgift indtægt
B31: status ejer skylder
B33: egenkapital negativ positiv
B34: resultat positiv negativ
A38: ÅRSSKIFTE | B38: Ændre til nyt år på ÅR p.t.
B39: BEMÆRK:
B40: år 1 = budget / næste år | C40: rettes efter aktuelt år
B41: år 2 = aktuelt år / dette år | C41: KUN aktuelt år indtastes
B42: år 3 = sidste år realiseret | C42: rettes efter aktuelt år
B43: år 4 = forrige år realiseret | C43: rettes efter aktuelt år
A45: BUDGET: | B45: indtastes i Bogføring med næste års dato
B46: (evt. i hovedtal)
A49: NB. | B49: Afslutningsposter i tilhørende år (31/12 / ultimo)
B50: Åbningsposter fra tilhørende år (1/1 / primo)
A53: (daglig) | B53: ARK: Bogføring= posteriger e/bilag o.l. (kasse) m/saldokontrol
B54: ARK: vejledn.= vejledning
A55: (opstart) | B55: ARK: Kontoplan= opret/oprettede konti
B56: ARK: Regnskab= de bogførte bilag/poster på konti
A57: (årligt) | B57: ARK: ÅR p.t.= til oprettelse af aktuelt regnskabsår
B58: ARK: Om= beskrivelse af funktioner
B59: ARK: Afv %= er BUDGET + aktuelt år og de sidste 2 år - med sammenligning/afvigelse
B60: (Budget oprettes i Bogføring - se vejledning)
B61: FORMLER: MÅ IKKE ÆNDRES - så virker regnearket ikke..
B63: Revisionspåtegning:
B64: Tilrettes efter revisorernes eget valg (kun forslag på ARK: Regnskab)
B66: KONTROL:
B67: Bankkonti afstemmes løbende på ARK: Bogføring øverst efter E1 og E2 (saldo)
B69: LÅSTE CELLER:
B70: Der er ikke låste celler - det kan frit oprettes e/ønske
B71: Frys ruder kan udvides e/ønske

Sheet Kontokort
A4: KONTOKORT
A6: Kontonavn | C6: =VLOOKUP(J7,Kontoplan!A2:B94,2,0) -> Kasse | I6: Konto nr.
J7: 12320
A8: År | I8: Side
A10: Dato | C10: Bilag nr. | D10: Tekst | E10: Medl nr | F10: Årstal | G10: Debet | H10: Kredit | I10: D/K | J10: Saldo | L10: Sammenflettede celler er noget af det værste bras,
A11: =_xlfn._xlws.FILTER(Bogføring!B6:B950,(Bogføring!G6:G950=Kontokort!J7)*(Bogføring!B6:B950>=T!C4)*(Bogføring!B6:B950<=T!C5),"") -> 2022-01-01 | G11: =_xlfn._xlws.FILTER(Bogføring!H6:I950,(Bogføring!G6:G950=Kontokort!J7)*(Bogføring!B6:B950>=T!C4)*(Bogføring!B6:B950<=T!C5),"") -> 851 | H11: 0 | J11: =IF(A11,SUM(G$11:G11)-SUM(H$11:H11),"") -> 851 | L11: hvilket filen her er et afskrækkende eksempel på.
A12: 2022-01-23 | G12: 1425 | H12: 0 | J12: =IF(A12,SUM(G$11:G12)-SUM(H$11:H12),"") -> 2276 | L12: Brug Center Across Selection i stedet for.
A13: 2022-05-04 | G13: 605 | H13: 0 | J13: =IF(A13,SUM(G$11:G13)-SUM(H$11:H13),"") -> 2881 | L13: (Format, Format Cells, Alignment, Center Across Selection).
A14: 2022-05-05 | G14: 1265 | H14: 0 | J14: =IF(A14,SUM(G$11:G14)-SUM(H$11:H14),"") -> 4146
A15: 2022-05-06 | G15: 530 | H15: 0 | J15: =IF(A15,SUM(G$11:G15)-SUM(H$11:H15),"") -> 4676
A16: 2022-05-07 | G16: 60 | H16: 0 | J16: =IF(A16,SUM(G$11:G16)-SUM(H$11:H16),"") -> 4736
J17: =IF(A17,SUM(G$11:G17)-SUM(H$11:H17),"") -> 
J18: =IF(A18,SUM(G$11:G18)-SUM(H$11:H18),"") -> 
J19: =IF(A19,SUM(G$11:G19)-SUM(H$11:H19),"") -> 
J20: =IF(A20,SUM(G$11:G20)-SUM(H$11:H20),"") -> 
J21: =IF(A21,SUM(G$11:G21)-SUM(H$11:H21),"") -> 
J22: =IF(A22,SUM(G$11:G22)-SUM(H$11:H22),"") -> 
J23: =IF(A23,SUM(G$11:G23)-SUM(H$11:H23),"") -> 
J24: =IF(A24,SUM(G$11:G24)-SUM(H$11:H24),"") -> 
J25: =IF(A25,SUM(G$11:G25)-SUM(H$11:H25),"") -> 
J26: =IF(A26,SUM(G$11:G26)-SUM(H$11:H26),"") -> 
J27: =IF(A27,SUM(G$11:G27)-SUM(H$11:H27),"") -> 
J28: =IF(A28,SUM(G$11:G28)-SUM(H$11:H28),"") -> 
J29: =IF(A29,SUM(G$11:G29)-SUM(H$11:H29),"") -> 
J30: =IF(A30,SUM(G$11:G30)-SUM(H$11:H30),"") -> 
J31: =IF(A31,SUM(G$11:G31)-SUM(H$11:H31),"") -> 
J32: =IF(A32,SUM(G$11:G32)-SUM(H$11:H32),"") -> 
J33: =IF(A33,SUM(G$11:G33)-SUM(H$11:H33),"") -> 
J34: =IF(A34,SUM(G$11:G34)-SUM(H$11:H34),"") -> 
J35: =IF(A35,SUM(G$11:G35)-SUM(H$11:H35),"") -> 
J36: =IF(A36,SUM(G$11:G36)-SUM(H$11:H36),"") -> 
J37: =IF(A37,SUM(G$11:G37)-SUM(H$11:H37),"") -> 
J38: =IF(A38,SUM(G$11:G38)-SUM(H$11:H38),"") -> 
J39: =IF(A39,SUM(G$11:G39)-SUM(H$11:H39),"") -> 
J40: =IF(A40,SUM(G$11:G40)-SUM(H$11:H40),"") -> 
J41: =IF(A41,SUM(G$11:G41)-SUM(H$11:H41),"") -> 
J42: =IF(A42,SUM(G$11:G42)-SUM(H$11:H42),"") -> 
J43: =IF(A43,SUM(G$11:G43)-SUM(H$11:H43),"") -> 
J44: =IF(A44,SUM(G$11:G44)-SUM(H$11:H44),"") -> 

Sheet T2
W1: Formand/Sekretær
A2: Regnskabs år | B2: =C2+1 -> 2023 | C2: 2022 | D2: =C2-1 -> 2021 | E2: =C2-2 -> 2020 | F2: =D2-2 -> 2019 | H2: cellen C2 | I2: her indtastes det indeværende regnskabs år | W2: Næstformand
B3: =IF(YEAR(B4)<>YEAR(B5),YEAR(B4)&"-"&YEAR(B5),YEAR(B4)) -> 2023 | C3: =IF(YEAR(C4)<>YEAR(C5),YEAR(C4)&"-"&YEAR(C5),YEAR(C4)) -> 2022 | D3: =IF(YEAR(D4)<>YEAR(D5),YEAR(D4)&"-"&YEAR(D5),YEAR(D4)) -> 2021 | E3: =IF(YEAR(E4)<>YEAR(E5),YEAR(E4)&"-"&YEAR(E5),YEAR(E4)) -> 2020 | F3: =IF(YEAR(F4)<>YEAR(F5),YEAR(F4)&"-"&YEAR(F5),YEAR(F4)) -> 2019 | W3: Web ansvarlig
A4: Regnskabsårets start | B4: =DATE(B2-I5,$L$5,$K$5) -> 2023-01-01 | C4: =DATE(C2-I5,$L$5,$K$5) -> 2022-01-01 | D4: =DATE(D2-I5,$L$5,$K$5) -> 2021-01-01 | E4: =DATE(E2-I5,$L$5,$K$5) -> 2020-01-01 | F4: =DATE(F2-I5,$L$5,$K$5) -> 2019-01-01 | H4: Regnskabs året starter : | K4: dag | L4: måned | W4: Forbindelsesp. til AK
A5: Regnskabs årets slut | B5: =N7 -> 2023-12-31 | C5: =L7 -> 2022-12-31 | D5: =P7 -> 2021-12-31 | E5: =R7 -> 2020-12-31 | F5: =T7 -> 2019-12-31 | I5: 0 | K5: 1 | L5: 1 | W5: Ad hoc
K6: Aktuelt år | M6: Budget år | O6: realiseret år | Q6: realiseret år | S6: realiseret år | W6: Suppleant
A7: ="Periode : "&TEXT(C4, "dd-mm-åååå")& " - "&TEXT(C5,"dd-mm-åååå") -> Periode : 01-01-2022 - 31-12-2022 | C7: version 2020.00.02.00 | H7: Regnskabs året slutter : | K7: =C4-1 -> 2021-12-31 | L7: =DATE(YEAR(K7)+1,MONTH(K7),DAY(K7)) -> 2022-12-31 | M7: =B4-1 -> 2022-12-31 | N7: =DATE(YEAR(M7)+1,MONTH(M7),DAY(M7)) -> 2023-12-31 | O7: =D4-1 -> 2020-12-31 | P7: =DATE(YEAR(O7)+1,MONTH(O7),DAY(O7)) -> 2021-12-31 | Q7: =E4-1 -> 2019-12-31 | R7: =DATE(YEAR(Q7)+1,MONTH(Q7),DAY(Q7)) -> 2020-12-31 | S7: =F4-1 -> 2018-12-31 | T7: =DATE(YEAR(S7)+1,MONTH(S7),DAY(S7)) -> 2019-12-31 | W7: Bilagskontrollant
W8: Kasserer
A9: Foreningens navn: | B9: TEST regnskab | H9: Revisionspåtegning: (1-3) | K9: 1 | L9: 0= tomt felt
A11: Foreningens adresse : | B11: xxxxxxxxx | H11: Næste medl. Nr. : | K11: 147
A13: Foreningens Postnr & By : | B13: xxxxxxxxxx | H13: Kommune : | K13: Bornholms Regionskommune
A15: Formand : | B15: Formand
A17: Kasserer : | B17: Kassere
A19: Bestyrelses medlem : | B19: Bestyrelses medlem 1
A21: Bestyrelses medlem : | B21: Bestyrelses medlem 2
A23: Bestyrelses medlem : | B23: Bestyrelses medlem 3
A25: Foreningens CVR-nr. : | B25: xxxxxxxxx
A27: Resiosor : | B27: xxxxxxxxx
A29: Bilagskontollant : | B29: xxxxxxxx
A31: Mail til Revisor : | B31: xxx
A33: Revisionspåtegning: 1
A34: Regnskabet er d.d. revideret. Beholdningkonti er fundet til stede. Bogføringen er kontrollet. Revisionen gav anledning til flg. Bemærkning
A36: Revisionspåtegning: 2
A37: Kalenderårsregnskabet med resultatopgørese og balance er gennemgået og afstemt af generalforsamlingsvante revisorer samt jf. foreningens lov/vedtægt med bogføringsbekendtgørelsen som vejledning. Fra statustidspunktet og til revisionsdatoen er der ikke kendskab til forhold, som vil kunne forrykke vurderingen af regnskabet, som giver et retvisende billede.
A39: Revisionspåtegning: 3
A40: Årsregnskabet med bilag, resultat, balance og udtog er gennemgået og afstemt af de valgte revisorer. Gennemgangen har ikke givet anledning til bemærkninger.
A42: Bemærkninger:
A43: Regnskabet er d.d. revideret. Beholdningkonti er fundet til stede. Bogføringen er kontrollet. Revisionen gav anledning til flg. Bemærkning

Sheet Restanceliste (hidden)
A5: der laves en funktion der danner restancelisten ved tryk på en knap hvis der findes en liste kommer der en msgbox om man ønsker at overskrive den
B6: Hentes fra medlemslisten udfra A kolonnen med lopslag
A7: Medlems nr.: | B7: Navn | C7: Adresse | D7: postnr | E7: by
